Workbook

Sheet Cover
A2: Cap and Floor Financial Model 2 (CFFM2)
C3: =MID(CELL("filename"),SEARCH("[",CELL("filename"))+1,SEARCH("]",CELL("filename"))-SEARCH("[",CELL("filename"))-1) -> NSLCFFM2.xlsm
E4: DISCLAIMER: The inputs used in this model (with the exception of those imported from the NSLCFFM1 used to set cap and floor levels and PCA adjustments at PCR) are purely illustrative and no inference should be made about any future regulatory settlement for Nemo Link beyond PCR.
C5: For guidance on the use of the CFFM2, please refer to the CFFM2 Handbook (CFFM2H)
B7: Model key
E9: Sample | G9: Calculated value
E10: Sample | G10: Formula changes in cells to the right
E11: Sample | G11: Value imported from other sheet
E12: Sample | G12: Value exported to other sheet
E13: Sample | G13: Import from & export to other sheet
E14: Sample | G14: Initial input
E15: Sample | G15: Initial input for non-GB indexed portion (to be left empty if GB-indexed only)
E16: Sample | G16: Updated input
E17: Sample | G17: Notes and instructions
E18: Sample | G18: Cell intentionally blank
B20: Contents
E22: Cover | G22: Model key and content directory
E23: Version Control | G23: Version control and log of changes
E24: Inputs | G24: Inputs
E25: Cost & Revenue | G25: Baseline cost summary and currency conversion of nominal actual costs and revenue
E26: ORA Adjustment | G26: Controllable Opex adjustment
E27: DC Adjustment | G27: Decommissioning costs adjustment
E28: Indexation | G28: Cap and floor inflation indexation
E29: Availability | G29: Availability incentive calculations
E30: Assessment | G30: Revenue assessment relative to cap and floor and non-controllable Opex assessment relative to baseline level
E31: Revenue Adjustment | G31: Cap and floor levels and revenue adjustments
B33: Checks
E35: Partial year cap adjustment factor | G35: =Inputs!I65 -> TRUE
E36: Partial year floor adjustment factor | G36: =Inputs!I73 -> FALSE
E37: ORA start date | G37: =Inputs!I160 -> TRUE
E38: No relevant inputs outside of operational period | G38: =Inputs!I216 -> TRUE
B40: End of sheet

Sheet Version Control
A1: Version Control
B2: Version number | C2: File pathname | D2: Based on version | E2: Author or editor | F2: Date | G2: Description of changes | H2: Rationale for changes | I2: Location of changes | J2: Impact of changes on outputs | K2: Quality assurance performed? By? | L2: Comments on QA performed
B4: 1 | D4: N/a | E4: Andrew Stone & Neill Aitken (NGV) | G4: New model | H4: N/a | I4: N/a | J4: N/a | K4: N/a | L4: N/a
B5: 1.1 | D5: 1 | E5: Martin Namor | F5: 2019-07-05 | G5: CFFM1 and CFFM2 split out of original CFFM | H5: Reviewing and improving CFFM | I5: N/a | J5: No | K5: Nick Clitheroe & Tadeos Shahbazia (GAD) | L5: Multiple high, medium and low priority issues identified
B6: 1.2 | D6: 1.1 | E6: Martin Namor | F6: 2019-09-05 | G6: Multiple structural changes | H6: Addressing main concerns raised by GAD | I6: Multiple sheets | J6: Potential | K6: Nick Clitheroe & Tadeos Shahbazia (GAD), Svitlana Voronkova (ORE) | L6: High and main medium priority issues addressed satisfactorily
B7: 1.3 | D7: 1.2 | E7: Martin Namor | F7: 2019-12-04 | G7: Multiple presentational changes | H7: Addressing medium and minor concerns raised by GAD | I7: Multiple sheets | J7: No | K7: Svitlana Voronkova (ORE) | L7: Remaining medium and low priority issues addressed satisfactorily
B8: 1.4 | D8: 1.3 | E8: Vanessa Simpson & Neill Aitken (NGV) | F8: 2022-07-01 | G8: Costs transferred from IFA2CFFM1. Changes made to reflect IFA2 operational years. Replaced RPI inflation value with actual RPI inflation value. Changes made to reflect that IFA2 is a single currency project. | H8: Implementing the model for IFA2 | I8: Multiple Sheets | J8: Medium | K8: Internal (ORE - Rahmatullah Kawsary) | L8: Comments reflected in version 1.4
B9: 1.5 | D9: 1.4 | E9: Lucy Bond | F9: 2023-08-25 | G9: Costs transferred from NSLCFFM1. | H9: Implementing the model for NSL | I9: Multiple Sheets | J9: Medium

Sheet Inputs
A1: Inputs | H1: Licence
E2: Parameter | G2: Units | H2: Terminology | I2: Constant | O2: Annual values
E3: Year commencing | O3: =I20 -> 2020-04-01 | P3: =O4+1 -> 2021-04-01 | Q3: =P4+1 -> 2022-04-01 | R3: 2023-04-01 | S3: 2024-04-01 | T3: 2025-04-01 | U3: 2026-04-01 | V3: 2027-04-01 | W3: 2028-04-01 | X3: 2029-04-01 | Y3: 2030-04-01 | Z3: 2031-04-01 | AA3: 2032-04-01 | AB3: =AA4+1 -> 2033-04-01 | AC3: 2034-04-01 | AD3: 2035-04-01 | AE3: 2036-04-01 | AF3: 2037-04-01 | AG3: 2038-04-01 | AH3: 2039-04-01 | AI3: 2040-04-01 | AJ3: 2041-04-01 | AK3: 2042-04-01 | AL3: 2043-04-01 | AM3: 2044-04-01 | AN3: 2045-04-01 | AO3: 2046-04-01 | AP3: 2047-04-01 | AQ3: 2048-04-01 | AR3: 2049-04-01 | AS3: 2050-04-01 | AT3: 2051-04-01 | AU3: 2052-04-01 | AV3: 2053-04-01 | AW3: 2054-04-01 | AX3: 2055-04-01 | AY3: 2056-04-01 | AZ3: 2057-04-01 | BA3: 2058-04-01 | BB3: 2059-04-01
E4: Year ending | O4: =EOMONTH(O3,11) -> 2021-03-31 | P4: =EOMONTH(P3,11) -> 2022-03-31 | Q4: =EOMONTH(Q3,11) -> 2023-03-31 | R4: 2024-03-31 | S4: 2025-03-31 | T4: 2026-03-31 | U4: 2027-03-31 | V4: 2028-03-31 | W4: 2029-03-31 | X4: 2030-03-31 | Y4: 2031-03-31 | Z4: 2032-03-31 | AA4: 2033-03-31 | AB4: 2034-03-31 | AC4: 2035-03-31 | AD4: 2036-03-31 | AE4: 2037-03-31 | AF4: 2038-03-31 | AG4: 2039-03-31 | AH4: 2040-03-31 | AI4: 2041-03-31 | AJ4: 2042-03-31 | AK4: 2043-03-31 | AL4: 2044-03-31 | AM4: 2045-03-31 | AN4: 2046-03-31 | AO4: 2047-03-31 | AP4: 2048-03-31 | AQ4: 2049-03-31 | AR4: 2050-03-31 | AS4: 2051-03-31 | AT4: 2052-03-31 | AU4: 2053-03-31 | AV4: 2054-03-31 | AW4: 2055-03-31 | AX4: 2056-03-31 | AY4: 2057-03-31 | AZ4: 2058-03-31 | BA4: 2059-03-31 | BB4: 2060-03-31
E5: Operational year | O5: 0 | P5: =+O5+1 -> 1 | Q5: =+P5+1 -> 2 | R5: 3 | S5: 4 | T5: 5 | U5: 6 | V5: 7 | W5: 8 | X5: 9 | Y5: 10 | Z5: 11 | AA5: 12 | AB5: 13 | AC5: 14 | AD5: 15 | AE5: 16 | AF5: 17 | AG5: 18 | AH5: 19 | AI5: 20 | AJ5: 21 | AK5: 22 | AL5: 23 | AM5: 24 | AN5: 25 | AO5: 26 | AP5: 27 | AQ5: 28 | AR5: 29 | AS5: 30 | AT5: 31 | AU5: 32 | AV5: 33 | AW5: 34 | AX5: 35 | AY5: 36 | AZ5: 37 | BA5: 38 | BB5: 39
B7: Items transferred from CFFM1
C9: Base year and currency
E11: Base year price term | I11: £m 15/16 prices
E13: Currency of revenue and cost inputs | I13: £
C15: Model operation
E17: Regime start date | G17: date | I17: 2021-01-01
E18: Start of financial year of regime start date | G18: date | I18: 2021-04-01
E19: End of financial year of first regime year | G19: date | I19: 2022-03-31
E20: Start of preceding financial year | G20: date | I20: =DATE(YEAR(I18)-1,MONTH(I18),DAY(I18)) -> 2020-04-01
E21: Number of operational years | G21: full years | I21: 25
E22: Calendar month number (e.g. Jan=1) of first month of financial year when operations start | G22: value | I22: =MONTH(I18) -> 4
C24: Cap and Floor levels
E26: Preliminary Cap including tax | G26: =base_year -> £m 15/16 prices | H26: PCL | I26: 89.848311
E27: Preliminary Floor including tax | G27: =base_year -> £m 15/16 prices | H27: PFL | I27: 50.896819
E29: Cap PCA adjustment | G29: =base_year -> £m 15/16 prices | H29: PCAC | I29: 3.472855625
E30: Floor PCA adjustment | G30: =base_year -> £m 15/16 prices | H30: PCAF | I30: 8.360200553
C32: Baseline cost inputs during operations
E34: Decommissioning (baseline) | G34: =base_year -> £m 15/16 prices | P34: 0 | Q34: 0 | R34: 0 | S34: 0 | T34: 0 | U34: 0 | V34: 0 | W34: 0 | X34: 0 | Y34: 0 | Z34: 0 | AA34: 0 | AB34: 0 | AC34: 0 | AD34: 0 | AE34: 0 | AF34: 0 | AG34: 0 | AH34: 0 | AI34: 0 | AJ34: 0 | AK34: 0 | AL34: 0 | AM34: 0 | AN34: 24.21525798 | AO34: 0 | AP34: 0 | AQ34: 0 | AR34: 0 | AS34: 0 | AT34: 0 | AU34: 0 | AV34: 0 | AW34: 0 | AX34: 0 | AY34: 0 | AZ34: 0 | BA34: 0 | BB34: 0
E35: Controllable Opex (baseline) | G35: =base_year -> £m 15/16 prices | P35: 18.5812626 | Q35: 22.8428388 | R35: 25.24782245 | S35: 26.00659495 | T35: 22.99531943 | U35: 21.93909406 | V35: 22.07744474 | W35: 22.79345571 | X35: 22.79654145 | Y35: 22.95537805 | Z35: 23.18127377 | AA35: 23.26093966 | AB35: 23.49506243 | AC35: 23.37480321 | AD35: 23.49687321 | AE35: 23.71386389 | AF35: 23.78612396 | AG35: 24.04930891 | AH35: 23.92120968 | AI35: 24.03846634 | AJ35: 24.28674177 | AK35: 24.34997777 | AL35: 24.60654151 | AM35: 24.50833447 | AN35: 24.7918577 | AO35: 0 | AP35: 0 | AQ35: 0 | AR35: 0 | AS35: 0 | AT35: 0 | AU35: 0 | AV35: 0 | AW35: 0 | AX35: 0 | AY35: 0 | AZ35: 0 | BA35: 0 | BB35: 0
E36: Non-controllable Opex (baseline) | G36: =base_year -> £m 15/16 prices | H36: BNCOA | P36: 1.151161748 | Q36: 1.142434531 | R36: 1.133773477 | S36: 1.125178085 | T36: 1.116647856 | U36: 1.108182297 | V36: 1.099780917 | W36: 1.091443229 | X36: 1.083168752 | Y36: 1.074957005 | Z36: 1.066807514 | AA36: 1.058719805 | AB36: 1.050693412 | AC36: 1.042727868 | AD36: 1.034822713 | AE36: 1.026977488 | AF36: 1.01919174 | AG36: 1.011465018 | AH36: 1.003796873 | AI36: 0.9961868625 | AJ36: 0.9886345452 | AK36: 0.9811394836 | AL36: 0.9737012439 | AM36: 0.966319395 | AN36: 0.9589935097 | AO36: 0 | AP36: 0 | AQ36: 0 | AR36: 0 | AS36: 0 | AT36: 0 | AU36: 0 | AV36: 0 | AW36: 0 | AX36: 0 | AY36: 0 | AZ36: 0 | BA36: 0 | BB36: 0
C38: Financial returns
E40: Cap return rate | G40: real annual % | I40: 0.0798
E41: Floor return rate | G41: real annual % | I41: 0.0088
E42: Operational discount rate | G42: real annual % | H42: ODR | I42: =(I40 + I41) / 2 -> 0.0443
C44: Base year indices
E46: Base year RPI inflation index value (CHAW) | G46: Jan 1987 = 100 | H46: UK RPI index 2015/16 | I46: 259.4333
E47: Base year non-GB inflation index value | G47: 2004 = 100
E48: Base year average exchange rate (XUMAERS) | G48: GBP / EUR
B50: Regime timings and design
C52: Model operation
C53: Note: changes to these variables may require structural changes to the model
E55: =E17 -> Regime start date | G55: date | I55: =I17 -> 2021-01-01
E56: =E18 -> Start of financial year of regime start date | G56: date | I56: =I18 -> 2021-04-01
E57: =E19 -> End of financial year of first regime year | G57: date | I57: =I19 -> 2022-03-31
E58: Days in year | G58: days | O58: =O4-O3+1 -> 365 | P58: 365 | Q58: 365 | R58: 366 | S58: 365 | T58: 365 | U58: 365 | V58: 366 | W58: 365 | X58: 365 | Y58: 365 | Z58: 366 | AA58: 365 | AB58: 365 | AC58: 365 | AD58: 366 | AE58: 365 | AF58: 365 | AG58: 365 | AH58: 366 | AI58: 365 | AJ58: 365 | AK58: 365 | AL58: 366 | AM58: 365 | AN58: 365 | AO58: 365 | AP58: 366 | AQ58: 365 | AR58: 365 | AS58: 365 | AT58: 366 | AU58: 365 | AV58: 365 | AW58: 365 | AX58: 366 | AY58: 365 | AZ58: 365 | BA58: 365 | BB58: 366
E60: Regime start date flag | G60: flag | O60: =IF($I$57=O$4,1,0) -> 0 | P60: 1 | Q60: 0 | R60: 0 | S60: 0 | T60: 0 | U60: 0 | V60: 0 | W60: 0 | X60: 0 | Y60: 0 | Z60: 0 | AA60: 0 | AB60: 0 | AC60: 0 | AD60: 0 | AE60: 0 | AF60: 0 | AG60: 0 | AH60: 0 | AI60: 0 | AJ60: 0 | AK60: 0 | AL60: 0 | AM60: 0 | AN60: 0 | AO60: 0 | AP60: 0 | AQ60: 0 | AR60: 0 | AS60: 0 | AT60: 0 | AU60: 0 | AV60: 0 | AW60: 0 | AX60: 0 | AY60: 0 | AZ60: 0 | BA60: 0 | BB60: 0
E61: Regime end date | G61: date | I61: =DATE(YEAR($I$55)+I21,MONTH($I$55),DAY($I$55))-1 -> 2045-12-31
E62: Regime end date flag | G62: flag | O62: =IF(AND($I61<O$4,$I61>=N$4),1,0) -> 0 | P62: =IF(AND($I61<P$4,$I61>=O$4),1,0) -> 0 | Q62: =IF(AND($I61<Q$4,$I61>=P$4),1,0) -> 0 | R62: 0 | S62: 0 | T62: 0 | U62: 0 | V62: 0 | W62: 0 | X62: 0 | Y62: 0 | Z62: 0 | AA62: 0 | AB62: 0 | AC62: 0 | AD62: 0 | AE62: 0 | AF62: 0 | AG62: 0 | AH62: 0 | AI62: 0 | AJ62: 0 | AK62: 0 | AL62: 0 | AM62: 0 | AN62: =IF(AND($I61<AN$4,$I61>=AM$4),1,0) -> 1 | AO62: 0 | AP62: 0 | AQ62: 0 | AR62: 0 | AS62: 0 | AT62: 0 | AU62: 0 | AV62: 0 | AW62: 0 | AX62: 0 | AY62: 0 | AZ62: 0 | BA62: 0 | BB62: 0
E63: Number of days cap term | G63: days | H63: NDC | I63: =+I57-I55+1 -> 455
E64: Partial year cap adjustment factor | G64: flag | H64: PYCt | O64: =+IF(SUM($O60:O60)<1,0,IF(O$5=1,$I$63/365.25,IF(O$5=25,1+(365.25-$I$63)/365.25,IF(O$5>25,0,1)))) -> 0 | P64: =+IF(SUM($O60:P60)<1,0,IF(P$5=1,$I$63/365.25,IF(P$5=25,1+(365.25-$I$63)/365.25,IF(P$5>25,0,1)))) -> 1.245722108 | Q64: =+IF(SUM($O60:Q60)<1,0,IF(Q$5=1,$I$63/365.25,IF(Q$5=25,1+(365.25-$I$63)/365.25,IF(Q$5>25,0,1)))) -> 1 | R64: =+IF(SUM($O60:R60)<1,0,IF(R$5=1,$I$63/365.25,IF(R$5=25,1+(365.25-$I$63)/365.25,IF(R$5>25,0,1)))) -> 1 | S64: =+IF(SUM($O60:S60)<1,0,IF(S$5=1,$I$63/365.25,IF(S$5=25,1+(365.25-$I$63)/365.25,IF(S$5>25,0,1)))) -> 1 | T64: =+IF(SUM($O60:T60)<1,0,IF(T$5=1,$I$63/365.25,IF(T$5=25,1+(365.25-$I$63)/365.25,IF(T$5>25,0,1)))) -> 1 | U64: =+IF(SUM($O60:U60)<1,0,IF(U$5=1,$I$63/365.25,IF(U$5=25,1+(365.25-$I$63)/365.25,IF(U$5>25,0,1)))) -> 1 | V64: =+IF(SUM($O60:V60)<1,0,IF(V$5=1,$I$63/365.25,IF(V$5=25,1+(365.25-$I$63)/365.25,IF(V$5>25,0,1)))) -> 1 | W64: =+IF(SUM($O60:W60)<1,0,IF(W$5=1,$I$63/365.25,IF(W$5=25,1+(365.25-$I$63)/365.25,IF(W$5>25,0,1)))) -> 1 | X64: =+IF(SUM($O60:X60)<1,0,IF(X$5=1,$I$63/365.25,IF(X$5=25,1+(365.25-$I$63)/365.25,IF(X$5>25,0,1)))) -> 1 | Y64: =+IF(SUM($O60:Y60)<1,0,IF(Y$5=1,$I$63/365.25,IF(Y$5=25,1+(365.25-$I$63)/365.25,IF(Y$5>25,0,1)))) -> 1 | Z64: =+IF(SUM($O60:Z60)<1,0,IF(Z$5=1,$I$63/365.25,IF(Z$5=25,1+(365.25-$I$63)/365.25,IF(Z$5>25,0,1)))) -> 1 | AA64: =+IF(SUM($O60:AA60)<1,0,IF(AA$5=1,$I$63/365.25,IF(AA$5=25,1+(365.25-$I$63)/365.25,IF(AA$5>25,0,1)))) -> 1 | AB64: =+IF(SUM($O60:AB60)<1,0,IF(AB$5=1,$I$63/365.25,IF(AB$5=25,1+(365.25-$I$63)/365.25,IF(AB$5>25,0,1)))) -> 1 | AC64: =+IF(SUM($O60:AC60)<1,0,IF(AC$5=1,$I$63/365.25,IF(AC$5=25,1+(365.25-$I$63)/365.25,IF(AC$5>25,0,1)))) -> 1 | AD64: =+IF(SUM($O60:AD60)<1,0,IF(AD$5=1,$I$63/365.25,IF(AD$5=25,1+(365.25-$I$63)/365.25,IF(AD$5>25,0,1)))) -> 1 | AE64: =+IF(SUM($O60:AE60)<1,0,IF(AE$5=1,$I$63/365.25,IF(AE$5=25,1+(365.25-$I$63)/365.25,IF(AE$5>25,0,1)))) -> 1 | AF64: =+IF(SUM($O60:AF60)<1,0,IF(AF$5=1,$I$63/365.25,IF(AF$5=25,1+(365.25-$I$63)/365.25,IF(AF$5>25,0,1)))) -> 1 | AG64: =+IF(SUM($O60:AG60)<1,0,IF(AG$5=1,$I$63/365.25,IF(AG$5=25,1+(365.25-$I$63)/365.25,IF(AG$5>25,0,1)))) -> 1 | AH64: =+IF(SUM($O60:AH60)<1,0,IF(AH$5=1,$I$63/365.25,IF(AH$5=25,1+(365.25-$I$63)/365.25,IF(AH$5>25,0,1)))) -> 1 | AI64: =+IF(SUM($O60:AI60)<1,0,IF(AI$5=1,$I$63/365.25,IF(AI$5=25,1+(365.25-$I$63)/365.25,IF(AI$5>25,0,1)))) -> 1 | AJ64: =+IF(SUM($O60:AJ60)<1,0,IF(AJ$5=1,$I$63/365.25,IF(AJ$5=25,1+(365.25-$I$63)/365.25,IF(AJ$5>25,0,1)))) -> 1 | AK64: =+IF(SUM($O60:AK60)<1,0,IF(AK$5=1,$I$63/365.25,IF(AK$5=25,1+(365.25-$I$63)/365.25,IF(AK$5>25,0,1)))) -> 1 | AL64: =+IF(SUM($O60:AL60)<1,0,IF(AL$5=1,$I$63/365.25,IF(AL$5=25,1+(365.25-$I$63)/365.25,IF(AL$5>25,0,1)))) -> 1 | AM64: =+IF(SUM($O60:AM60)<1,0,IF(AM$5=1,$I$63/365.25,IF(AM$5=25,1+(365.25-$I$63)/365.25,IF(AM$5>25,0,1)))) -> 1 | AN64: =+IF(SUM($O60:AN60)<1,0,IF(AN$5=1,$I$63/365.25,IF(AN$5=25,1+(365.25-$I$63)/365.25,IF(AN$5>25,0,1)))) -> 0.7542778919 | AO64: =+IF(SUM($O60:AO60)<1,0,IF(AO$5=1,$I$63/365.25,IF(AO$5=25,1+(365.25-$I$63)/365.25,IF(AO$5>25,0,1)))) -> 0 | AP64: =+IF(SUM($O60:AP60)<1,0,IF(AP$5=1,$I$63/365.25,IF(AP$5=25,1+(365.25-$I$63)/365.25,IF(AP$5>25,0,1)))) -> 0 | AQ64: =+IF(SUM($O60:AQ60)<1,0,IF(AQ$5=1,$I$63/365.25,IF(AQ$5=25,1+(365.25-$I$63)/365.25,IF(AQ$5>25,0,1)))) -> 0 | AR64: =+IF(SUM($O60:AR60)<1,0,IF(AR$5=1,$I$63/365.25,IF(AR$5=25,1+(365.25-$I$63)/365.25,IF(AR$5>25,0,1)))) -> 0 | AS64: =+IF(SUM($O60:AS60)<1,0,IF(AS$5=1,$I$63/365.25,IF(AS$5=25,1+(365.25-$I$63)/365.25,IF(AS$5>25,0,1)))) -> 0 | AT64: =+IF(SUM($O60:AT60)<1,0,IF(AT$5=1,$I$63/365.25,IF(AT$5=25,1+(365.25-$I$63)/365.25,IF(AT$5>25,0,1)))) -> 0 | AU64: =+IF(SUM($O60:AU60)<1,0,IF(AU$5=1,$I$63/365.25,IF(AU$5=25,1+(365.25-$I$63)/365.25,IF(AU$5>25,0,1)))) -> 0 | AV64: =+IF(SUM($O60:AV60)<1,0,IF(AV$5=1,$I$63/365.25,IF(AV$5=25,1+(365.25-$I$63)/365.25,IF(AV$5>25,0,1)))) -> 0 | AW64: =+IF(SUM($O60:AW60)<1,0,IF(AW$5=1,$I$63/365.25,IF(AW$5=25,1+(365.25-$I$63)/365.25,IF(AW$5>25,0,1)))) -> 0 | AX64: =+IF(SUM($O60:AX60)<1,0,IF(AX$5=1,$I$63/365.25,IF(AX$5=25,1+(365.25-$I$63)/365.25,IF(AX$5>25,0,1)))) -> 0 | AY64: =+IF(SUM($O60:AY60)<1,0,IF(AY$5=1,$I$63/365.25,IF(AY$5=25,1+(365.25-$I$63)/365.25,IF(AY$5>25,0,1)))) -> 0 | AZ64: =+IF(SUM($O60:AZ60)<1,0,IF(AZ$5=1,$I$63/365.25,IF(AZ$5=25,1+(365.25-$I$63)/365.25,IF(AZ$5>25,0,1)))) -> 0 | BA64: =+IF(SUM($O60:BA60)<1,0,IF(BA$5=1,$I$63/365.25,IF(BA$5=25,1+(365.25-$I$63)/365.25,IF(BA$5>25,0,1)))) -> 0 | BB64: =+IF(SUM($O60:BB60)<1,0,IF(BB$5=1,$I$63/365.25,IF(BB$5=25,1+(365.25-$I$63)/365.25,IF(BB$5>25,0,1)))) -> 0
E65: Partial year cap adjustment factor check | G65: check | I65: =SUM(O64:BB64)=$I$75 -> TRUE
E67: Floor start date | G67: date | I67: 2022-08-25
E68: Start of financial year of floor start date | G68: date | I68: =IF(MONTH(I67)<$I$22,DATE(YEAR(I67)-1,$I$22,1),DATE(YEAR(I67),$I$22,1)) -> 2022-04-01
E69: End of financial year of floor start date | G69: date | I69: =EOMONTH(I68,11) -> 2023-03-31
E70: Floor start date flag | G70: flag | O70: =IF(AND($I67<=O$4,$I67>=O$3),1,0) -> 0 | P70: 0 | Q70: =IF(AND($I67<=Q$4,$I67>=Q$3),1,0) -> 1 | R70: =IF(AND($I67<=R$4,$I67>=R$3),1,0) -> 0 | S70: 0 | T70: 0 | U70: 0 | V70: 0 | W70: 0 | X70: 0 | Y70: 0 | Z70: 0 | AA70: 0 | AB70: 0 | AC70: 0 | AD70: 0 | AE70: 0 | AF70: 0 | AG70: 0 | AH70: 0 | AI70: 0 | AJ70: 0 | AK70: 0 | AL70: 0 | AM70: 0 | AN70: 0 | AO70: 0 | AP70: 0 | AQ70: 0 | AR70: 0 | AS70: 0 | AT70: 0 | AU70: 0 | AV70: 0 | AW70: 0 | AX70: 0 | AY70: 0 | AZ70: 0 | BA70: 0 | BB70: 0
E71: Number of days floor term | G71: days | H71: NDF | I71: =+I69-I67+1 -> 219
E72: Partial year floor adjustment factor | G72: flag | H72: PYFt | O72: =IF(O$70=1,$I$71/365.25,IF(SUM($O70:O70)>=1,O64,0)) -> 0 | P72: =IF(P$70=1,$I$71/365.25,IF(SUM($O70:P70)>=1,P64,0)) -> 0 | Q72: =IF(Q$70=1,$I$71/365.25,IF(SUM($O70:Q70)>=1,Q64,0)) -> 0.5995893224 | R72: =IF(R$70=1,$I$71/365.25,IF(SUM($O70:R70)>=1,R64,0)) -> 1 | S72: =IF(S$70=1,$I$71/365.25,IF(SUM($O70:S70)>=1,S64,0)) -> 1 | T72: =IF(T$70=1,$I$71/365.25,IF(SUM($O70:T70)>=1,T64,0)) -> 1 | U72: =IF(U$70=1,$I$71/365.25,IF(SUM($O70:U70)>=1,U64,0)) -> 1 | V72: =IF(V$70=1,$I$71/365.25,IF(SUM($O70:V70)>=1,V64,0)) -> 1 | W72: =IF(W$70=1,$I$71/365.25,IF(SUM($O70:W70)>=1,W64,0)) -> 1 | X72: =IF(X$70=1,$I$71/365.25,IF(SUM($O70:X70)>=1,X64,0)) -> 1 | Y72: =IF(Y$70=1,$I$71/365.25,IF(SUM($O70:Y70)>=1,Y64,0)) -> 1 | Z72: =IF(Z$70=1,$I$71/365.25,IF(SUM($O70:Z70)>=1,Z64,0)) -> 1 | AA72: =IF(AA$70=1,$I$71/365.25,IF(SUM($O70:AA70)>=1,AA64,0)) -> 1 | AB72: =IF(AB$70=1,$I$71/365.25,IF(SUM($O70:AB70)>=1,AB64,0)) -> 1 | AC72: =IF(AC$70=1,$I$71/365.25,IF(SUM($O70:AC70)>=1,AC64,0)) -> 1 | AD72: =IF(AD$70=1,$I$71/365.25,IF(SUM($O70:AD70)>=1,AD64,0)) -> 1 | AE72: =IF(AE$70=1,$I$71/365.25,IF(SUM($O70:AE70)>=1,AE64,0)) -> 1 | AF72: =IF(AF$70=1,$I$71/365.25,IF(SUM($O70:AF70)>=1,AF64,0)) -> 1 | AG72: =IF(AG$70=1,$I$71/365.25,IF(SUM($O70:AG70)>=1,AG64,0)) -> 1 | AH72: =IF(AH$70=1,$I$71/365.25,IF(SUM($O70:AH70)>=1,AH64,0)) -> 1 | AI72: =IF(AI$70=1,$I$71/365.25,IF(SUM($O70:AI70)>=1,AI64,0)) -> 1 | AJ72: =IF(AJ$70=1,$I$71/365.25,IF(SUM($O70:AJ70)>=1,AJ64,0)) -> 1 | AK72: =IF(AK$70=1,$I$71/365.25,IF(SUM($O70:AK70)>=1,AK64,0)) -> 1 | AL72: =IF(AL$70=1,$I$71/365.25,IF(SUM($O70:AL70)>=1,AL64,0)) -> 1 | AM72: =IF(AM$70=1,$I$71/365.25,IF(SUM($O70:AM70)>=1,AM64,0)) -> 1 | AN72: =IF(AN$70=1,$I$71/365.25,IF(SUM($O70:AN70)>=1,AN64,0)) -> 0.7542778919 | AO72: =IF(AO$70=1,$I$71/365.25,IF(SUM($O70:AO70)>=1,AO64,0)) -> 0 | AP72: =IF(AP$70=1,$I$71/365.25,IF(SUM($O70:AP70)>=1,AP64,0)) -> 0 | AQ72: =IF(AQ$70=1,$I$71/365.25,IF(SUM($O70:AQ70)>=1,AQ64,0)) -> 0 | AR72: =IF(AR$70=1,$I$71/365.25,IF(SUM($O70:AR70)>=1,AR64,0)) -> 0 | AS72: =IF(AS$70=1,$I$71/365.25,IF(SUM($O70:AS70)>=1,AS64,0)) -> 0 | AT72: =IF(AT$70=1,$I$71/365.25,IF(SUM($O70:AT70)>=1,AT64,0)) -> 0 | AU72: =IF(AU$70=1,$I$71/365.25,IF(SUM($O70:AU70)>=1,AU64,0)) -> 0 | AV72: =IF(AV$70=1,$I$71/365.25,IF(SUM($O70:AV70)>=1,AV64,0)) -> 0 | AW72: =IF(AW$70=1,$I$71/365.25,IF(SUM($O70:AW70)>=1,AW64,0)) -> 0 | AX72: =IF(AX$70=1,$I$71/365.25,IF(SUM($O70:AX70)>=1,AX64,0)) -> 0 | AY72: =IF(AY$70=1,$I$71/365.25,IF(SUM($O70:AY70)>=1,AY64,0)) -> 0 | AZ72: =IF(AZ$70=1,$I$71/365.25,IF(SUM($O70:AZ70)>=1,AZ64,0)) -> 0 | BA72: =IF(BA$70=1,$I$71/365.25,IF(SUM($O70:BA70)>=1,BA64,0)) -> 0 | BB72: =IF(BB$70=1,$I$71/365.25,IF(SUM($O70:BB70)>=1,BB64,0)) -> 0
E73: Partial year floor adjustment factor check | G73: check | I73: =SUM(O72:BB72)=$I$75 -> FALSE
E75: Number of operational years | G75: full years | I75: =I21 -> 25
E76: Assessment period length | G76: full years | I76: 5
E78: GB indexed portion of interconnector | G78: % | I78: 1
B80: Variables to be updated
C82: Cost items to be updated up to and beyond PCA stage (actual)
E84: Non-controllable Opex (actual) | G84: =CONCATENATE(CF_currency,"m nominal prices") -> £m nominal prices | P84: 0 | Q84: 0 | R84: 0 | S84: 0 | T84: 0 | U84: 0 | V84: 0 | W84: 0 | X84: 0 | Y84: 0 | Z84: 0 | AA84: 0 | AB84: 0 | AC84: 0 | AD84: 0 | AE84: 0 | AF84: 0 | AG84: 0 | AH84: 0 | AI84: 0 | AJ84: 0 | AK84: 0 | AL84: 0 | AM84: 0 | AN84: 0 | AO84: 0 | AP84: 0 | AQ84: 0 | AR84: 0 | AS84: 0 | AT84: 0 | AU84: 0 | AV84: 0 | AW84: 0 | AX84: 0 | AY84: 0 | AZ84: 0 | BA84: 0 | BB84: 0
E85: Non-controllable Opex adjustment following NRA review (actual) | G85: =CONCATENATE(CF_currency,"m nominal prices") -> £m nominal prices | P85: 0 | Q85: 0 | R85: 0 | S85: 0 | T85: 0 | U85: 0 | V85: 0 | W85: 0 | X85: 0 | Y85: 0 | Z85: 0 | AA85: 0 | AB85: 0 | AC85: 0 | AD85: 0 | AE85: 0 | AF85: 0 | AG85: 0 | AH85: 0 | AI85: 0 | AJ85: 0 | AK85: 0 | AL85: 0 | AM85: 0 | AN85: 0 | AO85: 0 | AP85: 0 | AQ85: 0 | AR85: 0 | AS85: 0 | AT85: 0 | AU85: 0 | AV85: 0 | AW85: 0 | AX85: 0 | AY85: 0 | AZ85: 0 | BA85: 0 | BB85: 0
C87: Revenue items to be updated (actual)
E89: Capacity allocation revenue | G89: =CONCATENATE(CF_currency,"m nominal prices") -> £m nominal prices | H89: CARt | P89: 0 | Q89: 0 | R89: 0 | S89: 0 | T89: 0 | U89: 0 | V89: 0 | W89: 0 | X89: 0 | Y89: 0 | Z89: 0 | AA89: 0 | AB89: 0 | AC89: 0 | AD89: 0 | AE89: 0 | AF89: 0 | AG89: 0 | AH89: 0 | AI89: 0 | AJ89: 0 | AK89: 0 | AL89: 0 | AM89: 0 | AN89: 0 | AO89: 0 | AP89: 0 | AQ89: 0 | AR89: 0 | AS89: 0 | AT89: 0 | AU89: 0 | AV89: 0 | AW89: 0 | AX89: 0 | AY89: 0 | AZ89: 0 | BA89: 0 | BB89: 0
E90: Ancillary services revenue (GB) | G90: £m nominal prices | H90: ASRGBt | P90: 0 | Q90: 0 | R90: 0 | S90: 0 | T90: 0 | U90: 0 | V90: 0 | W90: 0 | X90: 0 | Y90: 0 | Z90: 0 | AA90: 0 | AB90: 0 | AC90: 0 | AD90: 0 | AE90: 0 | AF90: 0 | AG90: 0 | AH90: 0 | AI90: 0 | AJ90: 0 | AK90: 0 | AL90: 0 | AM90: 0 | AN90: 0 | AO90: 0 | AP90: 0 | AQ90: 0 | AR90: 0 | AS90: 0 | AT90: 0 | AU90: 0 | AV90: 0 | AW90: 0 | AX90: 0 | AY90: 0 | AZ90: 0 | BA90: 0 | BB90: 0
E91: Ancillary services revenue (non-GB, if applicable) | G91: £m nominal prices | H91: ASRnGBt | P91: 0 | Q91: 0 | R91: 0 | S91: 0 | T91: 0 | U91: 0 | V91: 0 | W91: 0 | X91: 0 | Y91: 0 | Z91: 0 | AA91: 0 | AB91: 0 | AC91: 0 | AD91: 0 | AE91: 0 | AF91: 0 | AG91: 0 | AH91: 0 | AI91: 0 | AJ91: 0 | AK91: 0 | AL91: 0 | AM91: 0 | AN91: 0 | AO91: 0 | AP91: 0 | AQ91: 0 | AR91: 0 | AS91: 0 | AT91: 0 | AU91: 0 | AV91: 0 | AW91: 0 | AX91: 0 | AY91: 0 | AZ91: 0 | BA91: 0 | BB91: 0
E92: Capacity market revenue | G92: £m nominal prices | H92: CMRt | P92: 0 | Q92: 0 | R92: 0 | S92: 0 | T92: 0 | U92: 0 | V92: 0 | W92: 0 | X92: 0 | Y92: 0 | Z92: 0 | AA92: 0 | AB92: 0 | AC92: 0 | AD92: 0 | AE92: 0 | AF92: 0 | AG92: 0 | AH92: 0 | AI92: 0 | AJ92: 0 | AK92: 0 | AL92: 0 | AM92: 0 | AN92: 0 | AO92: 0 | AP92: 0 | AQ92: 0 | AR92: 0 | AS92: 0 | AT92: 0 | AU92: 0 | AV92: 0 | AW92: 0 | AX92: 0 | AY92: 0 | AZ92: 0 | BA92: 0 | BB92: 0
E93: Receipts from insurance | G93: £m nominal prices | H93: RIt | P93: 0 | Q93: 0 | R93: 0 | S93: 0 | T93: 0 | U93: 0 | V93: 0 | W93: 0 | X93: 0 | Y93: 0 | Z93: 0 | AA93: 0 | AB93: 0 | AC93: 0 | AD93: 0 | AE93: 0 | AF93: 0 | AG93: 0 | AH93: 0 | AI93: 0 | AJ93: 0 | AK93: 0 | AL93: 0 | AM93: 0 | AN93: 0 | AO93: 0 | AP93: 0 | AQ93: 0 | AR93: 0 | AS93: 0 | AT93: 0 | AU93: 0 | AV93: 0 | AW93: 0 | AX93: 0 | AY93: 0 | AZ93: 0 | BA93: 0 | BB93: 0
E94: Constraint payments (GB) | G94: £m nominal prices | H94: CPGBt | P94: 0 | Q94: 0 | R94: 0 | S94: 0 | T94: 0 | U94: 0 | V94: 0 | W94: 0 | X94: 0 | Y94: 0 | Z94: 0 | AA94: 0 | AB94: 0 | AC94: 0 | AD94: 0 | AE94: 0 | AF94: 0 | AG94: 0 | AH94: 0 | AI94: 0 | AJ94: 0 | AK94: 0 | AL94: 0 | AM94: 0 | AN94: 0 | AO94: 0 | AP94: 0 | AQ94: 0 | AR94: 0 | AS94: 0 | AT94: 0 | AU94: 0 | AV94: 0 | AW94: 0 | AX94: 0 | AY94: 0 | AZ94: 0 | BA94: 0 | BB94: 0
E95: Constraint payments (non-GB, if applicable) | G95: £m nominal prices | H95: CPnGBt | P95: 0 | Q95: 0 | R95: 0 | S95: 0 | T95: 0 | U95: 0 | V95: 0 | W95: 0 | X95: 0 | Y95: 0 | Z95: 0 | AA95: 0 | AB95: 0 | AC95: 0 | AD95: 0 | AE95: 0 | AF95: 0 | AG95: 0 | AH95: 0 | AI95: 0 | AJ95: 0 | AK95: 0 | AL95: 0 | AM95: 0 | AN95: 0 | AO95: 0 | AP95: 0 | AQ95: 0 | AR95: 0 | AS95: 0 | AT95: 0 | AU95: 0 | AV95: 0 | AW95: 0 | AX95: 0 | AY95: 0 | AZ95: 0 | BA95: 0 | BB95: 0
E96: Additional revenue (net of relevant costs) | G96: £m nominal prices | H96: ADRt | P96: 0 | Q96: 0 | R96: 0 | S96: 0 | T96: 0 | U96: 0 | V96: 0 | W96: 0 | X96: 0 | Y96: 0 | Z96: 0 | AA96: 0 | AB96: 0 | AC96: 0 | AD96: 0 | AE96: 0 | AF96: 0 | AG96: 0 | AH96: 0 | AI96: 0 | AJ96: 0 | AK96: 0 | AL96: 0 | AM96: 0 | AN96: 0 | AO96: 0 | AP96: 0 | AQ96: 0 | AR96: 0 | AS96: 0 | AT96: 0 | AU96: 0 | AV96: 0 | AW96: 0 | AX96: 0 | AY96: 0 | AZ96: 0 | BA96: 0 | BB96: 0
E97: Gross congestion revenues | G97: £m nominal prices | H97: GCRt | P97: =SUM(P89:P96) -> 0 | Q97: 0 | R97: 0 | S97: 0 | T97: 0 | U97: 0 | V97: 0 | W97: 0 | X97: 0 | Y97: 0 | Z97: =SUM(Z89:Z96) -> 0 | AA97: 0 | AB97: 0 | AC97: 0 | AD97: 0 | AE97: 0 | AF97: 0 | AG97: 0 | AH97: 0 | AI97: 0 | AJ97: 0 | AK97: 0 | AL97: 0 | AM97: 0 | AN97: 0 | AO97: 0 | AP97: 0 | AQ97: 0 | AR97: 0 | AS97: 0 | AT97: 0 | AU97: 0 | AV97: 0 | AW97: 0 | AX97: 0 | AY97: 0 | AZ97: 0 | BA97: 0 | BB97: 0
E99: Error accounting costs | G99: =CONCATENATE(CF_currency,"m nominal prices") -> £m nominal prices | H99: EACt | P99: 0 | Q99: 0 | R99: 0 | S99: 0 | T99: 0 | U99: 0 | V99: 0 | W99: 0 | X99: 0 | Y99: 0 | Z99: 0 | AA99: 0 | AB99: 0 | AC99: 0 | AD99: 0 | AE99: 0 | AF99: 0 | AG99: 0 | AH99: 0 | AI99: 0 | AJ99: 0 | AK99: 0 | AL99: 0 | AM99: 0 | AN99: 0 | AO99: 0 | AP99: 0 | AQ99: 0 | AR99: 0 | AS99: 0 | AT99: 0 | AU99: 0 | AV99: 0 | AW99: 0 | AX99: 0 | AY99: 0 | AZ99: 0 | BA99: 0 | BB99: 0
E100: Firmness costs | G100: =CONCATENATE(CF_currency,"m nominal prices") -> £m nominal prices | H100: FCt | P100: 0 | Q100: 0 | R100: 0 | S100: 0 | T100: 0 | U100: 0 | V100: 0 | W100: 0 | X100: 0 | Y100: 0 | Z100: 0 | AA100: 0 | AB100: 0 | AC100: 0 | AD100: 0 | AE100: 0 | AF100: 0 | AG100: 0 | AH100: 0 | AI100: 0 | AJ100: 0 | AK100: 0 | AL100: 0 | AM100: 0 | AN100: 0 | AO100: 0 | AP100: 0 | AQ100: 0 | AR100: 0 | AS100: 0 | AT100: 0 | AU100: 0 | AV100: 0 | AW100: 0 | AX100: 0 | AY100: 0 | AZ100: 0 | BA100: 0 | BB100: 0
E101: Trip contract costs | G101: =CONCATENATE(CF_currency,"m nominal prices") -> £m nominal prices | H101: TCCt | P101: 0 | Q101: 0 | R101: 0 | S101: 0 | T101: 0 | U101: 0 | V101: 0 | W101: 0 | X101: 0 | Y101: 0 | Z101: 0 | AA101: 0 | AB101: 0 | AC101: 0 | AD101: 0 | AE101: 0 | AF101: 0 | AG101: 0 | AH101: 0 | AI101: 0 | AJ101: 0 | AK101: 0 | AL101: 0 | AM101: 0 | AN101: 0 | AO101: 0 | AP101: 0 | AQ101: 0 | AR101: 0 | AS101: 0 | AT101: 0 | AU101: 0 | AV101: 0 | AW101: 0 | AX101: 0 | AY101: 0 | AZ101: 0 | BA101: 0 | BB101: 0
E102: Market related costs | G102: =CONCATENATE(CF_currency,"m nominal prices") -> £m nominal prices | H102: MRCt | P102: =SUM(P99:P101) -> 0 | Q102: 0 | R102: 0 | S102: 0 | T102: 0 | U102: 0 | V102: 0 | W102: 0 | X102: 0 | Y102: 0 | Z102: 0 | AA102: 0 | AB102: 0 | AC102: 0 | AD102: 0 | AE102: 0 | AF102: 0 | AG102: 0 | AH102: 0 | AI102: 0 | AJ102: 0 | AK102: 0 | AL102: 0 | AM102: 0 | AN102: 0 | AO102: 0 | AP102: 0 | AQ102: 0 | AR102: 0 | AS102: 0 | AT102: 0 | AU102: 0 | AV102: 0 | AW102: 0 | AX102: 0 | AY102: 0 | AZ102: =SUM(AZ99:AZ101) -> 0 | BA102: =SUM(BA99:BA101) -> 0 | BB102: 0
E104: Income adjusting event | G104: =CONCATENATE(CF_currency,"m nominal prices") -> £m nominal prices | H104: IATt | P104: 0 | Q104: 0 | R104: 0 | S104: 0 | T104: 0 | U104: 0 | V104: 0 | W104: 0 | X104: 0 | Y104: 0 | Z104: 0 | AA104: 0 | AB104: 0 | AC104: 0 | AD104: 0 | AE104: 0 | AF104: 0 | AG104: 0 | AH104: 0 | AI104: 0 | AJ104: 0 | AK104: 0 | AL104: 0 | AM104: 0 | AN104: 0 | AO104: 0 | AP104: 0 | AQ104: 0 | AR104: 0 | AS104: 0 | AT104: 0 | AU104: 0 | AV104: 0 | AW104: 0 | AX104: 0 | AY104: 0 | AZ104: 0 | BA104: 0 | BB104: 0
E106: Notional assessed revenue | G106: =CONCATENATE(CF_currency,"m nominal prices") -> £m nominal prices | H106: NARt | P106: =P97-P102-P104 -> 0 | Q106: 0 | R106: 0 | S106: 0 | T106: 0 | U106: 0 | V106: 0 | W106: 0 | X106: 0 | Y106: 0 | Z106: =Z97-Z102-Z104 -> 0 | AA106: 0 | AB106: =AB97-AB102-AB104 -> 0 | AC106: 0 | AD106: 0 | AE106: 0 | AF106: 0 | AG106: 0 | AH106: 0 | AI106: 0 | AJ106: 0 | AK106: 0 | AL106: 0 | AM106: 0 | AN106: 0 | AO106: 0 | AP106: 0 | AQ106: 0 | AR106: 0 | AS106: 0 | AT106: 0 | AU106: 0 | AV106: 0 | AW106: 0 | AX106: 0 | AY106: 0 | AZ106: 0 | BA106: 0 | BB106: 0
E108: Assessed revenue | G108: =CONCATENATE(CF_currency,"m nominal prices") -> £m nominal prices | H108: ARt | P108: =IF(P106>0,P106,0) -> 0 | Q108: =IF(Q106>0,Q106,0) -> 0 | R108: 0 | S108: 0 | T108: 0 | U108: 0 | V108: 0 | W108: 0 | X108: 0 | Y108: 0 | Z108: =IF(Z106>0,Z106,0) -> 0 | AA108: 0 | AB108: =IF(AB106>0,AB106,0) -> 0 | AC108: 0 | AD108: 0 | AE108: 0 | AF108: 0 | AG108: 0 | AH108: 0 | AI108: 0 | AJ108: 0 | AK108: 0 | AL108: 0 | AM108: 0 | AN108: 0 | AO108: 0 | AP108: 0 | AQ108: 0 | AR108: 0 | AS108: 0 | AT108: 0 | AU108: 0 | AV108: 0 | AW108: 0 | AX108: 0 | AY108: 0 | AZ108: 0 | BA108: 0 | BB108: 0
E110: Within-period adjustment (assessed) (negative value: payment to consumers; positive value: payment from consumers) | G110: £m nominal prices | H110: WPAt | P110: 0 | Q110: 0 | R110: 0 | S110: 0 | T110: 0 | U110: 0 | V110: 0 | W110: 0 | X110: 0 | Y110: 0 | Z110: 0 | AA110: 0 | AB110: 0 | AC110: 0 | AD110: 0 | AE110: 0 | AF110: 0 | AG110: 0 | AH110: 0 | AI110: 0 | AJ110: 0 | AK110: 0 | AL110: 0 | AM110: 0 | AN110: 0 | AO110: 0 | AP110: 0 | AQ110: 0 | AR110: 0 | AS110: 0 | AT110: 0 | AU110: 0 | AV110: 0 | AW110: 0 | AX110: 0 | AY110: 0 | AZ110: 0 | BA110: 0 | BB110: 0
B112: Adjustment to Cap and Floor levels
C114: Availability incentive
E116: Cap availability incentive ratio | G116: ratio | I116: 1
E117: Cap availability incentive target | G117: % | I117: 0.93
E118: Cap availability incentive upper limit | G118: scalar | I118: =I116*(1+2%) -> 1.02
E119: Cap availability incentive lower limit | G119: scalar | I119: =I116*(1-2%) -> 0.98
E121: Interconnector rated capacity | G121: MW | H121: RC | I121: 1400
E122: Number of hours in relevant year | G122: hours pa | I122: =365.25*24 -> 8766
E124: Total interconnector outages during active Cap period | G124: MWh | P124: 0 | Q124: 0 | R124: 0 | S124: 0 | T124: 0 | U124: 0 | V124: 0 | W124: 0 | X124: 0 | Y124: 0 | Z124: 0 | AA124: 0 | AB124: 0 | AC124: 0 | AD124: 0 | AE124: 0 | AF124: 0 | AG124: 0 | AH124: 0 | AI124: 0 | AJ124: 0 | AK124: 0 | AL124: 0 | AM124: 0 | AN124: 0 | AO124: 0 | AP124: 0 | AQ124: 0 | AR124: 0 | AS124: 0 | AT124: 0 | AU124: 0 | AV124: 0 | AW124: 0 | AX124: 0 | AY124: 0 | AZ124: 0 | BA124: 0 | BB124: 0
E125: Allowed outages during active Cap period | G125: MWh | P125: 0 | Q125: 0 | R125: 0 | S125: 0 | T125: 0 | U125: 0 | V125: 0 | W125: 0 | X125: 0 | Y125: 0 | Z125: 0 | AA125: 0 | AB125: 0 | AC125: 0 | AD125: 0 | AE125: 0 | AF125: 0 | AG125: 0 | AH125: 0 | AI125: 0 | AJ125: 0 | AK125: 0 | AL125: 0 | AM125: 0 | AN125: 0 | AO125: 0 | AP125: 0 | AQ125: 0 | AR125: 0 | AS125: 0 | AT125: 0 | AU125: 0 | AV125: 0 | AW125: 0 | AX125: 0 | AY125: 0 | AZ125: 0 | BA125: 0 | BB125: 0
E126: Total interconnector outages less allowed outages during active Cap period | G126: MWh | H126: IOt | P126: =P124-P125 -> 0 | Q126: 0 | R126: 0 | S126: 0 | T126: 0 | U126: 0 | V126: 0 | W126: 0 | X126: 0 | Y126: 0 | Z126: 0 | AA126: 0 | AB126: 0 | AC126: 0 | AD126: 0 | AE126: 0 | AF126: 0 | AG126: 0 | AH126: 0 | AI126: 0 | AJ126: 0 | AK126: 0 | AL126: 0 | AM126: 0 | AN126: 0 | AO126: 0 | AP126: 0 | AQ126: 0 | AR126: 0 | AS126: 0 | AT126: 0 | AU126: 0 | AV126: 0 | AW126: 0 | AX126: 0 | AY126: 0 | AZ126: 0 | BA126: 0 | BB126: 0
E127: Total Interconnector outages during active Floor period | G127: MWh | P127: 0 | Q127: 0 | R127: 0 | S127: 0 | T127: 0 | U127: 0 | V127: 0 | W127: 0 | X127: 0 | Y127: 0 | Z127: 0 | AA127: 0 | AB127: 0 | AC127: 0 | AD127: 0 | AE127: 0 | AF127: 0 | AG127: 0 | AH127: 0 | AI127: 0 | AJ127: 0 | AK127: 0 | AL127: 0 | AM127: 0 | AN127: 0 | AO127: 0 | AP127: 0 | AQ127: 0 | AR127: 0 | AS127: 0 | AT127: 0 | AU127: 0 | AV127: 0 | AW127: 0 | AX127: 0 | AY127: 0 | AZ127: 0 | BA127: 0 | BB127: 0
E128: Allowed outages during active Floor period | G128: MWh | P128: 0 | Q128: 0 | R128: 0 | S128: 0 | T128: 0 | U128: 0 | V128: 0 | W128: 0 | X128: 0 | Y128: 0 | Z128: 0 | AA128: 0 | AB128: 0 | AC128: 0 | AD128: 0 | AE128: 0 | AF128: 0 | AG128: 0 | AH128: 0 | AI128: 0 | AJ128: 0 | AK128: 0 | AL128: 0 | AM128: 0 | AN128: 0 | AO128: 0 | AP128: 0 | AQ128: 0 | AR128: 0 | AS128: 0 | AT128: 0 | AU128: 0 | AV128: 0 | AW128: 0 | AX128: 0 | AY128: 0 | AZ128: 0 | BA128: 0 | BB128: 0
E129: Total interconnector outages less allowed outages during active Floor period | G129: MWh | H129: IOt | P129: =P127-P128 -> 0 | Q129: 0 | R129: 0 | S129: 0 | T129: 0 | U129: 0 | V129: 0 | W129: 0 | X129: 0 | Y129: 0 | Z129: 0 | AA129: 0 | AB129: 0 | AC129: 0 | AD129: 0 | AE129: 0 | AF129: 0 | AG129: 0 | AH129: 0 | AI129: 0 | AJ129: 0 | AK129: 0 | AL129: 0 | AM129: 0 | AN129: =AN127-AN128 -> 0 | AO129: 0 | AP129: 0 | AQ129: 0 | AR129: 0 | AS129: 0 | AT129: 0 | AU129: 0 | AV129: 0 | AW129: 0 | AX129: 0 | AY129: 0 | AZ129: 0 | BA129: 0 | BB129: 0
E130: Outages associated with exceptional events | G130: MWh | P130: 0 | Q130: 0 | R130: 0 | S130: 0 | T130: 0 | U130: 0 | V130: 0 | W130: 0 | X130: 0 | Y130: 0 | Z130: 0 | AA130: 0 | AB130: 0 | AC130: 0 | AD130: 0 | AE130: 0 | AF130: 0 | AG130: 0 | AH130: 0 | AI130: 0 | AJ130: 0 | AK130: 0 | AL130: 0 | AM130: 0 | AN130: 0 | AO130: 0 | AP130: 0 | AQ130: 0 | AR130: 0 | AS130: 0 | AT130: 0 | AU130: 0 | AV130: 0 | AW130: 0 | AX130: 0 | AY130: 0 | AZ130: 0 | BA130: 0 | BB130: 0
E132: Floor availability incentive target | G132: % | I132: 0.8
C134: Inflation and exchange rate
E136: =E46 -> Base year RPI inflation index value (CHAW) | G136: =G46 -> Jan 1987 = 100 | H136: UK RPI index 2015/16 | I136: =I46 -> 259.4333
E137: Base year non-GB inflation index value | G137: 2004 = 100
E138: Base year average exchange rate (XUMAERS) | G138: GBP / EUR
E140: Average UK RPI inflation index value (CHAW) | G140: =G136 -> Jan 1987 = 100 | H140: UK RPI index t | O140: 294.1666667 | P140: 311.1583333 | Q140: 319.5907242 | R140: 328.2516328 | S140: 337.147252 | T140: 346.2839426 | U140: 355.6682374 | V140: 365.3068466 | W140: 375.2066622 | X140: 385.3747627 | Y140: 395.8184188 | Z140: 406.545098 | AA140: 417.5624701 | AB140: 428.8784131 | AC140: 440.501018 | AD140: 452.4385956 | AE140: 464.6996816 | AF140: 477.2930429 | AG140: 490.2276844 | AH140: 503.5128547 | AI140: 517.158053 | AJ140: 531.1730363 | AK140: 545.5678255 | AL140: 560.3527136 | AM140: 575.5382722 | AN140: 591.1353593 | AO140: 607.1551276 | AP140: 623.6090315 | AQ140: 640.5088363 | AR140: 755.7970608 | AS140: 780.2848856 | AT140: 805.5661159 | AU140: 831.666458 | AV140: 858.6124512 | AW140: 886.4314947 | AX140: 915.1518751 | AY140: 944.8027958 | AZ140: 975.4144064 | BA140: 1007.017833 | BB140: 1039.645211
E141: Average non-GB inflation index value | G141: 2004 = 100
E143: Average exchange rate (XUMAERS) | G143: GBP / EUR
E145: Indexation Factor | H145: RPIt | O145: =IF($I$78=100%,O140/$I$136,($I$78*(O140/$I$136)+(1-$I$78)*(O141/$I$137)/(O143/$I$138))) -> 1.133881682 | P145: =IF($I$78=100%,P140/$I$136,($I$78*(P140/$I$136)+(1-$I$78)*(P141/$I$137)/(P143/$I$138))) -> 1.199377001 | Q145: 1.231880118 | R145: 1.265264069 | S145: 1.299552725 | T145: 1.334770604 | U145: 1.370942887 | V145: 1.40809544 | W145: 1.446254826 | X145: 1.485448332 | Y145: 1.525703982 | Z145: 1.56705056 | AA145: 1.60951763 | AB145: 1.653135558 | AC145: 1.697935531 | AD145: 1.743949584 | AE145: 1.791210618 | AF145: 1.839752426 | AG145: 1.889609716 | AH145: 1.94081814 | AI145: 1.993414311 | AJ145: 2.047435839 | AK145: 2.10292135 | AL145: 2.159910519 | AM145: 2.218444094 | AN145: 2.278563929 | AO145: 2.340313011 | AP145: 2.403735494 | AQ145: 2.468876726 | AR145: =IF($I$78=100%,AR140/$I$136,($I$78*(AR140/$I$136)+(1-$I$78)*(AR141/$I$137)/(AR143/$I$138))) -> 2.913261562 | AS145: 3.007651237 | AT145: 3.105099137 | AU145: 3.205704349 | AV145: 3.30956917 | AW145: 3.416799211 | AX145: 3.527503505 | AY145: 3.641794619 | AZ145: 3.759788764 | BA145: 3.88160592 | BB145: 4.007369952
C147: PCA adjustment
E149: PCA/PFA adjustment - Ofgem start date | G149: date | I149: 2021-01-01
E150: Later of PCA/PFA start date and Regime start date | G150: date | I150: =MAX(I149,I55) -> 2021-01-01
E151: Later of PCA/PFA start date and Floor start date | G151: date | I151: =MAX(I149,I67) -> 2022-08-25
E152: Apply PCA adjustment factor? | G152: switch | I152: Yes
E153: PCA adjustment factor | G153: flag | O153: =IF(AND($I150<=O$4,$I150>N4),(O$4-$I150+1)/365.25,IF($I150>O$4,0,O$64)) -> 0.2464065708 | P153: 1.245722108 | Q153: 1 | R153: 1 | S153: 1 | T153: 1 | U153: 1 | V153: 1 | W153: 1 | X153: 1 | Y153: 1 | Z153: 1 | AA153: 1 | AB153: 1 | AC153: 1 | AD153: 1 | AE153: 1 | AF153: 1 | AG153: 1 | AH153: 1 | AI153: 1 | AJ153: 1 | AK153: 1 | AL153: 1 | AM153: 1 | AN153: 0.7542778919 | AO153: 0 | AP153: 0 | AQ153: 0 | AR153: 0 | AS153: 0 | AT153: 0 | AU153: 0 | AV153: 0 | AW153: 0 | AX153: 0 | AY153: 0 | AZ153: 0 | BA153: 0 | BB153: 0
E154: PFA adjustment factor | G154: flag | O154: =IF(AND($I151<=O$4,$I151>N$4),(O$4-$I151+1)/365.25,IF($I151>O$4,0,O$72)) -> 0 | P154: 0 | Q154: 0.5995893224 | R154: 1 | S154: 1 | T154: 1 | U154: 1 | V154: 1 | W154: 1 | X154: 1 | Y154: 1 | Z154: 1 | AA154: 1 | AB154: 1 | AC154: 1 | AD154: 1 | AE154: 1 | AF154: 1 | AG154: 1 | AH154: 1 | AI154: 1 | AJ154: 1 | AK154: 1 | AL154: 1 | AM154: 1 | AN154: 0.7542778919 | AO154: 0 | AP154: 0 | AQ154: 0 | AR154: 0 | AS154: 0 | AT154: 0 | AU154: 0 | AV154: 0 | AW154: 0 | AX154: 0 | AY154: 0 | AZ154: 0 | BA154: 0 | BB154: 0
C156: ORA adjustment
E158: Apply ORA adjustment factor? | G158: switch | I158: Yes
E159: ORA start date | G159: date | I159: 2032-01-01
E160: ORA start date check | G160: check | I160: =I159>DATE(YEAR(I17)+10,MONTH(I17),DAY(I17)) -> TRUE
E161: ORA Cap effective flag | G161: flag | O161: =IF(AND($I159<=O$4,$I159>N$4),(O$4-$I159+1)/365.25,IF($I159>O$4,0,O$64)) -> 0 | P161: 0 | Q161: 0 | R161: 0 | S161: 0 | T161: 0 | U161: 0 | V161: 0 | W161: 0 | X161: 0 | Y161: 0 | Z161: 0.2491444216 | AA161: 1 | AB161: 1 | AC161: 1 | AD161: 1 | AE161: 1 | AF161: 1 | AG161: 1 | AH161: 1 | AI161: 1 | AJ161: 1 | AK161: 1 | AL161: 1 | AM161: 1 | AN161: 0.7542778919 | AO161: 0 | AP161: 0 | AQ161: 0 | AR161: 0 | AS161: 0 | AT161: 0 | AU161: 0 | AV161: 0 | AW161: 0 | AX161: 0 | AY161: 0 | AZ161: 0 | BA161: 0 | BB161: 0
E162: ORA Floor effective flag | G162: flag | O162: =IF(AND($I159<=O$4,$I159>N$4),(O$4-$I159+1)/365.25,IF($I159>O$4,0,O$72)) -> 0 | P162: 0 | Q162: 0 | R162: 0 | S162: 0 | T162: 0 | U162: 0 | V162: 0 | W162: 0 | X162: 0 | Y162: 0 | Z162: 0.2491444216 | AA162: 1 | AB162: 1 | AC162: 1 | AD162: 1 | AE162: 1 | AF162: 1 | AG162: 1 | AH162: 1 | AI162: 1 | AJ162: 1 | AK162: 1 | AL162: 1 | AM162: 1 | AN162: 0.7542778919 | AO162: 0 | AP162: 0 | AQ162: 0 | AR162: 0 | AS162: 0 | AT162: 0 | AU162: 0 | AV162: 0 | AW162: 0 | AX162: 0 | AY162: 0 | AZ162: 0 | BA162: 0 | BB162: 0
E164: Revised controllable Opex at date of ORA submission | G164: =base_year -> £m 15/16 prices | P164: 0 | Q164: 0 | R164: 0 | S164: 0 | T164: 0 | U164: 0 | V164: 0 | W164: 0 | X164: 0 | Y164: 0 | Z164: 0 | AA164: 0 | AB164: 0 | AC164: 0 | AD164: 0 | AE164: 0 | AF164: 0 | AG164: 0 | AH164: 0 | AI164: 0 | AJ164: 0 | AK164: 0 | AL164: 0 | AM164: 0 | AN164: 0 | AO164: 0 | AP164: 0 | AQ164: 0 | AR164: 0 | AS164: 0 | AT164: 0 | AU164: 0 | AV164: 0 | AW164: 0 | AX164: 0 | AY164: 0 | AZ164: 0 | BA164: 0 | BB164: 0
E166: Amendment to Cap rate (to be hard-coded in this cell once ORAC adjustment finalised) | G166: =base_year -> £m 15/16 prices | H166: ORAC | I166: ='ORA Adjustment'!I27 -> -23.81037948
E167: Amendment to Floor rate (to be hard-coded in this cell once ORAF adjustment finalised) | G167: =base_year -> £m 15/16 prices | H167: ORAF | I167: ='ORA Adjustment'!I37 -> -23.93251481
C169: DC adjustments
E171: Apply DC adjustment factor? | G171: switch | I171: Yes
D173: Current DC adjustment
E175: Current DC start date | G175: date | I175: 2045-06-01
E176: Current DC Cap and Floor effective flag | G176: flag | P176: =IF(AND($I175<=P$4,$I175>O$4),(P$4-$I175+1)/365.25,IF($I175>P$4,0,P$64)) -> 0 | Q176: 0 | R176: 0 | S176: 0 | T176: 0 | U176: 0 | V176: 0 | W176: 0 | X176: 0 | Y176: 0 | Z176: 0 | AA176: 0 | AB176: 0 | AC176: 0 | AD176: 0 | AE176: 0 | AF176: 0 | AG176: 0 | AH176: 0 | AI176: 0 | AJ176: 0 | AK176: 0 | AL176: 0 | AM176: 0 | AN176: 0.8323066393 | AO176: 0 | AP176: 0 | AQ176: 0 | AR176: 0 | AS176: 0 | AT176: 0 | AU176: 0 | AV176: 0 | AW176: 0 | AX176: 0 | AY176: 0 | AZ176: 0 | BA176: 0 | BB176: 0
E178: Decommissioning Costs (latest view at submission of DCt adjustment) | G178: =base_year -> £m 15/16 prices | AO178: 0 | AP178: 0 | AQ178: 0 | AR178: 0 | AS178: 0 | AT178: 0 | AU178: 0 | AV178: 0 | AW178: 0 | AX178: 0 | AY178: 0 | AZ178: 0 | BA178: 0 | BB178: 0
E180: Amendment to Cap rate (to be hard-coded in section below once DCC adjustment finalised) | G180: =base_year -> £m 15/16 prices | H180: DCCt | I180: ='DC Adjustment'!I67 -> -29.09415454
E181: Amendment to Floor rate (to be hard-coded in section below once DCF adjustment finalised) | G181: =base_year -> £m 15/16 prices | H181: DCFt | I181: ='DC Adjustment'!I80 -> -29.09415454
D183: Previous DC adjustments
E185: First DCt adjustment
E186: Start date | G186: date | I186: 2040-06-01
E187: Cap value | G187: =base_year -> £m 15/16 prices
E188: Floor value | G188: =base_year -> £m 15/16 prices
E190: Second DCt adjustment
E191: Start date | G191: date
E192: Cap value | G192: =base_year -> £m 15/16 prices
E193: Floor value | G193: =base_year -> £m 15/16 prices
E195: Third DCt adjustment
E196: Start date | G196: date
E197: Cap value | G197: =base_year -> £m 15/16 prices
E198: Floor value | G198: =base_year -> £m 15/16 prices
E200: Fourth DCt adjustment
E201: Start date | G201: date
E202: Cap value | G202: =base_year -> £m 15/16 prices
E203: Floor value | G203: =base_year -> £m 15/16 prices
E205: Latest start date | G205: date | I205: =MAX(I201,I196,I191,I186) -> 2040-06-01
E207: DCt adjustment flags - Cap and Floor | H207: start | I207: end
E208: First DCCt adjustment | G208: flag | H208: =IF(I186="","",I186) -> 2040-06-01 | I208: =IF(H208="","",IF(H209="",$I$175-1,H209-1)) -> 2045-05-31 | P208: =IF(OR($H208>P$4,$I208<=O$4),0,IF(AND($H208<=O$4,$I208>=P$4,Q$62=1),($I208-P$3)/365.25,IF(AND($H208<=O$4,$I208>=P$4),1,IF(AND($H208<=O$4,$I208<P$4,P$62=0),($I208-O$4)/365.25,IF(AND($H208<=P$4,$I208>=P$4,Q$62=1),($I208-$H208+1)/365.25,IF(AND($H208<=P$4,$I208>=P$4),(P$4-$H208+1)/365.25,IF(AND($H208<=P$4,$I208<P$4,P$62=0),($I208-$H208+1)/365.25,0))))))) -> 0 | Q208: 0 | R208: 0 | S208: 0 | T208: 0 | U208: 0 | V208: 0 | W208: 0 | X208: 0 | Y208: 0 | Z208: 0 | AA208: 0 | AB208: 0 | AC208: 0 | AD208: 0 | AE208: 0 | AF208: 0 | AG208: 0 | AH208: 0 | AI208: 0.8323066393 | AJ208: 1 | AK208: 1 | AL208: 1 | AM208: 1.163586585 | AN208: 0 | AO208: 0 | AP208: 0 | AQ208: 0 | AR208: 0 | AS208: 0 | AT208: 0 | AU208: 0 | AV208: 0 | AW208: 0 | AX208: 0 | AY208: 0 | AZ208: 0 | BA208: 0 | BB208: 0
E209: Second DCCt adjustment | G209: flag | H209: =IF(I191="","",I191) ->  | I209: =IF(H209="","",IF(H210="",$I$175-1,H210-1)) ->  | P209: =IF(OR($H209>P$4,$I209<=O$4),0,IF(AND($H209<=O$4,$I209>=P$4,Q$62=1),($I209-P$3)/365.25,IF(AND($H209<=O$4,$I209>=P$4),1,IF(AND($H209<=O$4,$I209<P$4,P$62=0),($I209-O$4)/365.25,IF(AND($H209<=P$4,$I209>=P$4,Q$62=1),($I209-$H209+1)/365.25,IF(AND($H209<=P$4,$I209>=P$4),(P$4-$H209+1)/365.25,IF(AND($H209<=P$4,$I209<P$4,P$62=0),($I209-$H209+1)/365.25,0))))))) -> 0 | Q209: 0 | R209: 0 | S209: 0 | T209: 0 | U209: 0 | V209: 0 | W209: 0 | X209: 0 | Y209: 0 | Z209: 0 | AA209: 0 | AB209: 0 | AC209: 0 | AD209: 0 | AE209: 0 | AF209: 0 | AG209: 0 | AH209: 0 | AI209: 0 | AJ209: 0 | AK209: 0 | AL209: 0 | AM209: 0 | AN209: 0 | AO209: 0 | AP209: 0 | AQ209: 0 | AR209: 0 | AS209: 0 | AT209: 0 | AU209: 0 | AV209: 0 | AW209: 0 | AX209: 0 | AY209: 0 | AZ209: 0 | BA209: 0 | BB209: 0
E210: Third DCCt adjustment | G210: flag | H210: =IF(I196="","",I196) ->  | I210: =IF(H210="","",IF(H211="",$I$175-1,H211-1)) ->  | P210: =IF(OR($H210>P$4,$I210<=O$4),0,IF(AND($H210<=O$4,$I210>=P$4,Q$62=1),($I210-P$3)/365.25,IF(AND($H210<=O$4,$I210>=P$4),1,IF(AND($H210<=O$4,$I210<P$4,P$62=0),($I210-O$4)/365.25,IF(AND($H210<=P$4,$I210>=P$4,Q$62=1),($I210-$H210+1)/365.25,IF(AND($H210<=P$4,$I210>=P$4),(P$4-$H210+1)/365.25,IF(AND($H210<=P$4,$I210<P$4,P$62=0),($I210-$H210+1)/365.25,0))))))) -> 0 | Q210: 0 | R210: 0 | S210: 0 | T210: 0 | U210: 0 | V210: 0 | W210: 0 | X210: 0 | Y210: 0 | Z210: 0 | AA210: 0 | AB210: 0 | AC210: 0 | AD210: 0 | AE210: 0 | AF210: 0 | AG210: 0 | AH210: 0 | AI210: 0 | AJ210: 0 | AK210: 0 | AL210: 0 | AM210: 0 | AN210: 0 | AO210: 0 | AP210: 0 | AQ210: 0 | AR210: 0 | AS210: 0 | AT210: 0 | AU210: 0 | AV210: 0 | AW210: 0 | AX210: 0 | AY210: 0 | AZ210: 0 | BA210: 0 | BB210: 0
E211: Fourth DCCt adjustment | G211: flag | H211: =IF(I201="","",I201) ->  | I211: =IF(H211="","",$I$175-1) ->  | P211: =IF(OR($H211>P$4,$I211<=O$4),0,IF(AND($H211<=O$4,$I211>=P$4,Q$62=1),($I211-P$3)/365.25,IF(AND($H211<=O$4,$I211>=P$4),1,IF(AND($H211<=O$4,$I211<P$4,P$62=0),($I211-O$4)/365.25,IF(AND($H211<=P$4,$I211>=P$4,Q$62=1),($I211-$H211+1)/365.25,IF(AND($H211<=P$4,$I211>=P$4),(P$4-$H211+1)/365.25,IF(AND($H211<=P$4,$I211<P$4,P$62=0),($I211-$H211+1)/365.25,0))))))) -> 0 | Q211: 0 | R211: 0 | S211: 0 | T211: 0 | U211: 0 | V211: 0 | W211: 0 | X211: 0 | Y211: 0 | Z211: 0 | AA211: 0 | AB211: 0 | AC211: 0 | AD211: 0 | AE211: 0 | AF211: 0 | AG211: 0 | AH211: 0 | AI211: 0 | AJ211: 0 | AK211: 0 | AL211: 0 | AM211: 0 | AN211: 0 | AO211: 0 | AP211: 0 | AQ211: 0 | AR211: 0 | AS211: 0 | AT211: 0 | AU211: 0 | AV211: 0 | AW211: 0 | AX211: 0 | AY211: 0 | AZ211: 0 | BA211: 0 | BB211: 0
C213: Checks
E215: No relevant values input into individual years outside of the operational period | G215: check | O215: =IF(AND(O5>0,O5<=op_years),TRUE,SUM(O34:O36,O84:O85,O89:O96,O99:O101,O104,O110,O124:O125,O127:O128,O130,O164,O178)=0) -> TRUE | P215: TRUE | Q215: TRUE | R215: TRUE | S215: TRUE | T215: TRUE | U215: TRUE | V215: TRUE | W215: TRUE | X215: TRUE | Y215: TRUE | Z215: TRUE | AA215: TRUE | AB215: TRUE | AC215: TRUE | AD215: TRUE | AE215: TRUE | AF215: TRUE | AG215: TRUE | AH215: TRUE | AI215: TRUE | AJ215: TRUE | AK215: TRUE | AL215: TRUE | AM215: TRUE | AN215: TRUE | AO215: TRUE | AP215: TRUE | AQ215: TRUE | AR215: TRUE | AS215: TRUE | AT215: TRUE | AU215: TRUE | AV215: TRUE | AW215: TRUE | AX215: TRUE | AY215: TRUE | AZ215: TRUE | BA215: TRUE | BB215: TRUE
E216: No relevant values input into any year outside of the operational period | G216: check | I216: =SUM(O216:BB216)=0 -> TRUE | O216: =IF(O215=TRUE,0,1) -> 0 | P216: =IF(P215=TRUE,0,1) -> 0 | Q216: 0 | R216: 0 | S216: 0 | T216: 0 | U216: 0 | V216: 0 | W216: 0 | X216: 0 | Y216: 0 | Z216: 0 | AA216: 0 | AB216: 0 | AC216: 0 | AD216: 0 | AE216: 0 | AF216: 0 | AG216: 0 | AH216: 0 | AI216: 0 | AJ216: 0 | AK216: 0 | AL216: 0 | AM216: 0 | AN216: 0 | AO216: 0 | AP216: 0 | AQ216: 0 | AR216: 0 | AS216: 0 | AT216: 0 | AU216: 0 | AV216: 0 | AW216: 0 | AX216: 0 | AY216: 0 | AZ216: 0 | BA216: 0 | BB216: 0
B218: End of sheet

Sheet Data Sources
A1: Data Sources | H1: Licence | I1: Reference row in
E2: Parameter | G2: Units | H2: Terminology | I2: Inputs sheet | K2: Source | L2: Link
B4: Items transferred from CFFM1
C6: Base year and currency
E8: =Inputs!E11 -> Base year price term | I8: =ROW(Inputs!E11) -> 11 | K8: NSLCFFM1
E9: =Inputs!E13 -> Currency of revenue and cost inputs | I9: =ROW(Inputs!E13) -> 13 | K9: NSLCFFM1
C11: Model operation
E13: =Inputs!E17 -> Regime start date | G13: =Inputs!G17 -> date | I13: =ROW(Inputs!I17) -> 17 | K13: NSLCFFM1
E14: =Inputs!E18 -> Start of financial year of regime start date | G14: =Inputs!G18 -> date | I14: =ROW(Inputs!I18) -> 18 | K14: NSLCFFM1
E15: =Inputs!E21 -> Number of operational years | G15: =Inputs!G21 -> full years | I15: =ROW(Inputs!I21) -> 21 | K15: NSLCFFM1
C17: Cap and Floor levels
E19: =Inputs!E26 -> Preliminary Cap including tax | G19: =Inputs!G26 -> £m 15/16 prices | H19: =Inputs!H26 -> PCL | I19: =ROW(Inputs!E26) -> 26 | K19: NSLCFFM1
E20: =Inputs!E27 -> Preliminary Floor including tax | G20: =Inputs!G27 -> £m 15/16 prices | H20: =Inputs!H27 -> PFL | I20: =ROW(Inputs!E27) -> 27 | K20: NSLCFFM1
E21: =Inputs!E29 -> Cap PCA adjustment | G21: =Inputs!G29 -> £m 15/16 prices | H21: =Inputs!H29 -> PCAC | I21: =ROW(Inputs!E29) -> 29 | K21: NSLCFFM1
E22: =Inputs!E30 -> Floor PCA adjustment | G22: =Inputs!G30 -> £m 15/16 prices | H22: =Inputs!H30 -> PCAF | I22: =ROW(Inputs!E30) -> 30 | K22: NSLCFFM1
C24: Baseline cost inputs during operations
E26: =Inputs!E34 -> Decommissioning (baseline) | G26: =Inputs!G34 -> £m 15/16 prices | I26: =ROW(Inputs!E34) -> 34 | K26: NSLCFFM1
E27: =Inputs!E35 -> Controllable Opex (baseline) | G27: =Inputs!G35 -> £m 15/16 prices | I27: =ROW(Inputs!E35) -> 35 | K27: NSLCFFM1
E28: =Inputs!E36 -> Non-controllable Opex (baseline) | G28: =Inputs!G36 -> £m 15/16 prices | H28: =Inputs!H36 -> BNCOA | I28: =ROW(Inputs!E36) -> 36 | K28: NSLCFFM1
C30: Financial returns
E32: =Inputs!E40 -> Cap return rate | G32: =Inputs!G40 -> real annual % | I32: =ROW(Inputs!E40) -> 40 | K32: NSLCFFM1
E33: =Inputs!E41 -> Floor return rate | G33: =Inputs!G41 -> real annual % | I33: =ROW(Inputs!E41) -> 41 | K33: NSLCFFM1
E34: =Inputs!E42 -> Operational discount rate | G34: =Inputs!G42 -> real annual % | H34: =Inputs!H42 -> ODR | I34: =ROW(Inputs!E42) -> 42 | K34: NSLCFFM1
C36: Base year indices
E38: =Inputs!E46 -> Base year RPI inflation index value (CHAW) | G38: =Inputs!G46 -> Jan 1987 = 100 | H38: =Inputs!H46 -> UK RPI index 2015/16 | I38: =ROW(Inputs!E46) -> 46 | K38: NSLCFFM1
E39: =Inputs!E47 -> Base year non-GB inflation index value | G39: =Inputs!G47 -> 2004 = 100 | H39: =Inputs!H47 -> 0 | I39: =ROW(Inputs!E47) -> 47 | K39: NSLCFFM1
E40: =Inputs!E48 -> Base year average exchange rate (XUMAERS) | G40: =Inputs!G48 -> GBP / EUR | H40: =Inputs!H48 -> 0 | I40: =ROW(Inputs!E48) -> 48 | K40: NSLCFFM1
B42: Regime timings and design
C44: Model operation
E46: =Inputs!E67 -> Floor start date | G46: =Inputs!G67 -> date | I46: =ROW(Inputs!E67) -> 67 | K46: NSL CFFM2 Handbook
E47: =Inputs!E76 -> Assessment period length | G47: =Inputs!G76 -> full years | I47: =ROW(Inputs!E76) -> 76 | K47: NSLCFFM1
E48: =Inputs!E78 -> GB indexed portion of interconnector | G48: =Inputs!G78 -> % | I48: =ROW(Inputs!E78) -> 78 | K48: NSLCFFM1
B50: Variables to be updated
C52: Cost items to be updated up to and beyond PCA stage (actual)
E54: =Inputs!E84 -> Non-controllable Opex (actual) | G54: =Inputs!G84 -> £m nominal prices | I54: =ROW(Inputs!E84) -> 84 | K54: RIGs and Ofgem decision (current value is illustrative)
E55: =Inputs!E85 -> Non-controllable Opex adjustment following NRA review (actual) | G55: =Inputs!G85 -> £m nominal prices | I55: =ROW(Inputs!E85) -> 85 | K55: Ofgem decision (current value is illustrative)
C57: Revenue items to be updated (actual)
E59: =Inputs!E89 -> Capacity allocation revenue | G59: =Inputs!G89 -> £m nominal prices | H59: =Inputs!H89 -> CARt | I59: =ROW(Inputs!E89) -> 89 | K59: RIGs and Ofgem decision (current value is illustrative)
E60: =Inputs!E90 -> Ancillary services revenue (GB) | G60: =Inputs!G90 -> £m nominal prices | H60: =Inputs!H90 -> ASRGBt | I60: =ROW(Inputs!E90) -> 90 | K60: RIGs and Ofgem decision (current value is illustrative)
E61: =Inputs!E91 -> Ancillary services revenue (non-GB, if applicable) | G61: =Inputs!G91 -> £m nominal prices | H61: =Inputs!H91 -> ASRnGBt | I61: =ROW(Inputs!E91) -> 91 | K61: RIGs and Ofgem decision (current value is illustrative)
E62: =Inputs!E92 -> Capacity market revenue | G62: =Inputs!G92 -> £m nominal prices | H62: =Inputs!H92 -> CMRt | I62: =ROW(Inputs!E92) -> 92 | K62: RIGs and Ofgem decision (current value is illustrative)
E63: =Inputs!E93 -> Receipts from insurance | G63: =Inputs!G93 -> £m nominal prices | H63: =Inputs!H93 -> RIt | I63: =ROW(Inputs!E93) -> 93 | K63: RIGs and Ofgem decision (current value is illustrative)
E64: =Inputs!E94 -> Constraint payments (GB) | G64: =Inputs!G94 -> £m nominal prices | H64: =Inputs!H94 -> CPGBt | I64: =ROW(Inputs!E94) -> 94 | K64: RIGs and Ofgem decision (current value is illustrative)
E65: =Inputs!E95 -> Constraint payments (non-GB, if applicable) | G65: =Inputs!G95 -> £m nominal prices | H65: =Inputs!H95 -> CPnGBt | I65: =ROW(Inputs!E95) -> 95 | K65: RIGs and Ofgem decision (current value is illustrative)
E66: =Inputs!E96 -> Additional revenue (net of relevant costs) | G66: =Inputs!G96 -> £m nominal prices | H66: =Inputs!H96 -> ADRt | I66: =ROW(Inputs!E96) -> 96 | K66: RIGs and Ofgem decision (current value is illustrative)
E67: =Inputs!E99 -> Error accounting costs | G67: =Inputs!G99 -> £m nominal prices | H67: =Inputs!H99 -> EACt | I67: =ROW(Inputs!E99) -> 99 | K67: RIGs and Ofgem decision (current value is illustrative)
E68: =Inputs!E100 -> Firmness costs | G68: =Inputs!G100 -> £m nominal prices | H68: =Inputs!H100 -> FCt | I68: =ROW(Inputs!E100) -> 100 | K68: RIGs and Ofgem decision (current value is illustrative)
E69: =Inputs!E101 -> Trip contract costs | G69: =Inputs!G101 -> £m nominal prices | H69: =Inputs!H101 -> TCCt | I69: =ROW(Inputs!E101) -> 101 | K69: RIGs and Ofgem decision (current value is illustrative)
E70: =Inputs!E104 -> Income adjusting event | G70: =Inputs!G104 -> £m nominal prices | H70: =Inputs!H104 -> IATt | I70: =ROW(Inputs!E104) -> 104 | K70: RIGs and Ofgem decision (current value is illustrative)
E71: =Inputs!E110 -> Within-period adjustment (assessed) (negative value: payment to consumers; positive value: payment from consumers) | G71: =Inputs!G110 -> £m nominal prices | H71: =Inputs!H110 -> WPAt | I71: =ROW(Inputs!E110) -> 110 | K71: RIGs and Ofgem decision (current value is illustrative)
B73: Adjustment to Cap and Floor levels
C75: Availability incentive
E77: =Inputs!E116 -> Cap availability incentive ratio | G77: =Inputs!G116 -> ratio | I77: =ROW(Inputs!E116) -> 116 | K77: Ofgem decision (current value is illustrative)
E78: =Inputs!E117 -> Cap availability incentive target | G78: =Inputs!G117 -> % | I78: =ROW(Inputs!E117) -> 117 | K78: Ofgem decision (current value is illustrative)
E79: =Inputs!E118 -> Cap availability incentive upper limit | G79: =Inputs!G118 -> scalar | I79: =ROW(Inputs!E118) -> 118 | K79: Ofgem decision (current value is illustrative)
E80: =Inputs!E119 -> Cap availability incentive lower limit | G80: =Inputs!G119 -> scalar | I80: =ROW(Inputs!E119) -> 119 | K80: Ofgem decision (current value is illustrative)
E81: =Inputs!E121 -> Interconnector rated capacity | G81: =Inputs!G121 -> MW | H81: =Inputs!H121 -> RC | I81: =ROW(Inputs!E121) -> 121 | K81: Ofgem decision (current value is illustrative)
E82: =Inputs!E132 -> Floor availability incentive target | G82: =Inputs!G132 -> % | I82: =ROW(Inputs!E132) -> 132 | K82: Ofgem decision (current value is illustrative)
C84: Inflation & exchange rate
E86: =Inputs!E140 -> Average UK RPI inflation index value (CHAW) | G86: =Inputs!G140 -> Jan 1987 = 100 | H86: =Inputs!H140 -> UK RPI index t | I86: =ROW(Inputs!E140) -> 140 | K86: Ofgem decision (current value is illustrative)
E87: =Inputs!E141 -> Average non-GB inflation index value | G87: =Inputs!G141 -> 2004 = 100 | H87: =Inputs!H141 -> 0 | I87: =ROW(Inputs!E141) -> 141 | K87: Ofgem decision (current value is illustrative)
E88: =Inputs!E143 -> Average exchange rate (XUMAERS) | G88: =Inputs!G143 -> GBP / EUR | H88: =Inputs!H143 -> 0 | I88: =ROW(Inputs!E143) -> 143 | K88: Ofgem decision (current value is illustrative)
C90: PCA adjustment
E92: =Inputs!E149 -> PCA/PFA adjustment - Ofgem start date | G92: =Inputs!G149 -> date | I92: =ROW(Inputs!E149) -> 149 | K92: Ofgem decision (current value is illustrative)
E93: =Inputs!E152 -> Apply PCA adjustment factor? | G93: =Inputs!G152 -> switch | I93: =ROW(Inputs!E152) -> 152 | K93: Ofgem decision (current value is illustrative)
C95: ORA adjustment
E97: =Inputs!E158 -> Apply ORA adjustment factor? | G97: =Inputs!G158 -> switch | I97: =ROW(Inputs!E158) -> 158 | K97: Ofgem decision (current value is illustrative)
E98: =Inputs!E159 -> ORA start date | G98: =Inputs!G159 -> date | I98: =ROW(Inputs!I159) -> 159 | K98: Ofgem decision (current value is illustrative)
E99: =Inputs!E164 -> Revised controllable Opex at date of ORA submission | G99: =Inputs!G164 -> £m 15/16 prices | I99: =ROW(Inputs!E164) -> 164 | K99: Ofgem decision (current value is illustrative)
C101: DC adjustments
E103: =Inputs!E171 -> Apply DC adjustment factor? | G103: =Inputs!G171 -> switch | I103: =ROW(Inputs!E171) -> 171 | K103: Ofgem decision (current value is illustrative)
D105: Current DC adjustment
E107: =Inputs!E175 -> Current DC start date | G107: =Inputs!G175 -> date | I107: =ROW(Inputs!E175) -> 175 | K107: Ofgem decision (current value is illustrative)
E108: =Inputs!E178 -> Decommissioning Costs (latest view at submission of DCt adjustment) | G108: =Inputs!G178 -> £m 15/16 prices | I108: =ROW(Inputs!E178) -> 178 | K108: Ofgem decision (current value is illustrative)
D110: Previous DC adjustments
E112: =Inputs!E185 -> First DCt adjustment
E113: =Inputs!E186 -> Start date | G113: =Inputs!G186 -> date | I113: =ROW(Inputs!E186) -> 186 | K113: Ofgem decision (current value is illustrative)
E114: =Inputs!E187 -> Cap value | G114: =Inputs!G187 -> £m 15/16 prices | I114: =ROW(Inputs!E187) -> 187 | K114: Ofgem decision (current value is illustrative)
E115: =Inputs!E188 -> Floor value | G115: =Inputs!G188 -> £m 15/16 prices | I115: =ROW(Inputs!E188) -> 188 | K115: Ofgem decision (current value is illustrative)
E116: =Inputs!E190 -> Second DCt adjustment
E117: =Inputs!E191 -> Start date | G117: =Inputs!G191 -> date | I117: =ROW(Inputs!E191) -> 191 | K117: Ofgem decision (current value is illustrative)
E118: =Inputs!E192 -> Cap value | G118: =Inputs!G192 -> £m 15/16 prices | I118: =ROW(Inputs!E192) -> 192 | K118: Ofgem decision (current value is illustrative)
E119: =Inputs!E193 -> Floor value | G119: =Inputs!G193 -> £m 15/16 prices | I119: =ROW(Inputs!E193) -> 193 | K119: Ofgem decision (current value is illustrative)
E120: =Inputs!E195 -> Third DCt adjustment
E121: =Inputs!E196 -> Start date | G121: =Inputs!G196 -> date | I121: =ROW(Inputs!E196) -> 196 | K121: Ofgem decision (current value is illustrative)
E122: =Inputs!E197 -> Cap value | G122: =Inputs!G197 -> £m 15/16 prices | I122: =ROW(Inputs!E197) -> 197 | K122: Ofgem decision (current value is illustrative)
E123: =Inputs!E198 -> Floor value | G123: =Inputs!G198 -> £m 15/16 prices | I123: =ROW(Inputs!E198) -> 198 | K123: Ofgem decision (current value is illustrative)
E124: =Inputs!E200 -> Fourth DCt adjustment
E125: =Inputs!E201 -> Start date | G125: =Inputs!G201 -> date | I125: =ROW(Inputs!E201) -> 201 | K125: Ofgem decision (current value is illustrative)
E126: =Inputs!E202 -> Cap value | G126: =Inputs!G202 -> £m 15/16 prices | I126: =ROW(Inputs!E202) -> 202 | K126: Ofgem decision (current value is illustrative)
E127: =Inputs!E203 -> Floor value | G127: =Inputs!G203 -> £m 15/16 prices | I127: =ROW(Inputs!E203) -> 203 | K127: Ofgem decision (current value is illustrative)
B129: End of sheet | K129: `

Sheet Costs & Revenue
A1: Costs & Revenue | H1: Licence
E2: Parameter | G2: Units | H2: Terminology | I2: Constant | O2: Annual values
E3: Year commencing | O3: =INDEX(Inputs!$O3:$BB3,MATCH('Costs & Revenue'!O$5,Inputs!$O$5:$BB$5,0)) -> 2020-04-01 | P3: =INDEX(Inputs!$O3:$BB3,MATCH('Costs & Revenue'!P$5,Inputs!$O$5:$BB$5,0)) -> 2021-04-01 | Q3: =INDEX(Inputs!$O3:$BB3,MATCH('Costs & Revenue'!Q$5,Inputs!$O$5:$BB$5,0)) -> 2022-04-01 | R3: =INDEX(Inputs!$O3:$BB3,MATCH('Costs & Revenue'!R$5,Inputs!$O$5:$BB$5,0)) -> 2023-04-01 | S3: =INDEX(Inputs!$O3:$BB3,MATCH('Costs & Revenue'!S$5,Inputs!$O$5:$BB$5,0)) -> 2024-04-01 | T3: =INDEX(Inputs!$O3:$BB3,MATCH('Costs & Revenue'!T$5,Inputs!$O$5:$BB$5,0)) -> 2025-04-01 | U3: =INDEX(Inputs!$O3:$BB3,MATCH('Costs & Revenue'!U$5,Inputs!$O$5:$BB$5,0)) -> 2026-04-01 | V3: =INDEX(Inputs!$O3:$BB3,MATCH('Costs & Revenue'!V$5,Inputs!$O$5:$BB$5,0)) -> 2027-04-01 | W3: =INDEX(Inputs!$O3:$BB3,MATCH('Costs & Revenue'!W$5,Inputs!$O$5:$BB$5,0)) -> 2028-04-01 | X3: =INDEX(Inputs!$O3:$BB3,MATCH('Costs & Revenue'!X$5,Inputs!$O$5:$BB$5,0)) -> 2029-04-01 | Y3: =INDEX(Inputs!$O3:$BB3,MATCH('Costs & Revenue'!Y$5,Inputs!$O$5:$BB$5,0)) -> 2030-04-01 | Z3: =INDEX(Inputs!$O3:$BB3,MATCH('Costs & Revenue'!Z$5,Inputs!$O$5:$BB$5,0)) -> 2031-04-01 | AA3: =INDEX(Inputs!$O3:$BB3,MATCH('Costs & Revenue'!AA$5,Inputs!$O$5:$BB$5,0)) -> 2032-04-01 | AB3: =INDEX(Inputs!$O3:$BB3,MATCH('Costs & Revenue'!AB$5,Inputs!$O$5:$BB$5,0)) -> 2033-04-01 | AC3: =INDEX(Inputs!$O3:$BB3,MATCH('Costs & Revenue'!AC$5,Inputs!$O$5:$BB$5,0)) -> 2034-04-01 | AD3: =INDEX(Inputs!$O3:$BB3,MATCH('Costs & Revenue'!AD$5,Inputs!$O$5:$BB$5,0)) -> 2035-04-01 | AE3: =INDEX(Inputs!$O3:$BB3,MATCH('Costs & Revenue'!AE$5,Inputs!$O$5:$BB$5,0)) -> 2036-04-01 | AF3: =INDEX(Inputs!$O3:$BB3,MATCH('Costs & Revenue'!AF$5,Inputs!$O$5:$BB$5,0)) -> 2037-04-01 | AG3: =INDEX(Inputs!$O3:$BB3,MATCH('Costs & Revenue'!AG$5,Inputs!$O$5:$BB$5,0)) -> 2038-04-01 | AH3: =INDEX(Inputs!$O3:$BB3,MATCH('Costs & Revenue'!AH$5,Inputs!$O$5:$BB$5,0)) -> 2039-04-01 | AI3: =INDEX(Inputs!$O3:$BB3,MATCH('Costs & Revenue'!AI$5,Inputs!$O$5:$BB$5,0)) -> 2040-04-01 | AJ3: =INDEX(Inputs!$O3:$BB3,MATCH('Costs & Revenue'!AJ$5,Inputs!$O$5:$BB$5,0)) -> 2041-04-01 | AK3: =INDEX(Inputs!$O3:$BB3,MATCH('Costs & Revenue'!AK$5,Inputs!$O$5:$BB$5,0)) -> 2042-04-01 | AL3: =INDEX(Inputs!$O3:$BB3,MATCH('Costs & Revenue'!AL$5,Inputs!$O$5:$BB$5,0)) -> 2043-04-01 | AM3: =INDEX(Inputs!$O3:$BB3,MATCH('Costs & Revenue'!AM$5,Inputs!$O$5:$BB$5,0)) -> 2044-04-01 | AN3: =INDEX(Inputs!$O3:$BB3,MATCH('Costs & Revenue'!AN$5,Inputs!$O$5:$BB$5,0)) -> 2045-04-01 | AO3: =INDEX(Inputs!$O3:$BB3,MATCH('Costs & Revenue'!AO$5,Inputs!$O$5:$BB$5,0)) -> 2046-04-01 | AP3: =INDEX(Inputs!$O3:$BB3,MATCH('Costs & Revenue'!AP$5,Inputs!$O$5:$BB$5,0)) -> 2047-04-01 | AQ3: =INDEX(Inputs!$O3:$BB3,MATCH('Costs & Revenue'!AQ$5,Inputs!$O$5:$BB$5,0)) -> 2048-04-01 | AR3: =INDEX(Inputs!$O3:$BB3,MATCH('Costs & Revenue'!AR$5,Inputs!$O$5:$BB$5,0)) -> 2049-04-01 | AS3: =INDEX(Inputs!$O3:$BB3,MATCH('Costs & Revenue'!AS$5,Inputs!$O$5:$BB$5,0)) -> 2050-04-01 | AT3: =INDEX(Inputs!$O3:$BB3,MATCH('Costs & Revenue'!AT$5,Inputs!$O$5:$BB$5,0)) -> 2051-04-01 | AU3: =INDEX(Inputs!$O3:$BB3,MATCH('Costs & Revenue'!AU$5,Inputs!$O$5:$BB$5,0)) -> 2052-04-01 | AV3: =INDEX(Inputs!$O3:$BB3,MATCH('Costs & Revenue'!AV$5,Inputs!$O$5:$BB$5,0)) -> 2053-04-01 | AW3: =INDEX(Inputs!$O3:$BB3,MATCH('Costs & Revenue'!AW$5,Inputs!$O$5:$BB$5,0)) -> 2054-04-01 | AX3: =INDEX(Inputs!$O3:$BB3,MATCH('Costs & Revenue'!AX$5,Inputs!$O$5:$BB$5,0)) -> 2055-04-01 | AY3: =INDEX(Inputs!$O3:$BB3,MATCH('Costs & Revenue'!AY$5,Inputs!$O$5:$BB$5,0)) -> 2056-04-01 | AZ3: =INDEX(Inputs!$O3:$BB3,MATCH('Costs & Revenue'!AZ$5,Inputs!$O$5:$BB$5,0)) -> 2057-04-01 | BA3: =INDEX(Inputs!$O3:$BB3,MATCH('Costs & Revenue'!BA$5,Inputs!$O$5:$BB$5,0)) -> 2058-04-01 | BB3: =INDEX(Inputs!$O3:$BB3,MATCH('Costs & Revenue'!BB$5,Inputs!$O$5:$BB$5,0)) -> 2059-04-01
E4: Year ending | O4: =INDEX(Inputs!$O4:$BB4,MATCH('Costs & Revenue'!O$5,Inputs!$O$5:$BB$5,0)) -> 2021-03-31 | P4: =INDEX(Inputs!$O4:$BB4,MATCH('Costs & Revenue'!P$5,Inputs!$O$5:$BB$5,0)) -> 2022-03-31 | Q4: =INDEX(Inputs!$O4:$BB4,MATCH('Costs & Revenue'!Q$5,Inputs!$O$5:$BB$5,0)) -> 2023-03-31 | R4: =INDEX(Inputs!$O4:$BB4,MATCH('Costs & Revenue'!R$5,Inputs!$O$5:$BB$5,0)) -> 2024-03-31 | S4: =INDEX(Inputs!$O4:$BB4,MATCH('Costs & Revenue'!S$5,Inputs!$O$5:$BB$5,0)) -> 2025-03-31 | T4: =INDEX(Inputs!$O4:$BB4,MATCH('Costs & Revenue'!T$5,Inputs!$O$5:$BB$5,0)) -> 2026-03-31 | U4: =INDEX(Inputs!$O4:$BB4,MATCH('Costs & Revenue'!U$5,Inputs!$O$5:$BB$5,0)) -> 2027-03-31 | V4: =INDEX(Inputs!$O4:$BB4,MATCH('Costs & Revenue'!V$5,Inputs!$O$5:$BB$5,0)) -> 2028-03-31 | W4: =INDEX(Inputs!$O4:$BB4,MATCH('Costs & Revenue'!W$5,Inputs!$O$5:$BB$5,0)) -> 2029-03-31 | X4: =INDEX(Inputs!$O4:$BB4,MATCH('Costs & Revenue'!X$5,Inputs!$O$5:$BB$5,0)) -> 2030-03-31 | Y4: =INDEX(Inputs!$O4:$BB4,MATCH('Costs & Revenue'!Y$5,Inputs!$O$5:$BB$5,0)) -> 2031-03-31 | Z4: =INDEX(Inputs!$O4:$BB4,MATCH('Costs & Revenue'!Z$5,Inputs!$O$5:$BB$5,0)) -> 2032-03-31 | AA4: =INDEX(Inputs!$O4:$BB4,MATCH('Costs & Revenue'!AA$5,Inputs!$O$5:$BB$5,0)) -> 2033-03-31 | AB4: =INDEX(Inputs!$O4:$BB4,MATCH('Costs & Revenue'!AB$5,Inputs!$O$5:$BB$5,0)) -> 2034-03-31 | AC4: =INDEX(Inputs!$O4:$BB4,MATCH('Costs & Revenue'!AC$5,Inputs!$O$5:$BB$5,0)) -> 2035-03-31 | AD4: =INDEX(Inputs!$O4:$BB4,MATCH('Costs & Revenue'!AD$5,Inputs!$O$5:$BB$5,0)) -> 2036-03-31 | AE4: =INDEX(Inputs!$O4:$BB4,MATCH('Costs & Revenue'!AE$5,Inputs!$O$5:$BB$5,0)) -> 2037-03-31 | AF4: =INDEX(Inputs!$O4:$BB4,MATCH('Costs & Revenue'!AF$5,Inputs!$O$5:$BB$5,0)) -> 2038-03-31 | AG4: =INDEX(Inputs!$O4:$BB4,MATCH('Costs & Revenue'!AG$5,Inputs!$O$5:$BB$5,0)) -> 2039-03-31 | AH4: =INDEX(Inputs!$O4:$BB4,MATCH('Costs & Revenue'!AH$5,Inputs!$O$5:$BB$5,0)) -> 2040-03-31 | AI4: =INDEX(Inputs!$O4:$BB4,MATCH('Costs & Revenue'!AI$5,Inputs!$O$5:$BB$5,0)) -> 2041-03-31 | AJ4: =INDEX(Inputs!$O4:$BB4,MATCH('Costs & Revenue'!AJ$5,Inputs!$O$5:$BB$5,0)) -> 2042-03-31 | AK4: =INDEX(Inputs!$O4:$BB4,MATCH('Costs & Revenue'!AK$5,Inputs!$O$5:$BB$5,0)) -> 2043-03-31 | AL4: =INDEX(Inputs!$O4:$BB4,MATCH('Costs & Revenue'!AL$5,Inputs!$O$5:$BB$5,0)) -> 2044-03-31 | AM4: =INDEX(Inputs!$O4:$BB4,MATCH('Costs & Revenue'!AM$5,Inputs!$O$5:$BB$5,0)) -> 2045-03-31 | AN4: =INDEX(Inputs!$O4:$BB4,MATCH('Costs & Revenue'!AN$5,Inputs!$O$5:$BB$5,0)) -> 2046-03-31 | AO4: =INDEX(Inputs!$O4:$BB4,MATCH('Costs & Revenue'!AO$5,Inputs!$O$5:$BB$5,0)) -> 2047-03-31 | AP4: =INDEX(Inputs!$O4:$BB4,MATCH('Costs & Revenue'!AP$5,Inputs!$O$5:$BB$5,0)) -> 2048-03-31 | AQ4: =INDEX(Inputs!$O4:$BB4,MATCH('Costs & Revenue'!AQ$5,Inputs!$O$5:$BB$5,0)) -> 2049-03-31 | AR4: =INDEX(Inputs!$O4:$BB4,MATCH('Costs & Revenue'!AR$5,Inputs!$O$5:$BB$5,0)) -> 2050-03-31 | AS4: =INDEX(Inputs!$O4:$BB4,MATCH('Costs & Revenue'!AS$5,Inputs!$O$5:$BB$5,0)) -> 2051-03-31 | AT4: =INDEX(Inputs!$O4:$BB4,MATCH('Costs & Revenue'!AT$5,Inputs!$O$5:$BB$5,0)) -> 2052-03-31 | AU4: =INDEX(Inputs!$O4:$BB4,MATCH('Costs & Revenue'!AU$5,Inputs!$O$5:$BB$5,0)) -> 2053-03-31 | AV4: =INDEX(Inputs!$O4:$BB4,MATCH('Costs & Revenue'!AV$5,Inputs!$O$5:$BB$5,0)) -> 2054-03-31 | AW4: =INDEX(Inputs!$O4:$BB4,MATCH('Costs & Revenue'!AW$5,Inputs!$O$5:$BB$5,0)) -> 2055-03-31 | AX4: =INDEX(Inputs!$O4:$BB4,MATCH('Costs & Revenue'!AX$5,Inputs!$O$5:$BB$5,0)) -> 2056-03-31 | AY4: =INDEX(Inputs!$O4:$BB4,MATCH('Costs & Revenue'!AY$5,Inputs!$O$5:$BB$5,0)) -> 2057-03-31 | AZ4: =INDEX(Inputs!$O4:$BB4,MATCH('Costs & Revenue'!AZ$5,Inputs!$O$5:$BB$5,0)) -> 2058-03-31 | BA4: =INDEX(Inputs!$O4:$BB4,MATCH('Costs & Revenue'!BA$5,Inputs!$O$5:$BB$5,0)) -> 2059-03-31 | BB4: =INDEX(Inputs!$O4:$BB4,MATCH('Costs & Revenue'!BB$5,Inputs!$O$5:$BB$5,0)) -> 2060-03-31
E5: Operational year | O5: =Inputs!O5 -> 0 | P5: =Inputs!P5 -> 1 | Q5: =Inputs!Q5 -> 2 | R5: =Inputs!R5 -> 3 | S5: =Inputs!S5 -> 4 | T5: =Inputs!T5 -> 5 | U5: =Inputs!U5 -> 6 | V5: =Inputs!V5 -> 7 | W5: =Inputs!W5 -> 8 | X5: =Inputs!X5 -> 9 | Y5: =Inputs!Y5 -> 10 | Z5: =Inputs!Z5 -> 11 | AA5: =Inputs!AA5 -> 12 | AB5: =Inputs!AB5 -> 13 | AC5: =Inputs!AC5 -> 14 | AD5: =Inputs!AD5 -> 15 | AE5: =Inputs!AE5 -> 16 | AF5: =Inputs!AF5 -> 17 | AG5: =Inputs!AG5 -> 18 | AH5: =Inputs!AH5 -> 19 | AI5: =Inputs!AI5 -> 20 | AJ5: =Inputs!AJ5 -> 21 | AK5: =Inputs!AK5 -> 22 | AL5: =Inputs!AL5 -> 23 | AM5: =Inputs!AM5 -> 24 | AN5: =Inputs!AN5 -> 25 | AO5: =Inputs!AO5 -> 26 | AP5: =Inputs!AP5 -> 27 | AQ5: =Inputs!AQ5 -> 28 | AR5: =Inputs!AR5 -> 29 | AS5: =Inputs!AS5 -> 30 | AT5: =Inputs!AT5 -> 31 | AU5: =Inputs!AU5 -> 32 | AV5: =Inputs!AV5 -> 33 | AW5: =Inputs!AW5 -> 34 | AX5: =Inputs!AX5 -> 35 | AY5: =Inputs!AY5 -> 36 | AZ5: =Inputs!AZ5 -> 37 | BA5: =Inputs!BA5 -> 38 | BB5: =Inputs!BB5 -> 39
B7: Costs
C9: Baseline costs
E11: =Inputs!E34 -> Decommissioning (baseline) | G11: =base_year -> £m 15/16 prices | P11: =INDEX(Inputs!$P$34:$BB$34,MATCH('Costs & Revenue'!P$5,Inputs!$P$5:$BB$5,0)) -> 0 | Q11: =INDEX(Inputs!$P$34:$BB$34,MATCH('Costs & Revenue'!Q$5,Inputs!$P$5:$BB$5,0)) -> 0 | R11: =INDEX(Inputs!$P$34:$BB$34,MATCH('Costs & Revenue'!R$5,Inputs!$P$5:$BB$5,0)) -> 0 | S11: =INDEX(Inputs!$P$34:$BB$34,MATCH('Costs & Revenue'!S$5,Inputs!$P$5:$BB$5,0)) -> 0 | T11: =INDEX(Inputs!$P$34:$BB$34,MATCH('Costs & Revenue'!T$5,Inputs!$P$5:$BB$5,0)) -> 0 | U11: =INDEX(Inputs!$P$34:$BB$34,MATCH('Costs & Revenue'!U$5,Inputs!$P$5:$BB$5,0)) -> 0 | V11: =INDEX(Inputs!$P$34:$BB$34,MATCH('Costs & Revenue'!V$5,Inputs!$P$5:$BB$5,0)) -> 0 | W11: =INDEX(Inputs!$P$34:$BB$34,MATCH('Costs & Revenue'!W$5,Inputs!$P$5:$BB$5,0)) -> 0 | X11: =INDEX(Inputs!$P$34:$BB$34,MATCH('Costs & Revenue'!X$5,Inputs!$P$5:$BB$5,0)) -> 0 | Y11: =INDEX(Inputs!$P$34:$BB$34,MATCH('Costs & Revenue'!Y$5,Inputs!$P$5:$BB$5,0)) -> 0 | Z11: =INDEX(Inputs!$P$34:$BB$34,MATCH('Costs & Revenue'!Z$5,Inputs!$P$5:$BB$5,0)) -> 0 | AA11: =INDEX(Inputs!$P$34:$BB$34,MATCH('Costs & Revenue'!AA$5,Inputs!$P$5:$BB$5,0)) -> 0 | AB11: =INDEX(Inputs!$P$34:$BB$34,MATCH('Costs & Revenue'!AB$5,Inputs!$P$5:$BB$5,0)) -> 0 | AC11: =INDEX(Inputs!$P$34:$BB$34,MATCH('Costs & Revenue'!AC$5,Inputs!$P$5:$BB$5,0)) -> 0 | AD11: =INDEX(Inputs!$P$34:$BB$34,MATCH('Costs & Revenue'!AD$5,Inputs!$P$5:$BB$5,0)) -> 0 | AE11: =INDEX(Inputs!$P$34:$BB$34,MATCH('Costs & Revenue'!AE$5,Inputs!$P$5:$BB$5,0)) -> 0 | AF11: =INDEX(Inputs!$P$34:$BB$34,MATCH('Costs & Revenue'!AF$5,Inputs!$P$5:$BB$5,0)) -> 0 | AG11: =INDEX(Inputs!$P$34:$BB$34,MATCH('Costs & Revenue'!AG$5,Inputs!$P$5:$BB$5,0)) -> 0 | AH11: =INDEX(Inputs!$P$34:$BB$34,MATCH('Costs & Revenue'!AH$5,Inputs!$P$5:$BB$5,0)) -> 0 | AI11: =INDEX(Inputs!$P$34:$BB$34,MATCH('Costs & Revenue'!AI$5,Inputs!$P$5:$BB$5,0)) -> 0 | AJ11: =INDEX(Inputs!$P$34:$BB$34,MATCH('Costs & Revenue'!AJ$5,Inputs!$P$5:$BB$5,0)) -> 0 | AK11: =INDEX(Inputs!$P$34:$BB$34,MATCH('Costs & Revenue'!AK$5,Inputs!$P$5:$BB$5,0)) -> 0 | AL11: =INDEX(Inputs!$P$34:$BB$34,MATCH('Costs & Revenue'!AL$5,Inputs!$P$5:$BB$5,0)) -> 0 | AM11: =INDEX(Inputs!$P$34:$BB$34,MATCH('Costs & Revenue'!AM$5,Inputs!$P$5:$BB$5,0)) -> 0 | AN11: =INDEX(Inputs!$P$34:$BB$34,MATCH('Costs & Revenue'!AN$5,Inputs!$P$5:$BB$5,0)) -> 24.21525798 | AO11: =INDEX(Inputs!$P$34:$BB$34,MATCH('Costs & Revenue'!AO$5,Inputs!$P$5:$BB$5,0)) -> 0 | AP11: =INDEX(Inputs!$P$34:$BB$34,MATCH('Costs & Revenue'!AP$5,Inputs!$P$5:$BB$5,0)) -> 0 | AQ11: =INDEX(Inputs!$P$34:$BB$34,MATCH('Costs & Revenue'!AQ$5,Inputs!$P$5:$BB$5,0)) -> 0 | AR11: =INDEX(Inputs!$P$34:$BB$34,MATCH('Costs & Revenue'!AR$5,Inputs!$P$5:$BB$5,0)) -> 0 | AS11: =INDEX(Inputs!$P$34:$BB$34,MATCH('Costs & Revenue'!AS$5,Inputs!$P$5:$BB$5,0)) -> 0 | AT11: =INDEX(Inputs!$P$34:$BB$34,MATCH('Costs & Revenue'!AT$5,Inputs!$P$5:$BB$5,0)) -> 0 | AU11: =INDEX(Inputs!$P$34:$BB$34,MATCH('Costs & Revenue'!AU$5,Inputs!$P$5:$BB$5,0)) -> 0 | AV11: =INDEX(Inputs!$P$34:$BB$34,MATCH('Costs & Revenue'!AV$5,Inputs!$P$5:$BB$5,0)) -> 0 | AW11: =INDEX(Inputs!$P$34:$BB$34,MATCH('Costs & Revenue'!AW$5,Inputs!$P$5:$BB$5,0)) -> 0 | AX11: =INDEX(Inputs!$P$34:$BB$34,MATCH('Costs & Revenue'!AX$5,Inputs!$P$5:$BB$5,0)) -> 0 | AY11: =INDEX(Inputs!$P$34:$BB$34,MATCH('Costs & Revenue'!AY$5,Inputs!$P$5:$BB$5,0)) -> 0 | AZ11: =INDEX(Inputs!$P$34:$BB$34,MATCH('Costs & Revenue'!AZ$5,Inputs!$P$5:$BB$5,0)) -> 0 | BA11: =INDEX(Inputs!$P$34:$BB$34,MATCH('Costs & Revenue'!BA$5,Inputs!$P$5:$BB$5,0)) -> 0 | BB11: =INDEX(Inputs!$P$34:$BB$34,MATCH('Costs & Revenue'!BB$5,Inputs!$P$5:$BB$5,0)) -> 0
E12: =Inputs!E35 -> Controllable Opex (baseline) | G12: =base_year -> £m 15/16 prices | P12: =INDEX(Inputs!$P$35:$BB$35,MATCH('Costs & Revenue'!P$5,Inputs!$P$5:$BB$5,0)) -> 18.5812626 | Q12: =INDEX(Inputs!$P$35:$BB$35,MATCH('Costs & Revenue'!Q$5,Inputs!$P$5:$BB$5,0)) -> 22.8428388 | R12: =INDEX(Inputs!$P$35:$BB$35,MATCH('Costs & Revenue'!R$5,Inputs!$P$5:$BB$5,0)) -> 25.24782245 | S12: =INDEX(Inputs!$P$35:$BB$35,MATCH('Costs & Revenue'!S$5,Inputs!$P$5:$BB$5,0)) -> 26.00659495 | T12: =INDEX(Inputs!$P$35:$BB$35,MATCH('Costs & Revenue'!T$5,Inputs!$P$5:$BB$5,0)) -> 22.99531943 | U12: =INDEX(Inputs!$P$35:$BB$35,MATCH('Costs & Revenue'!U$5,Inputs!$P$5:$BB$5,0)) -> 21.93909406 | V12: =INDEX(Inputs!$P$35:$BB$35,MATCH('Costs & Revenue'!V$5,Inputs!$P$5:$BB$5,0)) -> 22.07744474 | W12: =INDEX(Inputs!$P$35:$BB$35,MATCH('Costs & Revenue'!W$5,Inputs!$P$5:$BB$5,0)) -> 22.79345571 | X12: =INDEX(Inputs!$P$35:$BB$35,MATCH('Costs & Revenue'!X$5,Inputs!$P$5:$BB$5,0)) -> 22.79654145 | Y12: =INDEX(Inputs!$P$35:$BB$35,MATCH('Costs & Revenue'!Y$5,Inputs!$P$5:$BB$5,0)) -> 22.95537805 | Z12: =INDEX(Inputs!$P$35:$BB$35,MATCH('Costs & Revenue'!Z$5,Inputs!$P$5:$BB$5,0)) -> 23.18127377 | AA12: =INDEX(Inputs!$P$35:$BB$35,MATCH('Costs & Revenue'!AA$5,Inputs!$P$5:$BB$5,0)) -> 23.26093966 | AB12: =INDEX(Inputs!$P$35:$BB$35,MATCH('Costs & Revenue'!AB$5,Inputs!$P$5:$BB$5,0)) -> 23.49506243 | AC12: =INDEX(Inputs!$P$35:$BB$35,MATCH('Costs & Revenue'!AC$5,Inputs!$P$5:$BB$5,0)) -> 23.37480321 | AD12: =INDEX(Inputs!$P$35:$BB$35,MATCH('Costs & Revenue'!AD$5,Inputs!$P$5:$BB$5,0)) -> 23.49687321 | AE12: =INDEX(Inputs!$P$35:$BB$35,MATCH('Costs & Revenue'!AE$5,Inputs!$P$5:$BB$5,0)) -> 23.71386389 | AF12: =INDEX(Inputs!$P$35:$BB$35,MATCH('Costs & Revenue'!AF$5,Inputs!$P$5:$BB$5,0)) -> 23.78612396 | AG12: =INDEX(Inputs!$P$35:$BB$35,MATCH('Costs & Revenue'!AG$5,Inputs!$P$5:$BB$5,0)) -> 24.04930891 | AH12: =INDEX(Inputs!$P$35:$BB$35,MATCH('Costs & Revenue'!AH$5,Inputs!$P$5:$BB$5,0)) -> 23.92120968 | AI12: =INDEX(Inputs!$P$35:$BB$35,MATCH('Costs & Revenue'!AI$5,Inputs!$P$5:$BB$5,0)) -> 24.03846634 | AJ12: =INDEX(Inputs!$P$35:$BB$35,MATCH('Costs & Revenue'!AJ$5,Inputs!$P$5:$BB$5,0)) -> 24.28674177 | AK12: =INDEX(Inputs!$P$35:$BB$35,MATCH('Costs & Revenue'!AK$5,Inputs!$P$5:$BB$5,0)) -> 24.34997777 | AL12: =INDEX(Inputs!$P$35:$BB$35,MATCH('Costs & Revenue'!AL$5,Inputs!$P$5:$BB$5,0)) -> 24.60654151 | AM12: =INDEX(Inputs!$P$35:$BB$35,MATCH('Costs & Revenue'!AM$5,Inputs!$P$5:$BB$5,0)) -> 24.50833447 | AN12: =INDEX(Inputs!$P$35:$BB$35,MATCH('Costs & Revenue'!AN$5,Inputs!$P$5:$BB$5,0)) -> 24.7918577 | AO12: =INDEX(Inputs!$P$35:$BB$35,MATCH('Costs & Revenue'!AO$5,Inputs!$P$5:$BB$5,0)) -> 0 | AP12: =INDEX(Inputs!$P$35:$BB$35,MATCH('Costs & Revenue'!AP$5,Inputs!$P$5:$BB$5,0)) -> 0 | AQ12: =INDEX(Inputs!$P$35:$BB$35,MATCH('Costs & Revenue'!AQ$5,Inputs!$P$5:$BB$5,0)) -> 0 | AR12: =INDEX(Inputs!$P$35:$BB$35,MATCH('Costs & Revenue'!AR$5,Inputs!$P$5:$BB$5,0)) -> 0 | AS12: =INDEX(Inputs!$P$35:$BB$35,MATCH('Costs & Revenue'!AS$5,Inputs!$P$5:$BB$5,0)) -> 0 | AT12: =INDEX(Inputs!$P$35:$BB$35,MATCH('Costs & Revenue'!AT$5,Inputs!$P$5:$BB$5,0)) -> 0 | AU12: =INDEX(Inputs!$P$35:$BB$35,MATCH('Costs & Revenue'!AU$5,Inputs!$P$5:$BB$5,0)) -> 0 | AV12: =INDEX(Inputs!$P$35:$BB$35,MATCH('Costs & Revenue'!AV$5,Inputs!$P$5:$BB$5,0)) -> 0 | AW12: =INDEX(Inputs!$P$35:$BB$35,MATCH('Costs & Revenue'!AW$5,Inputs!$P$5:$BB$5,0)) -> 0 | AX12: =INDEX(Inputs!$P$35:$BB$35,MATCH('Costs & Revenue'!AX$5,Inputs!$P$5:$BB$5,0)) -> 0 | AY12: =INDEX(Inputs!$P$35:$BB$35,MATCH('Costs & Revenue'!AY$5,Inputs!$P$5:$BB$5,0)) -> 0 | AZ12: =INDEX(Inputs!$P$35:$BB$35,MATCH('Costs & Revenue'!AZ$5,Inputs!$P$5:$BB$5,0)) -> 0 | BA12: =INDEX(Inputs!$P$35:$BB$35,MATCH('Costs & Revenue'!BA$5,Inputs!$P$5:$BB$5,0)) -> 0 | BB12: =INDEX(Inputs!$P$35:$BB$35,MATCH('Costs & Revenue'!BB$5,Inputs!$P$5:$BB$5,0)) -> 0
E13: =Inputs!E36 -> Non-controllable Opex (baseline) | G13: =base_year -> £m 15/16 prices | H13: BNCOA | P13: =INDEX(Inputs!$P$36:$BB$36,MATCH('Costs & Revenue'!P$5,Inputs!$P$5:$BB$5,0)) -> 1.151161748 | Q13: =INDEX(Inputs!$P$36:$BB$36,MATCH('Costs & Revenue'!Q$5,Inputs!$P$5:$BB$5,0)) -> 1.142434531 | R13: =INDEX(Inputs!$P$36:$BB$36,MATCH('Costs & Revenue'!R$5,Inputs!$P$5:$BB$5,0)) -> 1.133773477 | S13: =INDEX(Inputs!$P$36:$BB$36,MATCH('Costs & Revenue'!S$5,Inputs!$P$5:$BB$5,0)) -> 1.125178085 | T13: =INDEX(Inputs!$P$36:$BB$36,MATCH('Costs & Revenue'!T$5,Inputs!$P$5:$BB$5,0)) -> 1.116647856 | U13: =INDEX(Inputs!$P$36:$BB$36,MATCH('Costs & Revenue'!U$5,Inputs!$P$5:$BB$5,0)) -> 1.108182297 | V13: =INDEX(Inputs!$P$36:$BB$36,MATCH('Costs & Revenue'!V$5,Inputs!$P$5:$BB$5,0)) -> 1.099780917 | W13: =INDEX(Inputs!$P$36:$BB$36,MATCH('Costs & Revenue'!W$5,Inputs!$P$5:$BB$5,0)) -> 1.091443229 | X13: =INDEX(Inputs!$P$36:$BB$36,MATCH('Costs & Revenue'!X$5,Inputs!$P$5:$BB$5,0)) -> 1.083168752 | Y13: =INDEX(Inputs!$P$36:$BB$36,MATCH('Costs & Revenue'!Y$5,Inputs!$P$5:$BB$5,0)) -> 1.074957005 | Z13: =INDEX(Inputs!$P$36:$BB$36,MATCH('Costs & Revenue'!Z$5,Inputs!$P$5:$BB$5,0)) -> 1.066807514 | AA13: =INDEX(Inputs!$P$36:$BB$36,MATCH('Costs & Revenue'!AA$5,Inputs!$P$5:$BB$5,0)) -> 1.058719805 | AB13: =INDEX(Inputs!$P$36:$BB$36,MATCH('Costs & Revenue'!AB$5,Inputs!$P$5:$BB$5,0)) -> 1.050693412 | AC13: =INDEX(Inputs!$P$36:$BB$36,MATCH('Costs & Revenue'!AC$5,Inputs!$P$5:$BB$5,0)) -> 1.042727868 | AD13: =INDEX(Inputs!$P$36:$BB$36,MATCH('Costs & Revenue'!AD$5,Inputs!$P$5:$BB$5,0)) -> 1.034822713 | AE13: =INDEX(Inputs!$P$36:$BB$36,MATCH('Costs & Revenue'!AE$5,Inputs!$P$5:$BB$5,0)) -> 1.026977488 | AF13: =INDEX(Inputs!$P$36:$BB$36,MATCH('Costs & Revenue'!AF$5,Inputs!$P$5:$BB$5,0)) -> 1.01919174 | AG13: =INDEX(Inputs!$P$36:$BB$36,MATCH('Costs & Revenue'!AG$5,Inputs!$P$5:$BB$5,0)) -> 1.011465018 | AH13: =INDEX(Inputs!$P$36:$BB$36,MATCH('Costs & Revenue'!AH$5,Inputs!$P$5:$BB$5,0)) -> 1.003796873 | AI13: =INDEX(Inputs!$P$36:$BB$36,MATCH('Costs & Revenue'!AI$5,Inputs!$P$5:$BB$5,0)) -> 0.9961868625 | AJ13: =INDEX(Inputs!$P$36:$BB$36,MATCH('Costs & Revenue'!AJ$5,Inputs!$P$5:$BB$5,0)) -> 0.9886345452 | AK13: =INDEX(Inputs!$P$36:$BB$36,MATCH('Costs & Revenue'!AK$5,Inputs!$P$5:$BB$5,0)) -> 0.9811394836 | AL13: =INDEX(Inputs!$P$36:$BB$36,MATCH('Costs & Revenue'!AL$5,Inputs!$P$5:$BB$5,0)) -> 0.9737012439 | AM13: =INDEX(Inputs!$P$36:$BB$36,MATCH('Costs & Revenue'!AM$5,Inputs!$P$5:$BB$5,0)) -> 0.966319395 | AN13: =INDEX(Inputs!$P$36:$BB$36,MATCH('Costs & Revenue'!AN$5,Inputs!$P$5:$BB$5,0)) -> 0.9589935097 | AO13: =INDEX(Inputs!$P$36:$BB$36,MATCH('Costs & Revenue'!AO$5,Inputs!$P$5:$BB$5,0)) -> 0 | AP13: =INDEX(Inputs!$P$36:$BB$36,MATCH('Costs & Revenue'!AP$5,Inputs!$P$5:$BB$5,0)) -> 0 | AQ13: =INDEX(Inputs!$P$36:$BB$36,MATCH('Costs & Revenue'!AQ$5,Inputs!$P$5:$BB$5,0)) -> 0 | AR13: =INDEX(Inputs!$P$36:$BB$36,MATCH('Costs & Revenue'!AR$5,Inputs!$P$5:$BB$5,0)) -> 0 | AS13: =INDEX(Inputs!$P$36:$BB$36,MATCH('Costs & Revenue'!AS$5,Inputs!$P$5:$BB$5,0)) -> 0 | AT13: =INDEX(Inputs!$P$36:$BB$36,MATCH('Costs & Revenue'!AT$5,Inputs!$P$5:$BB$5,0)) -> 0 | AU13: =INDEX(Inputs!$P$36:$BB$36,MATCH('Costs & Revenue'!AU$5,Inputs!$P$5:$BB$5,0)) -> 0 | AV13: =INDEX(Inputs!$P$36:$BB$36,MATCH('Costs & Revenue'!AV$5,Inputs!$P$5:$BB$5,0)) -> 0 | AW13: =INDEX(Inputs!$P$36:$BB$36,MATCH('Costs & Revenue'!AW$5,Inputs!$P$5:$BB$5,0)) -> 0 | AX13: =INDEX(Inputs!$P$36:$BB$36,MATCH('Costs & Revenue'!AX$5,Inputs!$P$5:$BB$5,0)) -> 0 | AY13: =INDEX(Inputs!$P$36:$BB$36,MATCH('Costs & Revenue'!AY$5,Inputs!$P$5:$BB$5,0)) -> 0 | AZ13: =INDEX(Inputs!$P$36:$BB$36,MATCH('Costs & Revenue'!AZ$5,Inputs!$P$5:$BB$5,0)) -> 0 | BA13: =INDEX(Inputs!$P$36:$BB$36,MATCH('Costs & Revenue'!BA$5,Inputs!$P$5:$BB$5,0)) -> 0 | BB13: =INDEX(Inputs!$P$36:$BB$36,MATCH('Costs & Revenue'!BB$5,Inputs!$P$5:$BB$5,0)) -> 0
C15: =Inputs!C82 -> Cost items to be updated up to and beyond PCA stage (actual)
E17: =Inputs!E84 -> Non-controllable Opex (actual) | G17: =Inputs!G84 -> £m nominal prices | P17: =INDEX(Inputs!$P$84:$BB$84,MATCH('Costs & Revenue'!P$5,Inputs!$P$5:$BB$5,0)) -> 0 | Q17: =INDEX(Inputs!$P$84:$BB$84,MATCH('Costs & Revenue'!Q$5,Inputs!$P$5:$BB$5,0)) -> 0 | R17: =INDEX(Inputs!$P$84:$BB$84,MATCH('Costs & Revenue'!R$5,Inputs!$P$5:$BB$5,0)) -> 0 | S17: =INDEX(Inputs!$P$84:$BB$84,MATCH('Costs & Revenue'!S$5,Inputs!$P$5:$BB$5,0)) -> 0 | T17: =INDEX(Inputs!$P$84:$BB$84,MATCH('Costs & Revenue'!T$5,Inputs!$P$5:$BB$5,0)) -> 0 | U17: =INDEX(Inputs!$P$84:$BB$84,MATCH('Costs & Revenue'!U$5,Inputs!$P$5:$BB$5,0)) -> 0 | V17: =INDEX(Inputs!$P$84:$BB$84,MATCH('Costs & Revenue'!V$5,Inputs!$P$5:$BB$5,0)) -> 0 | W17: =INDEX(Inputs!$P$84:$BB$84,MATCH('Costs & Revenue'!W$5,Inputs!$P$5:$BB$5,0)) -> 0 | X17: =INDEX(Inputs!$P$84:$BB$84,MATCH('Costs & Revenue'!X$5,Inputs!$P$5:$BB$5,0)) -> 0 | Y17: =INDEX(Inputs!$P$84:$BB$84,MATCH('Costs & Revenue'!Y$5,Inputs!$P$5:$BB$5,0)) -> 0 | Z17: =INDEX(Inputs!$P$84:$BB$84,MATCH('Costs & Revenue'!Z$5,Inputs!$P$5:$BB$5,0)) -> 0 | AA17: =INDEX(Inputs!$P$84:$BB$84,MATCH('Costs & Revenue'!AA$5,Inputs!$P$5:$BB$5,0)) -> 0 | AB17: =INDEX(Inputs!$P$84:$BB$84,MATCH('Costs & Revenue'!AB$5,Inputs!$P$5:$BB$5,0)) -> 0 | AC17: =INDEX(Inputs!$P$84:$BB$84,MATCH('Costs & Revenue'!AC$5,Inputs!$P$5:$BB$5,0)) -> 0 | AD17: =INDEX(Inputs!$P$84:$BB$84,MATCH('Costs & Revenue'!AD$5,Inputs!$P$5:$BB$5,0)) -> 0 | AE17: =INDEX(Inputs!$P$84:$BB$84,MATCH('Costs & Revenue'!AE$5,Inputs!$P$5:$BB$5,0)) -> 0 | AF17: =INDEX(Inputs!$P$84:$BB$84,MATCH('Costs & Revenue'!AF$5,Inputs!$P$5:$BB$5,0)) -> 0 | AG17: =INDEX(Inputs!$P$84:$BB$84,MATCH('Costs & Revenue'!AG$5,Inputs!$P$5:$BB$5,0)) -> 0 | AH17: =INDEX(Inputs!$P$84:$BB$84,MATCH('Costs & Revenue'!AH$5,Inputs!$P$5:$BB$5,0)) -> 0 | AI17: =INDEX(Inputs!$P$84:$BB$84,MATCH('Costs & Revenue'!AI$5,Inputs!$P$5:$BB$5,0)) -> 0 | AJ17: =INDEX(Inputs!$P$84:$BB$84,MATCH('Costs & Revenue'!AJ$5,Inputs!$P$5:$BB$5,0)) -> 0 | AK17: =INDEX(Inputs!$P$84:$BB$84,MATCH('Costs & Revenue'!AK$5,Inputs!$P$5:$BB$5,0)) -> 0 | AL17: =INDEX(Inputs!$P$84:$BB$84,MATCH('Costs & Revenue'!AL$5,Inputs!$P$5:$BB$5,0)) -> 0 | AM17: =INDEX(Inputs!$P$84:$BB$84,MATCH('Costs & Revenue'!AM$5,Inputs!$P$5:$BB$5,0)) -> 0 | AN17: =INDEX(Inputs!$P$84:$BB$84,MATCH('Costs & Revenue'!AN$5,Inputs!$P$5:$BB$5,0)) -> 0 | AO17: =INDEX(Inputs!$P$84:$BB$84,MATCH('Costs & Revenue'!AO$5,Inputs!$P$5:$BB$5,0)) -> 0 | AP17: =INDEX(Inputs!$P$84:$BB$84,MATCH('Costs & Revenue'!AP$5,Inputs!$P$5:$BB$5,0)) -> 0 | AQ17: =INDEX(Inputs!$P$84:$BB$84,MATCH('Costs & Revenue'!AQ$5,Inputs!$P$5:$BB$5,0)) -> 0 | AR17: =INDEX(Inputs!$P$84:$BB$84,MATCH('Costs & Revenue'!AR$5,Inputs!$P$5:$BB$5,0)) -> 0 | AS17: =INDEX(Inputs!$P$84:$BB$84,MATCH('Costs & Revenue'!AS$5,Inputs!$P$5:$BB$5,0)) -> 0 | AT17: =INDEX(Inputs!$P$84:$BB$84,MATCH('Costs & Revenue'!AT$5,Inputs!$P$5:$BB$5,0)) -> 0 | AU17: =INDEX(Inputs!$P$84:$BB$84,MATCH('Costs & Revenue'!AU$5,Inputs!$P$5:$BB$5,0)) -> 0 | AV17: =INDEX(Inputs!$P$84:$BB$84,MATCH('Costs & Revenue'!AV$5,Inputs!$P$5:$BB$5,0)) -> 0 | AW17: =INDEX(Inputs!$P$84:$BB$84,MATCH('Costs & Revenue'!AW$5,Inputs!$P$5:$BB$5,0)) -> 0 | AX17: =INDEX(Inputs!$P$84:$BB$84,MATCH('Costs & Revenue'!AX$5,Inputs!$P$5:$BB$5,0)) -> 0 | AY17: =INDEX(Inputs!$P$84:$BB$84,MATCH('Costs & Revenue'!AY$5,Inputs!$P$5:$BB$5,0)) -> 0 | AZ17: =INDEX(Inputs!$P$84:$BB$84,MATCH('Costs & Revenue'!AZ$5,Inputs!$P$5:$BB$5,0)) -> 0 | BA17: =INDEX(Inputs!$P$84:$BB$84,MATCH('Costs & Revenue'!BA$5,Inputs!$P$5:$BB$5,0)) -> 0 | BB17: =INDEX(Inputs!$P$84:$BB$84,MATCH('Costs & Revenue'!BB$5,Inputs!$P$5:$BB$5,0)) -> 0
P19: =INDEX(Inputs!$P$143:$BB$143,MATCH('Costs & Revenue'!P$5,Inputs!$P$5:$BB$5,0)) -> 0 | Q19: =INDEX(Inputs!$P$143:$BB$143,MATCH('Costs & Revenue'!Q$5,Inputs!$P$5:$BB$5,0)) -> 0 | R19: =INDEX(Inputs!$P$143:$BB$143,MATCH('Costs & Revenue'!R$5,Inputs!$P$5:$BB$5,0)) -> 0 | S19: =INDEX(Inputs!$P$143:$BB$143,MATCH('Costs & Revenue'!S$5,Inputs!$P$5:$BB$5,0)) -> 0 | T19: =INDEX(Inputs!$P$143:$BB$143,MATCH('Costs & Revenue'!T$5,Inputs!$P$5:$BB$5,0)) -> 0 | U19: =INDEX(Inputs!$P$143:$BB$143,MATCH('Costs & Revenue'!U$5,Inputs!$P$5:$BB$5,0)) -> 0 | V19: =INDEX(Inputs!$P$143:$BB$143,MATCH('Costs & Revenue'!V$5,Inputs!$P$5:$BB$5,0)) -> 0 | W19: =INDEX(Inputs!$P$143:$BB$143,MATCH('Costs & Revenue'!W$5,Inputs!$P$5:$BB$5,0)) -> 0 | X19: =INDEX(Inputs!$P$143:$BB$143,MATCH('Costs & Revenue'!X$5,Inputs!$P$5:$BB$5,0)) -> 0 | Y19: =INDEX(Inputs!$P$143:$BB$143,MATCH('Costs & Revenue'!Y$5,Inputs!$P$5:$BB$5,0)) -> 0 | Z19: =INDEX(Inputs!$P$143:$BB$143,MATCH('Costs & Revenue'!Z$5,Inputs!$P$5:$BB$5,0)) -> 0 | AA19: =INDEX(Inputs!$P$143:$BB$143,MATCH('Costs & Revenue'!AA$5,Inputs!$P$5:$BB$5,0)) -> 0 | AB19: =INDEX(Inputs!$P$143:$BB$143,MATCH('Costs & Revenue'!AB$5,Inputs!$P$5:$BB$5,0)) -> 0 | AC19: =INDEX(Inputs!$P$143:$BB$143,MATCH('Costs & Revenue'!AC$5,Inputs!$P$5:$BB$5,0)) -> 0 | AD19: =INDEX(Inputs!$P$143:$BB$143,MATCH('Costs & Revenue'!AD$5,Inputs!$P$5:$BB$5,0)) -> 0 | AE19: =INDEX(Inputs!$P$143:$BB$143,MATCH('Costs & Revenue'!AE$5,Inputs!$P$5:$BB$5,0)) -> 0 | AF19: =INDEX(Inputs!$P$143:$BB$143,MATCH('Costs & Revenue'!AF$5,Inputs!$P$5:$BB$5,0)) -> 0 | AG19: =INDEX(Inputs!$P$143:$BB$143,MATCH('Costs & Revenue'!AG$5,Inputs!$P$5:$BB$5,0)) -> 0 | AH19: =INDEX(Inputs!$P$143:$BB$143,MATCH('Costs & Revenue'!AH$5,Inputs!$P$5:$BB$5,0)) -> 0 | AI19: =INDEX(Inputs!$P$143:$BB$143,MATCH('Costs & Revenue'!AI$5,Inputs!$P$5:$BB$5,0)) -> 0 | AJ19: =INDEX(Inputs!$P$143:$BB$143,MATCH('Costs & Revenue'!AJ$5,Inputs!$P$5:$BB$5,0)) -> 0 | AK19: =INDEX(Inputs!$P$143:$BB$143,MATCH('Costs & Revenue'!AK$5,Inputs!$P$5:$BB$5,0)) -> 0 | AL19: =INDEX(Inputs!$P$143:$BB$143,MATCH('Costs & Revenue'!AL$5,Inputs!$P$5:$BB$5,0)) -> 0 | AM19: =INDEX(Inputs!$P$143:$BB$143,MATCH('Costs & Revenue'!AM$5,Inputs!$P$5:$BB$5,0)) -> 0 | AN19: =INDEX(Inputs!$P$143:$BB$143,MATCH('Costs & Revenue'!AN$5,Inputs!$P$5:$BB$5,0)) -> 0 | AO19: =INDEX(Inputs!$P$143:$BB$143,MATCH('Costs & Revenue'!AO$5,Inputs!$P$5:$BB$5,0)) -> 0 | AP19: =INDEX(Inputs!$P$143:$BB$143,MATCH('Costs & Revenue'!AP$5,Inputs!$P$5:$BB$5,0)) -> 0 | AQ19: =INDEX(Inputs!$P$143:$BB$143,MATCH('Costs & Revenue'!AQ$5,Inputs!$P$5:$BB$5,0)) -> 0 | AR19: =INDEX(Inputs!$P$143:$BB$143,MATCH('Costs & Revenue'!AR$5,Inputs!$P$5:$BB$5,0)) -> 0 | AS19: =INDEX(Inputs!$P$143:$BB$143,MATCH('Costs & Revenue'!AS$5,Inputs!$P$5:$BB$5,0)) -> 0 | AT19: =INDEX(Inputs!$P$143:$BB$143,MATCH('Costs & Revenue'!AT$5,Inputs!$P$5:$BB$5,0)) -> 0 | AU19: =INDEX(Inputs!$P$143:$BB$143,MATCH('Costs & Revenue'!AU$5,Inputs!$P$5:$BB$5,0)) -> 0 | AV19: =INDEX(Inputs!$P$143:$BB$143,MATCH('Costs & Revenue'!AV$5,Inputs!$P$5:$BB$5,0)) -> 0 | AW19: =INDEX(Inputs!$P$143:$BB$143,MATCH('Costs & Revenue'!AW$5,Inputs!$P$5:$BB$5,0)) -> 0 | AX19: =INDEX(Inputs!$P$143:$BB$143,MATCH('Costs & Revenue'!AX$5,Inputs!$P$5:$BB$5,0)) -> 0 | AY19: =INDEX(Inputs!$P$143:$BB$143,MATCH('Costs & Revenue'!AY$5,Inputs!$P$5:$BB$5,0)) -> 0 | AZ19: =INDEX(Inputs!$P$143:$BB$143,MATCH('Costs & Revenue'!AZ$5,Inputs!$P$5:$BB$5,0)) -> 0 | BA19: =INDEX(Inputs!$P$143:$BB$143,MATCH('Costs & Revenue'!BA$5,Inputs!$P$5:$BB$5,0)) -> 0 | BB19: =INDEX(Inputs!$P$143:$BB$143,MATCH('Costs & Revenue'!BB$5,Inputs!$P$5:$BB$5,0)) -> 0
E21: =E17 -> Non-controllable Opex (actual) | G21: £m nominal prices | H21: ONCOCt | P21: =IF(CF_currency="€",P17/P$19,P17) -> 0 | Q21: 0 | R21: 0 | S21: 0 | T21: 0 | U21: 0 | V21: 0 | W21: 0 | X21: 0 | Y21: 0 | Z21: 0 | AA21: 0 | AB21: 0 | AC21: 0 | AD21: 0 | AE21: 0 | AF21: 0 | AG21: 0 | AH21: 0 | AI21: 0 | AJ21: 0 | AK21: 0 | AL21: 0 | AM21: 0 | AN21: 0 | AO21: 0 | AP21: 0 | AQ21: 0 | AR21: 0 | AS21: 0 | AT21: 0 | AU21: 0 | AV21: 0 | AW21: 0 | AX21: 0 | AY21: 0 | AZ21: 0 | BA21: 0 | BB21: 0
E23: =Inputs!E85 -> Non-controllable Opex adjustment following NRA review (actual) | G23: =Inputs!G85 -> £m nominal prices | P23: =INDEX(Inputs!$P$85:$BB$85,MATCH('Costs & Revenue'!P$5,Inputs!$P$5:$BB$5,0)) -> 0 | Q23: =INDEX(Inputs!$P$85:$BB$85,MATCH('Costs & Revenue'!Q$5,Inputs!$P$5:$BB$5,0)) -> 0 | R23: =INDEX(Inputs!$P$85:$BB$85,MATCH('Costs & Revenue'!R$5,Inputs!$P$5:$BB$5,0)) -> 0 | S23: =INDEX(Inputs!$P$85:$BB$85,MATCH('Costs & Revenue'!S$5,Inputs!$P$5:$BB$5,0)) -> 0 | T23: =INDEX(Inputs!$P$85:$BB$85,MATCH('Costs & Revenue'!T$5,Inputs!$P$5:$BB$5,0)) -> 0 | U23: =INDEX(Inputs!$P$85:$BB$85,MATCH('Costs & Revenue'!U$5,Inputs!$P$5:$BB$5,0)) -> 0 | V23: =INDEX(Inputs!$P$85:$BB$85,MATCH('Costs & Revenue'!V$5,Inputs!$P$5:$BB$5,0)) -> 0 | W23: =INDEX(Inputs!$P$85:$BB$85,MATCH('Costs & Revenue'!W$5,Inputs!$P$5:$BB$5,0)) -> 0 | X23: =INDEX(Inputs!$P$85:$BB$85,MATCH('Costs & Revenue'!X$5,Inputs!$P$5:$BB$5,0)) -> 0 | Y23: =INDEX(Inputs!$P$85:$BB$85,MATCH('Costs & Revenue'!Y$5,Inputs!$P$5:$BB$5,0)) -> 0 | Z23: =INDEX(Inputs!$P$85:$BB$85,MATCH('Costs & Revenue'!Z$5,Inputs!$P$5:$BB$5,0)) -> 0 | AA23: =INDEX(Inputs!$P$85:$BB$85,MATCH('Costs & Revenue'!AA$5,Inputs!$P$5:$BB$5,0)) -> 0 | AB23: =INDEX(Inputs!$P$85:$BB$85,MATCH('Costs & Revenue'!AB$5,Inputs!$P$5:$BB$5,0)) -> 0 | AC23: =INDEX(Inputs!$P$85:$BB$85,MATCH('Costs & Revenue'!AC$5,Inputs!$P$5:$BB$5,0)) -> 0 | AD23: =INDEX(Inputs!$P$85:$BB$85,MATCH('Costs & Revenue'!AD$5,Inputs!$P$5:$BB$5,0)) -> 0 | AE23: =INDEX(Inputs!$P$85:$BB$85,MATCH('Costs & Revenue'!AE$5,Inputs!$P$5:$BB$5,0)) -> 0 | AF23: =INDEX(Inputs!$P$85:$BB$85,MATCH('Costs & Revenue'!AF$5,Inputs!$P$5:$BB$5,0)) -> 0 | AG23: =INDEX(Inputs!$P$85:$BB$85,MATCH('Costs & Revenue'!AG$5,Inputs!$P$5:$BB$5,0)) -> 0 | AH23: =INDEX(Inputs!$P$85:$BB$85,MATCH('Costs & Revenue'!AH$5,Inputs!$P$5:$BB$5,0)) -> 0 | AI23: =INDEX(Inputs!$P$85:$BB$85,MATCH('Costs & Revenue'!AI$5,Inputs!$P$5:$BB$5,0)) -> 0 | AJ23: =INDEX(Inputs!$P$85:$BB$85,MATCH('Costs & Revenue'!AJ$5,Inputs!$P$5:$BB$5,0)) -> 0 | AK23: =INDEX(Inputs!$P$85:$BB$85,MATCH('Costs & Revenue'!AK$5,Inputs!$P$5:$BB$5,0)) -> 0 | AL23: =INDEX(Inputs!$P$85:$BB$85,MATCH('Costs & Revenue'!AL$5,Inputs!$P$5:$BB$5,0)) -> 0 | AM23: =INDEX(Inputs!$P$85:$BB$85,MATCH('Costs & Revenue'!AM$5,Inputs!$P$5:$BB$5,0)) -> 0 | AN23: =INDEX(Inputs!$P$85:$BB$85,MATCH('Costs & Revenue'!AN$5,Inputs!$P$5:$BB$5,0)) -> 0 | AO23: =INDEX(Inputs!$P$85:$BB$85,MATCH('Costs & Revenue'!AO$5,Inputs!$P$5:$BB$5,0)) -> 0 | AP23: =INDEX(Inputs!$P$85:$BB$85,MATCH('Costs & Revenue'!AP$5,Inputs!$P$5:$BB$5,0)) -> 0 | AQ23: =INDEX(Inputs!$P$85:$BB$85,MATCH('Costs & Revenue'!AQ$5,Inputs!$P$5:$BB$5,0)) -> 0 | AR23: =INDEX(Inputs!$P$85:$BB$85,MATCH('Costs & Revenue'!AR$5,Inputs!$P$5:$BB$5,0)) -> 0 | AS23: =INDEX(Inputs!$P$85:$BB$85,MATCH('Costs & Revenue'!AS$5,Inputs!$P$5:$BB$5,0)) -> 0 | AT23: =INDEX(Inputs!$P$85:$BB$85,MATCH('Costs & Revenue'!AT$5,Inputs!$P$5:$BB$5,0)) -> 0 | AU23: =INDEX(Inputs!$P$85:$BB$85,MATCH('Costs & Revenue'!AU$5,Inputs!$P$5:$BB$5,0)) -> 0 | AV23: =INDEX(Inputs!$P$85:$BB$85,MATCH('Costs & Revenue'!AV$5,Inputs!$P$5:$BB$5,0)) -> 0 | AW23: =INDEX(Inputs!$P$85:$BB$85,MATCH('Costs & Revenue'!AW$5,Inputs!$P$5:$BB$5,0)) -> 0 | AX23: =INDEX(Inputs!$P$85:$BB$85,MATCH('Costs & Revenue'!AX$5,Inputs!$P$5:$BB$5,0)) -> 0 | AY23: =INDEX(Inputs!$P$85:$BB$85,MATCH('Costs & Revenue'!AY$5,Inputs!$P$5:$BB$5,0)) -> 0 | AZ23: =INDEX(Inputs!$P$85:$BB$85,MATCH('Costs & Revenue'!AZ$5,Inputs!$P$5:$BB$5,0)) -> 0 | BA23: =INDEX(Inputs!$P$85:$BB$85,MATCH('Costs & Revenue'!BA$5,Inputs!$P$5:$BB$5,0)) -> 0 | BB23: =INDEX(Inputs!$P$85:$BB$85,MATCH('Costs & Revenue'!BB$5,Inputs!$P$5:$BB$5,0)) -> 0
E25: =E23 -> Non-controllable Opex adjustment following NRA review (actual) | G25: £m nominal prices | P25: =IF(CF_currency="€",P23/P$19,P23) -> 0 | Q25: 0 | R25: 0 | S25: 0 | T25: 0 | U25: 0 | V25: 0 | W25: 0 | X25: 0 | Y25: 0 | Z25: 0 | AA25: 0 | AB25: 0 | AC25: 0 | AD25: 0 | AE25: 0 | AF25: 0 | AG25: 0 | AH25: 0 | AI25: 0 | AJ25: 0 | AK25: 0 | AL25: 0 | AM25: 0 | AN25: 0 | AO25: 0 | AP25: 0 | AQ25: 0 | AR25: 0 | AS25: 0 | AT25: 0 | AU25: 0 | AV25: 0 | AW25: 0 | AX25: 0 | AY25: 0 | AZ25: 0 | BA25: 0 | BB25: 0
B27: Revenue
E29: =Inputs!E108 -> Assessed revenue | G29: =Inputs!G108 -> £m nominal prices | H29: =Inputs!H108 -> ARt | P29: =INDEX(Inputs!$P$108:$BB$108,MATCH('Costs & Revenue'!P$5,Inputs!$P$5:$BB$5,0)) -> 0 | Q29: =INDEX(Inputs!$P$108:$BB$108,MATCH('Costs & Revenue'!Q$5,Inputs!$P$5:$BB$5,0)) -> 0 | R29: =INDEX(Inputs!$P$108:$BB$108,MATCH('Costs & Revenue'!R$5,Inputs!$P$5:$BB$5,0)) -> 0 | S29: =INDEX(Inputs!$P$108:$BB$108,MATCH('Costs & Revenue'!S$5,Inputs!$P$5:$BB$5,0)) -> 0 | T29: =INDEX(Inputs!$P$108:$BB$108,MATCH('Costs & Revenue'!T$5,Inputs!$P$5:$BB$5,0)) -> 0 | U29: =INDEX(Inputs!$P$108:$BB$108,MATCH('Costs & Revenue'!U$5,Inputs!$P$5:$BB$5,0)) -> 0 | V29: =INDEX(Inputs!$P$108:$BB$108,MATCH('Costs & Revenue'!V$5,Inputs!$P$5:$BB$5,0)) -> 0 | W29: =INDEX(Inputs!$P$108:$BB$108,MATCH('Costs & Revenue'!W$5,Inputs!$P$5:$BB$5,0)) -> 0 | X29: =INDEX(Inputs!$P$108:$BB$108,MATCH('Costs & Revenue'!X$5,Inputs!$P$5:$BB$5,0)) -> 0 | Y29: =INDEX(Inputs!$P$108:$BB$108,MATCH('Costs & Revenue'!Y$5,Inputs!$P$5:$BB$5,0)) -> 0 | Z29: =INDEX(Inputs!$P$108:$BB$108,MATCH('Costs & Revenue'!Z$5,Inputs!$P$5:$BB$5,0)) -> 0 | AA29: =INDEX(Inputs!$P$108:$BB$108,MATCH('Costs & Revenue'!AA$5,Inputs!$P$5:$BB$5,0)) -> 0 | AB29: =INDEX(Inputs!$P$108:$BB$108,MATCH('Costs & Revenue'!AB$5,Inputs!$P$5:$BB$5,0)) -> 0 | AC29: =INDEX(Inputs!$P$108:$BB$108,MATCH('Costs & Revenue'!AC$5,Inputs!$P$5:$BB$5,0)) -> 0 | AD29: =INDEX(Inputs!$P$108:$BB$108,MATCH('Costs & Revenue'!AD$5,Inputs!$P$5:$BB$5,0)) -> 0 | AE29: =INDEX(Inputs!$P$108:$BB$108,MATCH('Costs & Revenue'!AE$5,Inputs!$P$5:$BB$5,0)) -> 0 | AF29: =INDEX(Inputs!$P$108:$BB$108,MATCH('Costs & Revenue'!AF$5,Inputs!$P$5:$BB$5,0)) -> 0 | AG29: =INDEX(Inputs!$P$108:$BB$108,MATCH('Costs & Revenue'!AG$5,Inputs!$P$5:$BB$5,0)) -> 0 | AH29: =INDEX(Inputs!$P$108:$BB$108,MATCH('Costs & Revenue'!AH$5,Inputs!$P$5:$BB$5,0)) -> 0 | AI29: =INDEX(Inputs!$P$108:$BB$108,MATCH('Costs & Revenue'!AI$5,Inputs!$P$5:$BB$5,0)) -> 0 | AJ29: =INDEX(Inputs!$P$108:$BB$108,MATCH('Costs & Revenue'!AJ$5,Inputs!$P$5:$BB$5,0)) -> 0 | AK29: =INDEX(Inputs!$P$108:$BB$108,MATCH('Costs & Revenue'!AK$5,Inputs!$P$5:$BB$5,0)) -> 0 | AL29: =INDEX(Inputs!$P$108:$BB$108,MATCH('Costs & Revenue'!AL$5,Inputs!$P$5:$BB$5,0)) -> 0 | AM29: =INDEX(Inputs!$P$108:$BB$108,MATCH('Costs & Revenue'!AM$5,Inputs!$P$5:$BB$5,0)) -> 0 | AN29: =INDEX(Inputs!$P$108:$BB$108,MATCH('Costs & Revenue'!AN$5,Inputs!$P$5:$BB$5,0)) -> 0 | AO29: =INDEX(Inputs!$P$108:$BB$108,MATCH('Costs & Revenue'!AO$5,Inputs!$P$5:$BB$5,0)) -> 0 | AP29: =INDEX(Inputs!$P$108:$BB$108,MATCH('Costs & Revenue'!AP$5,Inputs!$P$5:$BB$5,0)) -> 0 | AQ29: =INDEX(Inputs!$P$108:$BB$108,MATCH('Costs & Revenue'!AQ$5,Inputs!$P$5:$BB$5,0)) -> 0 | AR29: =INDEX(Inputs!$P$108:$BB$108,MATCH('Costs & Revenue'!AR$5,Inputs!$P$5:$BB$5,0)) -> 0 | AS29: =INDEX(Inputs!$P$108:$BB$108,MATCH('Costs & Revenue'!AS$5,Inputs!$P$5:$BB$5,0)) -> 0 | AT29: =INDEX(Inputs!$P$108:$BB$108,MATCH('Costs & Revenue'!AT$5,Inputs!$P$5:$BB$5,0)) -> 0 | AU29: =INDEX(Inputs!$P$108:$BB$108,MATCH('Costs & Revenue'!AU$5,Inputs!$P$5:$BB$5,0)) -> 0 | AV29: =INDEX(Inputs!$P$108:$BB$108,MATCH('Costs & Revenue'!AV$5,Inputs!$P$5:$BB$5,0)) -> 0 | AW29: =INDEX(Inputs!$P$108:$BB$108,MATCH('Costs & Revenue'!AW$5,Inputs!$P$5:$BB$5,0)) -> 0 | AX29: =INDEX(Inputs!$P$108:$BB$108,MATCH('Costs & Revenue'!AX$5,Inputs!$P$5:$BB$5,0)) -> 0 | AY29: =INDEX(Inputs!$P$108:$BB$108,MATCH('Costs & Revenue'!AY$5,Inputs!$P$5:$BB$5,0)) -> 0 | AZ29: =INDEX(Inputs!$P$108:$BB$108,MATCH('Costs & Revenue'!AZ$5,Inputs!$P$5:$BB$5,0)) -> 0 | BA29: =INDEX(Inputs!$P$108:$BB$108,MATCH('Costs & Revenue'!BA$5,Inputs!$P$5:$BB$5,0)) -> 0 | BB29: =INDEX(Inputs!$P$108:$BB$108,MATCH('Costs & Revenue'!BB$5,Inputs!$P$5:$BB$5,0)) -> 0
E31: =E29 -> Assessed revenue | G31: £m nominal prices | H31: ARt | P31: =IF(CF_currency="€",P29/P19,P29) -> 0 | Q31: 0 | R31: 0 | S31: 0 | T31: 0 | U31: 0 | V31: 0 | W31: 0 | X31: 0 | Y31: 0 | Z31: 0 | AA31: 0 | AB31: 0 | AC31: 0 | AD31: 0 | AE31: 0 | AF31: 0 | AG31: 0 | AH31: 0 | AI31: 0 | AJ31: 0 | AK31: 0 | AL31: 0 | AM31: 0 | AN31: 0 | AO31: 0 | AP31: 0 | AQ31: 0 | AR31: 0 | AS31: 0 | AT31: 0 | AU31: 0 | AV31: 0 | AW31: 0 | AX31: 0 | AY31: 0 | AZ31: 0 | BA31: 0 | BB31: 0
B33: End of sheet

Sheet ORA Adjustment
A1: ORA Adjustment | H1: Licence
E2: Parameter | G2: Units | H2: Terminology | I2: Constant | O2: Annual values
E3: Year commencing | O3: =INDEX(Inputs!$O3:$BB3,MATCH('Costs & Revenue'!O$5,Inputs!$O$5:$BB$5,0)) -> 2020-04-01 | P3: =INDEX(Inputs!$O3:$BB3,MATCH('Costs & Revenue'!P$5,Inputs!$O$5:$BB$5,0)) -> 2021-04-01 | Q3: =INDEX(Inputs!$O3:$BB3,MATCH('Costs & Revenue'!Q$5,Inputs!$O$5:$BB$5,0)) -> 2022-04-01 | R3: =INDEX(Inputs!$O3:$BB3,MATCH('Costs & Revenue'!R$5,Inputs!$O$5:$BB$5,0)) -> 2023-04-01 | S3: =INDEX(Inputs!$O3:$BB3,MATCH('Costs & Revenue'!S$5,Inputs!$O$5:$BB$5,0)) -> 2024-04-01 | T3: =INDEX(Inputs!$O3:$BB3,MATCH('Costs & Revenue'!T$5,Inputs!$O$5:$BB$5,0)) -> 2025-04-01 | U3: =INDEX(Inputs!$O3:$BB3,MATCH('Costs & Revenue'!U$5,Inputs!$O$5:$BB$5,0)) -> 2026-04-01 | V3: =INDEX(Inputs!$O3:$BB3,MATCH('Costs & Revenue'!V$5,Inputs!$O$5:$BB$5,0)) -> 2027-04-01 | W3: =INDEX(Inputs!$O3:$BB3,MATCH('Costs & Revenue'!W$5,Inputs!$O$5:$BB$5,0)) -> 2028-04-01 | X3: =INDEX(Inputs!$O3:$BB3,MATCH('Costs & Revenue'!X$5,Inputs!$O$5:$BB$5,0)) -> 2029-04-01 | Y3: =INDEX(Inputs!$O3:$BB3,MATCH('Costs & Revenue'!Y$5,Inputs!$O$5:$BB$5,0)) -> 2030-04-01 | Z3: =INDEX(Inputs!$O3:$BB3,MATCH('Costs & Revenue'!Z$5,Inputs!$O$5:$BB$5,0)) -> 2031-04-01 | AA3: =INDEX(Inputs!$O3:$BB3,MATCH('Costs & Revenue'!AA$5,Inputs!$O$5:$BB$5,0)) -> 2032-04-01 | AB3: =INDEX(Inputs!$O3:$BB3,MATCH('Costs & Revenue'!AB$5,Inputs!$O$5:$BB$5,0)) -> 2033-04-01 | AC3: =INDEX(Inputs!$O3:$BB3,MATCH('Costs & Revenue'!AC$5,Inputs!$O$5:$BB$5,0)) -> 2034-04-01 | AD3: =INDEX(Inputs!$O3:$BB3,MATCH('Costs & Revenue'!AD$5,Inputs!$O$5:$BB$5,0)) -> 2035-04-01 | AE3: =INDEX(Inputs!$O3:$BB3,MATCH('Costs & Revenue'!AE$5,Inputs!$O$5:$BB$5,0)) -> 2036-04-01 | AF3: =INDEX(Inputs!$O3:$BB3,MATCH('Costs & Revenue'!AF$5,Inputs!$O$5:$BB$5,0)) -> 2037-04-01 | AG3: =INDEX(Inputs!$O3:$BB3,MATCH('Costs & Revenue'!AG$5,Inputs!$O$5:$BB$5,0)) -> 2038-04-01 | AH3: =INDEX(Inputs!$O3:$BB3,MATCH('Costs & Revenue'!AH$5,Inputs!$O$5:$BB$5,0)) -> 2039-04-01 | AI3: =INDEX(Inputs!$O3:$BB3,MATCH('Costs & Revenue'!AI$5,Inputs!$O$5:$BB$5,0)) -> 2040-04-01 | AJ3: =INDEX(Inputs!$O3:$BB3,MATCH('Costs & Revenue'!AJ$5,Inputs!$O$5:$BB$5,0)) -> 2041-04-01 | AK3: =INDEX(Inputs!$O3:$BB3,MATCH('Costs & Revenue'!AK$5,Inputs!$O$5:$BB$5,0)) -> 2042-04-01 | AL3: =INDEX(Inputs!$O3:$BB3,MATCH('Costs & Revenue'!AL$5,Inputs!$O$5:$BB$5,0)) -> 2043-04-01 | AM3: =INDEX(Inputs!$O3:$BB3,MATCH('Costs & Revenue'!AM$5,Inputs!$O$5:$BB$5,0)) -> 2044-04-01 | AN3: =INDEX(Inputs!$O3:$BB3,MATCH('Costs & Revenue'!AN$5,Inputs!$O$5:$BB$5,0)) -> 2045-04-01 | AO3: =INDEX(Inputs!$O3:$BB3,MATCH('Costs & Revenue'!AO$5,Inputs!$O$5:$BB$5,0)) -> 2046-04-01 | AP3: =INDEX(Inputs!$O3:$BB3,MATCH('Costs & Revenue'!AP$5,Inputs!$O$5:$BB$5,0)) -> 2047-04-01 | AQ3: =INDEX(Inputs!$O3:$BB3,MATCH('Costs & Revenue'!AQ$5,Inputs!$O$5:$BB$5,0)) -> 2048-04-01 | AR3: =INDEX(Inputs!$O3:$BB3,MATCH('Costs & Revenue'!AR$5,Inputs!$O$5:$BB$5,0)) -> 2049-04-01 | AS3: =INDEX(Inputs!$O3:$BB3,MATCH('Costs & Revenue'!AS$5,Inputs!$O$5:$BB$5,0)) -> 2050-04-01 | AT3: =INDEX(Inputs!$O3:$BB3,MATCH('Costs & Revenue'!AT$5,Inputs!$O$5:$BB$5,0)) -> 2051-04-01 | AU3: =INDEX(Inputs!$O3:$BB3,MATCH('Costs & Revenue'!AU$5,Inputs!$O$5:$BB$5,0)) -> 2052-04-01 | AV3: =INDEX(Inputs!$O3:$BB3,MATCH('Costs & Revenue'!AV$5,Inputs!$O$5:$BB$5,0)) -> 2053-04-01 | AW3: =INDEX(Inputs!$O3:$BB3,MATCH('Costs & Revenue'!AW$5,Inputs!$O$5:$BB$5,0)) -> 2054-04-01 | AX3: =INDEX(Inputs!$O3:$BB3,MATCH('Costs & Revenue'!AX$5,Inputs!$O$5:$BB$5,0)) -> 2055-04-01 | AY3: =INDEX(Inputs!$O3:$BB3,MATCH('Costs & Revenue'!AY$5,Inputs!$O$5:$BB$5,0)) -> 2056-04-01 | AZ3: =INDEX(Inputs!$O3:$BB3,MATCH('Costs & Revenue'!AZ$5,Inputs!$O$5:$BB$5,0)) -> 2057-04-01 | BA3: =INDEX(Inputs!$O3:$BB3,MATCH('Costs & Revenue'!BA$5,Inputs!$O$5:$BB$5,0)) -> 2058-04-01 | BB3: =INDEX(Inputs!$O3:$BB3,MATCH('Costs & Revenue'!BB$5,Inputs!$O$5:$BB$5,0)) -> 2059-04-01
E4: Year ending | O4: =INDEX(Inputs!$O4:$BB4,MATCH('Costs & Revenue'!O$5,Inputs!$O$5:$BB$5,0)) -> 2021-03-31 | P4: =INDEX(Inputs!$O4:$BB4,MATCH('Costs & Revenue'!P$5,Inputs!$O$5:$BB$5,0)) -> 2022-03-31 | Q4: =INDEX(Inputs!$O4:$BB4,MATCH('Costs & Revenue'!Q$5,Inputs!$O$5:$BB$5,0)) -> 2023-03-31 | R4: =INDEX(Inputs!$O4:$BB4,MATCH('Costs & Revenue'!R$5,Inputs!$O$5:$BB$5,0)) -> 2024-03-31 | S4: =INDEX(Inputs!$O4:$BB4,MATCH('Costs & Revenue'!S$5,Inputs!$O$5:$BB$5,0)) -> 2025-03-31 | T4: =INDEX(Inputs!$O4:$BB4,MATCH('Costs & Revenue'!T$5,Inputs!$O$5:$BB$5,0)) -> 2026-03-31 | U4: =INDEX(Inputs!$O4:$BB4,MATCH('Costs & Revenue'!U$5,Inputs!$O$5:$BB$5,0)) -> 2027-03-31 | V4: =INDEX(Inputs!$O4:$BB4,MATCH('Costs & Revenue'!V$5,Inputs!$O$5:$BB$5,0)) -> 2028-03-31 | W4: =INDEX(Inputs!$O4:$BB4,MATCH('Costs & Revenue'!W$5,Inputs!$O$5:$BB$5,0)) -> 2029-03-31 | X4: =INDEX(Inputs!$O4:$BB4,MATCH('Costs & Revenue'!X$5,Inputs!$O$5:$BB$5,0)) -> 2030-03-31 | Y4: =INDEX(Inputs!$O4:$BB4,MATCH('Costs & Revenue'!Y$5,Inputs!$O$5:$BB$5,0)) -> 2031-03-31 | Z4: =INDEX(Inputs!$O4:$BB4,MATCH('Costs & Revenue'!Z$5,Inputs!$O$5:$BB$5,0)) -> 2032-03-31 | AA4: =INDEX(Inputs!$O4:$BB4,MATCH('Costs & Revenue'!AA$5,Inputs!$O$5:$BB$5,0)) -> 2033-03-31 | AB4: =INDEX(Inputs!$O4:$BB4,MATCH('Costs & Revenue'!AB$5,Inputs!$O$5:$BB$5,0)) -> 2034-03-31 | AC4: =INDEX(Inputs!$O4:$BB4,MATCH('Costs & Revenue'!AC$5,Inputs!$O$5:$BB$5,0)) -> 2035-03-31 | AD4: =INDEX(Inputs!$O4:$BB4,MATCH('Costs & Revenue'!AD$5,Inputs!$O$5:$BB$5,0)) -> 2036-03-31 | AE4: =INDEX(Inputs!$O4:$BB4,MATCH('Costs & Revenue'!AE$5,Inputs!$O$5:$BB$5,0)) -> 2037-03-31 | AF4: =INDEX(Inputs!$O4:$BB4,MATCH('Costs & Revenue'!AF$5,Inputs!$O$5:$BB$5,0)) -> 2038-03-31 | AG4: =INDEX(Inputs!$O4:$BB4,MATCH('Costs & Revenue'!AG$5,Inputs!$O$5:$BB$5,0)) -> 2039-03-31 | AH4: =INDEX(Inputs!$O4:$BB4,MATCH('Costs & Revenue'!AH$5,Inputs!$O$5:$BB$5,0)) -> 2040-03-31 | AI4: =INDEX(Inputs!$O4:$BB4,MATCH('Costs & Revenue'!AI$5,Inputs!$O$5:$BB$5,0)) -> 2041-03-31 | AJ4: =INDEX(Inputs!$O4:$BB4,MATCH('Costs & Revenue'!AJ$5,Inputs!$O$5:$BB$5,0)) -> 2042-03-31 | AK4: =INDEX(Inputs!$O4:$BB4,MATCH('Costs & Revenue'!AK$5,Inputs!$O$5:$BB$5,0)) -> 2043-03-31 | AL4: =INDEX(Inputs!$O4:$BB4,MATCH('Costs & Revenue'!AL$5,Inputs!$O$5:$BB$5,0)) -> 2044-03-31 | AM4: =INDEX(Inputs!$O4:$BB4,MATCH('Costs & Revenue'!AM$5,Inputs!$O$5:$BB$5,0)) -> 2045-03-31 | AN4: =INDEX(Inputs!$O4:$BB4,MATCH('Costs & Revenue'!AN$5,Inputs!$O$5:$BB$5,0)) -> 2046-03-31 | AO4: =INDEX(Inputs!$O4:$BB4,MATCH('Costs & Revenue'!AO$5,Inputs!$O$5:$BB$5,0)) -> 2047-03-31 | AP4: =INDEX(Inputs!$O4:$BB4,MATCH('Costs & Revenue'!AP$5,Inputs!$O$5:$BB$5,0)) -> 2048-03-31 | AQ4: =INDEX(Inputs!$O4:$BB4,MATCH('Costs & Revenue'!AQ$5,Inputs!$O$5:$BB$5,0)) -> 2049-03-31 | AR4: =INDEX(Inputs!$O4:$BB4,MATCH('Costs & Revenue'!AR$5,Inputs!$O$5:$BB$5,0)) -> 2050-03-31 | AS4: =INDEX(Inputs!$O4:$BB4,MATCH('Costs & Revenue'!AS$5,Inputs!$O$5:$BB$5,0)) -> 2051-03-31 | AT4: =INDEX(Inputs!$O4:$BB4,MATCH('Costs & Revenue'!AT$5,Inputs!$O$5:$BB$5,0)) -> 2052-03-31 | AU4: =INDEX(Inputs!$O4:$BB4,MATCH('Costs & Revenue'!AU$5,Inputs!$O$5:$BB$5,0)) -> 2053-03-31 | AV4: =INDEX(Inputs!$O4:$BB4,MATCH('Costs & Revenue'!AV$5,Inputs!$O$5:$BB$5,0)) -> 2054-03-31 | AW4: =INDEX(Inputs!$O4:$BB4,MATCH('Costs & Revenue'!AW$5,Inputs!$O$5:$BB$5,0)) -> 2055-03-31 | AX4: =INDEX(Inputs!$O4:$BB4,MATCH('Costs & Revenue'!AX$5,Inputs!$O$5:$BB$5,0)) -> 2056-03-31 | AY4: =INDEX(Inputs!$O4:$BB4,MATCH('Costs & Revenue'!AY$5,Inputs!$O$5:$BB$5,0)) -> 2057-03-31 | AZ4: =INDEX(Inputs!$O4:$BB4,MATCH('Costs & Revenue'!AZ$5,Inputs!$O$5:$BB$5,0)) -> 2058-03-31 | BA4: =INDEX(Inputs!$O4:$BB4,MATCH('Costs & Revenue'!BA$5,Inputs!$O$5:$BB$5,0)) -> 2059-03-31 | BB4: =INDEX(Inputs!$O4:$BB4,MATCH('Costs & Revenue'!BB$5,Inputs!$O$5:$BB$5,0)) -> 2060-03-31
E5: Operational year | O5: =Inputs!O5 -> 0 | P5: =Inputs!P5 -> 1 | Q5: =Inputs!Q5 -> 2 | R5: =Inputs!R5 -> 3 | S5: =Inputs!S5 -> 4 | T5: =Inputs!T5 -> 5 | U5: =Inputs!U5 -> 6 | V5: =Inputs!V5 -> 7 | W5: =Inputs!W5 -> 8 | X5: =Inputs!X5 -> 9 | Y5: =Inputs!Y5 -> 10 | Z5: =Inputs!Z5 -> 11 | AA5: =Inputs!AA5 -> 12 | AB5: =Inputs!AB5 -> 13 | AC5: =Inputs!AC5 -> 14 | AD5: =Inputs!AD5 -> 15 | AE5: =Inputs!AE5 -> 16 | AF5: =Inputs!AF5 -> 17 | AG5: =Inputs!AG5 -> 18 | AH5: =Inputs!AH5 -> 19 | AI5: =Inputs!AI5 -> 20 | AJ5: =Inputs!AJ5 -> 21 | AK5: =Inputs!AK5 -> 22 | AL5: =Inputs!AL5 -> 23 | AM5: =Inputs!AM5 -> 24 | AN5: =Inputs!AN5 -> 25 | AO5: =Inputs!AO5 -> 26 | AP5: =Inputs!AP5 -> 27 | AQ5: =Inputs!AQ5 -> 28 | AR5: =Inputs!AR5 -> 29 | AS5: =Inputs!AS5 -> 30 | AT5: =Inputs!AT5 -> 31 | AU5: =Inputs!AU5 -> 32 | AV5: =Inputs!AV5 -> 33 | AW5: =Inputs!AW5 -> 34 | AX5: =Inputs!AX5 -> 35 | AY5: =Inputs!AY5 -> 36 | AZ5: =Inputs!AZ5 -> 37 | BA5: =Inputs!BA5 -> 38 | BB5: =Inputs!BB5 -> 39
B7: Controllable Opex
C9: Original controllable Opex allowance from PCR stage
E11: Controllable Opex (baseline) | G11: =base_year -> £m 15/16 prices | P11: =INDEX(Inputs!$P$35:$BB$35,MATCH('Costs & Revenue'!P$5,Inputs!$P$5:$BB$5,0)) -> 18.5812626 | Q11: =INDEX(Inputs!$P$35:$BB$35,MATCH('Costs & Revenue'!Q$5,Inputs!$P$5:$BB$5,0)) -> 22.8428388 | R11: =INDEX(Inputs!$P$35:$BB$35,MATCH('Costs & Revenue'!R$5,Inputs!$P$5:$BB$5,0)) -> 25.24782245 | S11: =INDEX(Inputs!$P$35:$BB$35,MATCH('Costs & Revenue'!S$5,Inputs!$P$5:$BB$5,0)) -> 26.00659495 | T11: =INDEX(Inputs!$P$35:$BB$35,MATCH('Costs & Revenue'!T$5,Inputs!$P$5:$BB$5,0)) -> 22.99531943 | U11: =INDEX(Inputs!$P$35:$BB$35,MATCH('Costs & Revenue'!U$5,Inputs!$P$5:$BB$5,0)) -> 21.93909406 | V11: =INDEX(Inputs!$P$35:$BB$35,MATCH('Costs & Revenue'!V$5,Inputs!$P$5:$BB$5,0)) -> 22.07744474 | W11: =INDEX(Inputs!$P$35:$BB$35,MATCH('Costs & Revenue'!W$5,Inputs!$P$5:$BB$5,0)) -> 22.79345571 | X11: =INDEX(Inputs!$P$35:$BB$35,MATCH('Costs & Revenue'!X$5,Inputs!$P$5:$BB$5,0)) -> 22.79654145 | Y11: =INDEX(Inputs!$P$35:$BB$35,MATCH('Costs & Revenue'!Y$5,Inputs!$P$5:$BB$5,0)) -> 22.95537805 | Z11: =INDEX(Inputs!$P$35:$BB$35,MATCH('Costs & Revenue'!Z$5,Inputs!$P$5:$BB$5,0)) -> 23.18127377 | AA11: =INDEX(Inputs!$P$35:$BB$35,MATCH('Costs & Revenue'!AA$5,Inputs!$P$5:$BB$5,0)) -> 23.26093966 | AB11: =INDEX(Inputs!$P$35:$BB$35,MATCH('Costs & Revenue'!AB$5,Inputs!$P$5:$BB$5,0)) -> 23.49506243 | AC11: =INDEX(Inputs!$P$35:$BB$35,MATCH('Costs & Revenue'!AC$5,Inputs!$P$5:$BB$5,0)) -> 23.37480321 | AD11: =INDEX(Inputs!$P$35:$BB$35,MATCH('Costs & Revenue'!AD$5,Inputs!$P$5:$BB$5,0)) -> 23.49687321 | AE11: =INDEX(Inputs!$P$35:$BB$35,MATCH('Costs & Revenue'!AE$5,Inputs!$P$5:$BB$5,0)) -> 23.71386389 | AF11: =INDEX(Inputs!$P$35:$BB$35,MATCH('Costs & Revenue'!AF$5,Inputs!$P$5:$BB$5,0)) -> 23.78612396 | AG11: =INDEX(Inputs!$P$35:$BB$35,MATCH('Costs & Revenue'!AG$5,Inputs!$P$5:$BB$5,0)) -> 24.04930891 | AH11: =INDEX(Inputs!$P$35:$BB$35,MATCH('Costs & Revenue'!AH$5,Inputs!$P$5:$BB$5,0)) -> 23.92120968 | AI11: =INDEX(Inputs!$P$35:$BB$35,MATCH('Costs & Revenue'!AI$5,Inputs!$P$5:$BB$5,0)) -> 24.03846634 | AJ11: =INDEX(Inputs!$P$35:$BB$35,MATCH('Costs & Revenue'!AJ$5,Inputs!$P$5:$BB$5,0)) -> 24.28674177 | AK11: =INDEX(Inputs!$P$35:$BB$35,MATCH('Costs & Revenue'!AK$5,Inputs!$P$5:$BB$5,0)) -> 24.34997777 | AL11: =INDEX(Inputs!$P$35:$BB$35,MATCH('Costs & Revenue'!AL$5,Inputs!$P$5:$BB$5,0)) -> 24.60654151 | AM11: =INDEX(Inputs!$P$35:$BB$35,MATCH('Costs & Revenue'!AM$5,Inputs!$P$5:$BB$5,0)) -> 24.50833447 | AN11: =INDEX(Inputs!$P$35:$BB$35,MATCH('Costs & Revenue'!AN$5,Inputs!$P$5:$BB$5,0)) -> 24.7918577 | AO11: =INDEX(Inputs!$P$35:$BB$35,MATCH('Costs & Revenue'!AO$5,Inputs!$P$5:$BB$5,0)) -> 0 | AP11: =INDEX(Inputs!$P$35:$BB$35,MATCH('Costs & Revenue'!AP$5,Inputs!$P$5:$BB$5,0)) -> 0 | AQ11: =INDEX(Inputs!$P$35:$BB$35,MATCH('Costs & Revenue'!AQ$5,Inputs!$P$5:$BB$5,0)) -> 0 | AR11: =INDEX(Inputs!$P$35:$BB$35,MATCH('Costs & Revenue'!AR$5,Inputs!$P$5:$BB$5,0)) -> 0 | AS11: =INDEX(Inputs!$P$35:$BB$35,MATCH('Costs & Revenue'!AS$5,Inputs!$P$5:$BB$5,0)) -> 0 | AT11: =INDEX(Inputs!$P$35:$BB$35,MATCH('Costs & Revenue'!AT$5,Inputs!$P$5:$BB$5,0)) -> 0 | AU11: =INDEX(Inputs!$P$35:$BB$35,MATCH('Costs & Revenue'!AU$5,Inputs!$P$5:$BB$5,0)) -> 0 | AV11: =INDEX(Inputs!$P$35:$BB$35,MATCH('Costs & Revenue'!AV$5,Inputs!$P$5:$BB$5,0)) -> 0 | AW11: =INDEX(Inputs!$P$35:$BB$35,MATCH('Costs & Revenue'!AW$5,Inputs!$P$5:$BB$5,0)) -> 0 | AX11: =INDEX(Inputs!$P$35:$BB$35,MATCH('Costs & Revenue'!AX$5,Inputs!$P$5:$BB$5,0)) -> 0 | AY11: =INDEX(Inputs!$P$35:$BB$35,MATCH('Costs & Revenue'!AY$5,Inputs!$P$5:$BB$5,0)) -> 0 | AZ11: =INDEX(Inputs!$P$35:$BB$35,MATCH('Costs & Revenue'!AZ$5,Inputs!$P$5:$BB$5,0)) -> 0 | BA11: =INDEX(Inputs!$P$35:$BB$35,MATCH('Costs & Revenue'!BA$5,Inputs!$P$5:$BB$5,0)) -> 0 | BB11: =INDEX(Inputs!$P$35:$BB$35,MATCH('Costs & Revenue'!BB$5,Inputs!$P$5:$BB$5,0)) -> 0
C13: Revised controllable Opex allowance from ORA submission
E15: Controllable Opex (ORA submission) | G15: =base_year -> £m 15/16 prices | P15: =INDEX(Inputs!$P$164:$BB$164,MATCH('Costs & Revenue'!P$5,Inputs!$P$5:$BB$5,0)) -> 0 | Q15: =INDEX(Inputs!$P$164:$BB$164,MATCH('Costs & Revenue'!Q$5,Inputs!$P$5:$BB$5,0)) -> 0 | R15: =INDEX(Inputs!$P$164:$BB$164,MATCH('Costs & Revenue'!R$5,Inputs!$P$5:$BB$5,0)) -> 0 | S15: =INDEX(Inputs!$P$164:$BB$164,MATCH('Costs & Revenue'!S$5,Inputs!$P$5:$BB$5,0)) -> 0 | T15: =INDEX(Inputs!$P$164:$BB$164,MATCH('Costs & Revenue'!T$5,Inputs!$P$5:$BB$5,0)) -> 0 | U15: =INDEX(Inputs!$P$164:$BB$164,MATCH('Costs & Revenue'!U$5,Inputs!$P$5:$BB$5,0)) -> 0 | V15: =INDEX(Inputs!$P$164:$BB$164,MATCH('Costs & Revenue'!V$5,Inputs!$P$5:$BB$5,0)) -> 0 | W15: =INDEX(Inputs!$P$164:$BB$164,MATCH('Costs & Revenue'!W$5,Inputs!$P$5:$BB$5,0)) -> 0 | X15: =INDEX(Inputs!$P$164:$BB$164,MATCH('Costs & Revenue'!X$5,Inputs!$P$5:$BB$5,0)) -> 0 | Y15: =INDEX(Inputs!$P$164:$BB$164,MATCH('Costs & Revenue'!Y$5,Inputs!$P$5:$BB$5,0)) -> 0 | Z15: =INDEX(Inputs!$P$164:$BB$164,MATCH('Costs & Revenue'!Z$5,Inputs!$P$5:$BB$5,0)) -> 0 | AA15: =INDEX(Inputs!$P$164:$BB$164,MATCH('Costs & Revenue'!AA$5,Inputs!$P$5:$BB$5,0)) -> 0 | AB15: =INDEX(Inputs!$P$164:$BB$164,MATCH('Costs & Revenue'!AB$5,Inputs!$P$5:$BB$5,0)) -> 0 | AC15: =INDEX(Inputs!$P$164:$BB$164,MATCH('Costs & Revenue'!AC$5,Inputs!$P$5:$BB$5,0)) -> 0 | AD15: =INDEX(Inputs!$P$164:$BB$164,MATCH('Costs & Revenue'!AD$5,Inputs!$P$5:$BB$5,0)) -> 0 | AE15: =INDEX(Inputs!$P$164:$BB$164,MATCH('Costs & Revenue'!AE$5,Inputs!$P$5:$BB$5,0)) -> 0 | AF15: =INDEX(Inputs!$P$164:$BB$164,MATCH('Costs & Revenue'!AF$5,Inputs!$P$5:$BB$5,0)) -> 0 | AG15: =INDEX(Inputs!$P$164:$BB$164,MATCH('Costs & Revenue'!AG$5,Inputs!$P$5:$BB$5,0)) -> 0 | AH15: =INDEX(Inputs!$P$164:$BB$164,MATCH('Costs & Revenue'!AH$5,Inputs!$P$5:$BB$5,0)) -> 0 | AI15: =INDEX(Inputs!$P$164:$BB$164,MATCH('Costs & Revenue'!AI$5,Inputs!$P$5:$BB$5,0)) -> 0 | AJ15: =INDEX(Inputs!$P$164:$BB$164,MATCH('Costs & Revenue'!AJ$5,Inputs!$P$5:$BB$5,0)) -> 0 | AK15: =INDEX(Inputs!$P$164:$BB$164,MATCH('Costs & Revenue'!AK$5,Inputs!$P$5:$BB$5,0)) -> 0 | AL15: =INDEX(Inputs!$P$164:$BB$164,MATCH('Costs & Revenue'!AL$5,Inputs!$P$5:$BB$5,0)) -> 0 | AM15: =INDEX(Inputs!$P$164:$BB$164,MATCH('Costs & Revenue'!AM$5,Inputs!$P$5:$BB$5,0)) -> 0 | AN15: =INDEX(Inputs!$P$164:$BB$164,MATCH('Costs & Revenue'!AN$5,Inputs!$P$5:$BB$5,0)) -> 0 | AO15: =INDEX(Inputs!$P$164:$BB$164,MATCH('Costs & Revenue'!AO$5,Inputs!$P$5:$BB$5,0)) -> 0 | AP15: =INDEX(Inputs!$P$164:$BB$164,MATCH('Costs & Revenue'!AP$5,Inputs!$P$5:$BB$5,0)) -> 0 | AQ15: =INDEX(Inputs!$P$164:$BB$164,MATCH('Costs & Revenue'!AQ$5,Inputs!$P$5:$BB$5,0)) -> 0 | AR15: =INDEX(Inputs!$P$164:$BB$164,MATCH('Costs & Revenue'!AR$5,Inputs!$P$5:$BB$5,0)) -> 0 | AS15: =INDEX(Inputs!$P$164:$BB$164,MATCH('Costs & Revenue'!AS$5,Inputs!$P$5:$BB$5,0)) -> 0 | AT15: =INDEX(Inputs!$P$164:$BB$164,MATCH('Costs & Revenue'!AT$5,Inputs!$P$5:$BB$5,0)) -> 0 | AU15: =INDEX(Inputs!$P$164:$BB$164,MATCH('Costs & Revenue'!AU$5,Inputs!$P$5:$BB$5,0)) -> 0 | AV15: =INDEX(Inputs!$P$164:$BB$164,MATCH('Costs & Revenue'!AV$5,Inputs!$P$5:$BB$5,0)) -> 0 | AW15: =INDEX(Inputs!$P$164:$BB$164,MATCH('Costs & Revenue'!AW$5,Inputs!$P$5:$BB$5,0)) -> 0 | AX15: =INDEX(Inputs!$P$164:$BB$164,MATCH('Costs & Revenue'!AX$5,Inputs!$P$5:$BB$5,0)) -> 0 | AY15: =INDEX(Inputs!$P$164:$BB$164,MATCH('Costs & Revenue'!AY$5,Inputs!$P$5:$BB$5,0)) -> 0 | AZ15: =INDEX(Inputs!$P$164:$BB$164,MATCH('Costs & Revenue'!AZ$5,Inputs!$P$5:$BB$5,0)) -> 0 | BA15: =INDEX(Inputs!$P$164:$BB$164,MATCH('Costs & Revenue'!BA$5,Inputs!$P$5:$BB$5,0)) -> 0 | BB15: =INDEX(Inputs!$P$164:$BB$164,MATCH('Costs & Revenue'!BB$5,Inputs!$P$5:$BB$5,0)) -> 0
C17: NPV comparisons
E19: =Inputs!E161 -> ORA Cap effective flag | G19: flag | P19: =INDEX(Inputs!$P$161:$BB$161,MATCH('Costs & Revenue'!P$5,Inputs!$P$5:$BB$5,0)) -> 0 | Q19: =INDEX(Inputs!$P$161:$BB$161,MATCH('Costs & Revenue'!Q$5,Inputs!$P$5:$BB$5,0)) -> 0 | R19: =INDEX(Inputs!$P$161:$BB$161,MATCH('Costs & Revenue'!R$5,Inputs!$P$5:$BB$5,0)) -> 0 | S19: =INDEX(Inputs!$P$161:$BB$161,MATCH('Costs & Revenue'!S$5,Inputs!$P$5:$BB$5,0)) -> 0 | T19: =INDEX(Inputs!$P$161:$BB$161,MATCH('Costs & Revenue'!T$5,Inputs!$P$5:$BB$5,0)) -> 0 | U19: =INDEX(Inputs!$P$161:$BB$161,MATCH('Costs & Revenue'!U$5,Inputs!$P$5:$BB$5,0)) -> 0 | V19: =INDEX(Inputs!$P$161:$BB$161,MATCH('Costs & Revenue'!V$5,Inputs!$P$5:$BB$5,0)) -> 0 | W19: =INDEX(Inputs!$P$161:$BB$161,MATCH('Costs & Revenue'!W$5,Inputs!$P$5:$BB$5,0)) -> 0 | X19: =INDEX(Inputs!$P$161:$BB$161,MATCH('Costs & Revenue'!X$5,Inputs!$P$5:$BB$5,0)) -> 0 | Y19: =INDEX(Inputs!$P$161:$BB$161,MATCH('Costs & Revenue'!Y$5,Inputs!$P$5:$BB$5,0)) -> 0 | Z19: =INDEX(Inputs!$P$161:$BB$161,MATCH('Costs & Revenue'!Z$5,Inputs!$P$5:$BB$5,0)) -> 0.2491444216 | AA19: =INDEX(Inputs!$P$161:$BB$161,MATCH('Costs & Revenue'!AA$5,Inputs!$P$5:$BB$5,0)) -> 1 | AB19: =INDEX(Inputs!$P$161:$BB$161,MATCH('Costs & Revenue'!AB$5,Inputs!$P$5:$BB$5,0)) -> 1 | AC19: =INDEX(Inputs!$P$161:$BB$161,MATCH('Costs & Revenue'!AC$5,Inputs!$P$5:$BB$5,0)) -> 1 | AD19: =INDEX(Inputs!$P$161:$BB$161,MATCH('Costs & Revenue'!AD$5,Inputs!$P$5:$BB$5,0)) -> 1 | AE19: =INDEX(Inputs!$P$161:$BB$161,MATCH('Costs & Revenue'!AE$5,Inputs!$P$5:$BB$5,0)) -> 1 | AF19: =INDEX(Inputs!$P$161:$BB$161,MATCH('Costs & Revenue'!AF$5,Inputs!$P$5:$BB$5,0)) -> 1 | AG19: =INDEX(Inputs!$P$161:$BB$161,MATCH('Costs & Revenue'!AG$5,Inputs!$P$5:$BB$5,0)) -> 1 | AH19: =INDEX(Inputs!$P$161:$BB$161,MATCH('Costs & Revenue'!AH$5,Inputs!$P$5:$BB$5,0)) -> 1 | AI19: =INDEX(Inputs!$P$161:$BB$161,MATCH('Costs & Revenue'!AI$5,Inputs!$P$5:$BB$5,0)) -> 1 | AJ19: =INDEX(Inputs!$P$161:$BB$161,MATCH('Costs & Revenue'!AJ$5,Inputs!$P$5:$BB$5,0)) -> 1 | AK19: =INDEX(Inputs!$P$161:$BB$161,MATCH('Costs & Revenue'!AK$5,Inputs!$P$5:$BB$5,0)) -> 1 | AL19: =INDEX(Inputs!$P$161:$BB$161,MATCH('Costs & Revenue'!AL$5,Inputs!$P$5:$BB$5,0)) -> 1 | AM19: =INDEX(Inputs!$P$161:$BB$161,MATCH('Costs & Revenue'!AM$5,Inputs!$P$5:$BB$5,0)) -> 1 | AN19: =INDEX(Inputs!$P$161:$BB$161,MATCH('Costs & Revenue'!AN$5,Inputs!$P$5:$BB$5,0)) -> 0.7542778919 | AO19: =INDEX(Inputs!$P$161:$BB$161,MATCH('Costs & Revenue'!AO$5,Inputs!$P$5:$BB$5,0)) -> 0 | AP19: =INDEX(Inputs!$P$161:$BB$161,MATCH('Costs & Revenue'!AP$5,Inputs!$P$5:$BB$5,0)) -> 0 | AQ19: =INDEX(Inputs!$P$161:$BB$161,MATCH('Costs & Revenue'!AQ$5,Inputs!$P$5:$BB$5,0)) -> 0 | AR19: =INDEX(Inputs!$P$161:$BB$161,MATCH('Costs & Revenue'!AR$5,Inputs!$P$5:$BB$5,0)) -> 0 | AS19: =INDEX(Inputs!$P$161:$BB$161,MATCH('Costs & Revenue'!AS$5,Inputs!$P$5:$BB$5,0)) -> 0 | AT19: =INDEX(Inputs!$P$161:$BB$161,MATCH('Costs & Revenue'!AT$5,Inputs!$P$5:$BB$5,0)) -> 0 | AU19: =INDEX(Inputs!$P$161:$BB$161,MATCH('Costs & Revenue'!AU$5,Inputs!$P$5:$BB$5,0)) -> 0 | AV19: =INDEX(Inputs!$P$161:$BB$161,MATCH('Costs & Revenue'!AV$5,Inputs!$P$5:$BB$5,0)) -> 0 | AW19: =INDEX(Inputs!$P$161:$BB$161,MATCH('Costs & Revenue'!AW$5,Inputs!$P$5:$BB$5,0)) -> 0 | AX19: =INDEX(Inputs!$P$161:$BB$161,MATCH('Costs & Revenue'!AX$5,Inputs!$P$5:$BB$5,0)) -> 0 | AY19: =INDEX(Inputs!$P$161:$BB$161,MATCH('Costs & Revenue'!AY$5,Inputs!$P$5:$BB$5,0)) -> 0 | AZ19: =INDEX(Inputs!$P$161:$BB$161,MATCH('Costs & Revenue'!AZ$5,Inputs!$P$5:$BB$5,0)) -> 0 | BA19: =INDEX(Inputs!$P$161:$BB$161,MATCH('Costs & Revenue'!BA$5,Inputs!$P$5:$BB$5,0)) -> 0 | BB19: =INDEX(Inputs!$P$161:$BB$161,MATCH('Costs & Revenue'!BB$5,Inputs!$P$5:$BB$5,0)) -> 0
E20: Cap return rate | I20: =Inputs!I40 -> 0.0798
E21: Discount factor to start of operational period (cap) | G21: scalar | O21: =IF(O5<=Inputs!$I$21,(1+$I20)^-O$5,0) -> 1 | P21: =IF(P5<=Inputs!$I$21,(1+$I20)^-P$5,0) -> 0.9260974254 | Q21: =IF(Q5<=Inputs!$I$21,(1+$I20)^-Q$5,0) -> 0.8576564414 | R21: =IF(R5<=Inputs!$I$21,(1+$I20)^-R$5,0) -> 0.7942734223 | S21: =IF(S5<=Inputs!$I$21,(1+$I20)^-S$5,0) -> 0.7355745715 | T21: =IF(T5<=Inputs!$I$21,(1+$I20)^-T$5,0) -> 0.6812137169 | U21: =IF(U5<=Inputs!$I$21,(1+$I20)^-U$5,0) -> 0.6308702694 | V21: =IF(V5<=Inputs!$I$21,(1+$I20)^-V$5,0) -> 0.5842473323 | W21: =IF(W5<=Inputs!$I$21,(1+$I20)^-W$5,0) -> 0.5410699503 | X21: =IF(X5<=Inputs!$I$21,(1+$I20)^-X$5,0) -> 0.5010834879 | Y21: =IF(Y5<=Inputs!$I$21,(1+$I20)^-Y$5,0) -> 0.4640521281 | Z21: =IF(Z5<=Inputs!$I$21,(1+$I20)^-Z$5,0) -> 0.4297574811 | AA21: =IF(AA5<=Inputs!$I$21,(1+$I20)^-AA$5,0) -> 0.3979972968 | AB21: =IF(AB5<=Inputs!$I$21,(1+$I20)^-AB$5,0) -> 0.3685842719 | AC21: =IF(AC5<=Inputs!$I$21,(1+$I20)^-AC$5,0) -> 0.3413449453 | AD21: =IF(AD5<=Inputs!$I$21,(1+$I20)^-AD$5,0) -> 0.316118675 | AE21: =IF(AE5<=Inputs!$I$21,(1+$I20)^-AE$5,0) -> 0.2927566911 | AF21: =IF(AF5<=Inputs!$I$21,(1+$I20)^-AF$5,0) -> 0.2711212179 | AG21: =IF(AG5<=Inputs!$I$21,(1+$I20)^-AG$5,0) -> 0.2510846619 | AH21: =IF(AH5<=Inputs!$I$21,(1+$I20)^-AH$5,0) -> 0.2325288589 | AI21: =IF(AI5<=Inputs!$I$21,(1+$I20)^-AI$5,0) -> 0.2153443776 | AJ21: =IF(AJ5<=Inputs!$I$21,(1+$I20)^-AJ$5,0) -> 0.1994298737 | AK21: =IF(AK5<=Inputs!$I$21,(1+$I20)^-AK$5,0) -> 0.1846914926 | AL21: =IF(AL5<=Inputs!$I$21,(1+$I20)^-AL$5,0) -> 0.1710423158 | AM21: =IF(AM5<=Inputs!$I$21,(1+$I20)^-AM$5,0) -> 0.1584018483 | AN21: =IF(AN5<=Inputs!$I$21,(1+$I20)^-AN$5,0) -> 0.1466955439 | AO21: =IF(AO5<=Inputs!$I$21,(1+$I20)^-AO$5,0) -> 0 | AP21: =IF(AP5<=Inputs!$I$21,(1+$I20)^-AP$5,0) -> 0 | AQ21: =IF(AQ5<=Inputs!$I$21,(1+$I20)^-AQ$5,0) -> 0 | AR21: =IF(AR5<=Inputs!$I$21,(1+$I20)^-AR$5,0) -> 0 | AS21: =IF(AS5<=Inputs!$I$21,(1+$I20)^-AS$5,0) -> 0 | AT21: =IF(AT5<=Inputs!$I$21,(1+$I20)^-AT$5,0) -> 0 | AU21: =IF(AU5<=Inputs!$I$21,(1+$I20)^-AU$5,0) -> 0 | AV21: =IF(AV5<=Inputs!$I$21,(1+$I20)^-AV$5,0) -> 0 | AW21: =IF(AW5<=Inputs!$I$21,(1+$I20)^-AW$5,0) -> 0 | AX21: =IF(AX5<=Inputs!$I$21,(1+$I20)^-AX$5,0) -> 0 | AY21: =IF(AY5<=Inputs!$I$21,(1+$I20)^-AY$5,0) -> 0 | AZ21: =IF(AZ5<=Inputs!$I$21,(1+$I20)^-AZ$5,0) -> 0 | BA21: =IF(BA5<=Inputs!$I$21,(1+$I20)^-BA$5,0) -> 0 | BB21: =IF(BB5<=Inputs!$I$21,(1+$I20)^-BB$5,0) -> 0
E23: NPV of original allowance | G23: =base_year -> £m 15/16 prices | I23: =SUMPRODUCT($O$21:$BB$21,O11:BB11,$O$19:$BB$19) -> 86.14993909
E24: NPV of revised allowance | G24: =base_year -> £m 15/16 prices | I24: =SUMPRODUCT($O$21:$BB$21,O15:BB15,$O$19:$BB$19) -> 0
E25: Difference in NPV | G25: =base_year -> £m 15/16 prices | I25: =I24-I23 -> -86.14993909
E27: Amendment to Cap rate | G27: =base_year -> £m 15/16 prices | H27: ORAC | I27: =I25/SUMPRODUCT($O$19:$BB$19,$O$21:$BB$21) -> -23.81037948
E29: =Inputs!E162 -> ORA Floor effective flag | G29: flag | P29: =Inputs!P162 -> 0 | Q29: =Inputs!Q162 -> 0 | R29: =Inputs!R162 -> 0 | S29: =Inputs!S162 -> 0 | T29: =Inputs!T162 -> 0 | U29: =Inputs!U162 -> 0 | V29: =Inputs!V162 -> 0 | W29: =Inputs!W162 -> 0 | X29: =Inputs!X162 -> 0 | Y29: =Inputs!Y162 -> 0 | Z29: =Inputs!Z162 -> 0.2491444216 | AA29: =Inputs!AA162 -> 1 | AB29: =Inputs!AB162 -> 1 | AC29: =Inputs!AC162 -> 1 | AD29: =Inputs!AD162 -> 1 | AE29: =Inputs!AE162 -> 1 | AF29: =Inputs!AF162 -> 1 | AG29: =Inputs!AG162 -> 1 | AH29: =Inputs!AH162 -> 1 | AI29: =Inputs!AI162 -> 1 | AJ29: =Inputs!AJ162 -> 1 | AK29: =Inputs!AK162 -> 1 | AL29: =Inputs!AL162 -> 1 | AM29: =Inputs!AM162 -> 1 | AN29: =Inputs!AN162 -> 0.7542778919 | AO29: =Inputs!AO162 -> 0 | AP29: =Inputs!AP162 -> 0 | AQ29: =Inputs!AQ162 -> 0 | AR29: =Inputs!AR162 -> 0 | AS29: =Inputs!AS162 -> 0 | AT29: =Inputs!AT162 -> 0 | AU29: =Inputs!AU162 -> 0 | AV29: =Inputs!AV162 -> 0 | AW29: =Inputs!AW162 -> 0 | AX29: =Inputs!AX162 -> 0 | AY29: =Inputs!AY162 -> 0 | AZ29: =Inputs!AZ162 -> 0 | BA29: =Inputs!BA162 -> 0 | BB29: =Inputs!BB162 -> 0
E30: Floor return rate | I30: =Inputs!I41 -> 0.0088
E31: Discount factor to start of operational period (floor) | G31: scalar | O31: =IF(O5<=Inputs!$I$21,(1+$I30)^-O$5,0) -> 1 | P31: =IF(P5<=Inputs!$I$21,(1+$I30)^-P$5,0) -> 0.9912767645 | Q31: =IF(Q5<=Inputs!$I$21,(1+$I30)^-Q$5,0) -> 0.9826296238 | R31: =IF(R5<=Inputs!$I$21,(1+$I30)^-R$5,0) -> 0.9740579141 | S31: =IF(S5<=Inputs!$I$21,(1+$I30)^-S$5,0) -> 0.9655609775 | T31: =IF(T5<=Inputs!$I$21,(1+$I30)^-T$5,0) -> 0.9571381617 | U31: =IF(U5<=Inputs!$I$21,(1+$I30)^-U$5,0) -> 0.9487888201 | V31: =IF(V5<=Inputs!$I$21,(1+$I30)^-V$5,0) -> 0.9405123118 | W31: =IF(W5<=Inputs!$I$21,(1+$I30)^-W$5,0) -> 0.9323080013 | X31: =IF(X5<=Inputs!$I$21,(1+$I30)^-X$5,0) -> 0.9241752591 | Y31: =IF(Y5<=Inputs!$I$21,(1+$I30)^-Y$5,0) -> 0.9161134606 | Z31: =IF(Z5<=Inputs!$I$21,(1+$I30)^-Z$5,0) -> 0.9081219871 | AA31: =IF(AA5<=Inputs!$I$21,(1+$I30)^-AA$5,0) -> 0.9002002251 | AB31: =IF(AB5<=Inputs!$I$21,(1+$I30)^-AB$5,0) -> 0.8923475666 | AC31: =IF(AC5<=Inputs!$I$21,(1+$I30)^-AC$5,0) -> 0.8845634086 | AD31: =IF(AD5<=Inputs!$I$21,(1+$I30)^-AD$5,0) -> 0.8768471536 | AE31: =IF(AE5<=Inputs!$I$21,(1+$I30)^-AE$5,0) -> 0.8691982094 | AF31: =IF(AF5<=Inputs!$I$21,(1+$I30)^-AF$5,0) -> 0.8616159887 | AG31: =IF(AG5<=Inputs!$I$21,(1+$I30)^-AG$5,0) -> 0.8540999095 | AH31: =IF(AH5<=Inputs!$I$21,(1+$I30)^-AH$5,0) -> 0.8466493948 | AI31: =IF(AI5<=Inputs!$I$21,(1+$I30)^-AI$5,0) -> 0.8392638727 | AJ31: =IF(AJ5<=Inputs!$I$21,(1+$I30)^-AJ$5,0) -> 0.8319427763 | AK31: =IF(AK5<=Inputs!$I$21,(1+$I30)^-AK$5,0) -> 0.8246855435 | AL31: =IF(AL5<=Inputs!$I$21,(1+$I30)^-AL$5,0) -> 0.8174916173 | AM31: =IF(AM5<=Inputs!$I$21,(1+$I30)^-AM$5,0) -> 0.8103604453 | AN31: =IF(AN5<=Inputs!$I$21,(1+$I30)^-AN$5,0) -> 0.8032914803 | AO31: =IF(AO5<=Inputs!$I$21,(1+$I30)^-AO$5,0) -> 0 | AP31: =IF(AP5<=Inputs!$I$21,(1+$I30)^-AP$5,0) -> 0 | AQ31: =IF(AQ5<=Inputs!$I$21,(1+$I30)^-AQ$5,0) -> 0 | AR31: =IF(AR5<=Inputs!$I$21,(1+$I30)^-AR$5,0) -> 0 | AS31: =IF(AS5<=Inputs!$I$21,(1+$I30)^-AS$5,0) -> 0 | AT31: =IF(AT5<=Inputs!$I$21,(1+$I30)^-AT$5,0) -> 0 | AU31: =IF(AU5<=Inputs!$I$21,(1+$I30)^-AU$5,0) -> 0 | AV31: =IF(AV5<=Inputs!$I$21,(1+$I30)^-AV$5,0) -> 0 | AW31: =IF(AW5<=Inputs!$I$21,(1+$I30)^-AW$5,0) -> 0 | AX31: =IF(AX5<=Inputs!$I$21,(1+$I30)^-AX$5,0) -> 0 | AY31: =IF(AY5<=Inputs!$I$21,(1+$I30)^-AY$5,0) -> 0 | AZ31: =IF(AZ5<=Inputs!$I$21,(1+$I30)^-AZ$5,0) -> 0 | BA31: =IF(BA5<=Inputs!$I$21,(1+$I30)^-BA$5,0) -> 0 | BB31: =IF(BB5<=Inputs!$I$21,(1+$I30)^-BB$5,0) -> 0
E33: NPV of original allowance | G33: =base_year -> £m 15/16 prices | I33: =SUMPRODUCT($O$31:$BB$31,O11:BB11,$O$29:$BB$29) -> 285.7883221
E34: NPV of revised allowance | G34: =base_year -> £m 15/16 prices | I34: =SUMPRODUCT($O$31:$BB$31,O15:BB15,$O$29:$BB$29) -> 0
E35: Difference in NPV | G35: =base_year -> £m 15/16 prices | I35: =I34-I33 -> -285.7883221
E37: Amendment to Floor rate | G37: =base_year -> £m 15/16 prices | H37: ORAF | I37: =I35/SUMPRODUCT($O$29:$BB$29,$O$31:$BB$31) -> -23.93251481
B39: End of sheet

Sheet Indexation
A1: Indexation | H1: Licence
E2: Parameter | G2: Units | H2: Terminology | I2: Constant | O2: Annual values
E3: Year commencing | O3: =INDEX(Inputs!$O3:$BB3,MATCH('Costs & Revenue'!O$5,Inputs!$O$5:$BB$5,0)) -> 2020-04-01 | P3: =INDEX(Inputs!$O3:$BB3,MATCH('Costs & Revenue'!P$5,Inputs!$O$5:$BB$5,0)) -> 2021-04-01 | Q3: =INDEX(Inputs!$O3:$BB3,MATCH('Costs & Revenue'!Q$5,Inputs!$O$5:$BB$5,0)) -> 2022-04-01 | R3: =INDEX(Inputs!$O3:$BB3,MATCH('Costs & Revenue'!R$5,Inputs!$O$5:$BB$5,0)) -> 2023-04-01 | S3: =INDEX(Inputs!$O3:$BB3,MATCH('Costs & Revenue'!S$5,Inputs!$O$5:$BB$5,0)) -> 2024-04-01 | T3: =INDEX(Inputs!$O3:$BB3,MATCH('Costs & Revenue'!T$5,Inputs!$O$5:$BB$5,0)) -> 2025-04-01 | U3: =INDEX(Inputs!$O3:$BB3,MATCH('Costs & Revenue'!U$5,Inputs!$O$5:$BB$5,0)) -> 2026-04-01 | V3: =INDEX(Inputs!$O3:$BB3,MATCH('Costs & Revenue'!V$5,Inputs!$O$5:$BB$5,0)) -> 2027-04-01 | W3: =INDEX(Inputs!$O3:$BB3,MATCH('Costs & Revenue'!W$5,Inputs!$O$5:$BB$5,0)) -> 2028-04-01 | X3: =INDEX(Inputs!$O3:$BB3,MATCH('Costs & Revenue'!X$5,Inputs!$O$5:$BB$5,0)) -> 2029-04-01 | Y3: =INDEX(Inputs!$O3:$BB3,MATCH('Costs & Revenue'!Y$5,Inputs!$O$5:$BB$5,0)) -> 2030-04-01 | Z3: =INDEX(Inputs!$O3:$BB3,MATCH('Costs & Revenue'!Z$5,Inputs!$O$5:$BB$5,0)) -> 2031-04-01 | AA3: =INDEX(Inputs!$O3:$BB3,MATCH('Costs & Revenue'!AA$5,Inputs!$O$5:$BB$5,0)) -> 2032-04-01 | AB3: =INDEX(Inputs!$O3:$BB3,MATCH('Costs & Revenue'!AB$5,Inputs!$O$5:$BB$5,0)) -> 2033-04-01 | AC3: =INDEX(Inputs!$O3:$BB3,MATCH('Costs & Revenue'!AC$5,Inputs!$O$5:$BB$5,0)) -> 2034-04-01 | AD3: =INDEX(Inputs!$O3:$BB3,MATCH('Costs & Revenue'!AD$5,Inputs!$O$5:$BB$5,0)) -> 2035-04-01 | AE3: =INDEX(Inputs!$O3:$BB3,MATCH('Costs & Revenue'!AE$5,Inputs!$O$5:$BB$5,0)) -> 2036-04-01 | AF3: =INDEX(Inputs!$O3:$BB3,MATCH('Costs & Revenue'!AF$5,Inputs!$O$5:$BB$5,0)) -> 2037-04-01 | AG3: =INDEX(Inputs!$O3:$BB3,MATCH('Costs & Revenue'!AG$5,Inputs!$O$5:$BB$5,0)) -> 2038-04-01 | AH3: =INDEX(Inputs!$O3:$BB3,MATCH('Costs & Revenue'!AH$5,Inputs!$O$5:$BB$5,0)) -> 2039-04-01 | AI3: =INDEX(Inputs!$O3:$BB3,MATCH('Costs & Revenue'!AI$5,Inputs!$O$5:$BB$5,0)) -> 2040-04-01 | AJ3: =INDEX(Inputs!$O3:$BB3,MATCH('Costs & Revenue'!AJ$5,Inputs!$O$5:$BB$5,0)) -> 2041-04-01 | AK3: =INDEX(Inputs!$O3:$BB3,MATCH('Costs & Revenue'!AK$5,Inputs!$O$5:$BB$5,0)) -> 2042-04-01 | AL3: =INDEX(Inputs!$O3:$BB3,MATCH('Costs & Revenue'!AL$5,Inputs!$O$5:$BB$5,0)) -> 2043-04-01 | AM3: =INDEX(Inputs!$O3:$BB3,MATCH('Costs & Revenue'!AM$5,Inputs!$O$5:$BB$5,0)) -> 2044-04-01 | AN3: =INDEX(Inputs!$O3:$BB3,MATCH('Costs & Revenue'!AN$5,Inputs!$O$5:$BB$5,0)) -> 2045-04-01 | AO3: =INDEX(Inputs!$O3:$BB3,MATCH('Costs & Revenue'!AO$5,Inputs!$O$5:$BB$5,0)) -> 2046-04-01 | AP3: =INDEX(Inputs!$O3:$BB3,MATCH('Costs & Revenue'!AP$5,Inputs!$O$5:$BB$5,0)) -> 2047-04-01 | AQ3: =INDEX(Inputs!$O3:$BB3,MATCH('Costs & Revenue'!AQ$5,Inputs!$O$5:$BB$5,0)) -> 2048-04-01 | AR3: =INDEX(Inputs!$O3:$BB3,MATCH('Costs & Revenue'!AR$5,Inputs!$O$5:$BB$5,0)) -> 2049-04-01 | AS3: =INDEX(Inputs!$O3:$BB3,MATCH('Costs & Revenue'!AS$5,Inputs!$O$5:$BB$5,0)) -> 2050-04-01 | AT3: =INDEX(Inputs!$O3:$BB3,MATCH('Costs & Revenue'!AT$5,Inputs!$O$5:$BB$5,0)) -> 2051-04-01 | AU3: =INDEX(Inputs!$O3:$BB3,MATCH('Costs & Revenue'!AU$5,Inputs!$O$5:$BB$5,0)) -> 2052-04-01 | AV3: =INDEX(Inputs!$O3:$BB3,MATCH('Costs & Revenue'!AV$5,Inputs!$O$5:$BB$5,0)) -> 2053-04-01 | AW3: =INDEX(Inputs!$O3:$BB3,MATCH('Costs & Revenue'!AW$5,Inputs!$O$5:$BB$5,0)) -> 2054-04-01 | AX3: =INDEX(Inputs!$O3:$BB3,MATCH('Costs & Revenue'!AX$5,Inputs!$O$5:$BB$5,0)) -> 2055-04-01 | AY3: =INDEX(Inputs!$O3:$BB3,MATCH('Costs & Revenue'!AY$5,Inputs!$O$5:$BB$5,0)) -> 2056-04-01 | AZ3: =INDEX(Inputs!$O3:$BB3,MATCH('Costs & Revenue'!AZ$5,Inputs!$O$5:$BB$5,0)) -> 2057-04-01 | BA3: =INDEX(Inputs!$O3:$BB3,MATCH('Costs & Revenue'!BA$5,Inputs!$O$5:$BB$5,0)) -> 2058-04-01 | BB3: =INDEX(Inputs!$O3:$BB3,MATCH('Costs & Revenue'!BB$5,Inputs!$O$5:$BB$5,0)) -> 2059-04-01
E4: Year ending | O4: =INDEX(Inputs!$O4:$BB4,MATCH('Costs & Revenue'!O$5,Inputs!$O$5:$BB$5,0)) -> 2021-03-31 | P4: =INDEX(Inputs!$O4:$BB4,MATCH('Costs & Revenue'!P$5,Inputs!$O$5:$BB$5,0)) -> 2022-03-31 | Q4: =INDEX(Inputs!$O4:$BB4,MATCH('Costs & Revenue'!Q$5,Inputs!$O$5:$BB$5,0)) -> 2023-03-31 | R4: =INDEX(Inputs!$O4:$BB4,MATCH('Costs & Revenue'!R$5,Inputs!$O$5:$BB$5,0)) -> 2024-03-31 | S4: =INDEX(Inputs!$O4:$BB4,MATCH('Costs & Revenue'!S$5,Inputs!$O$5:$BB$5,0)) -> 2025-03-31 | T4: =INDEX(Inputs!$O4:$BB4,MATCH('Costs & Revenue'!T$5,Inputs!$O$5:$BB$5,0)) -> 2026-03-31 | U4: =INDEX(Inputs!$O4:$BB4,MATCH('Costs & Revenue'!U$5,Inputs!$O$5:$BB$5,0)) -> 2027-03-31 | V4: =INDEX(Inputs!$O4:$BB4,MATCH('Costs & Revenue'!V$5,Inputs!$O$5:$BB$5,0)) -> 2028-03-31 | W4: =INDEX(Inputs!$O4:$BB4,MATCH('Costs & Revenue'!W$5,Inputs!$O$5:$BB$5,0)) -> 2029-03-31 | X4: =INDEX(Inputs!$O4:$BB4,MATCH('Costs & Revenue'!X$5,Inputs!$O$5:$BB$5,0)) -> 2030-03-31 | Y4: =INDEX(Inputs!$O4:$BB4,MATCH('Costs & Revenue'!Y$5,Inputs!$O$5:$BB$5,0)) -> 2031-03-31 | Z4: =INDEX(Inputs!$O4:$BB4,MATCH('Costs & Revenue'!Z$5,Inputs!$O$5:$BB$5,0)) -> 2032-03-31 | AA4: =INDEX(Inputs!$O4:$BB4,MATCH('Costs & Revenue'!AA$5,Inputs!$O$5:$BB$5,0)) -> 2033-03-31 | AB4: =INDEX(Inputs!$O4:$BB4,MATCH('Costs & Revenue'!AB$5,Inputs!$O$5:$BB$5,0)) -> 2034-03-31 | AC4: =INDEX(Inputs!$O4:$BB4,MATCH('Costs & Revenue'!AC$5,Inputs!$O$5:$BB$5,0)) -> 2035-03-31 | AD4: =INDEX(Inputs!$O4:$BB4,MATCH('Costs & Revenue'!AD$5,Inputs!$O$5:$BB$5,0)) -> 2036-03-31 | AE4: =INDEX(Inputs!$O4:$BB4,MATCH('Costs & Revenue'!AE$5,Inputs!$O$5:$BB$5,0)) -> 2037-03-31 | AF4: =INDEX(Inputs!$O4:$BB4,MATCH('Costs & Revenue'!AF$5,Inputs!$O$5:$BB$5,0)) -> 2038-03-31 | AG4: =INDEX(Inputs!$O4:$BB4,MATCH('Costs & Revenue'!AG$5,Inputs!$O$5:$BB$5,0)) -> 2039-03-31 | AH4: =INDEX(Inputs!$O4:$BB4,MATCH('Costs & Revenue'!AH$5,Inputs!$O$5:$BB$5,0)) -> 2040-03-31 | AI4: =INDEX(Inputs!$O4:$BB4,MATCH('Costs & Revenue'!AI$5,Inputs!$O$5:$BB$5,0)) -> 2041-03-31 | AJ4: =INDEX(Inputs!$O4:$BB4,MATCH('Costs & Revenue'!AJ$5,Inputs!$O$5:$BB$5,0)) -> 2042-03-31 | AK4: =INDEX(Inputs!$O4:$BB4,MATCH('Costs & Revenue'!AK$5,Inputs!$O$5:$BB$5,0)) -> 2043-03-31 | AL4: =INDEX(Inputs!$O4:$BB4,MATCH('Costs & Revenue'!AL$5,Inputs!$O$5:$BB$5,0)) -> 2044-03-31 | AM4: =INDEX(Inputs!$O4:$BB4,MATCH('Costs & Revenue'!AM$5,Inputs!$O$5:$BB$5,0)) -> 2045-03-31 | AN4: =INDEX(Inputs!$O4:$BB4,MATCH('Costs & Revenue'!AN$5,Inputs!$O$5:$BB$5,0)) -> 2046-03-31 | AO4: =INDEX(Inputs!$O4:$BB4,MATCH('Costs & Revenue'!AO$5,Inputs!$O$5:$BB$5,0)) -> 2047-03-31 | AP4: =INDEX(Inputs!$O4:$BB4,MATCH('Costs & Revenue'!AP$5,Inputs!$O$5:$BB$5,0)) -> 2048-03-31 | AQ4: =INDEX(Inputs!$O4:$BB4,MATCH('Costs & Revenue'!AQ$5,Inputs!$O$5:$BB$5,0)) -> 2049-03-31 | AR4: =INDEX(Inputs!$O4:$BB4,MATCH('Costs & Revenue'!AR$5,Inputs!$O$5:$BB$5,0)) -> 2050-03-31 | AS4: =INDEX(Inputs!$O4:$BB4,MATCH('Costs & Revenue'!AS$5,Inputs!$O$5:$BB$5,0)) -> 2051-03-31 | AT4: =INDEX(Inputs!$O4:$BB4,MATCH('Costs & Revenue'!AT$5,Inputs!$O$5:$BB$5,0)) -> 2052-03-31 | AU4: =INDEX(Inputs!$O4:$BB4,MATCH('Costs & Revenue'!AU$5,Inputs!$O$5:$BB$5,0)) -> 2053-03-31 | AV4: =INDEX(Inputs!$O4:$BB4,MATCH('Costs & Revenue'!AV$5,Inputs!$O$5:$BB$5,0)) -> 2054-03-31 | AW4: =INDEX(Inputs!$O4:$BB4,MATCH('Costs & Revenue'!AW$5,Inputs!$O$5:$BB$5,0)) -> 2055-03-31 | AX4: =INDEX(Inputs!$O4:$BB4,MATCH('Costs & Revenue'!AX$5,Inputs!$O$5:$BB$5,0)) -> 2056-03-31 | AY4: =INDEX(Inputs!$O4:$BB4,MATCH('Costs & Revenue'!AY$5,Inputs!$O$5:$BB$5,0)) -> 2057-03-31 | AZ4: =INDEX(Inputs!$O4:$BB4,MATCH('Costs & Revenue'!AZ$5,Inputs!$O$5:$BB$5,0)) -> 2058-03-31 | BA4: =INDEX(Inputs!$O4:$BB4,MATCH('Costs & Revenue'!BA$5,Inputs!$O$5:$BB$5,0)) -> 2059-03-31 | BB4: =INDEX(Inputs!$O4:$BB4,MATCH('Costs & Revenue'!BB$5,Inputs!$O$5:$BB$5,0)) -> 2060-03-31
E5: Operational year | O5: =Inputs!O5 -> 0 | P5: =Inputs!P5 -> 1 | Q5: =Inputs!Q5 -> 2 | R5: =Inputs!R5 -> 3 | S5: =Inputs!S5 -> 4 | T5: =Inputs!T5 -> 5 | U5: =Inputs!U5 -> 6 | V5: =Inputs!V5 -> 7 | W5: =Inputs!W5 -> 8 | X5: =Inputs!X5 -> 9 | Y5: =Inputs!Y5 -> 10 | Z5: =Inputs!Z5 -> 11 | AA5: =Inputs!AA5 -> 12 | AB5: =Inputs!AB5 -> 13 | AC5: =Inputs!AC5 -> 14 | AD5: =Inputs!AD5 -> 15 | AE5: =Inputs!AE5 -> 16 | AF5: =Inputs!AF5 -> 17 | AG5: =Inputs!AG5 -> 18 | AH5: =Inputs!AH5 -> 19 | AI5: =Inputs!AI5 -> 20 | AJ5: =Inputs!AJ5 -> 21 | AK5: =Inputs!AK5 -> 22 | AL5: =Inputs!AL5 -> 23 | AM5: =Inputs!AM5 -> 24 | AN5: =Inputs!AN5 -> 25 | AO5: =Inputs!AO5 -> 26 | AP5: =Inputs!AP5 -> 27 | AQ5: =Inputs!AQ5 -> 28 | AR5: =Inputs!AR5 -> 29 | AS5: =Inputs!AS5 -> 30 | AT5: =Inputs!AT5 -> 31 | AU5: =Inputs!AU5 -> 32 | AV5: =Inputs!AV5 -> 33 | AW5: =Inputs!AW5 -> 34 | AX5: =Inputs!AX5 -> 35 | AY5: =Inputs!AY5 -> 36 | AZ5: =Inputs!AZ5 -> 37 | BA5: =Inputs!BA5 -> 38 | BB5: =Inputs!BB5 -> 39
B7: Indexation
C9: RPI indexation
E11: Indexation factor | G11: scalar | H11: RPIt | O11: =INDEX(Inputs!$O$145:$BB$145,MATCH(Indexation!O5,Inputs!$O$5:$BB$5,0)) -> 1.133881682 | P11: =INDEX(Inputs!$O$145:$BB$145,MATCH(Indexation!P5,Inputs!$O$5:$BB$5,0)) -> 1.199377001 | Q11: =INDEX(Inputs!$O$145:$BB$145,MATCH(Indexation!Q5,Inputs!$O$5:$BB$5,0)) -> 1.231880118 | R11: =INDEX(Inputs!$O$145:$BB$145,MATCH(Indexation!R5,Inputs!$O$5:$BB$5,0)) -> 1.265264069 | S11: =INDEX(Inputs!$O$145:$BB$145,MATCH(Indexation!S5,Inputs!$O$5:$BB$5,0)) -> 1.299552725 | T11: =INDEX(Inputs!$O$145:$BB$145,MATCH(Indexation!T5,Inputs!$O$5:$BB$5,0)) -> 1.334770604 | U11: =INDEX(Inputs!$O$145:$BB$145,MATCH(Indexation!U5,Inputs!$O$5:$BB$5,0)) -> 1.370942887 | V11: =INDEX(Inputs!$O$145:$BB$145,MATCH(Indexation!V5,Inputs!$O$5:$BB$5,0)) -> 1.40809544 | W11: =INDEX(Inputs!$O$145:$BB$145,MATCH(Indexation!W5,Inputs!$O$5:$BB$5,0)) -> 1.446254826 | X11: =INDEX(Inputs!$O$145:$BB$145,MATCH(Indexation!X5,Inputs!$O$5:$BB$5,0)) -> 1.485448332 | Y11: =INDEX(Inputs!$O$145:$BB$145,MATCH(Indexation!Y5,Inputs!$O$5:$BB$5,0)) -> 1.525703982 | Z11: =INDEX(Inputs!$O$145:$BB$145,MATCH(Indexation!Z5,Inputs!$O$5:$BB$5,0)) -> 1.56705056 | AA11: =INDEX(Inputs!$O$145:$BB$145,MATCH(Indexation!AA5,Inputs!$O$5:$BB$5,0)) -> 1.60951763 | AB11: =INDEX(Inputs!$O$145:$BB$145,MATCH(Indexation!AB5,Inputs!$O$5:$BB$5,0)) -> 1.653135558 | AC11: =INDEX(Inputs!$O$145:$BB$145,MATCH(Indexation!AC5,Inputs!$O$5:$BB$5,0)) -> 1.697935531 | AD11: =INDEX(Inputs!$O$145:$BB$145,MATCH(Indexation!AD5,Inputs!$O$5:$BB$5,0)) -> 1.743949584 | AE11: =INDEX(Inputs!$O$145:$BB$145,MATCH(Indexation!AE5,Inputs!$O$5:$BB$5,0)) -> 1.791210618 | AF11: =INDEX(Inputs!$O$145:$BB$145,MATCH(Indexation!AF5,Inputs!$O$5:$BB$5,0)) -> 1.839752426 | AG11: =INDEX(Inputs!$O$145:$BB$145,MATCH(Indexation!AG5,Inputs!$O$5:$BB$5,0)) -> 1.889609716 | AH11: =INDEX(Inputs!$O$145:$BB$145,MATCH(Indexation!AH5,Inputs!$O$5:$BB$5,0)) -> 1.94081814 | AI11: =INDEX(Inputs!$O$145:$BB$145,MATCH(Indexation!AI5,Inputs!$O$5:$BB$5,0)) -> 1.993414311 | AJ11: =INDEX(Inputs!$O$145:$BB$145,MATCH(Indexation!AJ5,Inputs!$O$5:$BB$5,0)) -> 2.047435839 | AK11: =INDEX(Inputs!$O$145:$BB$145,MATCH(Indexation!AK5,Inputs!$O$5:$BB$5,0)) -> 2.10292135 | AL11: =INDEX(Inputs!$O$145:$BB$145,MATCH(Indexation!AL5,Inputs!$O$5:$BB$5,0)) -> 2.159910519 | AM11: =INDEX(Inputs!$O$145:$BB$145,MATCH(Indexation!AM5,Inputs!$O$5:$BB$5,0)) -> 2.218444094 | AN11: =INDEX(Inputs!$O$145:$BB$145,MATCH(Indexation!AN5,Inputs!$O$5:$BB$5,0)) -> 2.278563929 | AO11: =INDEX(Inputs!$O$145:$BB$145,MATCH(Indexation!AO5,Inputs!$O$5:$BB$5,0)) -> 2.340313011 | AP11: =INDEX(Inputs!$O$145:$BB$145,MATCH(Indexation!AP5,Inputs!$O$5:$BB$5,0)) -> 2.403735494 | AQ11: =INDEX(Inputs!$O$145:$BB$145,MATCH(Indexation!AQ5,Inputs!$O$5:$BB$5,0)) -> 2.468876726 | AR11: =INDEX(Inputs!$O$145:$BB$145,MATCH(Indexation!AR5,Inputs!$O$5:$BB$5,0)) -> 2.913261562 | AS11: =INDEX(Inputs!$O$145:$BB$145,MATCH(Indexation!AS5,Inputs!$O$5:$BB$5,0)) -> 3.007651237 | AT11: =INDEX(Inputs!$O$145:$BB$145,MATCH(Indexation!AT5,Inputs!$O$5:$BB$5,0)) -> 3.105099137 | AU11: =INDEX(Inputs!$O$145:$BB$145,MATCH(Indexation!AU5,Inputs!$O$5:$BB$5,0)) -> 3.205704349 | AV11: =INDEX(Inputs!$O$145:$BB$145,MATCH(Indexation!AV5,Inputs!$O$5:$BB$5,0)) -> 3.30956917 | AW11: =INDEX(Inputs!$O$145:$BB$145,MATCH(Indexation!AW5,Inputs!$O$5:$BB$5,0)) -> 3.416799211 | AX11: =INDEX(Inputs!$O$145:$BB$145,MATCH(Indexation!AX5,Inputs!$O$5:$BB$5,0)) -> 3.527503505 | AY11: =INDEX(Inputs!$O$145:$BB$145,MATCH(Indexation!AY5,Inputs!$O$5:$BB$5,0)) -> 3.641794619 | AZ11: =INDEX(Inputs!$O$145:$BB$145,MATCH(Indexation!AZ5,Inputs!$O$5:$BB$5,0)) -> 3.759788764 | BA11: =INDEX(Inputs!$O$145:$BB$145,MATCH(Indexation!BA5,Inputs!$O$5:$BB$5,0)) -> 3.88160592 | BB11: =INDEX(Inputs!$O$145:$BB$145,MATCH(Indexation!BB5,Inputs!$O$5:$BB$5,0)) -> 4.007369952
C13: Indexed annuity (pre-availability incentive)
E15: Preliminary Cap | G15: =base_year -> £m 15/16 prices | H15: PCL | I15: =Prel_Cap -> 89.848311
E16: Preliminary Floor | G16: £m 15/16 prices | H16: PFL | I16: =Prel_Floor -> 50.896819
E17: PCA adjustment to Cap | G17: £m 15/16 prices | H17: PCAC | I17: =PCAC_Adj -> 3.472855625
E18: PCA adjustment to Floor | G18: £m 15/16 prices | H18: PCAF | I18: =PCAF_Adj -> 8.360200553
E19: ORA adjustment to Cap | G19: £m 15/16 prices | H19: ORAC | I19: =ORAC_Adj -> -23.81037948
E20: ORA adjustment to Floor | G20: £m 15/16 prices | H20: ORAF | I20: =ORAF_Adj -> -23.93251481
E21: Latest DC adjustment to Cap | G21: £m 15/16 prices | H21: DCCt | I21: =DCC_Adj_Latest -> -29.09415454
E22: Latest DC adjustment to Floor | G22: £m 15/16 prices | H22: DCFt | I22: =DCF_Adj_Latest -> -29.09415454
E23: First DC adjustment to Cap | G23: £m 15/16 prices | H23: DCCt | I23: =DCC_Adj_1st -> 0
E24: First DC adjustment to Floor | G24: £m 15/16 prices | H24: DCFt | I24: =DCF_Adj_1st -> 0
E25: Second DC adjustment to Cap | G25: £m 15/16 prices | H25: DCCt | I25: =DCC_Adj_2nd -> 0
E26: Second DC adjustment to Floor | G26: £m 15/16 prices | H26: DCFt | I26: =DCF_Adj_2nd -> 0
E27: Third DC adjustment to Cap | G27: £m 15/16 prices | H27: DCCt | I27: =DCC_Adj_3rd -> 0
E28: Third DC adjustment to Floor | G28: £m 15/16 prices | H28: DCFt | I28: =DCF_Adj_3rd -> 0
E29: Fourth DC adjustment to Cap | G29: £m 15/16 prices | H29: DCCt | I29: =DCC_Adj_4th -> 0
E30: Fourth DC adjustment to Floor | G30: £m 15/16 prices | H30: DCFt | I30: =DCF_Adj_4th -> 0
E32: Preliminary Cap (pre-availability incentive) | G32: £m nominal prices | P32: =IF(P$5<=op_years,$I15 * P$11,0) -> 107.7619978 | Q32: 110.6823479 | R32: 113.6818396 | S32: 116.7626174 | T32: 119.9268844 | U32: 123.1769029 | V32: 126.514997 | W32: 129.9435534 | X32: 133.4650237 | Y32: 137.0819258 | Z32: 140.796846 | AA32: 144.6124406 | AB32: 148.5314377 | AC32: 152.5566397 | AD32: 156.6909246 | AE32: 160.9372487 | AF32: 165.2986481 | AG32: 169.7782415 | AH32: 174.3792318 | AI32: 179.104909 | AJ32: 183.958652 | AK32: 188.9439315 | AL32: 194.064312 | AM32: 199.3234549 | AN32: 204.7251205 | AO32: 0 | AP32: 0 | AQ32: 0 | AR32: 0 | AS32: 0 | AT32: 0 | AU32: 0 | AV32: 0 | AW32: 0 | AX32: 0 | AY32: 0 | AZ32: 0 | BA32: 0 | BB32: 0
E33: Preliminary Floor (pre-availability incentive) | G33: £m nominal prices | P33: =IF(P$5<=op_years,$I16 * P$11,0) -> 61.04447414 | Q33: 62.69877939 | R33: 64.39791631 | S33: 66.14309984 | T33: 67.93557784 | U33: 69.776632 | V33: 71.66757873 | W33: 73.60977012 | X33: 75.60459489 | Y33: 77.65347941 | Z33: 79.7578887 | AA33: 81.91932748 | AB33: 84.13934126 | AC33: 86.41951741 | AD33: 88.76148633 | AE33: 91.16692261 | AF33: 93.63754621 | AG33: 96.17512371 | AH33: 98.78146956 | AI33: 101.4584474 | AJ33: 104.2079713 | AK33: 107.0320073 | AL33: 109.9325747 | AM33: 112.9117475 | AN33: 115.9716559 | AO33: 0 | AP33: 0 | AQ33: 0 | AR33: 0 | AS33: 0 | AT33: 0 | AU33: 0 | AV33: 0 | AW33: 0 | AX33: 0 | AY33: 0 | AZ33: 0 | BA33: 0 | BB33: 0
E35: Apply PCA adjustment factor? | G35: flag | I35: =IF(Inputs!I152="Yes",1,0) -> 1
E36: PCAC adjustment factor | G36: flag | P36: =INDEX(Inputs!$P$153:$BB$153,MATCH('Costs & Revenue'!P$5,Inputs!$P$5:$BB$5,0)) -> 1.245722108 | Q36: =INDEX(Inputs!$P$153:$BB$153,MATCH('Costs & Revenue'!Q$5,Inputs!$P$5:$BB$5,0)) -> 1 | R36: =INDEX(Inputs!$P$153:$BB$153,MATCH('Costs & Revenue'!R$5,Inputs!$P$5:$BB$5,0)) -> 1 | S36: =INDEX(Inputs!$P$153:$BB$153,MATCH('Costs & Revenue'!S$5,Inputs!$P$5:$BB$5,0)) -> 1 | T36: =INDEX(Inputs!$P$153:$BB$153,MATCH('Costs & Revenue'!T$5,Inputs!$P$5:$BB$5,0)) -> 1 | U36: =INDEX(Inputs!$P$153:$BB$153,MATCH('Costs & Revenue'!U$5,Inputs!$P$5:$BB$5,0)) -> 1 | V36: =INDEX(Inputs!$P$153:$BB$153,MATCH('Costs & Revenue'!V$5,Inputs!$P$5:$BB$5,0)) -> 1 | W36: =INDEX(Inputs!$P$153:$BB$153,MATCH('Costs & Revenue'!W$5,Inputs!$P$5:$BB$5,0)) -> 1 | X36: =INDEX(Inputs!$P$153:$BB$153,MATCH('Costs & Revenue'!X$5,Inputs!$P$5:$BB$5,0)) -> 1 | Y36: =INDEX(Inputs!$P$153:$BB$153,MATCH('Costs & Revenue'!Y$5,Inputs!$P$5:$BB$5,0)) -> 1 | Z36: =INDEX(Inputs!$P$153:$BB$153,MATCH('Costs & Revenue'!Z$5,Inputs!$P$5:$BB$5,0)) -> 1 | AA36: =INDEX(Inputs!$P$153:$BB$153,MATCH('Costs & Revenue'!AA$5,Inputs!$P$5:$BB$5,0)) -> 1 | AB36: =INDEX(Inputs!$P$153:$BB$153,MATCH('Costs & Revenue'!AB$5,Inputs!$P$5:$BB$5,0)) -> 1 | AC36: =INDEX(Inputs!$P$153:$BB$153,MATCH('Costs & Revenue'!AC$5,Inputs!$P$5:$BB$5,0)) -> 1 | AD36: =INDEX(Inputs!$P$153:$BB$153,MATCH('Costs & Revenue'!AD$5,Inputs!$P$5:$BB$5,0)) -> 1 | AE36: =INDEX(Inputs!$P$153:$BB$153,MATCH('Costs & Revenue'!AE$5,Inputs!$P$5:$BB$5,0)) -> 1 | AF36: =INDEX(Inputs!$P$153:$BB$153,MATCH('Costs & Revenue'!AF$5,Inputs!$P$5:$BB$5,0)) -> 1 | AG36: =INDEX(Inputs!$P$153:$BB$153,MATCH('Costs & Revenue'!AG$5,Inputs!$P$5:$BB$5,0)) -> 1 | AH36: =INDEX(Inputs!$P$153:$BB$153,MATCH('Costs & Revenue'!AH$5,Inputs!$P$5:$BB$5,0)) -> 1 | AI36: =INDEX(Inputs!$P$153:$BB$153,MATCH('Costs & Revenue'!AI$5,Inputs!$P$5:$BB$5,0)) -> 1 | AJ36: =INDEX(Inputs!$P$153:$BB$153,MATCH('Costs & Revenue'!AJ$5,Inputs!$P$5:$BB$5,0)) -> 1 | AK36: =INDEX(Inputs!$P$153:$BB$153,MATCH('Costs & Revenue'!AK$5,Inputs!$P$5:$BB$5,0)) -> 1 | AL36: =INDEX(Inputs!$P$153:$BB$153,MATCH('Costs & Revenue'!AL$5,Inputs!$P$5:$BB$5,0)) -> 1 | AM36: =INDEX(Inputs!$P$153:$BB$153,MATCH('Costs & Revenue'!AM$5,Inputs!$P$5:$BB$5,0)) -> 1 | AN36: =INDEX(Inputs!$P$153:$BB$153,MATCH('Costs & Revenue'!AN$5,Inputs!$P$5:$BB$5,0)) -> 0.7542778919 | AO36: =INDEX(Inputs!$P$153:$BB$153,MATCH('Costs & Revenue'!AO$5,Inputs!$P$5:$BB$5,0)) -> 0 | AP36: =INDEX(Inputs!$P$153:$BB$153,MATCH('Costs & Revenue'!AP$5,Inputs!$P$5:$BB$5,0)) -> 0 | AQ36: =INDEX(Inputs!$P$153:$BB$153,MATCH('Costs & Revenue'!AQ$5,Inputs!$P$5:$BB$5,0)) -> 0 | AR36: =INDEX(Inputs!$P$153:$BB$153,MATCH('Costs & Revenue'!AR$5,Inputs!$P$5:$BB$5,0)) -> 0 | AS36: =INDEX(Inputs!$P$153:$BB$153,MATCH('Costs & Revenue'!AS$5,Inputs!$P$5:$BB$5,0)) -> 0 | AT36: =INDEX(Inputs!$P$153:$BB$153,MATCH('Costs & Revenue'!AT$5,Inputs!$P$5:$BB$5,0)) -> 0 | AU36: =INDEX(Inputs!$P$153:$BB$153,MATCH('Costs & Revenue'!AU$5,Inputs!$P$5:$BB$5,0)) -> 0 | AV36: =INDEX(Inputs!$P$153:$BB$153,MATCH('Costs & Revenue'!AV$5,Inputs!$P$5:$BB$5,0)) -> 0 | AW36: =INDEX(Inputs!$P$153:$BB$153,MATCH('Costs & Revenue'!AW$5,Inputs!$P$5:$BB$5,0)) -> 0 | AX36: =INDEX(Inputs!$P$153:$BB$153,MATCH('Costs & Revenue'!AX$5,Inputs!$P$5:$BB$5,0)) -> 0 | AY36: =INDEX(Inputs!$P$153:$BB$153,MATCH('Costs & Revenue'!AY$5,Inputs!$P$5:$BB$5,0)) -> 0 | AZ36: =INDEX(Inputs!$P$153:$BB$153,MATCH('Costs & Revenue'!AZ$5,Inputs!$P$5:$BB$5,0)) -> 0 | BA36: =INDEX(Inputs!$P$153:$BB$153,MATCH('Costs & Revenue'!BA$5,Inputs!$P$5:$BB$5,0)) -> 0 | BB36: =INDEX(Inputs!$P$153:$BB$153,MATCH('Costs & Revenue'!BB$5,Inputs!$P$5:$BB$5,0)) -> 0
E37: PCAF adjustment factor | G37: flag | P37: =INDEX(Inputs!$P$154:$BB$154,MATCH('Costs & Revenue'!P$5,Inputs!$P$5:$BB$5,0)) -> 0 | Q37: =INDEX(Inputs!$P$154:$BB$154,MATCH('Costs & Revenue'!Q$5,Inputs!$P$5:$BB$5,0)) -> 0.5995893224 | R37: =INDEX(Inputs!$P$154:$BB$154,MATCH('Costs & Revenue'!R$5,Inputs!$P$5:$BB$5,0)) -> 1 | S37: =INDEX(Inputs!$P$154:$BB$154,MATCH('Costs & Revenue'!S$5,Inputs!$P$5:$BB$5,0)) -> 1 | T37: =INDEX(Inputs!$P$154:$BB$154,MATCH('Costs & Revenue'!T$5,Inputs!$P$5:$BB$5,0)) -> 1 | U37: =INDEX(Inputs!$P$154:$BB$154,MATCH('Costs & Revenue'!U$5,Inputs!$P$5:$BB$5,0)) -> 1 | V37: =INDEX(Inputs!$P$154:$BB$154,MATCH('Costs & Revenue'!V$5,Inputs!$P$5:$BB$5,0)) -> 1 | W37: =INDEX(Inputs!$P$154:$BB$154,MATCH('Costs & Revenue'!W$5,Inputs!$P$5:$BB$5,0)) -> 1 | X37: =INDEX(Inputs!$P$154:$BB$154,MATCH('Costs & Revenue'!X$5,Inputs!$P$5:$BB$5,0)) -> 1 | Y37: =INDEX(Inputs!$P$154:$BB$154,MATCH('Costs & Revenue'!Y$5,Inputs!$P$5:$BB$5,0)) -> 1 | Z37: =INDEX(Inputs!$P$154:$BB$154,MATCH('Costs & Revenue'!Z$5,Inputs!$P$5:$BB$5,0)) -> 1 | AA37: =INDEX(Inputs!$P$154:$BB$154,MATCH('Costs & Revenue'!AA$5,Inputs!$P$5:$BB$5,0)) -> 1 | AB37: =INDEX(Inputs!$P$154:$BB$154,MATCH('Costs & Revenue'!AB$5,Inputs!$P$5:$BB$5,0)) -> 1 | AC37: =INDEX(Inputs!$P$154:$BB$154,MATCH('Costs & Revenue'!AC$5,Inputs!$P$5:$BB$5,0)) -> 1 | AD37: =INDEX(Inputs!$P$154:$BB$154,MATCH('Costs & Revenue'!AD$5,Inputs!$P$5:$BB$5,0)) -> 1 | AE37: =INDEX(Inputs!$P$154:$BB$154,MATCH('Costs & Revenue'!AE$5,Inputs!$P$5:$BB$5,0)) -> 1 | AF37: =INDEX(Inputs!$P$154:$BB$154,MATCH('Costs & Revenue'!AF$5,Inputs!$P$5:$BB$5,0)) -> 1 | AG37: =INDEX(Inputs!$P$154:$BB$154,MATCH('Costs & Revenue'!AG$5,Inputs!$P$5:$BB$5,0)) -> 1 | AH37: =INDEX(Inputs!$P$154:$BB$154,MATCH('Costs & Revenue'!AH$5,Inputs!$P$5:$BB$5,0)) -> 1 | AI37: =INDEX(Inputs!$P$154:$BB$154,MATCH('Costs & Revenue'!AI$5,Inputs!$P$5:$BB$5,0)) -> 1 | AJ37: =INDEX(Inputs!$P$154:$BB$154,MATCH('Costs & Revenue'!AJ$5,Inputs!$P$5:$BB$5,0)) -> 1 | AK37: =INDEX(Inputs!$P$154:$BB$154,MATCH('Costs & Revenue'!AK$5,Inputs!$P$5:$BB$5,0)) -> 1 | AL37: =INDEX(Inputs!$P$154:$BB$154,MATCH('Costs & Revenue'!AL$5,Inputs!$P$5:$BB$5,0)) -> 1 | AM37: =INDEX(Inputs!$P$154:$BB$154,MATCH('Costs & Revenue'!AM$5,Inputs!$P$5:$BB$5,0)) -> 1 | AN37: =INDEX(Inputs!$P$154:$BB$154,MATCH('Costs & Revenue'!AN$5,Inputs!$P$5:$BB$5,0)) -> 0.7542778919 | AO37: =INDEX(Inputs!$P$154:$BB$154,MATCH('Costs & Revenue'!AO$5,Inputs!$P$5:$BB$5,0)) -> 0 | AP37: =INDEX(Inputs!$P$154:$BB$154,MATCH('Costs & Revenue'!AP$5,Inputs!$P$5:$BB$5,0)) -> 0 | AQ37: =INDEX(Inputs!$P$154:$BB$154,MATCH('Costs & Revenue'!AQ$5,Inputs!$P$5:$BB$5,0)) -> 0 | AR37: =INDEX(Inputs!$P$154:$BB$154,MATCH('Costs & Revenue'!AR$5,Inputs!$P$5:$BB$5,0)) -> 0 | AS37: =INDEX(Inputs!$P$154:$BB$154,MATCH('Costs & Revenue'!AS$5,Inputs!$P$5:$BB$5,0)) -> 0 | AT37: =INDEX(Inputs!$P$154:$BB$154,MATCH('Costs & Revenue'!AT$5,Inputs!$P$5:$BB$5,0)) -> 0 | AU37: =INDEX(Inputs!$P$154:$BB$154,MATCH('Costs & Revenue'!AU$5,Inputs!$P$5:$BB$5,0)) -> 0 | AV37: =INDEX(Inputs!$P$154:$BB$154,MATCH('Costs & Revenue'!AV$5,Inputs!$P$5:$BB$5,0)) -> 0 | AW37: =INDEX(Inputs!$P$154:$BB$154,MATCH('Costs & Revenue'!AW$5,Inputs!$P$5:$BB$5,0)) -> 0 | AX37: =INDEX(Inputs!$P$154:$BB$154,MATCH('Costs & Revenue'!AX$5,Inputs!$P$5:$BB$5,0)) -> 0 | AY37: =INDEX(Inputs!$P$154:$BB$154,MATCH('Costs & Revenue'!AY$5,Inputs!$P$5:$BB$5,0)) -> 0 | AZ37: =INDEX(Inputs!$P$154:$BB$154,MATCH('Costs & Revenue'!AZ$5,Inputs!$P$5:$BB$5,0)) -> 0 | BA37: =INDEX(Inputs!$P$154:$BB$154,MATCH('Costs & Revenue'!BA$5,Inputs!$P$5:$BB$5,0)) -> 0 | BB37: =INDEX(Inputs!$P$154:$BB$154,MATCH('Costs & Revenue'!BB$5,Inputs!$P$5:$BB$5,0)) -> 0
E39: Apply ORA adjustment factor? | G39: flag | I39: =IF(Inputs!I158="Yes",1,0) -> 1
E40: ORAC adjustment factor | G40: flag | P40: =INDEX(Inputs!$P$161:$BB$161,MATCH('Costs & Revenue'!P$5,Inputs!$P$5:$BB$5,0)) -> 0 | Q40: =INDEX(Inputs!$P$161:$BB$161,MATCH('Costs & Revenue'!Q$5,Inputs!$P$5:$BB$5,0)) -> 0 | R40: =INDEX(Inputs!$P$161:$BB$161,MATCH('Costs & Revenue'!R$5,Inputs!$P$5:$BB$5,0)) -> 0 | S40: =INDEX(Inputs!$P$161:$BB$161,MATCH('Costs & Revenue'!S$5,Inputs!$P$5:$BB$5,0)) -> 0 | T40: =INDEX(Inputs!$P$161:$BB$161,MATCH('Costs & Revenue'!T$5,Inputs!$P$5:$BB$5,0)) -> 0 | U40: =INDEX(Inputs!$P$161:$BB$161,MATCH('Costs & Revenue'!U$5,Inputs!$P$5:$BB$5,0)) -> 0 | V40: =INDEX(Inputs!$P$161:$BB$161,MATCH('Costs & Revenue'!V$5,Inputs!$P$5:$BB$5,0)) -> 0 | W40: =INDEX(Inputs!$P$161:$BB$161,MATCH('Costs & Revenue'!W$5,Inputs!$P$5:$BB$5,0)) -> 0 | X40: =INDEX(Inputs!$P$161:$BB$161,MATCH('Costs & Revenue'!X$5,Inputs!$P$5:$BB$5,0)) -> 0 | Y40: =INDEX(Inputs!$P$161:$BB$161,MATCH('Costs & Revenue'!Y$5,Inputs!$P$5:$BB$5,0)) -> 0 | Z40: =INDEX(Inputs!$P$161:$BB$161,MATCH('Costs & Revenue'!Z$5,Inputs!$P$5:$BB$5,0)) -> 0.2491444216 | AA40: =INDEX(Inputs!$P$161:$BB$161,MATCH('Costs & Revenue'!AA$5,Inputs!$P$5:$BB$5,0)) -> 1 | AB40: =INDEX(Inputs!$P$161:$BB$161,MATCH('Costs & Revenue'!AB$5,Inputs!$P$5:$BB$5,0)) -> 1 | AC40: =INDEX(Inputs!$P$161:$BB$161,MATCH('Costs & Revenue'!AC$5,Inputs!$P$5:$BB$5,0)) -> 1 | AD40: =INDEX(Inputs!$P$161:$BB$161,MATCH('Costs & Revenue'!AD$5,Inputs!$P$5:$BB$5,0)) -> 1 | AE40: =INDEX(Inputs!$P$161:$BB$161,MATCH('Costs & Revenue'!AE$5,Inputs!$P$5:$BB$5,0)) -> 1 | AF40: =INDEX(Inputs!$P$161:$BB$161,MATCH('Costs & Revenue'!AF$5,Inputs!$P$5:$BB$5,0)) -> 1 | AG40: =INDEX(Inputs!$P$161:$BB$161,MATCH('Costs & Revenue'!AG$5,Inputs!$P$5:$BB$5,0)) -> 1 | AH40: =INDEX(Inputs!$P$161:$BB$161,MATCH('Costs & Revenue'!AH$5,Inputs!$P$5:$BB$5,0)) -> 1 | AI40: =INDEX(Inputs!$P$161:$BB$161,MATCH('Costs & Revenue'!AI$5,Inputs!$P$5:$BB$5,0)) -> 1 | AJ40: =INDEX(Inputs!$P$161:$BB$161,MATCH('Costs & Revenue'!AJ$5,Inputs!$P$5:$BB$5,0)) -> 1 | AK40: =INDEX(Inputs!$P$161:$BB$161,MATCH('Costs & Revenue'!AK$5,Inputs!$P$5:$BB$5,0)) -> 1 | AL40: =INDEX(Inputs!$P$161:$BB$161,MATCH('Costs & Revenue'!AL$5,Inputs!$P$5:$BB$5,0)) -> 1 | AM40: =INDEX(Inputs!$P$161:$BB$161,MATCH('Costs & Revenue'!AM$5,Inputs!$P$5:$BB$5,0)) -> 1 | AN40: =INDEX(Inputs!$P$161:$BB$161,MATCH('Costs & Revenue'!AN$5,Inputs!$P$5:$BB$5,0)) -> 0.7542778919 | AO40: =INDEX(Inputs!$P$161:$BB$161,MATCH('Costs & Revenue'!AO$5,Inputs!$P$5:$BB$5,0)) -> 0 | AP40: =INDEX(Inputs!$P$161:$BB$161,MATCH('Costs & Revenue'!AP$5,Inputs!$P$5:$BB$5,0)) -> 0 | AQ40: =INDEX(Inputs!$P$161:$BB$161,MATCH('Costs & Revenue'!AQ$5,Inputs!$P$5:$BB$5,0)) -> 0 | AR40: =INDEX(Inputs!$P$161:$BB$161,MATCH('Costs & Revenue'!AR$5,Inputs!$P$5:$BB$5,0)) -> 0 | AS40: =INDEX(Inputs!$P$161:$BB$161,MATCH('Costs & Revenue'!AS$5,Inputs!$P$5:$BB$5,0)) -> 0 | AT40: =INDEX(Inputs!$P$161:$BB$161,MATCH('Costs & Revenue'!AT$5,Inputs!$P$5:$BB$5,0)) -> 0 | AU40: =INDEX(Inputs!$P$161:$BB$161,MATCH('Costs & Revenue'!AU$5,Inputs!$P$5:$BB$5,0)) -> 0 | AV40: =INDEX(Inputs!$P$161:$BB$161,MATCH('Costs & Revenue'!AV$5,Inputs!$P$5:$BB$5,0)) -> 0 | AW40: =INDEX(Inputs!$P$161:$BB$161,MATCH('Costs & Revenue'!AW$5,Inputs!$P$5:$BB$5,0)) -> 0 | AX40: =INDEX(Inputs!$P$161:$BB$161,MATCH('Costs & Revenue'!AX$5,Inputs!$P$5:$BB$5,0)) -> 0 | AY40: =INDEX(Inputs!$P$161:$BB$161,MATCH('Costs & Revenue'!AY$5,Inputs!$P$5:$BB$5,0)) -> 0 | AZ40: =INDEX(Inputs!$P$161:$BB$161,MATCH('Costs & Revenue'!AZ$5,Inputs!$P$5:$BB$5,0)) -> 0 | BA40: =INDEX(Inputs!$P$161:$BB$161,MATCH('Costs & Revenue'!BA$5,Inputs!$P$5:$BB$5,0)) -> 0 | BB40: =INDEX(Inputs!$P$161:$BB$161,MATCH('Costs & Revenue'!BB$5,Inputs!$P$5:$BB$5,0)) -> 0
E41: ORAF adjustment factor | G41: flag | P41: =INDEX(Inputs!$P$162:$BB$162,MATCH('Costs & Revenue'!P$5,Inputs!$P$5:$BB$5,0)) -> 0 | Q41: =INDEX(Inputs!$P$162:$BB$162,MATCH('Costs & Revenue'!Q$5,Inputs!$P$5:$BB$5,0)) -> 0 | R41: =INDEX(Inputs!$P$162:$BB$162,MATCH('Costs & Revenue'!R$5,Inputs!$P$5:$BB$5,0)) -> 0 | S41: =INDEX(Inputs!$P$162:$BB$162,MATCH('Costs & Revenue'!S$5,Inputs!$P$5:$BB$5,0)) -> 0 | T41: =INDEX(Inputs!$P$162:$BB$162,MATCH('Costs & Revenue'!T$5,Inputs!$P$5:$BB$5,0)) -> 0 | U41: =INDEX(Inputs!$P$162:$BB$162,MATCH('Costs & Revenue'!U$5,Inputs!$P$5:$BB$5,0)) -> 0 | V41: =INDEX(Inputs!$P$162:$BB$162,MATCH('Costs & Revenue'!V$5,Inputs!$P$5:$BB$5,0)) -> 0 | W41: =INDEX(Inputs!$P$162:$BB$162,MATCH('Costs & Revenue'!W$5,Inputs!$P$5:$BB$5,0)) -> 0 | X41: =INDEX(Inputs!$P$162:$BB$162,MATCH('Costs & Revenue'!X$5,Inputs!$P$5:$BB$5,0)) -> 0 | Y41: =INDEX(Inputs!$P$162:$BB$162,MATCH('Costs & Revenue'!Y$5,Inputs!$P$5:$BB$5,0)) -> 0 | Z41: =INDEX(Inputs!$P$162:$BB$162,MATCH('Costs & Revenue'!Z$5,Inputs!$P$5:$BB$5,0)) -> 0.2491444216 | AA41: =INDEX(Inputs!$P$162:$BB$162,MATCH('Costs & Revenue'!AA$5,Inputs!$P$5:$BB$5,0)) -> 1 | AB41: =INDEX(Inputs!$P$162:$BB$162,MATCH('Costs & Revenue'!AB$5,Inputs!$P$5:$BB$5,0)) -> 1 | AC41: =INDEX(Inputs!$P$162:$BB$162,MATCH('Costs & Revenue'!AC$5,Inputs!$P$5:$BB$5,0)) -> 1 | AD41: =INDEX(Inputs!$P$162:$BB$162,MATCH('Costs & Revenue'!AD$5,Inputs!$P$5:$BB$5,0)) -> 1 | AE41: =INDEX(Inputs!$P$162:$BB$162,MATCH('Costs & Revenue'!AE$5,Inputs!$P$5:$BB$5,0)) -> 1 | AF41: =INDEX(Inputs!$P$162:$BB$162,MATCH('Costs & Revenue'!AF$5,Inputs!$P$5:$BB$5,0)) -> 1 | AG41: =INDEX(Inputs!$P$162:$BB$162,MATCH('Costs & Revenue'!AG$5,Inputs!$P$5:$BB$5,0)) -> 1 | AH41: =INDEX(Inputs!$P$162:$BB$162,MATCH('Costs & Revenue'!AH$5,Inputs!$P$5:$BB$5,0)) -> 1 | AI41: =INDEX(Inputs!$P$162:$BB$162,MATCH('Costs & Revenue'!AI$5,Inputs!$P$5:$BB$5,0)) -> 1 | AJ41: =INDEX(Inputs!$P$162:$BB$162,MATCH('Costs & Revenue'!AJ$5,Inputs!$P$5:$BB$5,0)) -> 1 | AK41: =INDEX(Inputs!$P$162:$BB$162,MATCH('Costs & Revenue'!AK$5,Inputs!$P$5:$BB$5,0)) -> 1 | AL41: =INDEX(Inputs!$P$162:$BB$162,MATCH('Costs & Revenue'!AL$5,Inputs!$P$5:$BB$5,0)) -> 1 | AM41: =INDEX(Inputs!$P$162:$BB$162,MATCH('Costs & Revenue'!AM$5,Inputs!$P$5:$BB$5,0)) -> 1 | AN41: =INDEX(Inputs!$P$162:$BB$162,MATCH('Costs & Revenue'!AN$5,Inputs!$P$5:$BB$5,0)) -> 0.7542778919 | AO41: =INDEX(Inputs!$P$162:$BB$162,MATCH('Costs & Revenue'!AO$5,Inputs!$P$5:$BB$5,0)) -> 0 | AP41: =INDEX(Inputs!$P$162:$BB$162,MATCH('Costs & Revenue'!AP$5,Inputs!$P$5:$BB$5,0)) -> 0 | AQ41: =INDEX(Inputs!$P$162:$BB$162,MATCH('Costs & Revenue'!AQ$5,Inputs!$P$5:$BB$5,0)) -> 0 | AR41: =INDEX(Inputs!$P$162:$BB$162,MATCH('Costs & Revenue'!AR$5,Inputs!$P$5:$BB$5,0)) -> 0 | AS41: =INDEX(Inputs!$P$162:$BB$162,MATCH('Costs & Revenue'!AS$5,Inputs!$P$5:$BB$5,0)) -> 0 | AT41: =INDEX(Inputs!$P$162:$BB$162,MATCH('Costs & Revenue'!AT$5,Inputs!$P$5:$BB$5,0)) -> 0 | AU41: =INDEX(Inputs!$P$162:$BB$162,MATCH('Costs & Revenue'!AU$5,Inputs!$P$5:$BB$5,0)) -> 0 | AV41: =INDEX(Inputs!$P$162:$BB$162,MATCH('Costs & Revenue'!AV$5,Inputs!$P$5:$BB$5,0)) -> 0 | AW41: =INDEX(Inputs!$P$162:$BB$162,MATCH('Costs & Revenue'!AW$5,Inputs!$P$5:$BB$5,0)) -> 0 | AX41: =INDEX(Inputs!$P$162:$BB$162,MATCH('Costs & Revenue'!AX$5,Inputs!$P$5:$BB$5,0)) -> 0 | AY41: =INDEX(Inputs!$P$162:$BB$162,MATCH('Costs & Revenue'!AY$5,Inputs!$P$5:$BB$5,0)) -> 0 | AZ41: =INDEX(Inputs!$P$162:$BB$162,MATCH('Costs & Revenue'!AZ$5,Inputs!$P$5:$BB$5,0)) -> 0 | BA41: =INDEX(Inputs!$P$162:$BB$162,MATCH('Costs & Revenue'!BA$5,Inputs!$P$5:$BB$5,0)) -> 0 | BB41: =INDEX(Inputs!$P$162:$BB$162,MATCH('Costs & Revenue'!BB$5,Inputs!$P$5:$BB$5,0)) -> 0
E43: Apply DC adjustment factor? | G43: flag | I43: =IF(Inputs!I171="Yes",1,0) -> 1
E44: Latest DCC and DCF adjustment factor | G44: flag | P44: =INDEX(Inputs!$P$176:$BB$176,MATCH('Costs & Revenue'!P$5,Inputs!$P$5:$BB$5,0)) -> 0 | Q44: =INDEX(Inputs!$P$176:$BB$176,MATCH('Costs & Revenue'!Q$5,Inputs!$P$5:$BB$5,0)) -> 0 | R44: =INDEX(Inputs!$P$176:$BB$176,MATCH('Costs & Revenue'!R$5,Inputs!$P$5:$BB$5,0)) -> 0 | S44: =INDEX(Inputs!$P$176:$BB$176,MATCH('Costs & Revenue'!S$5,Inputs!$P$5:$BB$5,0)) -> 0 | T44: =INDEX(Inputs!$P$176:$BB$176,MATCH('Costs & Revenue'!T$5,Inputs!$P$5:$BB$5,0)) -> 0 | U44: =INDEX(Inputs!$P$176:$BB$176,MATCH('Costs & Revenue'!U$5,Inputs!$P$5:$BB$5,0)) -> 0 | V44: =INDEX(Inputs!$P$176:$BB$176,MATCH('Costs & Revenue'!V$5,Inputs!$P$5:$BB$5,0)) -> 0 | W44: =INDEX(Inputs!$P$176:$BB$176,MATCH('Costs & Revenue'!W$5,Inputs!$P$5:$BB$5,0)) -> 0 | X44: =INDEX(Inputs!$P$176:$BB$176,MATCH('Costs & Revenue'!X$5,Inputs!$P$5:$BB$5,0)) -> 0 | Y44: =INDEX(Inputs!$P$176:$BB$176,MATCH('Costs & Revenue'!Y$5,Inputs!$P$5:$BB$5,0)) -> 0 | Z44: =INDEX(Inputs!$P$176:$BB$176,MATCH('Costs & Revenue'!Z$5,Inputs!$P$5:$BB$5,0)) -> 0 | AA44: =INDEX(Inputs!$P$176:$BB$176,MATCH('Costs & Revenue'!AA$5,Inputs!$P$5:$BB$5,0)) -> 0 | AB44: =INDEX(Inputs!$P$176:$BB$176,MATCH('Costs & Revenue'!AB$5,Inputs!$P$5:$BB$5,0)) -> 0 | AC44: =INDEX(Inputs!$P$176:$BB$176,MATCH('Costs & Revenue'!AC$5,Inputs!$P$5:$BB$5,0)) -> 0 | AD44: =INDEX(Inputs!$P$176:$BB$176,MATCH('Costs & Revenue'!AD$5,Inputs!$P$5:$BB$5,0)) -> 0 | AE44: =INDEX(Inputs!$P$176:$BB$176,MATCH('Costs & Revenue'!AE$5,Inputs!$P$5:$BB$5,0)) -> 0 | AF44: =INDEX(Inputs!$P$176:$BB$176,MATCH('Costs & Revenue'!AF$5,Inputs!$P$5:$BB$5,0)) -> 0 | AG44: =INDEX(Inputs!$P$176:$BB$176,MATCH('Costs & Revenue'!AG$5,Inputs!$P$5:$BB$5,0)) -> 0 | AH44: =INDEX(Inputs!$P$176:$BB$176,MATCH('Costs & Revenue'!AH$5,Inputs!$P$5:$BB$5,0)) -> 0 | AI44: =INDEX(Inputs!$P$176:$BB$176,MATCH('Costs & Revenue'!AI$5,Inputs!$P$5:$BB$5,0)) -> 0 | AJ44: =INDEX(Inputs!$P$176:$BB$176,MATCH('Costs & Revenue'!AJ$5,Inputs!$P$5:$BB$5,0)) -> 0 | AK44: =INDEX(Inputs!$P$176:$BB$176,MATCH('Costs & Revenue'!AK$5,Inputs!$P$5:$BB$5,0)) -> 0 | AL44: =INDEX(Inputs!$P$176:$BB$176,MATCH('Costs & Revenue'!AL$5,Inputs!$P$5:$BB$5,0)) -> 0 | AM44: =INDEX(Inputs!$P$176:$BB$176,MATCH('Costs & Revenue'!AM$5,Inputs!$P$5:$BB$5,0)) -> 0 | AN44: =INDEX(Inputs!$P$176:$BB$176,MATCH('Costs & Revenue'!AN$5,Inputs!$P$5:$BB$5,0)) -> 0.8323066393 | AO44: =INDEX(Inputs!$P$176:$BB$176,MATCH('Costs & Revenue'!AO$5,Inputs!$P$5:$BB$5,0)) -> 0 | AP44: =INDEX(Inputs!$P$176:$BB$176,MATCH('Costs & Revenue'!AP$5,Inputs!$P$5:$BB$5,0)) -> 0 | AQ44: =INDEX(Inputs!$P$176:$BB$176,MATCH('Costs & Revenue'!AQ$5,Inputs!$P$5:$BB$5,0)) -> 0 | AR44: =INDEX(Inputs!$P$176:$BB$176,MATCH('Costs & Revenue'!AR$5,Inputs!$P$5:$BB$5,0)) -> 0 | AS44: =INDEX(Inputs!$P$176:$BB$176,MATCH('Costs & Revenue'!AS$5,Inputs!$P$5:$BB$5,0)) -> 0 | AT44: =INDEX(Inputs!$P$176:$BB$176,MATCH('Costs & Revenue'!AT$5,Inputs!$P$5:$BB$5,0)) -> 0 | AU44: =INDEX(Inputs!$P$176:$BB$176,MATCH('Costs & Revenue'!AU$5,Inputs!$P$5:$BB$5,0)) -> 0 | AV44: =INDEX(Inputs!$P$176:$BB$176,MATCH('Costs & Revenue'!AV$5,Inputs!$P$5:$BB$5,0)) -> 0 | AW44: =INDEX(Inputs!$P$176:$BB$176,MATCH('Costs & Revenue'!AW$5,Inputs!$P$5:$BB$5,0)) -> 0 | AX44: =INDEX(Inputs!$P$176:$BB$176,MATCH('Costs & Revenue'!AX$5,Inputs!$P$5:$BB$5,0)) -> 0 | AY44: =INDEX(Inputs!$P$176:$BB$176,MATCH('Costs & Revenue'!AY$5,Inputs!$P$5:$BB$5,0)) -> 0 | AZ44: =INDEX(Inputs!$P$176:$BB$176,MATCH('Costs & Revenue'!AZ$5,Inputs!$P$5:$BB$5,0)) -> 0 | BA44: =INDEX(Inputs!$P$176:$BB$176,MATCH('Costs & Revenue'!BA$5,Inputs!$P$5:$BB$5,0)) -> 0 | BB44: =INDEX(Inputs!$P$176:$BB$176,MATCH('Costs & Revenue'!BB$5,Inputs!$P$5:$BB$5,0)) -> 0
E45: First DCC and DCF adjustment factor | G45: flag | P45: =INDEX(Inputs!$P$208:$BB$208,MATCH('Costs & Revenue'!P$5,Inputs!$P$5:$BB$5,0)) -> 0 | Q45: =INDEX(Inputs!$P$208:$BB$208,MATCH('Costs & Revenue'!Q$5,Inputs!$P$5:$BB$5,0)) -> 0 | R45: =INDEX(Inputs!$P$208:$BB$208,MATCH('Costs & Revenue'!R$5,Inputs!$P$5:$BB$5,0)) -> 0 | S45: =INDEX(Inputs!$P$208:$BB$208,MATCH('Costs & Revenue'!S$5,Inputs!$P$5:$BB$5,0)) -> 0 | T45: =INDEX(Inputs!$P$208:$BB$208,MATCH('Costs & Revenue'!T$5,Inputs!$P$5:$BB$5,0)) -> 0 | U45: =INDEX(Inputs!$P$208:$BB$208,MATCH('Costs & Revenue'!U$5,Inputs!$P$5:$BB$5,0)) -> 0 | V45: =INDEX(Inputs!$P$208:$BB$208,MATCH('Costs & Revenue'!V$5,Inputs!$P$5:$BB$5,0)) -> 0 | W45: =INDEX(Inputs!$P$208:$BB$208,MATCH('Costs & Revenue'!W$5,Inputs!$P$5:$BB$5,0)) -> 0 | X45: =INDEX(Inputs!$P$208:$BB$208,MATCH('Costs & Revenue'!X$5,Inputs!$P$5:$BB$5,0)) -> 0 | Y45: =INDEX(Inputs!$P$208:$BB$208,MATCH('Costs & Revenue'!Y$5,Inputs!$P$5:$BB$5,0)) -> 0 | Z45: =INDEX(Inputs!$P$208:$BB$208,MATCH('Costs & Revenue'!Z$5,Inputs!$P$5:$BB$5,0)) -> 0 | AA45: =INDEX(Inputs!$P$208:$BB$208,MATCH('Costs & Revenue'!AA$5,Inputs!$P$5:$BB$5,0)) -> 0 | AB45: =INDEX(Inputs!$P$208:$BB$208,MATCH('Costs & Revenue'!AB$5,Inputs!$P$5:$BB$5,0)) -> 0 | AC45: =INDEX(Inputs!$P$208:$BB$208,MATCH('Costs & Revenue'!AC$5,Inputs!$P$5:$BB$5,0)) -> 0 | AD45: =INDEX(Inputs!$P$208:$BB$208,MATCH('Costs & Revenue'!AD$5,Inputs!$P$5:$BB$5,0)) -> 0 | AE45: =INDEX(Inputs!$P$208:$BB$208,MATCH('Costs & Revenue'!AE$5,Inputs!$P$5:$BB$5,0)) -> 0 | AF45: =INDEX(Inputs!$P$208:$BB$208,MATCH('Costs & Revenue'!AF$5,Inputs!$P$5:$BB$5,0)) -> 0 | AG45: =INDEX(Inputs!$P$208:$BB$208,MATCH('Costs & Revenue'!AG$5,Inputs!$P$5:$BB$5,0)) -> 0 | AH45: =INDEX(Inputs!$P$208:$BB$208,MATCH('Costs & Revenue'!AH$5,Inputs!$P$5:$BB$5,0)) -> 0 | AI45: =INDEX(Inputs!$P$208:$BB$208,MATCH('Costs & Revenue'!AI$5,Inputs!$P$5:$BB$5,0)) -> 0.8323066393 | AJ45: =INDEX(Inputs!$P$208:$BB$208,MATCH('Costs & Revenue'!AJ$5,Inputs!$P$5:$BB$5,0)) -> 1 | AK45: =INDEX(Inputs!$P$208:$BB$208,MATCH('Costs & Revenue'!AK$5,Inputs!$P$5:$BB$5,0)) -> 1 | AL45: =INDEX(Inputs!$P$208:$BB$208,MATCH('Costs & Revenue'!AL$5,Inputs!$P$5:$BB$5,0)) -> 1 | AM45: =INDEX(Inputs!$P$208:$BB$208,MATCH('Costs & Revenue'!AM$5,Inputs!$P$5:$BB$5,0)) -> 1.163586585 | AN45: =INDEX(Inputs!$P$208:$BB$208,MATCH('Costs & Revenue'!AN$5,Inputs!$P$5:$BB$5,0)) -> 0 | AO45: =INDEX(Inputs!$P$208:$BB$208,MATCH('Costs & Revenue'!AO$5,Inputs!$P$5:$BB$5,0)) -> 0 | AP45: =INDEX(Inputs!$P$208:$BB$208,MATCH('Costs & Revenue'!AP$5,Inputs!$P$5:$BB$5,0)) -> 0 | AQ45: =INDEX(Inputs!$P$208:$BB$208,MATCH('Costs & Revenue'!AQ$5,Inputs!$P$5:$BB$5,0)) -> 0 | AR45: =INDEX(Inputs!$P$208:$BB$208,MATCH('Costs & Revenue'!AR$5,Inputs!$P$5:$BB$5,0)) -> 0 | AS45: =INDEX(Inputs!$P$208:$BB$208,MATCH('Costs & Revenue'!AS$5,Inputs!$P$5:$BB$5,0)) -> 0 | AT45: =INDEX(Inputs!$P$208:$BB$208,MATCH('Costs & Revenue'!AT$5,Inputs!$P$5:$BB$5,0)) -> 0 | AU45: =INDEX(Inputs!$P$208:$BB$208,MATCH('Costs & Revenue'!AU$5,Inputs!$P$5:$BB$5,0)) -> 0 | AV45: =INDEX(Inputs!$P$208:$BB$208,MATCH('Costs & Revenue'!AV$5,Inputs!$P$5:$BB$5,0)) -> 0 | AW45: =INDEX(Inputs!$P$208:$BB$208,MATCH('Costs & Revenue'!AW$5,Inputs!$P$5:$BB$5,0)) -> 0 | AX45: =INDEX(Inputs!$P$208:$BB$208,MATCH('Costs & Revenue'!AX$5,Inputs!$P$5:$BB$5,0)) -> 0 | AY45: =INDEX(Inputs!$P$208:$BB$208,MATCH('Costs & Revenue'!AY$5,Inputs!$P$5:$BB$5,0)) -> 0 | AZ45: =INDEX(Inputs!$P$208:$BB$208,MATCH('Costs & Revenue'!AZ$5,Inputs!$P$5:$BB$5,0)) -> 0 | BA45: =INDEX(Inputs!$P$208:$BB$208,MATCH('Costs & Revenue'!BA$5,Inputs!$P$5:$BB$5,0)) -> 0 | BB45: =INDEX(Inputs!$P$208:$BB$208,MATCH('Costs & Revenue'!BB$5,Inputs!$P$5:$BB$5,0)) -> 0
E46: Second DCC and DCF adjustment factor | G46: flag | P46: =INDEX(Inputs!$P$209:$BB$209,MATCH('Costs & Revenue'!P$5,Inputs!$P$5:$BB$5,0)) -> 0 | Q46: =INDEX(Inputs!$P$209:$BB$209,MATCH('Costs & Revenue'!Q$5,Inputs!$P$5:$BB$5,0)) -> 0 | R46: =INDEX(Inputs!$P$209:$BB$209,MATCH('Costs & Revenue'!R$5,Inputs!$P$5:$BB$5,0)) -> 0 | S46: =INDEX(Inputs!$P$209:$BB$209,MATCH('Costs & Revenue'!S$5,Inputs!$P$5:$BB$5,0)) -> 0 | T46: =INDEX(Inputs!$P$209:$BB$209,MATCH('Costs & Revenue'!T$5,Inputs!$P$5:$BB$5,0)) -> 0 | U46: =INDEX(Inputs!$P$209:$BB$209,MATCH('Costs & Revenue'!U$5,Inputs!$P$5:$BB$5,0)) -> 0 | V46: =INDEX(Inputs!$P$209:$BB$209,MATCH('Costs & Revenue'!V$5,Inputs!$P$5:$BB$5,0)) -> 0 | W46: =INDEX(Inputs!$P$209:$BB$209,MATCH('Costs & Revenue'!W$5,Inputs!$P$5:$BB$5,0)) -> 0 | X46: =INDEX(Inputs!$P$209:$BB$209,MATCH('Costs & Revenue'!X$5,Inputs!$P$5:$BB$5,0)) -> 0 | Y46: =INDEX(Inputs!$P$209:$BB$209,MATCH('Costs & Revenue'!Y$5,Inputs!$P$5:$BB$5,0)) -> 0 | Z46: =INDEX(Inputs!$P$209:$BB$209,MATCH('Costs & Revenue'!Z$5,Inputs!$P$5:$BB$5,0)) -> 0 | AA46: =INDEX(Inputs!$P$209:$BB$209,MATCH('Costs & Revenue'!AA$5,Inputs!$P$5:$BB$5,0)) -> 0 | AB46: =INDEX(Inputs!$P$209:$BB$209,MATCH('Costs & Revenue'!AB$5,Inputs!$P$5:$BB$5,0)) -> 0 | AC46: =INDEX(Inputs!$P$209:$BB$209,MATCH('Costs & Revenue'!AC$5,Inputs!$P$5:$BB$5,0)) -> 0 | AD46: =INDEX(Inputs!$P$209:$BB$209,MATCH('Costs & Revenue'!AD$5,Inputs!$P$5:$BB$5,0)) -> 0 | AE46: =INDEX(Inputs!$P$209:$BB$209,MATCH('Costs & Revenue'!AE$5,Inputs!$P$5:$BB$5,0)) -> 0 | AF46: =INDEX(Inputs!$P$209:$BB$209,MATCH('Costs & Revenue'!AF$5,Inputs!$P$5:$BB$5,0)) -> 0 | AG46: =INDEX(Inputs!$P$209:$BB$209,MATCH('Costs & Revenue'!AG$5,Inputs!$P$5:$BB$5,0)) -> 0 | AH46: =INDEX(Inputs!$P$209:$BB$209,MATCH('Costs & Revenue'!AH$5,Inputs!$P$5:$BB$5,0)) -> 0 | AI46: =INDEX(Inputs!$P$209:$BB$209,MATCH('Costs & Revenue'!AI$5,Inputs!$P$5:$BB$5,0)) -> 0 | AJ46: =INDEX(Inputs!$P$209:$BB$209,MATCH('Costs & Revenue'!AJ$5,Inputs!$P$5:$BB$5,0)) -> 0 | AK46: =INDEX(Inputs!$P$209:$BB$209,MATCH('Costs & Revenue'!AK$5,Inputs!$P$5:$BB$5,0)) -> 0 | AL46: =INDEX(Inputs!$P$209:$BB$209,MATCH('Costs & Revenue'!AL$5,Inputs!$P$5:$BB$5,0)) -> 0 | AM46: =INDEX(Inputs!$P$209:$BB$209,MATCH('Costs & Revenue'!AM$5,Inputs!$P$5:$BB$5,0)) -> 0 | AN46: =INDEX(Inputs!$P$209:$BB$209,MATCH('Costs & Revenue'!AN$5,Inputs!$P$5:$BB$5,0)) -> 0 | AO46: =INDEX(Inputs!$P$209:$BB$209,MATCH('Costs & Revenue'!AO$5,Inputs!$P$5:$BB$5,0)) -> 0 | AP46: =INDEX(Inputs!$P$209:$BB$209,MATCH('Costs & Revenue'!AP$5,Inputs!$P$5:$BB$5,0)) -> 0 | AQ46: =INDEX(Inputs!$P$209:$BB$209,MATCH('Costs & Revenue'!AQ$5,Inputs!$P$5:$BB$5,0)) -> 0 | AR46: =INDEX(Inputs!$P$209:$BB$209,MATCH('Costs & Revenue'!AR$5,Inputs!$P$5:$BB$5,0)) -> 0 | AS46: =INDEX(Inputs!$P$209:$BB$209,MATCH('Costs & Revenue'!AS$5,Inputs!$P$5:$BB$5,0)) -> 0 | AT46: =INDEX(Inputs!$P$209:$BB$209,MATCH('Costs & Revenue'!AT$5,Inputs!$P$5:$BB$5,0)) -> 0 | AU46: =INDEX(Inputs!$P$209:$BB$209,MATCH('Costs & Revenue'!AU$5,Inputs!$P$5:$BB$5,0)) -> 0 | AV46: =INDEX(Inputs!$P$209:$BB$209,MATCH('Costs & Revenue'!AV$5,Inputs!$P$5:$BB$5,0)) -> 0 | AW46: =INDEX(Inputs!$P$209:$BB$209,MATCH('Costs & Revenue'!AW$5,Inputs!$P$5:$BB$5,0)) -> 0 | AX46: =INDEX(Inputs!$P$209:$BB$209,MATCH('Costs & Revenue'!AX$5,Inputs!$P$5:$BB$5,0)) -> 0 | AY46: =INDEX(Inputs!$P$209:$BB$209,MATCH('Costs & Revenue'!AY$5,Inputs!$P$5:$BB$5,0)) -> 0 | AZ46: =INDEX(Inputs!$P$209:$BB$209,MATCH('Costs & Revenue'!AZ$5,Inputs!$P$5:$BB$5,0)) -> 0 | BA46: =INDEX(Inputs!$P$209:$BB$209,MATCH('Costs & Revenue'!BA$5,Inputs!$P$5:$BB$5,0)) -> 0 | BB46: =INDEX(Inputs!$P$209:$BB$209,MATCH('Costs & Revenue'!BB$5,Inputs!$P$5:$BB$5,0)) -> 0
E47: Third DCC and DCF adjustment factor | G47: flag | P47: =INDEX(Inputs!$P$210:$BB$210,MATCH('Costs & Revenue'!P$5,Inputs!$P$5:$BB$5,0)) -> 0 | Q47: =INDEX(Inputs!$P$210:$BB$210,MATCH('Costs & Revenue'!Q$5,Inputs!$P$5:$BB$5,0)) -> 0 | R47: =INDEX(Inputs!$P$210:$BB$210,MATCH('Costs & Revenue'!R$5,Inputs!$P$5:$BB$5,0)) -> 0 | S47: =INDEX(Inputs!$P$210:$BB$210,MATCH('Costs & Revenue'!S$5,Inputs!$P$5:$BB$5,0)) -> 0 | T47: =INDEX(Inputs!$P$210:$BB$210,MATCH('Costs & Revenue'!T$5,Inputs!$P$5:$BB$5,0)) -> 0 | U47: =INDEX(Inputs!$P$210:$BB$210,MATCH('Costs & Revenue'!U$5,Inputs!$P$5:$BB$5,0)) -> 0 | V47: =INDEX(Inputs!$P$210:$BB$210,MATCH('Costs & Revenue'!V$5,Inputs!$P$5:$BB$5,0)) -> 0 | W47: =INDEX(Inputs!$P$210:$BB$210,MATCH('Costs & Revenue'!W$5,Inputs!$P$5:$BB$5,0)) -> 0 | X47: =INDEX(Inputs!$P$210:$BB$210,MATCH('Costs & Revenue'!X$5,Inputs!$P$5:$BB$5,0)) -> 0 | Y47: =INDEX(Inputs!$P$210:$BB$210,MATCH('Costs & Revenue'!Y$5,Inputs!$P$5:$BB$5,0)) -> 0 | Z47: =INDEX(Inputs!$P$210:$BB$210,MATCH('Costs & Revenue'!Z$5,Inputs!$P$5:$BB$5,0)) -> 0 | AA47: =INDEX(Inputs!$P$210:$BB$210,MATCH('Costs & Revenue'!AA$5,Inputs!$P$5:$BB$5,0)) -> 0 | AB47: =INDEX(Inputs!$P$210:$BB$210,MATCH('Costs & Revenue'!AB$5,Inputs!$P$5:$BB$5,0)) -> 0 | AC47: =INDEX(Inputs!$P$210:$BB$210,MATCH('Costs & Revenue'!AC$5,Inputs!$P$5:$BB$5,0)) -> 0 | AD47: =INDEX(Inputs!$P$210:$BB$210,MATCH('Costs & Revenue'!AD$5,Inputs!$P$5:$BB$5,0)) -> 0 | AE47: =INDEX(Inputs!$P$210:$BB$210,MATCH('Costs & Revenue'!AE$5,Inputs!$P$5:$BB$5,0)) -> 0 | AF47: =INDEX(Inputs!$P$210:$BB$210,MATCH('Costs & Revenue'!AF$5,Inputs!$P$5:$BB$5,0)) -> 0 | AG47: =INDEX(Inputs!$P$210:$BB$210,MATCH('Costs & Revenue'!AG$5,Inputs!$P$5:$BB$5,0)) -> 0 | AH47: =INDEX(Inputs!$P$210:$BB$210,MATCH('Costs & Revenue'!AH$5,Inputs!$P$5:$BB$5,0)) -> 0 | AI47: =INDEX(Inputs!$P$210:$BB$210,MATCH('Costs & Revenue'!AI$5,Inputs!$P$5:$BB$5,0)) -> 0 | AJ47: =INDEX(Inputs!$P$210:$BB$210,MATCH('Costs & Revenue'!AJ$5,Inputs!$P$5:$BB$5,0)) -> 0 | AK47: =INDEX(Inputs!$P$210:$BB$210,MATCH('Costs & Revenue'!AK$5,Inputs!$P$5:$BB$5,0)) -> 0 | AL47: =INDEX(Inputs!$P$210:$BB$210,MATCH('Costs & Revenue'!AL$5,Inputs!$P$5:$BB$5,0)) -> 0 | AM47: =INDEX(Inputs!$P$210:$BB$210,MATCH('Costs & Revenue'!AM$5,Inputs!$P$5:$BB$5,0)) -> 0 | AN47: =INDEX(Inputs!$P$210:$BB$210,MATCH('Costs & Revenue'!AN$5,Inputs!$P$5:$BB$5,0)) -> 0 | AO47: =INDEX(Inputs!$P$210:$BB$210,MATCH('Costs & Revenue'!AO$5,Inputs!$P$5:$BB$5,0)) -> 0 | AP47: =INDEX(Inputs!$P$210:$BB$210,MATCH('Costs & Revenue'!AP$5,Inputs!$P$5:$BB$5,0)) -> 0 | AQ47: =INDEX(Inputs!$P$210:$BB$210,MATCH('Costs & Revenue'!AQ$5,Inputs!$P$5:$BB$5,0)) -> 0 | AR47: =INDEX(Inputs!$P$210:$BB$210,MATCH('Costs & Revenue'!AR$5,Inputs!$P$5:$BB$5,0)) -> 0 | AS47: =INDEX(Inputs!$P$210:$BB$210,MATCH('Costs & Revenue'!AS$5,Inputs!$P$5:$BB$5,0)) -> 0 | AT47: =INDEX(Inputs!$P$210:$BB$210,MATCH('Costs & Revenue'!AT$5,Inputs!$P$5:$BB$5,0)) -> 0 | AU47: =INDEX(Inputs!$P$210:$BB$210,MATCH('Costs & Revenue'!AU$5,Inputs!$P$5:$BB$5,0)) -> 0 | AV47: =INDEX(Inputs!$P$210:$BB$210,MATCH('Costs & Revenue'!AV$5,Inputs!$P$5:$BB$5,0)) -> 0 | AW47: =INDEX(Inputs!$P$210:$BB$210,MATCH('Costs & Revenue'!AW$5,Inputs!$P$5:$BB$5,0)) -> 0 | AX47: =INDEX(Inputs!$P$210:$BB$210,MATCH('Costs & Revenue'!AX$5,Inputs!$P$5:$BB$5,0)) -> 0 | AY47: =INDEX(Inputs!$P$210:$BB$210,MATCH('Costs & Revenue'!AY$5,Inputs!$P$5:$BB$5,0)) -> 0 | AZ47: =INDEX(Inputs!$P$210:$BB$210,MATCH('Costs & Revenue'!AZ$5,Inputs!$P$5:$BB$5,0)) -> 0 | BA47: =INDEX(Inputs!$P$210:$BB$210,MATCH('Costs & Revenue'!BA$5,Inputs!$P$5:$BB$5,0)) -> 0 | BB47: =INDEX(Inputs!$P$210:$BB$210,MATCH('Costs & Revenue'!BB$5,Inputs!$P$5:$BB$5,0)) -> 0
E48: Fourth DCC and DCF adjustment factor | G48: flag | P48: =INDEX(Inputs!$P$211:$BB$211,MATCH('Costs & Revenue'!P$5,Inputs!$P$5:$BB$5,0)) -> 0 | Q48: =INDEX(Inputs!$P$211:$BB$211,MATCH('Costs & Revenue'!Q$5,Inputs!$P$5:$BB$5,0)) -> 0 | R48: =INDEX(Inputs!$P$211:$BB$211,MATCH('Costs & Revenue'!R$5,Inputs!$P$5:$BB$5,0)) -> 0 | S48: =INDEX(Inputs!$P$211:$BB$211,MATCH('Costs & Revenue'!S$5,Inputs!$P$5:$BB$5,0)) -> 0 | T48: =INDEX(Inputs!$P$211:$BB$211,MATCH('Costs & Revenue'!T$5,Inputs!$P$5:$BB$5,0)) -> 0 | U48: =INDEX(Inputs!$P$211:$BB$211,MATCH('Costs & Revenue'!U$5,Inputs!$P$5:$BB$5,0)) -> 0 | V48: =INDEX(Inputs!$P$211:$BB$211,MATCH('Costs & Revenue'!V$5,Inputs!$P$5:$BB$5,0)) -> 0 | W48: =INDEX(Inputs!$P$211:$BB$211,MATCH('Costs & Revenue'!W$5,Inputs!$P$5:$BB$5,0)) -> 0 | X48: =INDEX(Inputs!$P$211:$BB$211,MATCH('Costs & Revenue'!X$5,Inputs!$P$5:$BB$5,0)) -> 0 | Y48: =INDEX(Inputs!$P$211:$BB$211,MATCH('Costs & Revenue'!Y$5,Inputs!$P$5:$BB$5,0)) -> 0 | Z48: =INDEX(Inputs!$P$211:$BB$211,MATCH('Costs & Revenue'!Z$5,Inputs!$P$5:$BB$5,0)) -> 0 | AA48: =INDEX(Inputs!$P$211:$BB$211,MATCH('Costs & Revenue'!AA$5,Inputs!$P$5:$BB$5,0)) -> 0 | AB48: =INDEX(Inputs!$P$211:$BB$211,MATCH('Costs & Revenue'!AB$5,Inputs!$P$5:$BB$5,0)) -> 0 | AC48: =INDEX(Inputs!$P$211:$BB$211,MATCH('Costs & Revenue'!AC$5,Inputs!$P$5:$BB$5,0)) -> 0 | AD48: =INDEX(Inputs!$P$211:$BB$211,MATCH('Costs & Revenue'!AD$5,Inputs!$P$5:$BB$5,0)) -> 0 | AE48: =INDEX(Inputs!$P$211:$BB$211,MATCH('Costs & Revenue'!AE$5,Inputs!$P$5:$BB$5,0)) -> 0 | AF48: =INDEX(Inputs!$P$211:$BB$211,MATCH('Costs & Revenue'!AF$5,Inputs!$P$5:$BB$5,0)) -> 0 | AG48: =INDEX(Inputs!$P$211:$BB$211,MATCH('Costs & Revenue'!AG$5,Inputs!$P$5:$BB$5,0)) -> 0 | AH48: =INDEX(Inputs!$P$211:$BB$211,MATCH('Costs & Revenue'!AH$5,Inputs!$P$5:$BB$5,0)) -> 0 | AI48: =INDEX(Inputs!$P$211:$BB$211,MATCH('Costs & Revenue'!AI$5,Inputs!$P$5:$BB$5,0)) -> 0 | AJ48: =INDEX(Inputs!$P$211:$BB$211,MATCH('Costs & Revenue'!AJ$5,Inputs!$P$5:$BB$5,0)) -> 0 | AK48: =INDEX(Inputs!$P$211:$BB$211,MATCH('Costs & Revenue'!AK$5,Inputs!$P$5:$BB$5,0)) -> 0 | AL48: =INDEX(Inputs!$P$211:$BB$211,MATCH('Costs & Revenue'!AL$5,Inputs!$P$5:$BB$5,0)) -> 0 | AM48: =INDEX(Inputs!$P$211:$BB$211,MATCH('Costs & Revenue'!AM$5,Inputs!$P$5:$BB$5,0)) -> 0 | AN48: =INDEX(Inputs!$P$211:$BB$211,MATCH('Costs & Revenue'!AN$5,Inputs!$P$5:$BB$5,0)) -> 0 | AO48: =INDEX(Inputs!$P$211:$BB$211,MATCH('Costs & Revenue'!AO$5,Inputs!$P$5:$BB$5,0)) -> 0 | AP48: =INDEX(Inputs!$P$211:$BB$211,MATCH('Costs & Revenue'!AP$5,Inputs!$P$5:$BB$5,0)) -> 0 | AQ48: =INDEX(Inputs!$P$211:$BB$211,MATCH('Costs & Revenue'!AQ$5,Inputs!$P$5:$BB$5,0)) -> 0 | AR48: =INDEX(Inputs!$P$211:$BB$211,MATCH('Costs & Revenue'!AR$5,Inputs!$P$5:$BB$5,0)) -> 0 | AS48: =INDEX(Inputs!$P$211:$BB$211,MATCH('Costs & Revenue'!AS$5,Inputs!$P$5:$BB$5,0)) -> 0 | AT48: =INDEX(Inputs!$P$211:$BB$211,MATCH('Costs & Revenue'!AT$5,Inputs!$P$5:$BB$5,0)) -> 0 | AU48: =INDEX(Inputs!$P$211:$BB$211,MATCH('Costs & Revenue'!AU$5,Inputs!$P$5:$BB$5,0)) -> 0 | AV48: =INDEX(Inputs!$P$211:$BB$211,MATCH('Costs & Revenue'!AV$5,Inputs!$P$5:$BB$5,0)) -> 0 | AW48: =INDEX(Inputs!$P$211:$BB$211,MATCH('Costs & Revenue'!AW$5,Inputs!$P$5:$BB$5,0)) -> 0 | AX48: =INDEX(Inputs!$P$211:$BB$211,MATCH('Costs & Revenue'!AX$5,Inputs!$P$5:$BB$5,0)) -> 0 | AY48: =INDEX(Inputs!$P$211:$BB$211,MATCH('Costs & Revenue'!AY$5,Inputs!$P$5:$BB$5,0)) -> 0 | AZ48: =INDEX(Inputs!$P$211:$BB$211,MATCH('Costs & Revenue'!AZ$5,Inputs!$P$5:$BB$5,0)) -> 0 | BA48: =INDEX(Inputs!$P$211:$BB$211,MATCH('Costs & Revenue'!BA$5,Inputs!$P$5:$BB$5,0)) -> 0 | BB48: =INDEX(Inputs!$P$211:$BB$211,MATCH('Costs & Revenue'!BB$5,Inputs!$P$5:$BB$5,0)) -> 0
E50: Partial year Cap adjustment factor | G50: flag | H50: PYCt | P50: =INDEX(Inputs!$P$64:$BB$64,MATCH('Costs & Revenue'!P$5,Inputs!$P$5:$BB$5,0)) -> 1.245722108 | Q50: =INDEX(Inputs!$P$64:$BB$64,MATCH('Costs & Revenue'!Q$5,Inputs!$P$5:$BB$5,0)) -> 1 | R50: =INDEX(Inputs!$P$64:$BB$64,MATCH('Costs & Revenue'!R$5,Inputs!$P$5:$BB$5,0)) -> 1 | S50: =INDEX(Inputs!$P$64:$BB$64,MATCH('Costs & Revenue'!S$5,Inputs!$P$5:$BB$5,0)) -> 1 | T50: =INDEX(Inputs!$P$64:$BB$64,MATCH('Costs & Revenue'!T$5,Inputs!$P$5:$BB$5,0)) -> 1 | U50: =INDEX(Inputs!$P$64:$BB$64,MATCH('Costs & Revenue'!U$5,Inputs!$P$5:$BB$5,0)) -> 1 | V50: =INDEX(Inputs!$P$64:$BB$64,MATCH('Costs & Revenue'!V$5,Inputs!$P$5:$BB$5,0)) -> 1 | W50: =INDEX(Inputs!$P$64:$BB$64,MATCH('Costs & Revenue'!W$5,Inputs!$P$5:$BB$5,0)) -> 1 | X50: =INDEX(Inputs!$P$64:$BB$64,MATCH('Costs & Revenue'!X$5,Inputs!$P$5:$BB$5,0)) -> 1 | Y50: =INDEX(Inputs!$P$64:$BB$64,MATCH('Costs & Revenue'!Y$5,Inputs!$P$5:$BB$5,0)) -> 1 | Z50: =INDEX(Inputs!$P$64:$BB$64,MATCH('Costs & Revenue'!Z$5,Inputs!$P$5:$BB$5,0)) -> 1 | AA50: =INDEX(Inputs!$P$64:$BB$64,MATCH('Costs & Revenue'!AA$5,Inputs!$P$5:$BB$5,0)) -> 1 | AB50: =INDEX(Inputs!$P$64:$BB$64,MATCH('Costs & Revenue'!AB$5,Inputs!$P$5:$BB$5,0)) -> 1 | AC50: =INDEX(Inputs!$P$64:$BB$64,MATCH('Costs & Revenue'!AC$5,Inputs!$P$5:$BB$5,0)) -> 1 | AD50: =INDEX(Inputs!$P$64:$BB$64,MATCH('Costs & Revenue'!AD$5,Inputs!$P$5:$BB$5,0)) -> 1 | AE50: =INDEX(Inputs!$P$64:$BB$64,MATCH('Costs & Revenue'!AE$5,Inputs!$P$5:$BB$5,0)) -> 1 | AF50: =INDEX(Inputs!$P$64:$BB$64,MATCH('Costs & Revenue'!AF$5,Inputs!$P$5:$BB$5,0)) -> 1 | AG50: =INDEX(Inputs!$P$64:$BB$64,MATCH('Costs & Revenue'!AG$5,Inputs!$P$5:$BB$5,0)) -> 1 | AH50: =INDEX(Inputs!$P$64:$BB$64,MATCH('Costs & Revenue'!AH$5,Inputs!$P$5:$BB$5,0)) -> 1 | AI50: =INDEX(Inputs!$P$64:$BB$64,MATCH('Costs & Revenue'!AI$5,Inputs!$P$5:$BB$5,0)) -> 1 | AJ50: =INDEX(Inputs!$P$64:$BB$64,MATCH('Costs & Revenue'!AJ$5,Inputs!$P$5:$BB$5,0)) -> 1 | AK50: =INDEX(Inputs!$P$64:$BB$64,MATCH('Costs & Revenue'!AK$5,Inputs!$P$5:$BB$5,0)) -> 1 | AL50: =INDEX(Inputs!$P$64:$BB$64,MATCH('Costs & Revenue'!AL$5,Inputs!$P$5:$BB$5,0)) -> 1 | AM50: =INDEX(Inputs!$P$64:$BB$64,MATCH('Costs & Revenue'!AM$5,Inputs!$P$5:$BB$5,0)) -> 1 | AN50: =INDEX(Inputs!$P$64:$BB$64,MATCH('Costs & Revenue'!AN$5,Inputs!$P$5:$BB$5,0)) -> 0.7542778919 | AO50: =INDEX(Inputs!$P$64:$BB$64,MATCH('Costs & Revenue'!AO$5,Inputs!$P$5:$BB$5,0)) -> 0 | AP50: =INDEX(Inputs!$P$64:$BB$64,MATCH('Costs & Revenue'!AP$5,Inputs!$P$5:$BB$5,0)) -> 0 | AQ50: =INDEX(Inputs!$P$64:$BB$64,MATCH('Costs & Revenue'!AQ$5,Inputs!$P$5:$BB$5,0)) -> 0 | AR50: =INDEX(Inputs!$P$64:$BB$64,MATCH('Costs & Revenue'!AR$5,Inputs!$P$5:$BB$5,0)) -> 0 | AS50: =INDEX(Inputs!$P$64:$BB$64,MATCH('Costs & Revenue'!AS$5,Inputs!$P$5:$BB$5,0)) -> 0 | AT50: =INDEX(Inputs!$P$64:$BB$64,MATCH('Costs & Revenue'!AT$5,Inputs!$P$5:$BB$5,0)) -> 0 | AU50: =INDEX(Inputs!$P$64:$BB$64,MATCH('Costs & Revenue'!AU$5,Inputs!$P$5:$BB$5,0)) -> 0 | AV50: =INDEX(Inputs!$P$64:$BB$64,MATCH('Costs & Revenue'!AV$5,Inputs!$P$5:$BB$5,0)) -> 0 | AW50: =INDEX(Inputs!$P$64:$BB$64,MATCH('Costs & Revenue'!AW$5,Inputs!$P$5:$BB$5,0)) -> 0 | AX50: =INDEX(Inputs!$P$64:$BB$64,MATCH('Costs & Revenue'!AX$5,Inputs!$P$5:$BB$5,0)) -> 0 | AY50: =INDEX(Inputs!$P$64:$BB$64,MATCH('Costs & Revenue'!AY$5,Inputs!$P$5:$BB$5,0)) -> 0 | AZ50: =INDEX(Inputs!$P$64:$BB$64,MATCH('Costs & Revenue'!AZ$5,Inputs!$P$5:$BB$5,0)) -> 0 | BA50: =INDEX(Inputs!$P$64:$BB$64,MATCH('Costs & Revenue'!BA$5,Inputs!$P$5:$BB$5,0)) -> 0 | BB50: =INDEX(Inputs!$P$64:$BB$64,MATCH('Costs & Revenue'!BB$5,Inputs!$P$5:$BB$5,0)) -> 0
E51: Partial year Floor adjustment factor | G51: flag | H51: PYFt | P51: =INDEX(Inputs!$P$72:$BB$72,MATCH('Costs & Revenue'!P$5,Inputs!$P$5:$BB$5,0)) -> 0 | Q51: =INDEX(Inputs!$P$72:$BB$72,MATCH('Costs & Revenue'!Q$5,Inputs!$P$5:$BB$5,0)) -> 0.5995893224 | R51: =INDEX(Inputs!$P$72:$BB$72,MATCH('Costs & Revenue'!R$5,Inputs!$P$5:$BB$5,0)) -> 1 | S51: =INDEX(Inputs!$P$72:$BB$72,MATCH('Costs & Revenue'!S$5,Inputs!$P$5:$BB$5,0)) -> 1 | T51: =INDEX(Inputs!$P$72:$BB$72,MATCH('Costs & Revenue'!T$5,Inputs!$P$5:$BB$5,0)) -> 1 | U51: =INDEX(Inputs!$P$72:$BB$72,MATCH('Costs & Revenue'!U$5,Inputs!$P$5:$BB$5,0)) -> 1 | V51: =INDEX(Inputs!$P$72:$BB$72,MATCH('Costs & Revenue'!V$5,Inputs!$P$5:$BB$5,0)) -> 1 | W51: =INDEX(Inputs!$P$72:$BB$72,MATCH('Costs & Revenue'!W$5,Inputs!$P$5:$BB$5,0)) -> 1 | X51: =INDEX(Inputs!$P$72:$BB$72,MATCH('Costs & Revenue'!X$5,Inputs!$P$5:$BB$5,0)) -> 1 | Y51: =INDEX(Inputs!$P$72:$BB$72,MATCH('Costs & Revenue'!Y$5,Inputs!$P$5:$BB$5,0)) -> 1 | Z51: =INDEX(Inputs!$P$72:$BB$72,MATCH('Costs & Revenue'!Z$5,Inputs!$P$5:$BB$5,0)) -> 1 | AA51: =INDEX(Inputs!$P$72:$BB$72,MATCH('Costs & Revenue'!AA$5,Inputs!$P$5:$BB$5,0)) -> 1 | AB51: =INDEX(Inputs!$P$72:$BB$72,MATCH('Costs & Revenue'!AB$5,Inputs!$P$5:$BB$5,0)) -> 1 | AC51: =INDEX(Inputs!$P$72:$BB$72,MATCH('Costs & Revenue'!AC$5,Inputs!$P$5:$BB$5,0)) -> 1 | AD51: =INDEX(Inputs!$P$72:$BB$72,MATCH('Costs & Revenue'!AD$5,Inputs!$P$5:$BB$5,0)) -> 1 | AE51: =INDEX(Inputs!$P$72:$BB$72,MATCH('Costs & Revenue'!AE$5,Inputs!$P$5:$BB$5,0)) -> 1 | AF51: =INDEX(Inputs!$P$72:$BB$72,MATCH('Costs & Revenue'!AF$5,Inputs!$P$5:$BB$5,0)) -> 1 | AG51: =INDEX(Inputs!$P$72:$BB$72,MATCH('Costs & Revenue'!AG$5,Inputs!$P$5:$BB$5,0)) -> 1 | AH51: =INDEX(Inputs!$P$72:$BB$72,MATCH('Costs & Revenue'!AH$5,Inputs!$P$5:$BB$5,0)) -> 1 | AI51: =INDEX(Inputs!$P$72:$BB$72,MATCH('Costs & Revenue'!AI$5,Inputs!$P$5:$BB$5,0)) -> 1 | AJ51: =INDEX(Inputs!$P$72:$BB$72,MATCH('Costs & Revenue'!AJ$5,Inputs!$P$5:$BB$5,0)) -> 1 | AK51: =INDEX(Inputs!$P$72:$BB$72,MATCH('Costs & Revenue'!AK$5,Inputs!$P$5:$BB$5,0)) -> 1 | AL51: =INDEX(Inputs!$P$72:$BB$72,MATCH('Costs & Revenue'!AL$5,Inputs!$P$5:$BB$5,0)) -> 1 | AM51: =INDEX(Inputs!$P$72:$BB$72,MATCH('Costs & Revenue'!AM$5,Inputs!$P$5:$BB$5,0)) -> 1 | AN51: =INDEX(Inputs!$P$72:$BB$72,MATCH('Costs & Revenue'!AN$5,Inputs!$P$5:$BB$5,0)) -> 0.7542778919 | AO51: =INDEX(Inputs!$P$72:$BB$72,MATCH('Costs & Revenue'!AO$5,Inputs!$P$5:$BB$5,0)) -> 0 | AP51: =INDEX(Inputs!$P$72:$BB$72,MATCH('Costs & Revenue'!AP$5,Inputs!$P$5:$BB$5,0)) -> 0 | AQ51: =INDEX(Inputs!$P$72:$BB$72,MATCH('Costs & Revenue'!AQ$5,Inputs!$P$5:$BB$5,0)) -> 0 | AR51: =INDEX(Inputs!$P$72:$BB$72,MATCH('Costs & Revenue'!AR$5,Inputs!$P$5:$BB$5,0)) -> 0 | AS51: =INDEX(Inputs!$P$72:$BB$72,MATCH('Costs & Revenue'!AS$5,Inputs!$P$5:$BB$5,0)) -> 0 | AT51: =INDEX(Inputs!$P$72:$BB$72,MATCH('Costs & Revenue'!AT$5,Inputs!$P$5:$BB$5,0)) -> 0 | AU51: =INDEX(Inputs!$P$72:$BB$72,MATCH('Costs & Revenue'!AU$5,Inputs!$P$5:$BB$5,0)) -> 0 | AV51: =INDEX(Inputs!$P$72:$BB$72,MATCH('Costs & Revenue'!AV$5,Inputs!$P$5:$BB$5,0)) -> 0 | AW51: =INDEX(Inputs!$P$72:$BB$72,MATCH('Costs & Revenue'!AW$5,Inputs!$P$5:$BB$5,0)) -> 0 | AX51: =INDEX(Inputs!$P$72:$BB$72,MATCH('Costs & Revenue'!AX$5,Inputs!$P$5:$BB$5,0)) -> 0 | AY51: =INDEX(Inputs!$P$72:$BB$72,MATCH('Costs & Revenue'!AY$5,Inputs!$P$5:$BB$5,0)) -> 0 | AZ51: =INDEX(Inputs!$P$72:$BB$72,MATCH('Costs & Revenue'!AZ$5,Inputs!$P$5:$BB$5,0)) -> 0 | BA51: =INDEX(Inputs!$P$72:$BB$72,MATCH('Costs & Revenue'!BA$5,Inputs!$P$5:$BB$5,0)) -> 0 | BB51: =INDEX(Inputs!$P$72:$BB$72,MATCH('Costs & Revenue'!BB$5,Inputs!$P$5:$BB$5,0)) -> 0
E53: Cap (pre-availability incentive) | G53: £m nominal prices | P53: =P32*P50+($I17*P36*$I$35+$I19*P40*$I$39+$I21*P$44*$I$43+$I23*P$45*$I$43+$I25*P$46*$I$43+$I27*P$47*$I$43+$I29*P$48*$I$43)*P$11 -> 139.4302635 | Q53: =Q32*Q50+($I17*Q36*$I$35+$I19*Q40*$I$39+$I21*Q$44*$I$43+$I23*Q$45*$I$43+$I25*Q$46*$I$43+$I27*Q$47*$I$43+$I29*Q$48*$I$43)*Q$11 -> 114.9604897 | R53: 118.075919 | S53: 121.2757764 | T53: 124.56235 | U53: 127.9379896 | V53: 131.4051092 | W53: 134.9661876 | X53: 138.6237713 | Y53: 142.3804755 | Z53: 136.9428927 | AA53: 111.8788374 | AB53: 114.9107539 | AC53: 118.0248353 | AD53: 121.2233083 | AE53: 124.50846 | AF53: 127.8826393 | AG53: 131.3482588 | AH53: 134.9077966 | AI53: 138.5637979 | AJ53: 142.3188768 | AK53: 146.1757184 | AL53: 150.1370803 | AM53: 154.2057952 | AN53: 64.29011875 | AO53: 0 | AP53: 0 | AQ53: 0 | AR53: 0 | AS53: 0 | AT53: 0 | AU53: 0 | AV53: 0 | AW53: 0 | AX53: 0 | AY53: 0 | AZ53: 0 | BA53: 0 | BB53: 0
E54: Notional Floor (pre-availability incentive) | G54: £m nominal prices | H54: NFLt | P54: =P33*P51+($I18*P37*$I$35+$I20*P41*$I$39+$I22*P$44*$I$43+$I24*P$45*$I$43+$I26*P$46*$I$43+$I28*P$47*$I$43+$I30*P$48*$I$43)*P$11 -> 0 | Q54: =Q33*Q51+($I18*Q37*$I$35+$I20*Q41*$I$39+$I22*Q$44*$I$43+$I24*Q$45*$I$43+$I26*Q$46*$I$43+$I28*Q$47*$I$43+$I30*Q$48*$I$43)*Q$11 -> 43.76854808 | R54: 74.97577768 | S54: 77.00762125 | T54: 79.09452779 | U54: 81.23798949 | V54: 83.43953901 | W54: 85.70075051 | X54: 88.02324085 | Y54: 90.40867068 | Z54: 83.51496762 | AA54: 56.85541315 | AB54: 58.39619484 | AC54: 59.97873172 | AD54: 61.60415535 | AE54: 63.27362796 | AF54: 64.98834328 | AG54: 66.74952738 | AH54: 68.55843957 | AI54: 70.41637329 | AJ54: 72.324657 | AK54: 74.28465521 | AL54: 76.29776936 | AM54: 78.36543891 | AN54: 5.535167205 | AO54: 0 | AP54: 0 | AQ54: 0 | AR54: 0 | AS54: 0 | AT54: 0 | AU54: 0 | AV54: 0 | AW54: 0 | AX54: 0 | AY54: 0 | AZ54: 0 | BA54: 0 | BB54: 0
B56: End of sheet

Sheet DC Adjustment
A1: DC Adjustment | H1: Licence
E2: Parameter | G2: Units | H2: Terminology | I2: Constant | O2: Annual values
E3: Year commencing | O3: =INDEX(Inputs!$O3:$BB3,MATCH('Costs & Revenue'!O$5,Inputs!$O$5:$BB$5,0)) -> 2020-04-01 | P3: =INDEX(Inputs!$O3:$BB3,MATCH('Costs & Revenue'!P$5,Inputs!$O$5:$BB$5,0)) -> 2021-04-01 | Q3: =INDEX(Inputs!$O3:$BB3,MATCH('Costs & Revenue'!Q$5,Inputs!$O$5:$BB$5,0)) -> 2022-04-01 | R3: =INDEX(Inputs!$O3:$BB3,MATCH('Costs & Revenue'!R$5,Inputs!$O$5:$BB$5,0)) -> 2023-04-01 | S3: =INDEX(Inputs!$O3:$BB3,MATCH('Costs & Revenue'!S$5,Inputs!$O$5:$BB$5,0)) -> 2024-04-01 | T3: =INDEX(Inputs!$O3:$BB3,MATCH('Costs & Revenue'!T$5,Inputs!$O$5:$BB$5,0)) -> 2025-04-01 | U3: =INDEX(Inputs!$O3:$BB3,MATCH('Costs & Revenue'!U$5,Inputs!$O$5:$BB$5,0)) -> 2026-04-01 | V3: =INDEX(Inputs!$O3:$BB3,MATCH('Costs & Revenue'!V$5,Inputs!$O$5:$BB$5,0)) -> 2027-04-01 | W3: =INDEX(Inputs!$O3:$BB3,MATCH('Costs & Revenue'!W$5,Inputs!$O$5:$BB$5,0)) -> 2028-04-01 | X3: =INDEX(Inputs!$O3:$BB3,MATCH('Costs & Revenue'!X$5,Inputs!$O$5:$BB$5,0)) -> 2029-04-01 | Y3: =INDEX(Inputs!$O3:$BB3,MATCH('Costs & Revenue'!Y$5,Inputs!$O$5:$BB$5,0)) -> 2030-04-01 | Z3: =INDEX(Inputs!$O3:$BB3,MATCH('Costs & Revenue'!Z$5,Inputs!$O$5:$BB$5,0)) -> 2031-04-01 | AA3: =INDEX(Inputs!$O3:$BB3,MATCH('Costs & Revenue'!AA$5,Inputs!$O$5:$BB$5,0)) -> 2032-04-01 | AB3: =INDEX(Inputs!$O3:$BB3,MATCH('Costs & Revenue'!AB$5,Inputs!$O$5:$BB$5,0)) -> 2033-04-01 | AC3: =INDEX(Inputs!$O3:$BB3,MATCH('Costs & Revenue'!AC$5,Inputs!$O$5:$BB$5,0)) -> 2034-04-01 | AD3: =INDEX(Inputs!$O3:$BB3,MATCH('Costs & Revenue'!AD$5,Inputs!$O$5:$BB$5,0)) -> 2035-04-01 | AE3: =INDEX(Inputs!$O3:$BB3,MATCH('Costs & Revenue'!AE$5,Inputs!$O$5:$BB$5,0)) -> 2036-04-01 | AF3: =INDEX(Inputs!$O3:$BB3,MATCH('Costs & Revenue'!AF$5,Inputs!$O$5:$BB$5,0)) -> 2037-04-01 | AG3: =INDEX(Inputs!$O3:$BB3,MATCH('Costs & Revenue'!AG$5,Inputs!$O$5:$BB$5,0)) -> 2038-04-01 | AH3: =INDEX(Inputs!$O3:$BB3,MATCH('Costs & Revenue'!AH$5,Inputs!$O$5:$BB$5,0)) -> 2039-04-01 | AI3: =INDEX(Inputs!$O3:$BB3,MATCH('Costs & Revenue'!AI$5,Inputs!$O$5:$BB$5,0)) -> 2040-04-01 | AJ3: =INDEX(Inputs!$O3:$BB3,MATCH('Costs & Revenue'!AJ$5,Inputs!$O$5:$BB$5,0)) -> 2041-04-01 | AK3: =INDEX(Inputs!$O3:$BB3,MATCH('Costs & Revenue'!AK$5,Inputs!$O$5:$BB$5,0)) -> 2042-04-01 | AL3: =INDEX(Inputs!$O3:$BB3,MATCH('Costs & Revenue'!AL$5,Inputs!$O$5:$BB$5,0)) -> 2043-04-01 | AM3: =INDEX(Inputs!$O3:$BB3,MATCH('Costs & Revenue'!AM$5,Inputs!$O$5:$BB$5,0)) -> 2044-04-01 | AN3: =INDEX(Inputs!$O3:$BB3,MATCH('Costs & Revenue'!AN$5,Inputs!$O$5:$BB$5,0)) -> 2045-04-01 | AO3: =INDEX(Inputs!$O3:$BB3,MATCH('Costs & Revenue'!AO$5,Inputs!$O$5:$BB$5,0)) -> 2046-04-01 | AP3: =INDEX(Inputs!$O3:$BB3,MATCH('Costs & Revenue'!AP$5,Inputs!$O$5:$BB$5,0)) -> 2047-04-01 | AQ3: =INDEX(Inputs!$O3:$BB3,MATCH('Costs & Revenue'!AQ$5,Inputs!$O$5:$BB$5,0)) -> 2048-04-01 | AR3: =INDEX(Inputs!$O3:$BB3,MATCH('Costs & Revenue'!AR$5,Inputs!$O$5:$BB$5,0)) -> 2049-04-01 | AS3: =INDEX(Inputs!$O3:$BB3,MATCH('Costs & Revenue'!AS$5,Inputs!$O$5:$BB$5,0)) -> 2050-04-01 | AT3: =INDEX(Inputs!$O3:$BB3,MATCH('Costs & Revenue'!AT$5,Inputs!$O$5:$BB$5,0)) -> 2051-04-01 | AU3: =INDEX(Inputs!$O3:$BB3,MATCH('Costs & Revenue'!AU$5,Inputs!$O$5:$BB$5,0)) -> 2052-04-01 | AV3: =INDEX(Inputs!$O3:$BB3,MATCH('Costs & Revenue'!AV$5,Inputs!$O$5:$BB$5,0)) -> 2053-04-01 | AW3: =INDEX(Inputs!$O3:$BB3,MATCH('Costs & Revenue'!AW$5,Inputs!$O$5:$BB$5,0)) -> 2054-04-01 | AX3: =INDEX(Inputs!$O3:$BB3,MATCH('Costs & Revenue'!AX$5,Inputs!$O$5:$BB$5,0)) -> 2055-04-01 | AY3: =INDEX(Inputs!$O3:$BB3,MATCH('Costs & Revenue'!AY$5,Inputs!$O$5:$BB$5,0)) -> 2056-04-01 | AZ3: =INDEX(Inputs!$O3:$BB3,MATCH('Costs & Revenue'!AZ$5,Inputs!$O$5:$BB$5,0)) -> 2057-04-01 | BA3: =INDEX(Inputs!$O3:$BB3,MATCH('Costs & Revenue'!BA$5,Inputs!$O$5:$BB$5,0)) -> 2058-04-01 | BB3: =INDEX(Inputs!$O3:$BB3,MATCH('Costs & Revenue'!BB$5,Inputs!$O$5:$BB$5,0)) -> 2059-04-01
E4: Year ending | O4: =INDEX(Inputs!$O4:$BB4,MATCH('Costs & Revenue'!O$5,Inputs!$O$5:$BB$5,0)) -> 2021-03-31 | P4: =INDEX(Inputs!$O4:$BB4,MATCH('Costs & Revenue'!P$5,Inputs!$O$5:$BB$5,0)) -> 2022-03-31 | Q4: =INDEX(Inputs!$O4:$BB4,MATCH('Costs & Revenue'!Q$5,Inputs!$O$5:$BB$5,0)) -> 2023-03-31 | R4: =INDEX(Inputs!$O4:$BB4,MATCH('Costs & Revenue'!R$5,Inputs!$O$5:$BB$5,0)) -> 2024-03-31 | S4: =INDEX(Inputs!$O4:$BB4,MATCH('Costs & Revenue'!S$5,Inputs!$O$5:$BB$5,0)) -> 2025-03-31 | T4: =INDEX(Inputs!$O4:$BB4,MATCH('Costs & Revenue'!T$5,Inputs!$O$5:$BB$5,0)) -> 2026-03-31 | U4: =INDEX(Inputs!$O4:$BB4,MATCH('Costs & Revenue'!U$5,Inputs!$O$5:$BB$5,0)) -> 2027-03-31 | V4: =INDEX(Inputs!$O4:$BB4,MATCH('Costs & Revenue'!V$5,Inputs!$O$5:$BB$5,0)) -> 2028-03-31 | W4: =INDEX(Inputs!$O4:$BB4,MATCH('Costs & Revenue'!W$5,Inputs!$O$5:$BB$5,0)) -> 2029-03-31 | X4: =INDEX(Inputs!$O4:$BB4,MATCH('Costs & Revenue'!X$5,Inputs!$O$5:$BB$5,0)) -> 2030-03-31 | Y4: =INDEX(Inputs!$O4:$BB4,MATCH('Costs & Revenue'!Y$5,Inputs!$O$5:$BB$5,0)) -> 2031-03-31 | Z4: =INDEX(Inputs!$O4:$BB4,MATCH('Costs & Revenue'!Z$5,Inputs!$O$5:$BB$5,0)) -> 2032-03-31 | AA4: =INDEX(Inputs!$O4:$BB4,MATCH('Costs & Revenue'!AA$5,Inputs!$O$5:$BB$5,0)) -> 2033-03-31 | AB4: =INDEX(Inputs!$O4:$BB4,MATCH('Costs & Revenue'!AB$5,Inputs!$O$5:$BB$5,0)) -> 2034-03-31 | AC4: =INDEX(Inputs!$O4:$BB4,MATCH('Costs & Revenue'!AC$5,Inputs!$O$5:$BB$5,0)) -> 2035-03-31 | AD4: =INDEX(Inputs!$O4:$BB4,MATCH('Costs & Revenue'!AD$5,Inputs!$O$5:$BB$5,0)) -> 2036-03-31 | AE4: =INDEX(Inputs!$O4:$BB4,MATCH('Costs & Revenue'!AE$5,Inputs!$O$5:$BB$5,0)) -> 2037-03-31 | AF4: =INDEX(Inputs!$O4:$BB4,MATCH('Costs & Revenue'!AF$5,Inputs!$O$5:$BB$5,0)) -> 2038-03-31 | AG4: =INDEX(Inputs!$O4:$BB4,MATCH('Costs & Revenue'!AG$5,Inputs!$O$5:$BB$5,0)) -> 2039-03-31 | AH4: =INDEX(Inputs!$O4:$BB4,MATCH('Costs & Revenue'!AH$5,Inputs!$O$5:$BB$5,0)) -> 2040-03-31 | AI4: =INDEX(Inputs!$O4:$BB4,MATCH('Costs & Revenue'!AI$5,Inputs!$O$5:$BB$5,0)) -> 2041-03-31 | AJ4: =INDEX(Inputs!$O4:$BB4,MATCH('Costs & Revenue'!AJ$5,Inputs!$O$5:$BB$5,0)) -> 2042-03-31 | AK4: =INDEX(Inputs!$O4:$BB4,MATCH('Costs & Revenue'!AK$5,Inputs!$O$5:$BB$5,0)) -> 2043-03-31 | AL4: =INDEX(Inputs!$O4:$BB4,MATCH('Costs & Revenue'!AL$5,Inputs!$O$5:$BB$5,0)) -> 2044-03-31 | AM4: =INDEX(Inputs!$O4:$BB4,MATCH('Costs & Revenue'!AM$5,Inputs!$O$5:$BB$5,0)) -> 2045-03-31 | AN4: =INDEX(Inputs!$O4:$BB4,MATCH('Costs & Revenue'!AN$5,Inputs!$O$5:$BB$5,0)) -> 2046-03-31 | AO4: =INDEX(Inputs!$O4:$BB4,MATCH('Costs & Revenue'!AO$5,Inputs!$O$5:$BB$5,0)) -> 2047-03-31 | AP4: =INDEX(Inputs!$O4:$BB4,MATCH('Costs & Revenue'!AP$5,Inputs!$O$5:$BB$5,0)) -> 2048-03-31 | AQ4: =INDEX(Inputs!$O4:$BB4,MATCH('Costs & Revenue'!AQ$5,Inputs!$O$5:$BB$5,0)) -> 2049-03-31 | AR4: =INDEX(Inputs!$O4:$BB4,MATCH('Costs & Revenue'!AR$5,Inputs!$O$5:$BB$5,0)) -> 2050-03-31 | AS4: =INDEX(Inputs!$O4:$BB4,MATCH('Costs & Revenue'!AS$5,Inputs!$O$5:$BB$5,0)) -> 2051-03-31 | AT4: =INDEX(Inputs!$O4:$BB4,MATCH('Costs & Revenue'!AT$5,Inputs!$O$5:$BB$5,0)) -> 2052-03-31 | AU4: =INDEX(Inputs!$O4:$BB4,MATCH('Costs & Revenue'!AU$5,Inputs!$O$5:$BB$5,0)) -> 2053-03-31 | AV4: =INDEX(Inputs!$O4:$BB4,MATCH('Costs & Revenue'!AV$5,Inputs!$O$5:$BB$5,0)) -> 2054-03-31 | AW4: =INDEX(Inputs!$O4:$BB4,MATCH('Costs & Revenue'!AW$5,Inputs!$O$5:$BB$5,0)) -> 2055-03-31 | AX4: =INDEX(Inputs!$O4:$BB4,MATCH('Costs & Revenue'!AX$5,Inputs!$O$5:$BB$5,0)) -> 2056-03-31 | AY4: =INDEX(Inputs!$O4:$BB4,MATCH('Costs & Revenue'!AY$5,Inputs!$O$5:$BB$5,0)) -> 2057-03-31 | AZ4: =INDEX(Inputs!$O4:$BB4,MATCH('Costs & Revenue'!AZ$5,Inputs!$O$5:$BB$5,0)) -> 2058-03-31 | BA4: =INDEX(Inputs!$O4:$BB4,MATCH('Costs & Revenue'!BA$5,Inputs!$O$5:$BB$5,0)) -> 2059-03-31 | BB4: =INDEX(Inputs!$O4:$BB4,MATCH('Costs & Revenue'!BB$5,Inputs!$O$5:$BB$5,0)) -> 2060-03-31
E5: Operational year | O5: =Inputs!O5 -> 0 | P5: =Inputs!P5 -> 1 | Q5: =Inputs!Q5 -> 2 | R5: =Inputs!R5 -> 3 | S5: =Inputs!S5 -> 4 | T5: =Inputs!T5 -> 5 | U5: =Inputs!U5 -> 6 | V5: =Inputs!V5 -> 7 | W5: =Inputs!W5 -> 8 | X5: =Inputs!X5 -> 9 | Y5: =Inputs!Y5 -> 10 | Z5: =Inputs!Z5 -> 11 | AA5: =Inputs!AA5 -> 12 | AB5: =Inputs!AB5 -> 13 | AC5: =Inputs!AC5 -> 14 | AD5: =Inputs!AD5 -> 15 | AE5: =Inputs!AE5 -> 16 | AF5: =Inputs!AF5 -> 17 | AG5: =Inputs!AG5 -> 18 | AH5: =Inputs!AH5 -> 19 | AI5: =Inputs!AI5 -> 20 | AJ5: =Inputs!AJ5 -> 21 | AK5: =Inputs!AK5 -> 22 | AL5: =Inputs!AL5 -> 23 | AM5: =Inputs!AM5 -> 24 | AN5: =Inputs!AN5 -> 25 | AO5: =Inputs!AO5 -> 26 | AP5: =Inputs!AP5 -> 27 | AQ5: =Inputs!AQ5 -> 28 | AR5: =Inputs!AR5 -> 29 | AS5: =Inputs!AS5 -> 30 | AT5: =Inputs!AT5 -> 31 | AU5: =Inputs!AU5 -> 32 | AV5: =Inputs!AV5 -> 33 | AW5: =Inputs!AW5 -> 34 | AX5: =Inputs!AX5 -> 35 | AY5: =Inputs!AY5 -> 36 | AZ5: =Inputs!AZ5 -> 37 | BA5: =Inputs!BA5 -> 38 | BB5: =Inputs!BB5 -> 39
B7: Decommissioning costs
C9: Original decommissioning costs allowance from PCR stage
E11: Decommissioning costs (baseline) | G11: =base_year -> £m 15/16 prices | P11: =INDEX(Inputs!$P$34:$BB$34,MATCH('Costs & Revenue'!P$5,Inputs!$P$5:$BB$5,0)) -> 0 | Q11: =INDEX(Inputs!$P$34:$BB$34,MATCH('Costs & Revenue'!Q$5,Inputs!$P$5:$BB$5,0)) -> 0 | R11: =INDEX(Inputs!$P$34:$BB$34,MATCH('Costs & Revenue'!R$5,Inputs!$P$5:$BB$5,0)) -> 0 | S11: =INDEX(Inputs!$P$34:$BB$34,MATCH('Costs & Revenue'!S$5,Inputs!$P$5:$BB$5,0)) -> 0 | T11: =INDEX(Inputs!$P$34:$BB$34,MATCH('Costs & Revenue'!T$5,Inputs!$P$5:$BB$5,0)) -> 0 | U11: =INDEX(Inputs!$P$34:$BB$34,MATCH('Costs & Revenue'!U$5,Inputs!$P$5:$BB$5,0)) -> 0 | V11: =INDEX(Inputs!$P$34:$BB$34,MATCH('Costs & Revenue'!V$5,Inputs!$P$5:$BB$5,0)) -> 0 | W11: =INDEX(Inputs!$P$34:$BB$34,MATCH('Costs & Revenue'!W$5,Inputs!$P$5:$BB$5,0)) -> 0 | X11: =INDEX(Inputs!$P$34:$BB$34,MATCH('Costs & Revenue'!X$5,Inputs!$P$5:$BB$5,0)) -> 0 | Y11: =INDEX(Inputs!$P$34:$BB$34,MATCH('Costs & Revenue'!Y$5,Inputs!$P$5:$BB$5,0)) -> 0 | Z11: =INDEX(Inputs!$P$34:$BB$34,MATCH('Costs & Revenue'!Z$5,Inputs!$P$5:$BB$5,0)) -> 0 | AA11: =INDEX(Inputs!$P$34:$BB$34,MATCH('Costs & Revenue'!AA$5,Inputs!$P$5:$BB$5,0)) -> 0 | AB11: =INDEX(Inputs!$P$34:$BB$34,MATCH('Costs & Revenue'!AB$5,Inputs!$P$5:$BB$5,0)) -> 0 | AC11: =INDEX(Inputs!$P$34:$BB$34,MATCH('Costs & Revenue'!AC$5,Inputs!$P$5:$BB$5,0)) -> 0 | AD11: =INDEX(Inputs!$P$34:$BB$34,MATCH('Costs & Revenue'!AD$5,Inputs!$P$5:$BB$5,0)) -> 0 | AE11: =INDEX(Inputs!$P$34:$BB$34,MATCH('Costs & Revenue'!AE$5,Inputs!$P$5:$BB$5,0)) -> 0 | AF11: =INDEX(Inputs!$P$34:$BB$34,MATCH('Costs & Revenue'!AF$5,Inputs!$P$5:$BB$5,0)) -> 0 | AG11: =INDEX(Inputs!$P$34:$BB$34,MATCH('Costs & Revenue'!AG$5,Inputs!$P$5:$BB$5,0)) -> 0 | AH11: =INDEX(Inputs!$P$34:$BB$34,MATCH('Costs & Revenue'!AH$5,Inputs!$P$5:$BB$5,0)) -> 0 | AI11: =INDEX(Inputs!$P$34:$BB$34,MATCH('Costs & Revenue'!AI$5,Inputs!$P$5:$BB$5,0)) -> 0 | AJ11: =INDEX(Inputs!$P$34:$BB$34,MATCH('Costs & Revenue'!AJ$5,Inputs!$P$5:$BB$5,0)) -> 0 | AK11: =INDEX(Inputs!$P$34:$BB$34,MATCH('Costs & Revenue'!AK$5,Inputs!$P$5:$BB$5,0)) -> 0 | AL11: =INDEX(Inputs!$P$34:$BB$34,MATCH('Costs & Revenue'!AL$5,Inputs!$P$5:$BB$5,0)) -> 0 | AM11: =INDEX(Inputs!$P$34:$BB$34,MATCH('Costs & Revenue'!AM$5,Inputs!$P$5:$BB$5,0)) -> 0 | AN11: =INDEX(Inputs!$P$34:$BB$34,MATCH('Costs & Revenue'!AN$5,Inputs!$P$5:$BB$5,0)) -> 24.21525798 | AO11: =INDEX(Inputs!$P$34:$BB$34,MATCH('Costs & Revenue'!AO$5,Inputs!$P$5:$BB$5,0)) -> 0 | AP11: =INDEX(Inputs!$P$34:$BB$34,MATCH('Costs & Revenue'!AP$5,Inputs!$P$5:$BB$5,0)) -> 0 | AQ11: =INDEX(Inputs!$P$34:$BB$34,MATCH('Costs & Revenue'!AQ$5,Inputs!$P$5:$BB$5,0)) -> 0 | AR11: =INDEX(Inputs!$P$34:$BB$34,MATCH('Costs & Revenue'!AR$5,Inputs!$P$5:$BB$5,0)) -> 0 | AS11: =INDEX(Inputs!$P$34:$BB$34,MATCH('Costs & Revenue'!AS$5,Inputs!$P$5:$BB$5,0)) -> 0 | AT11: =INDEX(Inputs!$P$34:$BB$34,MATCH('Costs & Revenue'!AT$5,Inputs!$P$5:$BB$5,0)) -> 0 | AU11: =INDEX(Inputs!$P$34:$BB$34,MATCH('Costs & Revenue'!AU$5,Inputs!$P$5:$BB$5,0)) -> 0 | AV11: =INDEX(Inputs!$P$34:$BB$34,MATCH('Costs & Revenue'!AV$5,Inputs!$P$5:$BB$5,0)) -> 0 | AW11: =INDEX(Inputs!$P$34:$BB$34,MATCH('Costs & Revenue'!AW$5,Inputs!$P$5:$BB$5,0)) -> 0 | AX11: =INDEX(Inputs!$P$34:$BB$34,MATCH('Costs & Revenue'!AX$5,Inputs!$P$5:$BB$5,0)) -> 0 | AY11: =INDEX(Inputs!$P$34:$BB$34,MATCH('Costs & Revenue'!AY$5,Inputs!$P$5:$BB$5,0)) -> 0 | AZ11: =INDEX(Inputs!$P$34:$BB$34,MATCH('Costs & Revenue'!AZ$5,Inputs!$P$5:$BB$5,0)) -> 0 | BA11: =INDEX(Inputs!$P$34:$BB$34,MATCH('Costs & Revenue'!BA$5,Inputs!$P$5:$BB$5,0)) -> 0 | BB11: =INDEX(Inputs!$P$34:$BB$34,MATCH('Costs & Revenue'!BB$5,Inputs!$P$5:$BB$5,0)) -> 0
C13: Revised decommissioning costs allowance from latest DC submission
E15: Decommissioning costs (latest DC submission) | G15: =base_year -> £m 15/16 prices | P15: =INDEX(Inputs!$P$178:$BB$178,MATCH('Costs & Revenue'!P$5,Inputs!$P$5:$BB$5,0)) -> 0 | Q15: =INDEX(Inputs!$P$178:$BB$178,MATCH('Costs & Revenue'!Q$5,Inputs!$P$5:$BB$5,0)) -> 0 | R15: =INDEX(Inputs!$P$178:$BB$178,MATCH('Costs & Revenue'!R$5,Inputs!$P$5:$BB$5,0)) -> 0 | S15: =INDEX(Inputs!$P$178:$BB$178,MATCH('Costs & Revenue'!S$5,Inputs!$P$5:$BB$5,0)) -> 0 | T15: =INDEX(Inputs!$P$178:$BB$178,MATCH('Costs & Revenue'!T$5,Inputs!$P$5:$BB$5,0)) -> 0 | U15: =INDEX(Inputs!$P$178:$BB$178,MATCH('Costs & Revenue'!U$5,Inputs!$P$5:$BB$5,0)) -> 0 | V15: =INDEX(Inputs!$P$178:$BB$178,MATCH('Costs & Revenue'!V$5,Inputs!$P$5:$BB$5,0)) -> 0 | W15: =INDEX(Inputs!$P$178:$BB$178,MATCH('Costs & Revenue'!W$5,Inputs!$P$5:$BB$5,0)) -> 0 | X15: =INDEX(Inputs!$P$178:$BB$178,MATCH('Costs & Revenue'!X$5,Inputs!$P$5:$BB$5,0)) -> 0 | Y15: =INDEX(Inputs!$P$178:$BB$178,MATCH('Costs & Revenue'!Y$5,Inputs!$P$5:$BB$5,0)) -> 0 | Z15: =INDEX(Inputs!$P$178:$BB$178,MATCH('Costs & Revenue'!Z$5,Inputs!$P$5:$BB$5,0)) -> 0 | AA15: =INDEX(Inputs!$P$178:$BB$178,MATCH('Costs & Revenue'!AA$5,Inputs!$P$5:$BB$5,0)) -> 0 | AB15: =INDEX(Inputs!$P$178:$BB$178,MATCH('Costs & Revenue'!AB$5,Inputs!$P$5:$BB$5,0)) -> 0 | AC15: =INDEX(Inputs!$P$178:$BB$178,MATCH('Costs & Revenue'!AC$5,Inputs!$P$5:$BB$5,0)) -> 0 | AD15: =INDEX(Inputs!$P$178:$BB$178,MATCH('Costs & Revenue'!AD$5,Inputs!$P$5:$BB$5,0)) -> 0 | AE15: =INDEX(Inputs!$P$178:$BB$178,MATCH('Costs & Revenue'!AE$5,Inputs!$P$5:$BB$5,0)) -> 0 | AF15: =INDEX(Inputs!$P$178:$BB$178,MATCH('Costs & Revenue'!AF$5,Inputs!$P$5:$BB$5,0)) -> 0 | AG15: =INDEX(Inputs!$P$178:$BB$178,MATCH('Costs & Revenue'!AG$5,Inputs!$P$5:$BB$5,0)) -> 0 | AH15: =INDEX(Inputs!$P$178:$BB$178,MATCH('Costs & Revenue'!AH$5,Inputs!$P$5:$BB$5,0)) -> 0 | AI15: =INDEX(Inputs!$P$178:$BB$178,MATCH('Costs & Revenue'!AI$5,Inputs!$P$5:$BB$5,0)) -> 0 | AJ15: =INDEX(Inputs!$P$178:$BB$178,MATCH('Costs & Revenue'!AJ$5,Inputs!$P$5:$BB$5,0)) -> 0 | AK15: =INDEX(Inputs!$P$178:$BB$178,MATCH('Costs & Revenue'!AK$5,Inputs!$P$5:$BB$5,0)) -> 0 | AL15: =INDEX(Inputs!$P$178:$BB$178,MATCH('Costs & Revenue'!AL$5,Inputs!$P$5:$BB$5,0)) -> 0 | AM15: =INDEX(Inputs!$P$178:$BB$178,MATCH('Costs & Revenue'!AM$5,Inputs!$P$5:$BB$5,0)) -> 0 | AN15: =INDEX(Inputs!$P$178:$BB$178,MATCH('Costs & Revenue'!AN$5,Inputs!$P$5:$BB$5,0)) -> 0 | AO15: =INDEX(Inputs!$P$178:$BB$178,MATCH('Costs & Revenue'!AO$5,Inputs!$P$5:$BB$5,0)) -> 0 | AP15: =INDEX(Inputs!$P$178:$BB$178,MATCH('Costs & Revenue'!AP$5,Inputs!$P$5:$BB$5,0)) -> 0 | AQ15: =INDEX(Inputs!$P$178:$BB$178,MATCH('Costs & Revenue'!AQ$5,Inputs!$P$5:$BB$5,0)) -> 0 | AR15: =INDEX(Inputs!$P$178:$BB$178,MATCH('Costs & Revenue'!AR$5,Inputs!$P$5:$BB$5,0)) -> 0 | AS15: =INDEX(Inputs!$P$178:$BB$178,MATCH('Costs & Revenue'!AS$5,Inputs!$P$5:$BB$5,0)) -> 0 | AT15: =INDEX(Inputs!$P$178:$BB$178,MATCH('Costs & Revenue'!AT$5,Inputs!$P$5:$BB$5,0)) -> 0 | AU15: =INDEX(Inputs!$P$178:$BB$178,MATCH('Costs & Revenue'!AU$5,Inputs!$P$5:$BB$5,0)) -> 0 | AV15: =INDEX(Inputs!$P$178:$BB$178,MATCH('Costs & Revenue'!AV$5,Inputs!$P$5:$BB$5,0)) -> 0 | AW15: =INDEX(Inputs!$P$178:$BB$178,MATCH('Costs & Revenue'!AW$5,Inputs!$P$5:$BB$5,0)) -> 0 | AX15: =INDEX(Inputs!$P$178:$BB$178,MATCH('Costs & Revenue'!AX$5,Inputs!$P$5:$BB$5,0)) -> 0 | AY15: =INDEX(Inputs!$P$178:$BB$178,MATCH('Costs & Revenue'!AY$5,Inputs!$P$5:$BB$5,0)) -> 0 | AZ15: =INDEX(Inputs!$P$178:$BB$178,MATCH('Costs & Revenue'!AZ$5,Inputs!$P$5:$BB$5,0)) -> 0 | BA15: =INDEX(Inputs!$P$178:$BB$178,MATCH('Costs & Revenue'!BA$5,Inputs!$P$5:$BB$5,0)) -> 0 | BB15: =INDEX(Inputs!$P$178:$BB$178,MATCH('Costs & Revenue'!BB$5,Inputs!$P$5:$BB$5,0)) -> 0
C17: All DCC adjustments (Cap)
E19: First DCCt adjustment
E20: Value | G20: =base_year -> £m 15/16 prices | I20: =Inputs!I187 -> 0
E21: Activity flag | G21: flag | P21: =INDEX(Inputs!$P$208:$BB$208,MATCH('Costs & Revenue'!P$5,Inputs!$P$5:$BB$5,0)) -> 0 | Q21: =INDEX(Inputs!$P$208:$BB$208,MATCH('Costs & Revenue'!Q$5,Inputs!$P$5:$BB$5,0)) -> 0 | R21: =INDEX(Inputs!$P$208:$BB$208,MATCH('Costs & Revenue'!R$5,Inputs!$P$5:$BB$5,0)) -> 0 | S21: =INDEX(Inputs!$P$208:$BB$208,MATCH('Costs & Revenue'!S$5,Inputs!$P$5:$BB$5,0)) -> 0 | T21: =INDEX(Inputs!$P$208:$BB$208,MATCH('Costs & Revenue'!T$5,Inputs!$P$5:$BB$5,0)) -> 0 | U21: =INDEX(Inputs!$P$208:$BB$208,MATCH('Costs & Revenue'!U$5,Inputs!$P$5:$BB$5,0)) -> 0 | V21: =INDEX(Inputs!$P$208:$BB$208,MATCH('Costs & Revenue'!V$5,Inputs!$P$5:$BB$5,0)) -> 0 | W21: =INDEX(Inputs!$P$208:$BB$208,MATCH('Costs & Revenue'!W$5,Inputs!$P$5:$BB$5,0)) -> 0 | X21: =INDEX(Inputs!$P$208:$BB$208,MATCH('Costs & Revenue'!X$5,Inputs!$P$5:$BB$5,0)) -> 0 | Y21: =INDEX(Inputs!$P$208:$BB$208,MATCH('Costs & Revenue'!Y$5,Inputs!$P$5:$BB$5,0)) -> 0 | Z21: =INDEX(Inputs!$P$208:$BB$208,MATCH('Costs & Revenue'!Z$5,Inputs!$P$5:$BB$5,0)) -> 0 | AA21: =INDEX(Inputs!$P$208:$BB$208,MATCH('Costs & Revenue'!AA$5,Inputs!$P$5:$BB$5,0)) -> 0 | AB21: =INDEX(Inputs!$P$208:$BB$208,MATCH('Costs & Revenue'!AB$5,Inputs!$P$5:$BB$5,0)) -> 0 | AC21: =INDEX(Inputs!$P$208:$BB$208,MATCH('Costs & Revenue'!AC$5,Inputs!$P$5:$BB$5,0)) -> 0 | AD21: =INDEX(Inputs!$P$208:$BB$208,MATCH('Costs & Revenue'!AD$5,Inputs!$P$5:$BB$5,0)) -> 0 | AE21: =INDEX(Inputs!$P$208:$BB$208,MATCH('Costs & Revenue'!AE$5,Inputs!$P$5:$BB$5,0)) -> 0 | AF21: =INDEX(Inputs!$P$208:$BB$208,MATCH('Costs & Revenue'!AF$5,Inputs!$P$5:$BB$5,0)) -> 0 | AG21: =INDEX(Inputs!$P$208:$BB$208,MATCH('Costs & Revenue'!AG$5,Inputs!$P$5:$BB$5,0)) -> 0 | AH21: =INDEX(Inputs!$P$208:$BB$208,MATCH('Costs & Revenue'!AH$5,Inputs!$P$5:$BB$5,0)) -> 0 | AI21: =INDEX(Inputs!$P$208:$BB$208,MATCH('Costs & Revenue'!AI$5,Inputs!$P$5:$BB$5,0)) -> 0.8323066393 | AJ21: =INDEX(Inputs!$P$208:$BB$208,MATCH('Costs & Revenue'!AJ$5,Inputs!$P$5:$BB$5,0)) -> 1 | AK21: =INDEX(Inputs!$P$208:$BB$208,MATCH('Costs & Revenue'!AK$5,Inputs!$P$5:$BB$5,0)) -> 1 | AL21: =INDEX(Inputs!$P$208:$BB$208,MATCH('Costs & Revenue'!AL$5,Inputs!$P$5:$BB$5,0)) -> 1 | AM21: =INDEX(Inputs!$P$208:$BB$208,MATCH('Costs & Revenue'!AM$5,Inputs!$P$5:$BB$5,0)) -> 1.163586585 | AN21: =INDEX(Inputs!$P$208:$BB$208,MATCH('Costs & Revenue'!AN$5,Inputs!$P$5:$BB$5,0)) -> 0 | AO21: =INDEX(Inputs!$P$208:$BB$208,MATCH('Costs & Revenue'!AO$5,Inputs!$P$5:$BB$5,0)) -> 0 | AP21: =INDEX(Inputs!$P$208:$BB$208,MATCH('Costs & Revenue'!AP$5,Inputs!$P$5:$BB$5,0)) -> 0 | AQ21: =INDEX(Inputs!$P$208:$BB$208,MATCH('Costs & Revenue'!AQ$5,Inputs!$P$5:$BB$5,0)) -> 0 | AR21: =INDEX(Inputs!$P$208:$BB$208,MATCH('Costs & Revenue'!AR$5,Inputs!$P$5:$BB$5,0)) -> 0 | AS21: =INDEX(Inputs!$P$208:$BB$208,MATCH('Costs & Revenue'!AS$5,Inputs!$P$5:$BB$5,0)) -> 0 | AT21: =INDEX(Inputs!$P$208:$BB$208,MATCH('Costs & Revenue'!AT$5,Inputs!$P$5:$BB$5,0)) -> 0 | AU21: =INDEX(Inputs!$P$208:$BB$208,MATCH('Costs & Revenue'!AU$5,Inputs!$P$5:$BB$5,0)) -> 0 | AV21: =INDEX(Inputs!$P$208:$BB$208,MATCH('Costs & Revenue'!AV$5,Inputs!$P$5:$BB$5,0)) -> 0 | AW21: =INDEX(Inputs!$P$208:$BB$208,MATCH('Costs & Revenue'!AW$5,Inputs!$P$5:$BB$5,0)) -> 0 | AX21: =INDEX(Inputs!$P$208:$BB$208,MATCH('Costs & Revenue'!AX$5,Inputs!$P$5:$BB$5,0)) -> 0 | AY21: =INDEX(Inputs!$P$208:$BB$208,MATCH('Costs & Revenue'!AY$5,Inputs!$P$5:$BB$5,0)) -> 0 | AZ21: =INDEX(Inputs!$P$208:$BB$208,MATCH('Costs & Revenue'!AZ$5,Inputs!$P$5:$BB$5,0)) -> 0 | BA21: =INDEX(Inputs!$P$208:$BB$208,MATCH('Costs & Revenue'!BA$5,Inputs!$P$5:$BB$5,0)) -> 0 | BB21: =INDEX(Inputs!$P$208:$BB$208,MATCH('Costs & Revenue'!BB$5,Inputs!$P$5:$BB$5,0)) -> 0
E23: Second DCCt adjustment
E24: Value | G24: =base_year -> £m 15/16 prices | I24: =Inputs!I192 -> 0
E25: Activity flag | G25: flag | P25: =INDEX(Inputs!$P$209:$BB$209,MATCH('Costs & Revenue'!P$5,Inputs!$P$5:$BB$5,0)) -> 0 | Q25: =INDEX(Inputs!$P$209:$BB$209,MATCH('Costs & Revenue'!Q$5,Inputs!$P$5:$BB$5,0)) -> 0 | R25: =INDEX(Inputs!$P$209:$BB$209,MATCH('Costs & Revenue'!R$5,Inputs!$P$5:$BB$5,0)) -> 0 | S25: =INDEX(Inputs!$P$209:$BB$209,MATCH('Costs & Revenue'!S$5,Inputs!$P$5:$BB$5,0)) -> 0 | T25: =INDEX(Inputs!$P$209:$BB$209,MATCH('Costs & Revenue'!T$5,Inputs!$P$5:$BB$5,0)) -> 0 | U25: =INDEX(Inputs!$P$209:$BB$209,MATCH('Costs & Revenue'!U$5,Inputs!$P$5:$BB$5,0)) -> 0 | V25: =INDEX(Inputs!$P$209:$BB$209,MATCH('Costs & Revenue'!V$5,Inputs!$P$5:$BB$5,0)) -> 0 | W25: =INDEX(Inputs!$P$209:$BB$209,MATCH('Costs & Revenue'!W$5,Inputs!$P$5:$BB$5,0)) -> 0 | X25: =INDEX(Inputs!$P$209:$BB$209,MATCH('Costs & Revenue'!X$5,Inputs!$P$5:$BB$5,0)) -> 0 | Y25: =INDEX(Inputs!$P$209:$BB$209,MATCH('Costs & Revenue'!Y$5,Inputs!$P$5:$BB$5,0)) -> 0 | Z25: =INDEX(Inputs!$P$209:$BB$209,MATCH('Costs & Revenue'!Z$5,Inputs!$P$5:$BB$5,0)) -> 0 | AA25: =INDEX(Inputs!$P$209:$BB$209,MATCH('Costs & Revenue'!AA$5,Inputs!$P$5:$BB$5,0)) -> 0 | AB25: =INDEX(Inputs!$P$209:$BB$209,MATCH('Costs & Revenue'!AB$5,Inputs!$P$5:$BB$5,0)) -> 0 | AC25: =INDEX(Inputs!$P$209:$BB$209,MATCH('Costs & Revenue'!AC$5,Inputs!$P$5:$BB$5,0)) -> 0 | AD25: =INDEX(Inputs!$P$209:$BB$209,MATCH('Costs & Revenue'!AD$5,Inputs!$P$5:$BB$5,0)) -> 0 | AE25: =INDEX(Inputs!$P$209:$BB$209,MATCH('Costs & Revenue'!AE$5,Inputs!$P$5:$BB$5,0)) -> 0 | AF25: =INDEX(Inputs!$P$209:$BB$209,MATCH('Costs & Revenue'!AF$5,Inputs!$P$5:$BB$5,0)) -> 0 | AG25: =INDEX(Inputs!$P$209:$BB$209,MATCH('Costs & Revenue'!AG$5,Inputs!$P$5:$BB$5,0)) -> 0 | AH25: =INDEX(Inputs!$P$209:$BB$209,MATCH('Costs & Revenue'!AH$5,Inputs!$P$5:$BB$5,0)) -> 0 | AI25: =INDEX(Inputs!$P$209:$BB$209,MATCH('Costs & Revenue'!AI$5,Inputs!$P$5:$BB$5,0)) -> 0 | AJ25: =INDEX(Inputs!$P$209:$BB$209,MATCH('Costs & Revenue'!AJ$5,Inputs!$P$5:$BB$5,0)) -> 0 | AK25: =INDEX(Inputs!$P$209:$BB$209,MATCH('Costs & Revenue'!AK$5,Inputs!$P$5:$BB$5,0)) -> 0 | AL25: =INDEX(Inputs!$P$209:$BB$209,MATCH('Costs & Revenue'!AL$5,Inputs!$P$5:$BB$5,0)) -> 0 | AM25: =INDEX(Inputs!$P$209:$BB$209,MATCH('Costs & Revenue'!AM$5,Inputs!$P$5:$BB$5,0)) -> 0 | AN25: =INDEX(Inputs!$P$209:$BB$209,MATCH('Costs & Revenue'!AN$5,Inputs!$P$5:$BB$5,0)) -> 0 | AO25: =INDEX(Inputs!$P$209:$BB$209,MATCH('Costs & Revenue'!AO$5,Inputs!$P$5:$BB$5,0)) -> 0 | AP25: =INDEX(Inputs!$P$209:$BB$209,MATCH('Costs & Revenue'!AP$5,Inputs!$P$5:$BB$5,0)) -> 0 | AQ25: =INDEX(Inputs!$P$209:$BB$209,MATCH('Costs & Revenue'!AQ$5,Inputs!$P$5:$BB$5,0)) -> 0 | AR25: =INDEX(Inputs!$P$209:$BB$209,MATCH('Costs & Revenue'!AR$5,Inputs!$P$5:$BB$5,0)) -> 0 | AS25: =INDEX(Inputs!$P$209:$BB$209,MATCH('Costs & Revenue'!AS$5,Inputs!$P$5:$BB$5,0)) -> 0 | AT25: =INDEX(Inputs!$P$209:$BB$209,MATCH('Costs & Revenue'!AT$5,Inputs!$P$5:$BB$5,0)) -> 0 | AU25: =INDEX(Inputs!$P$209:$BB$209,MATCH('Costs & Revenue'!AU$5,Inputs!$P$5:$BB$5,0)) -> 0 | AV25: =INDEX(Inputs!$P$209:$BB$209,MATCH('Costs & Revenue'!AV$5,Inputs!$P$5:$BB$5,0)) -> 0 | AW25: =INDEX(Inputs!$P$209:$BB$209,MATCH('Costs & Revenue'!AW$5,Inputs!$P$5:$BB$5,0)) -> 0 | AX25: =INDEX(Inputs!$P$209:$BB$209,MATCH('Costs & Revenue'!AX$5,Inputs!$P$5:$BB$5,0)) -> 0 | AY25: =INDEX(Inputs!$P$209:$BB$209,MATCH('Costs & Revenue'!AY$5,Inputs!$P$5:$BB$5,0)) -> 0 | AZ25: =INDEX(Inputs!$P$209:$BB$209,MATCH('Costs & Revenue'!AZ$5,Inputs!$P$5:$BB$5,0)) -> 0 | BA25: =INDEX(Inputs!$P$209:$BB$209,MATCH('Costs & Revenue'!BA$5,Inputs!$P$5:$BB$5,0)) -> 0 | BB25: =INDEX(Inputs!$P$209:$BB$209,MATCH('Costs & Revenue'!BB$5,Inputs!$P$5:$BB$5,0)) -> 0
E27: Third DCCt adjustment
E28: Value | G28: =base_year -> £m 15/16 prices | I28: =Inputs!I197 -> 0
E29: Activity flag | G29: flag | P29: =INDEX(Inputs!$P$210:$BB$210,MATCH('Costs & Revenue'!P$5,Inputs!$P$5:$BB$5,0)) -> 0 | Q29: =INDEX(Inputs!$P$210:$BB$210,MATCH('Costs & Revenue'!Q$5,Inputs!$P$5:$BB$5,0)) -> 0 | R29: =INDEX(Inputs!$P$210:$BB$210,MATCH('Costs & Revenue'!R$5,Inputs!$P$5:$BB$5,0)) -> 0 | S29: =INDEX(Inputs!$P$210:$BB$210,MATCH('Costs & Revenue'!S$5,Inputs!$P$5:$BB$5,0)) -> 0 | T29: =INDEX(Inputs!$P$210:$BB$210,MATCH('Costs & Revenue'!T$5,Inputs!$P$5:$BB$5,0)) -> 0 | U29: =INDEX(Inputs!$P$210:$BB$210,MATCH('Costs & Revenue'!U$5,Inputs!$P$5:$BB$5,0)) -> 0 | V29: =INDEX(Inputs!$P$210:$BB$210,MATCH('Costs & Revenue'!V$5,Inputs!$P$5:$BB$5,0)) -> 0 | W29: =INDEX(Inputs!$P$210:$BB$210,MATCH('Costs & Revenue'!W$5,Inputs!$P$5:$BB$5,0)) -> 0 | X29: =INDEX(Inputs!$P$210:$BB$210,MATCH('Costs & Revenue'!X$5,Inputs!$P$5:$BB$5,0)) -> 0 | Y29: =INDEX(Inputs!$P$210:$BB$210,MATCH('Costs & Revenue'!Y$5,Inputs!$P$5:$BB$5,0)) -> 0 | Z29: =INDEX(Inputs!$P$210:$BB$210,MATCH('Costs & Revenue'!Z$5,Inputs!$P$5:$BB$5,0)) -> 0 | AA29: =INDEX(Inputs!$P$210:$BB$210,MATCH('Costs & Revenue'!AA$5,Inputs!$P$5:$BB$5,0)) -> 0 | AB29: =INDEX(Inputs!$P$210:$BB$210,MATCH('Costs & Revenue'!AB$5,Inputs!$P$5:$BB$5,0)) -> 0 | AC29: =INDEX(Inputs!$P$210:$BB$210,MATCH('Costs & Revenue'!AC$5,Inputs!$P$5:$BB$5,0)) -> 0 | AD29: =INDEX(Inputs!$P$210:$BB$210,MATCH('Costs & Revenue'!AD$5,Inputs!$P$5:$BB$5,0)) -> 0 | AE29: =INDEX(Inputs!$P$210:$BB$210,MATCH('Costs & Revenue'!AE$5,Inputs!$P$5:$BB$5,0)) -> 0 | AF29: =INDEX(Inputs!$P$210:$BB$210,MATCH('Costs & Revenue'!AF$5,Inputs!$P$5:$BB$5,0)) -> 0 | AG29: =INDEX(Inputs!$P$210:$BB$210,MATCH('Costs & Revenue'!AG$5,Inputs!$P$5:$BB$5,0)) -> 0 | AH29: =INDEX(Inputs!$P$210:$BB$210,MATCH('Costs & Revenue'!AH$5,Inputs!$P$5:$BB$5,0)) -> 0 | AI29: =INDEX(Inputs!$P$210:$BB$210,MATCH('Costs & Revenue'!AI$5,Inputs!$P$5:$BB$5,0)) -> 0 | AJ29: =INDEX(Inputs!$P$210:$BB$210,MATCH('Costs & Revenue'!AJ$5,Inputs!$P$5:$BB$5,0)) -> 0 | AK29: =INDEX(Inputs!$P$210:$BB$210,MATCH('Costs & Revenue'!AK$5,Inputs!$P$5:$BB$5,0)) -> 0 | AL29: =INDEX(Inputs!$P$210:$BB$210,MATCH('Costs & Revenue'!AL$5,Inputs!$P$5:$BB$5,0)) -> 0 | AM29: =INDEX(Inputs!$P$210:$BB$210,MATCH('Costs & Revenue'!AM$5,Inputs!$P$5:$BB$5,0)) -> 0 | AN29: =INDEX(Inputs!$P$210:$BB$210,MATCH('Costs & Revenue'!AN$5,Inputs!$P$5:$BB$5,0)) -> 0 | AO29: =INDEX(Inputs!$P$210:$BB$210,MATCH('Costs & Revenue'!AO$5,Inputs!$P$5:$BB$5,0)) -> 0 | AP29: =INDEX(Inputs!$P$210:$BB$210,MATCH('Costs & Revenue'!AP$5,Inputs!$P$5:$BB$5,0)) -> 0 | AQ29: =INDEX(Inputs!$P$210:$BB$210,MATCH('Costs & Revenue'!AQ$5,Inputs!$P$5:$BB$5,0)) -> 0 | AR29: =INDEX(Inputs!$P$210:$BB$210,MATCH('Costs & Revenue'!AR$5,Inputs!$P$5:$BB$5,0)) -> 0 | AS29: =INDEX(Inputs!$P$210:$BB$210,MATCH('Costs & Revenue'!AS$5,Inputs!$P$5:$BB$5,0)) -> 0 | AT29: =INDEX(Inputs!$P$210:$BB$210,MATCH('Costs & Revenue'!AT$5,Inputs!$P$5:$BB$5,0)) -> 0 | AU29: =INDEX(Inputs!$P$210:$BB$210,MATCH('Costs & Revenue'!AU$5,Inputs!$P$5:$BB$5,0)) -> 0 | AV29: =INDEX(Inputs!$P$210:$BB$210,MATCH('Costs & Revenue'!AV$5,Inputs!$P$5:$BB$5,0)) -> 0 | AW29: =INDEX(Inputs!$P$210:$BB$210,MATCH('Costs & Revenue'!AW$5,Inputs!$P$5:$BB$5,0)) -> 0 | AX29: =INDEX(Inputs!$P$210:$BB$210,MATCH('Costs & Revenue'!AX$5,Inputs!$P$5:$BB$5,0)) -> 0 | AY29: =INDEX(Inputs!$P$210:$BB$210,MATCH('Costs & Revenue'!AY$5,Inputs!$P$5:$BB$5,0)) -> 0 | AZ29: =INDEX(Inputs!$P$210:$BB$210,MATCH('Costs & Revenue'!AZ$5,Inputs!$P$5:$BB$5,0)) -> 0 | BA29: =INDEX(Inputs!$P$210:$BB$210,MATCH('Costs & Revenue'!BA$5,Inputs!$P$5:$BB$5,0)) -> 0 | BB29: =INDEX(Inputs!$P$210:$BB$210,MATCH('Costs & Revenue'!BB$5,Inputs!$P$5:$BB$5,0)) -> 0
E31: Fourth DCCt adjustment
E32: Value | G32: =base_year -> £m 15/16 prices | I32: =Inputs!I202 -> 0
E33: Activity flag | G33: flag | P33: =INDEX(Inputs!$P$211:$BB$211,MATCH('Costs & Revenue'!P$5,Inputs!$P$5:$BB$5,0)) -> 0 | Q33: =INDEX(Inputs!$P$211:$BB$211,MATCH('Costs & Revenue'!Q$5,Inputs!$P$5:$BB$5,0)) -> 0 | R33: =INDEX(Inputs!$P$211:$BB$211,MATCH('Costs & Revenue'!R$5,Inputs!$P$5:$BB$5,0)) -> 0 | S33: =INDEX(Inputs!$P$211:$BB$211,MATCH('Costs & Revenue'!S$5,Inputs!$P$5:$BB$5,0)) -> 0 | T33: =INDEX(Inputs!$P$211:$BB$211,MATCH('Costs & Revenue'!T$5,Inputs!$P$5:$BB$5,0)) -> 0 | U33: =INDEX(Inputs!$P$211:$BB$211,MATCH('Costs & Revenue'!U$5,Inputs!$P$5:$BB$5,0)) -> 0 | V33: =INDEX(Inputs!$P$211:$BB$211,MATCH('Costs & Revenue'!V$5,Inputs!$P$5:$BB$5,0)) -> 0 | W33: =INDEX(Inputs!$P$211:$BB$211,MATCH('Costs & Revenue'!W$5,Inputs!$P$5:$BB$5,0)) -> 0 | X33: =INDEX(Inputs!$P$211:$BB$211,MATCH('Costs & Revenue'!X$5,Inputs!$P$5:$BB$5,0)) -> 0 | Y33: =INDEX(Inputs!$P$211:$BB$211,MATCH('Costs & Revenue'!Y$5,Inputs!$P$5:$BB$5,0)) -> 0 | Z33: =INDEX(Inputs!$P$211:$BB$211,MATCH('Costs & Revenue'!Z$5,Inputs!$P$5:$BB$5,0)) -> 0 | AA33: =INDEX(Inputs!$P$211:$BB$211,MATCH('Costs & Revenue'!AA$5,Inputs!$P$5:$BB$5,0)) -> 0 | AB33: =INDEX(Inputs!$P$211:$BB$211,MATCH('Costs & Revenue'!AB$5,Inputs!$P$5:$BB$5,0)) -> 0 | AC33: =INDEX(Inputs!$P$211:$BB$211,MATCH('Costs & Revenue'!AC$5,Inputs!$P$5:$BB$5,0)) -> 0 | AD33: =INDEX(Inputs!$P$211:$BB$211,MATCH('Costs & Revenue'!AD$5,Inputs!$P$5:$BB$5,0)) -> 0 | AE33: =INDEX(Inputs!$P$211:$BB$211,MATCH('Costs & Revenue'!AE$5,Inputs!$P$5:$BB$5,0)) -> 0 | AF33: =INDEX(Inputs!$P$211:$BB$211,MATCH('Costs & Revenue'!AF$5,Inputs!$P$5:$BB$5,0)) -> 0 | AG33: =INDEX(Inputs!$P$211:$BB$211,MATCH('Costs & Revenue'!AG$5,Inputs!$P$5:$BB$5,0)) -> 0 | AH33: =INDEX(Inputs!$P$211:$BB$211,MATCH('Costs & Revenue'!AH$5,Inputs!$P$5:$BB$5,0)) -> 0 | AI33: =INDEX(Inputs!$P$211:$BB$211,MATCH('Costs & Revenue'!AI$5,Inputs!$P$5:$BB$5,0)) -> 0 | AJ33: =INDEX(Inputs!$P$211:$BB$211,MATCH('Costs & Revenue'!AJ$5,Inputs!$P$5:$BB$5,0)) -> 0 | AK33: =INDEX(Inputs!$P$211:$BB$211,MATCH('Costs & Revenue'!AK$5,Inputs!$P$5:$BB$5,0)) -> 0 | AL33: =INDEX(Inputs!$P$211:$BB$211,MATCH('Costs & Revenue'!AL$5,Inputs!$P$5:$BB$5,0)) -> 0 | AM33: =INDEX(Inputs!$P$211:$BB$211,MATCH('Costs & Revenue'!AM$5,Inputs!$P$5:$BB$5,0)) -> 0 | AN33: =INDEX(Inputs!$P$211:$BB$211,MATCH('Costs & Revenue'!AN$5,Inputs!$P$5:$BB$5,0)) -> 0 | AO33: =INDEX(Inputs!$P$211:$BB$211,MATCH('Costs & Revenue'!AO$5,Inputs!$P$5:$BB$5,0)) -> 0 | AP33: =INDEX(Inputs!$P$211:$BB$211,MATCH('Costs & Revenue'!AP$5,Inputs!$P$5:$BB$5,0)) -> 0 | AQ33: =INDEX(Inputs!$P$211:$BB$211,MATCH('Costs & Revenue'!AQ$5,Inputs!$P$5:$BB$5,0)) -> 0 | AR33: =INDEX(Inputs!$P$211:$BB$211,MATCH('Costs & Revenue'!AR$5,Inputs!$P$5:$BB$5,0)) -> 0 | AS33: =INDEX(Inputs!$P$211:$BB$211,MATCH('Costs & Revenue'!AS$5,Inputs!$P$5:$BB$5,0)) -> 0 | AT33: =INDEX(Inputs!$P$211:$BB$211,MATCH('Costs & Revenue'!AT$5,Inputs!$P$5:$BB$5,0)) -> 0 | AU33: =INDEX(Inputs!$P$211:$BB$211,MATCH('Costs & Revenue'!AU$5,Inputs!$P$5:$BB$5,0)) -> 0 | AV33: =INDEX(Inputs!$P$211:$BB$211,MATCH('Costs & Revenue'!AV$5,Inputs!$P$5:$BB$5,0)) -> 0 | AW33: =INDEX(Inputs!$P$211:$BB$211,MATCH('Costs & Revenue'!AW$5,Inputs!$P$5:$BB$5,0)) -> 0 | AX33: =INDEX(Inputs!$P$211:$BB$211,MATCH('Costs & Revenue'!AX$5,Inputs!$P$5:$BB$5,0)) -> 0 | AY33: =INDEX(Inputs!$P$211:$BB$211,MATCH('Costs & Revenue'!AY$5,Inputs!$P$5:$BB$5,0)) -> 0 | AZ33: =INDEX(Inputs!$P$211:$BB$211,MATCH('Costs & Revenue'!AZ$5,Inputs!$P$5:$BB$5,0)) -> 0 | BA33: =INDEX(Inputs!$P$211:$BB$211,MATCH('Costs & Revenue'!BA$5,Inputs!$P$5:$BB$5,0)) -> 0 | BB33: =INDEX(Inputs!$P$211:$BB$211,MATCH('Costs & Revenue'!BB$5,Inputs!$P$5:$BB$5,0)) -> 0
C35: All DCF adjustments (Floor)
E37: First DCFt adjustment
E38: Value | G38: =base_year -> £m 15/16 prices | I38: =Inputs!I188 -> 0
E39: Activity flag | G39: flag | P39: =INDEX(Inputs!$P$208:$BB$208,MATCH('Costs & Revenue'!P$5,Inputs!$P$5:$BB$5,0)) -> 0 | Q39: =INDEX(Inputs!$P$208:$BB$208,MATCH('Costs & Revenue'!Q$5,Inputs!$P$5:$BB$5,0)) -> 0 | R39: =INDEX(Inputs!$P$208:$BB$208,MATCH('Costs & Revenue'!R$5,Inputs!$P$5:$BB$5,0)) -> 0 | S39: =INDEX(Inputs!$P$208:$BB$208,MATCH('Costs & Revenue'!S$5,Inputs!$P$5:$BB$5,0)) -> 0 | T39: =INDEX(Inputs!$P$208:$BB$208,MATCH('Costs & Revenue'!T$5,Inputs!$P$5:$BB$5,0)) -> 0 | U39: =INDEX(Inputs!$P$208:$BB$208,MATCH('Costs & Revenue'!U$5,Inputs!$P$5:$BB$5,0)) -> 0 | V39: =INDEX(Inputs!$P$208:$BB$208,MATCH('Costs & Revenue'!V$5,Inputs!$P$5:$BB$5,0)) -> 0 | W39: =INDEX(Inputs!$P$208:$BB$208,MATCH('Costs & Revenue'!W$5,Inputs!$P$5:$BB$5,0)) -> 0 | X39: =INDEX(Inputs!$P$208:$BB$208,MATCH('Costs & Revenue'!X$5,Inputs!$P$5:$BB$5,0)) -> 0 | Y39: =INDEX(Inputs!$P$208:$BB$208,MATCH('Costs & Revenue'!Y$5,Inputs!$P$5:$BB$5,0)) -> 0 | Z39: =INDEX(Inputs!$P$208:$BB$208,MATCH('Costs & Revenue'!Z$5,Inputs!$P$5:$BB$5,0)) -> 0 | AA39: =INDEX(Inputs!$P$208:$BB$208,MATCH('Costs & Revenue'!AA$5,Inputs!$P$5:$BB$5,0)) -> 0 | AB39: =INDEX(Inputs!$P$208:$BB$208,MATCH('Costs & Revenue'!AB$5,Inputs!$P$5:$BB$5,0)) -> 0 | AC39: =INDEX(Inputs!$P$208:$BB$208,MATCH('Costs & Revenue'!AC$5,Inputs!$P$5:$BB$5,0)) -> 0 | AD39: =INDEX(Inputs!$P$208:$BB$208,MATCH('Costs & Revenue'!AD$5,Inputs!$P$5:$BB$5,0)) -> 0 | AE39: =INDEX(Inputs!$P$208:$BB$208,MATCH('Costs & Revenue'!AE$5,Inputs!$P$5:$BB$5,0)) -> 0 | AF39: =INDEX(Inputs!$P$208:$BB$208,MATCH('Costs & Revenue'!AF$5,Inputs!$P$5:$BB$5,0)) -> 0 | AG39: =INDEX(Inputs!$P$208:$BB$208,MATCH('Costs & Revenue'!AG$5,Inputs!$P$5:$BB$5,0)) -> 0 | AH39: =INDEX(Inputs!$P$208:$BB$208,MATCH('Costs & Revenue'!AH$5,Inputs!$P$5:$BB$5,0)) -> 0 | AI39: =INDEX(Inputs!$P$208:$BB$208,MATCH('Costs & Revenue'!AI$5,Inputs!$P$5:$BB$5,0)) -> 0.8323066393 | AJ39: =INDEX(Inputs!$P$208:$BB$208,MATCH('Costs & Revenue'!AJ$5,Inputs!$P$5:$BB$5,0)) -> 1 | AK39: =INDEX(Inputs!$P$208:$BB$208,MATCH('Costs & Revenue'!AK$5,Inputs!$P$5:$BB$5,0)) -> 1 | AL39: =INDEX(Inputs!$P$208:$BB$208,MATCH('Costs & Revenue'!AL$5,Inputs!$P$5:$BB$5,0)) -> 1 | AM39: =INDEX(Inputs!$P$208:$BB$208,MATCH('Costs & Revenue'!AM$5,Inputs!$P$5:$BB$5,0)) -> 1.163586585 | AN39: =INDEX(Inputs!$P$208:$BB$208,MATCH('Costs & Revenue'!AN$5,Inputs!$P$5:$BB$5,0)) -> 0 | AO39: =INDEX(Inputs!$P$208:$BB$208,MATCH('Costs & Revenue'!AO$5,Inputs!$P$5:$BB$5,0)) -> 0 | AP39: =INDEX(Inputs!$P$208:$BB$208,MATCH('Costs & Revenue'!AP$5,Inputs!$P$5:$BB$5,0)) -> 0 | AQ39: =INDEX(Inputs!$P$208:$BB$208,MATCH('Costs & Revenue'!AQ$5,Inputs!$P$5:$BB$5,0)) -> 0 | AR39: =INDEX(Inputs!$P$208:$BB$208,MATCH('Costs & Revenue'!AR$5,Inputs!$P$5:$BB$5,0)) -> 0 | AS39: =INDEX(Inputs!$P$208:$BB$208,MATCH('Costs & Revenue'!AS$5,Inputs!$P$5:$BB$5,0)) -> 0 | AT39: =INDEX(Inputs!$P$208:$BB$208,MATCH('Costs & Revenue'!AT$5,Inputs!$P$5:$BB$5,0)) -> 0 | AU39: =INDEX(Inputs!$P$208:$BB$208,MATCH('Costs & Revenue'!AU$5,Inputs!$P$5:$BB$5,0)) -> 0 | AV39: =INDEX(Inputs!$P$208:$BB$208,MATCH('Costs & Revenue'!AV$5,Inputs!$P$5:$BB$5,0)) -> 0 | AW39: =INDEX(Inputs!$P$208:$BB$208,MATCH('Costs & Revenue'!AW$5,Inputs!$P$5:$BB$5,0)) -> 0 | AX39: =INDEX(Inputs!$P$208:$BB$208,MATCH('Costs & Revenue'!AX$5,Inputs!$P$5:$BB$5,0)) -> 0 | AY39: =INDEX(Inputs!$P$208:$BB$208,MATCH('Costs & Revenue'!AY$5,Inputs!$P$5:$BB$5,0)) -> 0 | AZ39: =INDEX(Inputs!$P$208:$BB$208,MATCH('Costs & Revenue'!AZ$5,Inputs!$P$5:$BB$5,0)) -> 0 | BA39: =INDEX(Inputs!$P$208:$BB$208,MATCH('Costs & Revenue'!BA$5,Inputs!$P$5:$BB$5,0)) -> 0 | BB39: =INDEX(Inputs!$P$208:$BB$208,MATCH('Costs & Revenue'!BB$5,Inputs!$P$5:$BB$5,0)) -> 0
E41: Second DCFt adjustment
E42: Value | G42: =base_year -> £m 15/16 prices | I42: =Inputs!I193 -> 0
E43: Activity flag | G43: flag | P43: =INDEX(Inputs!$P$209:$BB$209,MATCH('Costs & Revenue'!P$5,Inputs!$P$5:$BB$5,0)) -> 0 | Q43: =INDEX(Inputs!$P$209:$BB$209,MATCH('Costs & Revenue'!Q$5,Inputs!$P$5:$BB$5,0)) -> 0 | R43: =INDEX(Inputs!$P$209:$BB$209,MATCH('Costs & Revenue'!R$5,Inputs!$P$5:$BB$5,0)) -> 0 | S43: =INDEX(Inputs!$P$209:$BB$209,MATCH('Costs & Revenue'!S$5,Inputs!$P$5:$BB$5,0)) -> 0 | T43: =INDEX(Inputs!$P$209:$BB$209,MATCH('Costs & Revenue'!T$5,Inputs!$P$5:$BB$5,0)) -> 0 | U43: =INDEX(Inputs!$P$209:$BB$209,MATCH('Costs & Revenue'!U$5,Inputs!$P$5:$BB$5,0)) -> 0 | V43: =INDEX(Inputs!$P$209:$BB$209,MATCH('Costs & Revenue'!V$5,Inputs!$P$5:$BB$5,0)) -> 0 | W43: =INDEX(Inputs!$P$209:$BB$209,MATCH('Costs & Revenue'!W$5,Inputs!$P$5:$BB$5,0)) -> 0 | X43: =INDEX(Inputs!$P$209:$BB$209,MATCH('Costs & Revenue'!X$5,Inputs!$P$5:$BB$5,0)) -> 0 | Y43: =INDEX(Inputs!$P$209:$BB$209,MATCH('Costs & Revenue'!Y$5,Inputs!$P$5:$BB$5,0)) -> 0 | Z43: =INDEX(Inputs!$P$209:$BB$209,MATCH('Costs & Revenue'!Z$5,Inputs!$P$5:$BB$5,0)) -> 0 | AA43: =INDEX(Inputs!$P$209:$BB$209,MATCH('Costs & Revenue'!AA$5,Inputs!$P$5:$BB$5,0)) -> 0 | AB43: =INDEX(Inputs!$P$209:$BB$209,MATCH('Costs & Revenue'!AB$5,Inputs!$P$5:$BB$5,0)) -> 0 | AC43: =INDEX(Inputs!$P$209:$BB$209,MATCH('Costs & Revenue'!AC$5,Inputs!$P$5:$BB$5,0)) -> 0 | AD43: =INDEX(Inputs!$P$209:$BB$209,MATCH('Costs & Revenue'!AD$5,Inputs!$P$5:$BB$5,0)) -> 0 | AE43: =INDEX(Inputs!$P$209:$BB$209,MATCH('Costs & Revenue'!AE$5,Inputs!$P$5:$BB$5,0)) -> 0 | AF43: =INDEX(Inputs!$P$209:$BB$209,MATCH('Costs & Revenue'!AF$5,Inputs!$P$5:$BB$5,0)) -> 0 | AG43: =INDEX(Inputs!$P$209:$BB$209,MATCH('Costs & Revenue'!AG$5,Inputs!$P$5:$BB$5,0)) -> 0 | AH43: =INDEX(Inputs!$P$209:$BB$209,MATCH('Costs & Revenue'!AH$5,Inputs!$P$5:$BB$5,0)) -> 0 | AI43: =INDEX(Inputs!$P$209:$BB$209,MATCH('Costs & Revenue'!AI$5,Inputs!$P$5:$BB$5,0)) -> 0 | AJ43: =INDEX(Inputs!$P$209:$BB$209,MATCH('Costs & Revenue'!AJ$5,Inputs!$P$5:$BB$5,0)) -> 0 | AK43: =INDEX(Inputs!$P$209:$BB$209,MATCH('Costs & Revenue'!AK$5,Inputs!$P$5:$BB$5,0)) -> 0 | AL43: =INDEX(Inputs!$P$209:$BB$209,MATCH('Costs & Revenue'!AL$5,Inputs!$P$5:$BB$5,0)) -> 0 | AM43: =INDEX(Inputs!$P$209:$BB$209,MATCH('Costs & Revenue'!AM$5,Inputs!$P$5:$BB$5,0)) -> 0 | AN43: =INDEX(Inputs!$P$209:$BB$209,MATCH('Costs & Revenue'!AN$5,Inputs!$P$5:$BB$5,0)) -> 0 | AO43: =INDEX(Inputs!$P$209:$BB$209,MATCH('Costs & Revenue'!AO$5,Inputs!$P$5:$BB$5,0)) -> 0 | AP43: =INDEX(Inputs!$P$209:$BB$209,MATCH('Costs & Revenue'!AP$5,Inputs!$P$5:$BB$5,0)) -> 0 | AQ43: =INDEX(Inputs!$P$209:$BB$209,MATCH('Costs & Revenue'!AQ$5,Inputs!$P$5:$BB$5,0)) -> 0 | AR43: =INDEX(Inputs!$P$209:$BB$209,MATCH('Costs & Revenue'!AR$5,Inputs!$P$5:$BB$5,0)) -> 0 | AS43: =INDEX(Inputs!$P$209:$BB$209,MATCH('Costs & Revenue'!AS$5,Inputs!$P$5:$BB$5,0)) -> 0 | AT43: =INDEX(Inputs!$P$209:$BB$209,MATCH('Costs & Revenue'!AT$5,Inputs!$P$5:$BB$5,0)) -> 0 | AU43: =INDEX(Inputs!$P$209:$BB$209,MATCH('Costs & Revenue'!AU$5,Inputs!$P$5:$BB$5,0)) -> 0 | AV43: =INDEX(Inputs!$P$209:$BB$209,MATCH('Costs & Revenue'!AV$5,Inputs!$P$5:$BB$5,0)) -> 0 | AW43: =INDEX(Inputs!$P$209:$BB$209,MATCH('Costs & Revenue'!AW$5,Inputs!$P$5:$BB$5,0)) -> 0 | AX43: =INDEX(Inputs!$P$209:$BB$209,MATCH('Costs & Revenue'!AX$5,Inputs!$P$5:$BB$5,0)) -> 0 | AY43: =INDEX(Inputs!$P$209:$BB$209,MATCH('Costs & Revenue'!AY$5,Inputs!$P$5:$BB$5,0)) -> 0 | AZ43: =INDEX(Inputs!$P$209:$BB$209,MATCH('Costs & Revenue'!AZ$5,Inputs!$P$5:$BB$5,0)) -> 0 | BA43: =INDEX(Inputs!$P$209:$BB$209,MATCH('Costs & Revenue'!BA$5,Inputs!$P$5:$BB$5,0)) -> 0 | BB43: =INDEX(Inputs!$P$209:$BB$209,MATCH('Costs & Revenue'!BB$5,Inputs!$P$5:$BB$5,0)) -> 0
E45: Third DCFt adjustment
E46: Value | G46: =base_year -> £m 15/16 prices | I46: =Inputs!I198 -> 0
E47: Activity flag | G47: flag | P47: =INDEX(Inputs!$P$210:$BB$210,MATCH('Costs & Revenue'!P$5,Inputs!$P$5:$BB$5,0)) -> 0 | Q47: =INDEX(Inputs!$P$210:$BB$210,MATCH('Costs & Revenue'!Q$5,Inputs!$P$5:$BB$5,0)) -> 0 | R47: =INDEX(Inputs!$P$210:$BB$210,MATCH('Costs & Revenue'!R$5,Inputs!$P$5:$BB$5,0)) -> 0 | S47: =INDEX(Inputs!$P$210:$BB$210,MATCH('Costs & Revenue'!S$5,Inputs!$P$5:$BB$5,0)) -> 0 | T47: =INDEX(Inputs!$P$210:$BB$210,MATCH('Costs & Revenue'!T$5,Inputs!$P$5:$BB$5,0)) -> 0 | U47: =INDEX(Inputs!$P$210:$BB$210,MATCH('Costs & Revenue'!U$5,Inputs!$P$5:$BB$5,0)) -> 0 | V47: =INDEX(Inputs!$P$210:$BB$210,MATCH('Costs & Revenue'!V$5,Inputs!$P$5:$BB$5,0)) -> 0 | W47: =INDEX(Inputs!$P$210:$BB$210,MATCH('Costs & Revenue'!W$5,Inputs!$P$5:$BB$5,0)) -> 0 | X47: =INDEX(Inputs!$P$210:$BB$210,MATCH('Costs & Revenue'!X$5,Inputs!$P$5:$BB$5,0)) -> 0 | Y47: =INDEX(Inputs!$P$210:$BB$210,MATCH('Costs & Revenue'!Y$5,Inputs!$P$5:$BB$5,0)) -> 0 | Z47: =INDEX(Inputs!$P$210:$BB$210,MATCH('Costs & Revenue'!Z$5,Inputs!$P$5:$BB$5,0)) -> 0 | AA47: =INDEX(Inputs!$P$210:$BB$210,MATCH('Costs & Revenue'!AA$5,Inputs!$P$5:$BB$5,0)) -> 0 | AB47: =INDEX(Inputs!$P$210:$BB$210,MATCH('Costs & Revenue'!AB$5,Inputs!$P$5:$BB$5,0)) -> 0 | AC47: =INDEX(Inputs!$P$210:$BB$210,MATCH('Costs & Revenue'!AC$5,Inputs!$P$5:$BB$5,0)) -> 0 | AD47: =INDEX(Inputs!$P$210:$BB$210,MATCH('Costs & Revenue'!AD$5,Inputs!$P$5:$BB$5,0)) -> 0 | AE47: =INDEX(Inputs!$P$210:$BB$210,MATCH('Costs & Revenue'!AE$5,Inputs!$P$5:$BB$5,0)) -> 0 | AF47: =INDEX(Inputs!$P$210:$BB$210,MATCH('Costs & Revenue'!AF$5,Inputs!$P$5:$BB$5,0)) -> 0 | AG47: =INDEX(Inputs!$P$210:$BB$210,MATCH('Costs & Revenue'!AG$5,Inputs!$P$5:$BB$5,0)) -> 0 | AH47: =INDEX(Inputs!$P$210:$BB$210,MATCH('Costs & Revenue'!AH$5,Inputs!$P$5:$BB$5,0)) -> 0 | AI47: =INDEX(Inputs!$P$210:$BB$210,MATCH('Costs & Revenue'!AI$5,Inputs!$P$5:$BB$5,0)) -> 0 | AJ47: =INDEX(Inputs!$P$210:$BB$210,MATCH('Costs & Revenue'!AJ$5,Inputs!$P$5:$BB$5,0)) -> 0 | AK47: =INDEX(Inputs!$P$210:$BB$210,MATCH('Costs & Revenue'!AK$5,Inputs!$P$5:$BB$5,0)) -> 0 | AL47: =INDEX(Inputs!$P$210:$BB$210,MATCH('Costs & Revenue'!AL$5,Inputs!$P$5:$BB$5,0)) -> 0 | AM47: =INDEX(Inputs!$P$210:$BB$210,MATCH('Costs & Revenue'!AM$5,Inputs!$P$5:$BB$5,0)) -> 0 | AN47: =INDEX(Inputs!$P$210:$BB$210,MATCH('Costs & Revenue'!AN$5,Inputs!$P$5:$BB$5,0)) -> 0 | AO47: =INDEX(Inputs!$P$210:$BB$210,MATCH('Costs & Revenue'!AO$5,Inputs!$P$5:$BB$5,0)) -> 0 | AP47: =INDEX(Inputs!$P$210:$BB$210,MATCH('Costs & Revenue'!AP$5,Inputs!$P$5:$BB$5,0)) -> 0 | AQ47: =INDEX(Inputs!$P$210:$BB$210,MATCH('Costs & Revenue'!AQ$5,Inputs!$P$5:$BB$5,0)) -> 0 | AR47: =INDEX(Inputs!$P$210:$BB$210,MATCH('Costs & Revenue'!AR$5,Inputs!$P$5:$BB$5,0)) -> 0 | AS47: =INDEX(Inputs!$P$210:$BB$210,MATCH('Costs & Revenue'!AS$5,Inputs!$P$5:$BB$5,0)) -> 0 | AT47: =INDEX(Inputs!$P$210:$BB$210,MATCH('Costs & Revenue'!AT$5,Inputs!$P$5:$BB$5,0)) -> 0 | AU47: =INDEX(Inputs!$P$210:$BB$210,MATCH('Costs & Revenue'!AU$5,Inputs!$P$5:$BB$5,0)) -> 0 | AV47: =INDEX(Inputs!$P$210:$BB$210,MATCH('Costs & Revenue'!AV$5,Inputs!$P$5:$BB$5,0)) -> 0 | AW47: =INDEX(Inputs!$P$210:$BB$210,MATCH('Costs & Revenue'!AW$5,Inputs!$P$5:$BB$5,0)) -> 0 | AX47: =INDEX(Inputs!$P$210:$BB$210,MATCH('Costs & Revenue'!AX$5,Inputs!$P$5:$BB$5,0)) -> 0 | AY47: =INDEX(Inputs!$P$210:$BB$210,MATCH('Costs & Revenue'!AY$5,Inputs!$P$5:$BB$5,0)) -> 0 | AZ47: =INDEX(Inputs!$P$210:$BB$210,MATCH('Costs & Revenue'!AZ$5,Inputs!$P$5:$BB$5,0)) -> 0 | BA47: =INDEX(Inputs!$P$210:$BB$210,MATCH('Costs & Revenue'!BA$5,Inputs!$P$5:$BB$5,0)) -> 0 | BB47: =INDEX(Inputs!$P$210:$BB$210,MATCH('Costs & Revenue'!BB$5,Inputs!$P$5:$BB$5,0)) -> 0
E49: Fourth DCFt adjustment
E50: Value | G50: =base_year -> £m 15/16 prices | I50: =Inputs!I203 -> 0
E51: Activity flag | G51: flag | P51: =INDEX(Inputs!$P$211:$BB$211,MATCH('Costs & Revenue'!P$5,Inputs!$P$5:$BB$5,0)) -> 0 | Q51: =INDEX(Inputs!$P$211:$BB$211,MATCH('Costs & Revenue'!Q$5,Inputs!$P$5:$BB$5,0)) -> 0 | R51: =INDEX(Inputs!$P$211:$BB$211,MATCH('Costs & Revenue'!R$5,Inputs!$P$5:$BB$5,0)) -> 0 | S51: =INDEX(Inputs!$P$211:$BB$211,MATCH('Costs & Revenue'!S$5,Inputs!$P$5:$BB$5,0)) -> 0 | T51: =INDEX(Inputs!$P$211:$BB$211,MATCH('Costs & Revenue'!T$5,Inputs!$P$5:$BB$5,0)) -> 0 | U51: =INDEX(Inputs!$P$211:$BB$211,MATCH('Costs & Revenue'!U$5,Inputs!$P$5:$BB$5,0)) -> 0 | V51: =INDEX(Inputs!$P$211:$BB$211,MATCH('Costs & Revenue'!V$5,Inputs!$P$5:$BB$5,0)) -> 0 | W51: =INDEX(Inputs!$P$211:$BB$211,MATCH('Costs & Revenue'!W$5,Inputs!$P$5:$BB$5,0)) -> 0 | X51: =INDEX(Inputs!$P$211:$BB$211,MATCH('Costs & Revenue'!X$5,Inputs!$P$5:$BB$5,0)) -> 0 | Y51: =INDEX(Inputs!$P$211:$BB$211,MATCH('Costs & Revenue'!Y$5,Inputs!$P$5:$BB$5,0)) -> 0 | Z51: =INDEX(Inputs!$P$211:$BB$211,MATCH('Costs & Revenue'!Z$5,Inputs!$P$5:$BB$5,0)) -> 0 | AA51: =INDEX(Inputs!$P$211:$BB$211,MATCH('Costs & Revenue'!AA$5,Inputs!$P$5:$BB$5,0)) -> 0 | AB51: =INDEX(Inputs!$P$211:$BB$211,MATCH('Costs & Revenue'!AB$5,Inputs!$P$5:$BB$5,0)) -> 0 | AC51: =INDEX(Inputs!$P$211:$BB$211,MATCH('Costs & Revenue'!AC$5,Inputs!$P$5:$BB$5,0)) -> 0 | AD51: =INDEX(Inputs!$P$211:$BB$211,MATCH('Costs & Revenue'!AD$5,Inputs!$P$5:$BB$5,0)) -> 0 | AE51: =INDEX(Inputs!$P$211:$BB$211,MATCH('Costs & Revenue'!AE$5,Inputs!$P$5:$BB$5,0)) -> 0 | AF51: =INDEX(Inputs!$P$211:$BB$211,MATCH('Costs & Revenue'!AF$5,Inputs!$P$5:$BB$5,0)) -> 0 | AG51: =INDEX(Inputs!$P$211:$BB$211,MATCH('Costs & Revenue'!AG$5,Inputs!$P$5:$BB$5,0)) -> 0 | AH51: =INDEX(Inputs!$P$211:$BB$211,MATCH('Costs & Revenue'!AH$5,Inputs!$P$5:$BB$5,0)) -> 0 | AI51: =INDEX(Inputs!$P$211:$BB$211,MATCH('Costs & Revenue'!AI$5,Inputs!$P$5:$BB$5,0)) -> 0 | AJ51: =INDEX(Inputs!$P$211:$BB$211,MATCH('Costs & Revenue'!AJ$5,Inputs!$P$5:$BB$5,0)) -> 0 | AK51: =INDEX(Inputs!$P$211:$BB$211,MATCH('Costs & Revenue'!AK$5,Inputs!$P$5:$BB$5,0)) -> 0 | AL51: =INDEX(Inputs!$P$211:$BB$211,MATCH('Costs & Revenue'!AL$5,Inputs!$P$5:$BB$5,0)) -> 0 | AM51: =INDEX(Inputs!$P$211:$BB$211,MATCH('Costs & Revenue'!AM$5,Inputs!$P$5:$BB$5,0)) -> 0 | AN51: =INDEX(Inputs!$P$211:$BB$211,MATCH('Costs & Revenue'!AN$5,Inputs!$P$5:$BB$5,0)) -> 0 | AO51: =INDEX(Inputs!$P$211:$BB$211,MATCH('Costs & Revenue'!AO$5,Inputs!$P$5:$BB$5,0)) -> 0 | AP51: =INDEX(Inputs!$P$211:$BB$211,MATCH('Costs & Revenue'!AP$5,Inputs!$P$5:$BB$5,0)) -> 0 | AQ51: =INDEX(Inputs!$P$211:$BB$211,MATCH('Costs & Revenue'!AQ$5,Inputs!$P$5:$BB$5,0)) -> 0 | AR51: =INDEX(Inputs!$P$211:$BB$211,MATCH('Costs & Revenue'!AR$5,Inputs!$P$5:$BB$5,0)) -> 0 | AS51: =INDEX(Inputs!$P$211:$BB$211,MATCH('Costs & Revenue'!AS$5,Inputs!$P$5:$BB$5,0)) -> 0 | AT51: =INDEX(Inputs!$P$211:$BB$211,MATCH('Costs & Revenue'!AT$5,Inputs!$P$5:$BB$5,0)) -> 0 | AU51: =INDEX(Inputs!$P$211:$BB$211,MATCH('Costs & Revenue'!AU$5,Inputs!$P$5:$BB$5,0)) -> 0 | AV51: =INDEX(Inputs!$P$211:$BB$211,MATCH('Costs & Revenue'!AV$5,Inputs!$P$5:$BB$5,0)) -> 0 | AW51: =INDEX(Inputs!$P$211:$BB$211,MATCH('Costs & Revenue'!AW$5,Inputs!$P$5:$BB$5,0)) -> 0 | AX51: =INDEX(Inputs!$P$211:$BB$211,MATCH('Costs & Revenue'!AX$5,Inputs!$P$5:$BB$5,0)) -> 0 | AY51: =INDEX(Inputs!$P$211:$BB$211,MATCH('Costs & Revenue'!AY$5,Inputs!$P$5:$BB$5,0)) -> 0 | AZ51: =INDEX(Inputs!$P$211:$BB$211,MATCH('Costs & Revenue'!AZ$5,Inputs!$P$5:$BB$5,0)) -> 0 | BA51: =INDEX(Inputs!$P$211:$BB$211,MATCH('Costs & Revenue'!BA$5,Inputs!$P$5:$BB$5,0)) -> 0 | BB51: =INDEX(Inputs!$P$211:$BB$211,MATCH('Costs & Revenue'!BB$5,Inputs!$P$5:$BB$5,0)) -> 0
C53: NPV comparisons
E55: =Inputs!E176 -> Current DC Cap and Floor effective flag | G55: flag | P55: =Inputs!P176 -> 0 | Q55: =Inputs!Q176 -> 0 | R55: =Inputs!R176 -> 0 | S55: =Inputs!S176 -> 0 | T55: =Inputs!T176 -> 0 | U55: =Inputs!U176 -> 0 | V55: =Inputs!V176 -> 0 | W55: =Inputs!W176 -> 0 | X55: =Inputs!X176 -> 0 | Y55: =Inputs!Y176 -> 0 | Z55: =Inputs!Z176 -> 0 | AA55: =Inputs!AA176 -> 0 | AB55: =Inputs!AB176 -> 0 | AC55: =Inputs!AC176 -> 0 | AD55: =Inputs!AD176 -> 0 | AE55: =Inputs!AE176 -> 0 | AF55: =Inputs!AF176 -> 0 | AG55: =Inputs!AG176 -> 0 | AH55: =Inputs!AH176 -> 0 | AI55: =Inputs!AI176 -> 0 | AJ55: =Inputs!AJ176 -> 0 | AK55: =Inputs!AK176 -> 0 | AL55: =Inputs!AL176 -> 0 | AM55: =Inputs!AM176 -> 0 | AN55: =Inputs!AN176 -> 0.8323066393 | AO55: =Inputs!AO176 -> 0 | AP55: =Inputs!AP176 -> 0 | AQ55: =Inputs!AQ176 -> 0 | AR55: =Inputs!AR176 -> 0 | AS55: =Inputs!AS176 -> 0 | AT55: =Inputs!AT176 -> 0 | AU55: =Inputs!AU176 -> 0 | AV55: =Inputs!AV176 -> 0 | AW55: =Inputs!AW176 -> 0 | AX55: =Inputs!AX176 -> 0 | AY55: =Inputs!AY176 -> 0 | AZ55: =Inputs!AZ176 -> 0 | BA55: =Inputs!BA176 -> 0 | BB55: =Inputs!BB176 -> 0
E56: Cap real return | G56: real annual % | I56: =Inputs!I40 -> 0.0798
E57: Discount factor to start of operational period (cap) | G57: scalar | O57: =IF(O5<=Inputs!$I$21,(1+$I56)^-O$5,0) -> 1 | P57: =IF(P5<=Inputs!$I$21,(1+$I56)^-P$5,0) -> 0.9260974254 | Q57: =IF(Q5<=Inputs!$I$21,(1+$I56)^-Q$5,0) -> 0.8576564414 | R57: =IF(R5<=Inputs!$I$21,(1+$I56)^-R$5,0) -> 0.7942734223 | S57: =IF(S5<=Inputs!$I$21,(1+$I56)^-S$5,0) -> 0.7355745715 | T57: =IF(T5<=Inputs!$I$21,(1+$I56)^-T$5,0) -> 0.6812137169 | U57: =IF(U5<=Inputs!$I$21,(1+$I56)^-U$5,0) -> 0.6308702694 | V57: =IF(V5<=Inputs!$I$21,(1+$I56)^-V$5,0) -> 0.5842473323 | W57: =IF(W5<=Inputs!$I$21,(1+$I56)^-W$5,0) -> 0.5410699503 | X57: =IF(X5<=Inputs!$I$21,(1+$I56)^-X$5,0) -> 0.5010834879 | Y57: =IF(Y5<=Inputs!$I$21,(1+$I56)^-Y$5,0) -> 0.4640521281 | Z57: =IF(Z5<=Inputs!$I$21,(1+$I56)^-Z$5,0) -> 0.4297574811 | AA57: =IF(AA5<=Inputs!$I$21,(1+$I56)^-AA$5,0) -> 0.3979972968 | AB57: =IF(AB5<=Inputs!$I$21,(1+$I56)^-AB$5,0) -> 0.3685842719 | AC57: =IF(AC5<=Inputs!$I$21,(1+$I56)^-AC$5,0) -> 0.3413449453 | AD57: =IF(AD5<=Inputs!$I$21,(1+$I56)^-AD$5,0) -> 0.316118675 | AE57: =IF(AE5<=Inputs!$I$21,(1+$I56)^-AE$5,0) -> 0.2927566911 | AF57: =IF(AF5<=Inputs!$I$21,(1+$I56)^-AF$5,0) -> 0.2711212179 | AG57: =IF(AG5<=Inputs!$I$21,(1+$I56)^-AG$5,0) -> 0.2510846619 | AH57: =IF(AH5<=Inputs!$I$21,(1+$I56)^-AH$5,0) -> 0.2325288589 | AI57: =IF(AI5<=Inputs!$I$21,(1+$I56)^-AI$5,0) -> 0.2153443776 | AJ57: =IF(AJ5<=Inputs!$I$21,(1+$I56)^-AJ$5,0) -> 0.1994298737 | AK57: =IF(AK5<=Inputs!$I$21,(1+$I56)^-AK$5,0) -> 0.1846914926 | AL57: =IF(AL5<=Inputs!$I$21,(1+$I56)^-AL$5,0) -> 0.1710423158 | AM57: =IF(AM5<=Inputs!$I$21,(1+$I56)^-AM$5,0) -> 0.1584018483 | AN57: =IF(AN5<=Inputs!$I$21,(1+$I56)^-AN$5,0) -> 0.1466955439 | AO57: =IF(AO5<=Inputs!$I$21,(1+$I56)^-AO$5,0) -> 0 | AP57: =IF(AP5<=Inputs!$I$21,(1+$I56)^-AP$5,0) -> 0 | AQ57: =IF(AQ5<=Inputs!$I$21,(1+$I56)^-AQ$5,0) -> 0 | AR57: =IF(AR5<=Inputs!$I$21,(1+$I56)^-AR$5,0) -> 0 | AS57: =IF(AS5<=Inputs!$I$21,(1+$I56)^-AS$5,0) -> 0 | AT57: =IF(AT5<=Inputs!$I$21,(1+$I56)^-AT$5,0) -> 0 | AU57: =IF(AU5<=Inputs!$I$21,(1+$I56)^-AU$5,0) -> 0 | AV57: =IF(AV5<=Inputs!$I$21,(1+$I56)^-AV$5,0) -> 0 | AW57: =IF(AW5<=Inputs!$I$21,(1+$I56)^-AW$5,0) -> 0 | AX57: =IF(AX5<=Inputs!$I$21,(1+$I56)^-AX$5,0) -> 0 | AY57: =IF(AY5<=Inputs!$I$21,(1+$I56)^-AY$5,0) -> 0 | AZ57: =IF(AZ5<=Inputs!$I$21,(1+$I56)^-AZ$5,0) -> 0 | BA57: =IF(BA5<=Inputs!$I$21,(1+$I56)^-BA$5,0) -> 0 | BB57: =IF(BB5<=Inputs!$I$21,(1+$I56)^-BB$5,0) -> 0
E59: NPV of original allowance at Cap rate | G59: =base_year -> £m 15/16 prices | I59: =SUMPRODUCT($O$57:$BB$57,O11:BB11) -> 3.55227044
E60: NPV of first DCCt adjustment | G60: £m 15/16 prices | I60: =SUMPRODUCT($O$57:$BB$57,O21:BB21)*I20 -> 0
E61: NPV of second DCCt adjustment | G61: £m 15/16 prices | I61: =SUMPRODUCT($O$57:$BB$57,O25:BB25)*I24 -> 0
E62: NPV of third DCCt adjustment | G62: £m 15/16 prices | I62: =SUMPRODUCT($O$57:$BB$57,O29:BB29)*I28 -> 0
E63: NPV of fourth DCCt adjustment | G63: £m 15/16 prices | I63: =SUMPRODUCT($O$57:$BB$57,O33:BB33)*I32 -> 0
E64: NPV of revised allowance at Cap rate | G64: £m 15/16 prices | I64: =SUMPRODUCT($O$57:$BB$57,O15:BB15) -> 0
E65: Difference in NPV | G65: £m 15/16 prices | I65: =I64-(I59+I60+I61+I62+I63) -> -3.55227044
E67: Amendment to Cap rate | G67: =base_year -> £m 15/16 prices | H67: DCCt | I67: =I65/SUMPRODUCT($O$55:$BB$55,$O$57:$BB$57) -> -29.09415454
E69: Floor real return | G69: real annual % | I69: =Inputs!I41 -> 0.0088
E70: Discount factor to start of operational period (floor) | G70: scalar | O70: =IF(O5<=Inputs!$I$21,(1+$I69)^-O$5,0) -> 1 | P70: =IF(P5<=Inputs!$I$21,(1+$I69)^-P$5,0) -> 0.9912767645 | Q70: =IF(Q5<=Inputs!$I$21,(1+$I69)^-Q$5,0) -> 0.9826296238 | R70: =IF(R5<=Inputs!$I$21,(1+$I69)^-R$5,0) -> 0.9740579141 | S70: =IF(S5<=Inputs!$I$21,(1+$I69)^-S$5,0) -> 0.9655609775 | T70: =IF(T5<=Inputs!$I$21,(1+$I69)^-T$5,0) -> 0.9571381617 | U70: =IF(U5<=Inputs!$I$21,(1+$I69)^-U$5,0) -> 0.9487888201 | V70: =IF(V5<=Inputs!$I$21,(1+$I69)^-V$5,0) -> 0.9405123118 | W70: =IF(W5<=Inputs!$I$21,(1+$I69)^-W$5,0) -> 0.9323080013 | X70: =IF(X5<=Inputs!$I$21,(1+$I69)^-X$5,0) -> 0.9241752591 | Y70: =IF(Y5<=Inputs!$I$21,(1+$I69)^-Y$5,0) -> 0.9161134606 | Z70: =IF(Z5<=Inputs!$I$21,(1+$I69)^-Z$5,0) -> 0.9081219871 | AA70: =IF(AA5<=Inputs!$I$21,(1+$I69)^-AA$5,0) -> 0.9002002251 | AB70: =IF(AB5<=Inputs!$I$21,(1+$I69)^-AB$5,0) -> 0.8923475666 | AC70: =IF(AC5<=Inputs!$I$21,(1+$I69)^-AC$5,0) -> 0.8845634086 | AD70: =IF(AD5<=Inputs!$I$21,(1+$I69)^-AD$5,0) -> 0.8768471536 | AE70: =IF(AE5<=Inputs!$I$21,(1+$I69)^-AE$5,0) -> 0.8691982094 | AF70: =IF(AF5<=Inputs!$I$21,(1+$I69)^-AF$5,0) -> 0.8616159887 | AG70: =IF(AG5<=Inputs!$I$21,(1+$I69)^-AG$5,0) -> 0.8540999095 | AH70: =IF(AH5<=Inputs!$I$21,(1+$I69)^-AH$5,0) -> 0.8466493948 | AI70: =IF(AI5<=Inputs!$I$21,(1+$I69)^-AI$5,0) -> 0.8392638727 | AJ70: =IF(AJ5<=Inputs!$I$21,(1+$I69)^-AJ$5,0) -> 0.8319427763 | AK70: =IF(AK5<=Inputs!$I$21,(1+$I69)^-AK$5,0) -> 0.8246855435 | AL70: =IF(AL5<=Inputs!$I$21,(1+$I69)^-AL$5,0) -> 0.8174916173 | AM70: =IF(AM5<=Inputs!$I$21,(1+$I69)^-AM$5,0) -> 0.8103604453 | AN70: =IF(AN5<=Inputs!$I$21,(1+$I69)^-AN$5,0) -> 0.8032914803 | AO70: =IF(AO5<=Inputs!$I$21,(1+$I69)^-AO$5,0) -> 0 | AP70: =IF(AP5<=Inputs!$I$21,(1+$I69)^-AP$5,0) -> 0 | AQ70: =IF(AQ5<=Inputs!$I$21,(1+$I69)^-AQ$5,0) -> 0 | AR70: =IF(AR5<=Inputs!$I$21,(1+$I69)^-AR$5,0) -> 0 | AS70: =IF(AS5<=Inputs!$I$21,(1+$I69)^-AS$5,0) -> 0 | AT70: =IF(AT5<=Inputs!$I$21,(1+$I69)^-AT$5,0) -> 0 | AU70: =IF(AU5<=Inputs!$I$21,(1+$I69)^-AU$5,0) -> 0 | AV70: =IF(AV5<=Inputs!$I$21,(1+$I69)^-AV$5,0) -> 0 | AW70: =IF(AW5<=Inputs!$I$21,(1+$I69)^-AW$5,0) -> 0 | AX70: =IF(AX5<=Inputs!$I$21,(1+$I69)^-AX$5,0) -> 0 | AY70: =IF(AY5<=Inputs!$I$21,(1+$I69)^-AY$5,0) -> 0 | AZ70: =IF(AZ5<=Inputs!$I$21,(1+$I69)^-AZ$5,0) -> 0 | BA70: =IF(BA5<=Inputs!$I$21,(1+$I69)^-BA$5,0) -> 0 | BB70: =IF(BB5<=Inputs!$I$21,(1+$I69)^-BB$5,0) -> 0
E72: NPV of original allowance at Floor rate | G72: =base_year -> £m 15/16 prices | I72: =SUMPRODUCT($O$70:$BB$70,O11:BB11) -> 19.45191043
E73: NPV of first DCFt adjustment | G73: £m 15/16 prices | I73: =SUMPRODUCT($O$70:$BB$70,O39:BB39)*I38 -> 0
E74: NPV of second DCFt adjustment | G74: £m 15/16 prices | I74: =SUMPRODUCT($O$70:$BB$70,O43:BB43)*I42 -> 0
E75: NPV of third DCFt adjustment | G75: £m 15/16 prices | I75: =SUMPRODUCT($O$70:$BB$70,O47:BB47)*I46 -> 0
E76: NPV of fourth DCFt adjustment | G76: £m 15/16 prices | I76: =SUMPRODUCT($O$70:$BB$70,O51:BB51)*I50 -> 0
E77: NPV of revised allowance at Floor rate | G77: £m 15/16 prices | I77: =SUMPRODUCT($O$70:$BB$70,O15:BB15) -> 0
E78: Difference in NPV | G78: £m 15/16 prices | I78: =I77-(I72+I73+I74+I75+I76) -> -19.45191043
E80: Amendment to Floor rate | G80: =base_year -> £m 15/16 prices | H80: DCFt | I80: =I78/SUMPRODUCT($O$55:$BB$55,$O$70:$BB$70) -> -29.09415454
B82: End of sheet

Sheet Availability
A1: Availability | H1: Licence
E2: Parameter | G2: Units | H2: Terminology | I2: Constant | O2: Annual values
E3: Year commencing | O3: =INDEX(Inputs!$O3:$BB3,MATCH('Costs & Revenue'!O$5,Inputs!$O$5:$BB$5,0)) -> 2020-04-01 | P3: =INDEX(Inputs!$O3:$BB3,MATCH('Costs & Revenue'!P$5,Inputs!$O$5:$BB$5,0)) -> 2021-04-01 | Q3: =INDEX(Inputs!$O3:$BB3,MATCH('Costs & Revenue'!Q$5,Inputs!$O$5:$BB$5,0)) -> 2022-04-01 | R3: =INDEX(Inputs!$O3:$BB3,MATCH('Costs & Revenue'!R$5,Inputs!$O$5:$BB$5,0)) -> 2023-04-01 | S3: =INDEX(Inputs!$O3:$BB3,MATCH('Costs & Revenue'!S$5,Inputs!$O$5:$BB$5,0)) -> 2024-04-01 | T3: =INDEX(Inputs!$O3:$BB3,MATCH('Costs & Revenue'!T$5,Inputs!$O$5:$BB$5,0)) -> 2025-04-01 | U3: =INDEX(Inputs!$O3:$BB3,MATCH('Costs & Revenue'!U$5,Inputs!$O$5:$BB$5,0)) -> 2026-04-01 | V3: =INDEX(Inputs!$O3:$BB3,MATCH('Costs & Revenue'!V$5,Inputs!$O$5:$BB$5,0)) -> 2027-04-01 | W3: =INDEX(Inputs!$O3:$BB3,MATCH('Costs & Revenue'!W$5,Inputs!$O$5:$BB$5,0)) -> 2028-04-01 | X3: =INDEX(Inputs!$O3:$BB3,MATCH('Costs & Revenue'!X$5,Inputs!$O$5:$BB$5,0)) -> 2029-04-01 | Y3: =INDEX(Inputs!$O3:$BB3,MATCH('Costs & Revenue'!Y$5,Inputs!$O$5:$BB$5,0)) -> 2030-04-01 | Z3: =INDEX(Inputs!$O3:$BB3,MATCH('Costs & Revenue'!Z$5,Inputs!$O$5:$BB$5,0)) -> 2031-04-01 | AA3: =INDEX(Inputs!$O3:$BB3,MATCH('Costs & Revenue'!AA$5,Inputs!$O$5:$BB$5,0)) -> 2032-04-01 | AB3: =INDEX(Inputs!$O3:$BB3,MATCH('Costs & Revenue'!AB$5,Inputs!$O$5:$BB$5,0)) -> 2033-04-01 | AC3: =INDEX(Inputs!$O3:$BB3,MATCH('Costs & Revenue'!AC$5,Inputs!$O$5:$BB$5,0)) -> 2034-04-01 | AD3: =INDEX(Inputs!$O3:$BB3,MATCH('Costs & Revenue'!AD$5,Inputs!$O$5:$BB$5,0)) -> 2035-04-01 | AE3: =INDEX(Inputs!$O3:$BB3,MATCH('Costs & Revenue'!AE$5,Inputs!$O$5:$BB$5,0)) -> 2036-04-01 | AF3: =INDEX(Inputs!$O3:$BB3,MATCH('Costs & Revenue'!AF$5,Inputs!$O$5:$BB$5,0)) -> 2037-04-01 | AG3: =INDEX(Inputs!$O3:$BB3,MATCH('Costs & Revenue'!AG$5,Inputs!$O$5:$BB$5,0)) -> 2038-04-01 | AH3: =INDEX(Inputs!$O3:$BB3,MATCH('Costs & Revenue'!AH$5,Inputs!$O$5:$BB$5,0)) -> 2039-04-01 | AI3: =INDEX(Inputs!$O3:$BB3,MATCH('Costs & Revenue'!AI$5,Inputs!$O$5:$BB$5,0)) -> 2040-04-01 | AJ3: =INDEX(Inputs!$O3:$BB3,MATCH('Costs & Revenue'!AJ$5,Inputs!$O$5:$BB$5,0)) -> 2041-04-01 | AK3: =INDEX(Inputs!$O3:$BB3,MATCH('Costs & Revenue'!AK$5,Inputs!$O$5:$BB$5,0)) -> 2042-04-01 | AL3: =INDEX(Inputs!$O3:$BB3,MATCH('Costs & Revenue'!AL$5,Inputs!$O$5:$BB$5,0)) -> 2043-04-01 | AM3: =INDEX(Inputs!$O3:$BB3,MATCH('Costs & Revenue'!AM$5,Inputs!$O$5:$BB$5,0)) -> 2044-04-01 | AN3: =INDEX(Inputs!$O3:$BB3,MATCH('Costs & Revenue'!AN$5,Inputs!$O$5:$BB$5,0)) -> 2045-04-01 | AO3: =INDEX(Inputs!$O3:$BB3,MATCH('Costs & Revenue'!AO$5,Inputs!$O$5:$BB$5,0)) -> 2046-04-01 | AP3: =INDEX(Inputs!$O3:$BB3,MATCH('Costs & Revenue'!AP$5,Inputs!$O$5:$BB$5,0)) -> 2047-04-01 | AQ3: =INDEX(Inputs!$O3:$BB3,MATCH('Costs & Revenue'!AQ$5,Inputs!$O$5:$BB$5,0)) -> 2048-04-01 | AR3: =INDEX(Inputs!$O3:$BB3,MATCH('Costs & Revenue'!AR$5,Inputs!$O$5:$BB$5,0)) -> 2049-04-01 | AS3: =INDEX(Inputs!$O3:$BB3,MATCH('Costs & Revenue'!AS$5,Inputs!$O$5:$BB$5,0)) -> 2050-04-01 | AT3: =INDEX(Inputs!$O3:$BB3,MATCH('Costs & Revenue'!AT$5,Inputs!$O$5:$BB$5,0)) -> 2051-04-01 | AU3: =INDEX(Inputs!$O3:$BB3,MATCH('Costs & Revenue'!AU$5,Inputs!$O$5:$BB$5,0)) -> 2052-04-01 | AV3: =INDEX(Inputs!$O3:$BB3,MATCH('Costs & Revenue'!AV$5,Inputs!$O$5:$BB$5,0)) -> 2053-04-01 | AW3: =INDEX(Inputs!$O3:$BB3,MATCH('Costs & Revenue'!AW$5,Inputs!$O$5:$BB$5,0)) -> 2054-04-01 | AX3: =INDEX(Inputs!$O3:$BB3,MATCH('Costs & Revenue'!AX$5,Inputs!$O$5:$BB$5,0)) -> 2055-04-01 | AY3: =INDEX(Inputs!$O3:$BB3,MATCH('Costs & Revenue'!AY$5,Inputs!$O$5:$BB$5,0)) -> 2056-04-01 | AZ3: =INDEX(Inputs!$O3:$BB3,MATCH('Costs & Revenue'!AZ$5,Inputs!$O$5:$BB$5,0)) -> 2057-04-01 | BA3: =INDEX(Inputs!$O3:$BB3,MATCH('Costs & Revenue'!BA$5,Inputs!$O$5:$BB$5,0)) -> 2058-04-01 | BB3: =INDEX(Inputs!$O3:$BB3,MATCH('Costs & Revenue'!BB$5,Inputs!$O$5:$BB$5,0)) -> 2059-04-01
E4: Year ending | O4: =INDEX(Inputs!$O4:$BB4,MATCH('Costs & Revenue'!O$5,Inputs!$O$5:$BB$5,0)) -> 2021-03-31 | P4: =INDEX(Inputs!$O4:$BB4,MATCH('Costs & Revenue'!P$5,Inputs!$O$5:$BB$5,0)) -> 2022-03-31 | Q4: =INDEX(Inputs!$O4:$BB4,MATCH('Costs & Revenue'!Q$5,Inputs!$O$5:$BB$5,0)) -> 2023-03-31 | R4: =INDEX(Inputs!$O4:$BB4,MATCH('Costs & Revenue'!R$5,Inputs!$O$5:$BB$5,0)) -> 2024-03-31 | S4: =INDEX(Inputs!$O4:$BB4,MATCH('Costs & Revenue'!S$5,Inputs!$O$5:$BB$5,0)) -> 2025-03-31 | T4: =INDEX(Inputs!$O4:$BB4,MATCH('Costs & Revenue'!T$5,Inputs!$O$5:$BB$5,0)) -> 2026-03-31 | U4: =INDEX(Inputs!$O4:$BB4,MATCH('Costs & Revenue'!U$5,Inputs!$O$5:$BB$5,0)) -> 2027-03-31 | V4: =INDEX(Inputs!$O4:$BB4,MATCH('Costs & Revenue'!V$5,Inputs!$O$5:$BB$5,0)) -> 2028-03-31 | W4: =INDEX(Inputs!$O4:$BB4,MATCH('Costs & Revenue'!W$5,Inputs!$O$5:$BB$5,0)) -> 2029-03-31 | X4: =INDEX(Inputs!$O4:$BB4,MATCH('Costs & Revenue'!X$5,Inputs!$O$5:$BB$5,0)) -> 2030-03-31 | Y4: =INDEX(Inputs!$O4:$BB4,MATCH('Costs & Revenue'!Y$5,Inputs!$O$5:$BB$5,0)) -> 2031-03-31 | Z4: =INDEX(Inputs!$O4:$BB4,MATCH('Costs & Revenue'!Z$5,Inputs!$O$5:$BB$5,0)) -> 2032-03-31 | AA4: =INDEX(Inputs!$O4:$BB4,MATCH('Costs & Revenue'!AA$5,Inputs!$O$5:$BB$5,0)) -> 2033-03-31 | AB4: =INDEX(Inputs!$O4:$BB4,MATCH('Costs & Revenue'!AB$5,Inputs!$O$5:$BB$5,0)) -> 2034-03-31 | AC4: =INDEX(Inputs!$O4:$BB4,MATCH('Costs & Revenue'!AC$5,Inputs!$O$5:$BB$5,0)) -> 2035-03-31 | AD4: =INDEX(Inputs!$O4:$BB4,MATCH('Costs & Revenue'!AD$5,Inputs!$O$5:$BB$5,0)) -> 2036-03-31 | AE4: =INDEX(Inputs!$O4:$BB4,MATCH('Costs & Revenue'!AE$5,Inputs!$O$5:$BB$5,0)) -> 2037-03-31 | AF4: =INDEX(Inputs!$O4:$BB4,MATCH('Costs & Revenue'!AF$5,Inputs!$O$5:$BB$5,0)) -> 2038-03-31 | AG4: =INDEX(Inputs!$O4:$BB4,MATCH('Costs & Revenue'!AG$5,Inputs!$O$5:$BB$5,0)) -> 2039-03-31 | AH4: =INDEX(Inputs!$O4:$BB4,MATCH('Costs & Revenue'!AH$5,Inputs!$O$5:$BB$5,0)) -> 2040-03-31 | AI4: =INDEX(Inputs!$O4:$BB4,MATCH('Costs & Revenue'!AI$5,Inputs!$O$5:$BB$5,0)) -> 2041-03-31 | AJ4: =INDEX(Inputs!$O4:$BB4,MATCH('Costs & Revenue'!AJ$5,Inputs!$O$5:$BB$5,0)) -> 2042-03-31 | AK4: =INDEX(Inputs!$O4:$BB4,MATCH('Costs & Revenue'!AK$5,Inputs!$O$5:$BB$5,0)) -> 2043-03-31 | AL4: =INDEX(Inputs!$O4:$BB4,MATCH('Costs & Revenue'!AL$5,Inputs!$O$5:$BB$5,0)) -> 2044-03-31 | AM4: =INDEX(Inputs!$O4:$BB4,MATCH('Costs & Revenue'!AM$5,Inputs!$O$5:$BB$5,0)) -> 2045-03-31 | AN4: =INDEX(Inputs!$O4:$BB4,MATCH('Costs & Revenue'!AN$5,Inputs!$O$5:$BB$5,0)) -> 2046-03-31 | AO4: =INDEX(Inputs!$O4:$BB4,MATCH('Costs & Revenue'!AO$5,Inputs!$O$5:$BB$5,0)) -> 2047-03-31 | AP4: =INDEX(Inputs!$O4:$BB4,MATCH('Costs & Revenue'!AP$5,Inputs!$O$5:$BB$5,0)) -> 2048-03-31 | AQ4: =INDEX(Inputs!$O4:$BB4,MATCH('Costs & Revenue'!AQ$5,Inputs!$O$5:$BB$5,0)) -> 2049-03-31 | AR4: =INDEX(Inputs!$O4:$BB4,MATCH('Costs & Revenue'!AR$5,Inputs!$O$5:$BB$5,0)) -> 2050-03-31 | AS4: =INDEX(Inputs!$O4:$BB4,MATCH('Costs & Revenue'!AS$5,Inputs!$O$5:$BB$5,0)) -> 2051-03-31 | AT4: =INDEX(Inputs!$O4:$BB4,MATCH('Costs & Revenue'!AT$5,Inputs!$O$5:$BB$5,0)) -> 2052-03-31 | AU4: =INDEX(Inputs!$O4:$BB4,MATCH('Costs & Revenue'!AU$5,Inputs!$O$5:$BB$5,0)) -> 2053-03-31 | AV4: =INDEX(Inputs!$O4:$BB4,MATCH('Costs & Revenue'!AV$5,Inputs!$O$5:$BB$5,0)) -> 2054-03-31 | AW4: =INDEX(Inputs!$O4:$BB4,MATCH('Costs & Revenue'!AW$5,Inputs!$O$5:$BB$5,0)) -> 2055-03-31 | AX4: =INDEX(Inputs!$O4:$BB4,MATCH('Costs & Revenue'!AX$5,Inputs!$O$5:$BB$5,0)) -> 2056-03-31 | AY4: =INDEX(Inputs!$O4:$BB4,MATCH('Costs & Revenue'!AY$5,Inputs!$O$5:$BB$5,0)) -> 2057-03-31 | AZ4: =INDEX(Inputs!$O4:$BB4,MATCH('Costs & Revenue'!AZ$5,Inputs!$O$5:$BB$5,0)) -> 2058-03-31 | BA4: =INDEX(Inputs!$O4:$BB4,MATCH('Costs & Revenue'!BA$5,Inputs!$O$5:$BB$5,0)) -> 2059-03-31 | BB4: =INDEX(Inputs!$O4:$BB4,MATCH('Costs & Revenue'!BB$5,Inputs!$O$5:$BB$5,0)) -> 2060-03-31
E5: Operational year | O5: =Inputs!O5 -> 0 | P5: =Inputs!P5 -> 1 | Q5: =Inputs!Q5 -> 2 | R5: =Inputs!R5 -> 3 | S5: =Inputs!S5 -> 4 | T5: =Inputs!T5 -> 5 | U5: =Inputs!U5 -> 6 | V5: =Inputs!V5 -> 7 | W5: =Inputs!W5 -> 8 | X5: =Inputs!X5 -> 9 | Y5: =Inputs!Y5 -> 10 | Z5: =Inputs!Z5 -> 11 | AA5: =Inputs!AA5 -> 12 | AB5: =Inputs!AB5 -> 13 | AC5: =Inputs!AC5 -> 14 | AD5: =Inputs!AD5 -> 15 | AE5: =Inputs!AE5 -> 16 | AF5: =Inputs!AF5 -> 17 | AG5: =Inputs!AG5 -> 18 | AH5: =Inputs!AH5 -> 19 | AI5: =Inputs!AI5 -> 20 | AJ5: =Inputs!AJ5 -> 21 | AK5: =Inputs!AK5 -> 22 | AL5: =Inputs!AL5 -> 23 | AM5: =Inputs!AM5 -> 24 | AN5: =Inputs!AN5 -> 25 | AO5: =Inputs!AO5 -> 26 | AP5: =Inputs!AP5 -> 27 | AQ5: =Inputs!AQ5 -> 28 | AR5: =Inputs!AR5 -> 29 | AS5: =Inputs!AS5 -> 30 | AT5: =Inputs!AT5 -> 31 | AU5: =Inputs!AU5 -> 32 | AV5: =Inputs!AV5 -> 33 | AW5: =Inputs!AW5 -> 34 | AX5: =Inputs!AX5 -> 35 | AY5: =Inputs!AY5 -> 36 | AZ5: =Inputs!AZ5 -> 37 | BA5: =Inputs!BA5 -> 38 | BB5: =Inputs!BB5 -> 39
B7: Availability incentives
C9: Cap and Floor (pre-availability incentive)
E11: =Indexation!E53 -> Cap (pre-availability incentive) | G11: £m nominal prices | P11: =Indexation!P53 -> 139.4302635 | Q11: =Indexation!Q53 -> 114.9604897 | R11: =Indexation!R53 -> 118.075919 | S11: =Indexation!S53 -> 121.2757764 | T11: =Indexation!T53 -> 124.56235 | U11: =Indexation!U53 -> 127.9379896 | V11: =Indexation!V53 -> 131.4051092 | W11: =Indexation!W53 -> 134.9661876 | X11: =Indexation!X53 -> 138.6237713 | Y11: =Indexation!Y53 -> 142.3804755 | Z11: =Indexation!Z53 -> 136.9428927 | AA11: =Indexation!AA53 -> 111.8788374 | AB11: =Indexation!AB53 -> 114.9107539 | AC11: =Indexation!AC53 -> 118.0248353 | AD11: =Indexation!AD53 -> 121.2233083 | AE11: =Indexation!AE53 -> 124.50846 | AF11: =Indexation!AF53 -> 127.8826393 | AG11: =Indexation!AG53 -> 131.3482588 | AH11: =Indexation!AH53 -> 134.9077966 | AI11: =Indexation!AI53 -> 138.5637979 | AJ11: =Indexation!AJ53 -> 142.3188768 | AK11: =Indexation!AK53 -> 146.1757184 | AL11: =Indexation!AL53 -> 150.1370803 | AM11: =Indexation!AM53 -> 154.2057952 | AN11: =Indexation!AN53 -> 64.29011875 | AO11: =Indexation!AO53 -> 0 | AP11: =Indexation!AP53 -> 0 | AQ11: =Indexation!AQ53 -> 0 | AR11: =Indexation!AR53 -> 0 | AS11: =Indexation!AS53 -> 0 | AT11: =Indexation!AT53 -> 0 | AU11: =Indexation!AU53 -> 0 | AV11: =Indexation!AV53 -> 0 | AW11: =Indexation!AW53 -> 0 | AX11: =Indexation!AX53 -> 0 | AY11: =Indexation!AY53 -> 0 | AZ11: =Indexation!AZ53 -> 0 | BA11: =Indexation!BA53 -> 0 | BB11: =Indexation!BB53 -> 0
E12: =Indexation!E54 -> Notional Floor (pre-availability incentive) | G12: £m nominal prices | H12: NFLt | P12: =Indexation!P54 -> 0 | Q12: =Indexation!Q54 -> 43.76854808 | R12: =Indexation!R54 -> 74.97577768 | S12: =Indexation!S54 -> 77.00762125 | T12: =Indexation!T54 -> 79.09452779 | U12: =Indexation!U54 -> 81.23798949 | V12: =Indexation!V54 -> 83.43953901 | W12: =Indexation!W54 -> 85.70075051 | X12: =Indexation!X54 -> 88.02324085 | Y12: =Indexation!Y54 -> 90.40867068 | Z12: =Indexation!Z54 -> 83.51496762 | AA12: =Indexation!AA54 -> 56.85541315 | AB12: =Indexation!AB54 -> 58.39619484 | AC12: =Indexation!AC54 -> 59.97873172 | AD12: =Indexation!AD54 -> 61.60415535 | AE12: =Indexation!AE54 -> 63.27362796 | AF12: =Indexation!AF54 -> 64.98834328 | AG12: =Indexation!AG54 -> 66.74952738 | AH12: =Indexation!AH54 -> 68.55843957 | AI12: =Indexation!AI54 -> 70.41637329 | AJ12: =Indexation!AJ54 -> 72.324657 | AK12: =Indexation!AK54 -> 74.28465521 | AL12: =Indexation!AL54 -> 76.29776936 | AM12: =Indexation!AM54 -> 78.36543891 | AN12: =Indexation!AN54 -> 5.535167205 | AO12: =Indexation!AO54 -> 0 | AP12: =Indexation!AP54 -> 0 | AQ12: =Indexation!AQ54 -> 0 | AR12: =Indexation!AR54 -> 0 | AS12: =Indexation!AS54 -> 0 | AT12: =Indexation!AT54 -> 0 | AU12: =Indexation!AU54 -> 0 | AV12: =Indexation!AV54 -> 0 | AW12: =Indexation!AW54 -> 0 | AX12: =Indexation!AX54 -> 0 | AY12: =Indexation!AY54 -> 0 | AZ12: =Indexation!AZ54 -> 0 | BA12: =Indexation!BA54 -> 0 | BB12: =Indexation!BB54 -> 0
C14: Availability parameters
E16: =Inputs!E75 -> Number of operational years | G16: =Inputs!G75 -> full years | I16: =op_years -> 25
E17: Year is within operational period | G17: flag | P17: =AND(P$5> 0,P$5<= $I16) -> TRUE | Q17: =AND(Q$5> 0,Q$5<= $I16) -> TRUE | R17: TRUE | S17: TRUE | T17: TRUE | U17: TRUE | V17: TRUE | W17: TRUE | X17: TRUE | Y17: TRUE | Z17: =AND(Z$5> 0,Z$5<= $I16) -> TRUE | AA17: =AND(AA$5> 0,AA$5<= $I16) -> TRUE | AB17: TRUE | AC17: TRUE | AD17: TRUE | AE17: TRUE | AF17: TRUE | AG17: TRUE | AH17: TRUE | AI17: TRUE | AJ17: TRUE | AK17: TRUE | AL17: TRUE | AM17: TRUE | AN17: TRUE | AO17: FALSE | AP17: FALSE | AQ17: FALSE | AR17: FALSE | AS17: FALSE | AT17: FALSE | AU17: FALSE | AV17: FALSE | AW17: FALSE | AX17: FALSE | AY17: FALSE | AZ17: FALSE | BA17: FALSE | BB17: FALSE
E19: Interconnector rated capacity | G19: MW | H19: RC | I19: =Inputs!I121 -> 1400
E20: Number of hours in relevant year | G20: hours pa | I20: =Inputs!I122 -> 8766
C22: Cap incentive rate
E24: =Inputs!E117 -> Cap availability incentive target | G24: =Inputs!G117 -> % | I24: =Inputs!I117 -> 0.93
E25: Partial year Cap adjustment factor | G25: scalar | H25: PYCt | P25: =Indexation!P50 -> 1.245722108 | Q25: =Indexation!Q50 -> 1 | R25: =Indexation!R50 -> 1 | S25: =Indexation!S50 -> 1 | T25: =Indexation!T50 -> 1 | U25: =Indexation!U50 -> 1 | V25: =Indexation!V50 -> 1 | W25: =Indexation!W50 -> 1 | X25: =Indexation!X50 -> 1 | Y25: =Indexation!Y50 -> 1 | Z25: =Indexation!Z50 -> 1 | AA25: =Indexation!AA50 -> 1 | AB25: =Indexation!AB50 -> 1 | AC25: =Indexation!AC50 -> 1 | AD25: =Indexation!AD50 -> 1 | AE25: =Indexation!AE50 -> 1 | AF25: =Indexation!AF50 -> 1 | AG25: =Indexation!AG50 -> 1 | AH25: =Indexation!AH50 -> 1 | AI25: =Indexation!AI50 -> 1 | AJ25: =Indexation!AJ50 -> 1 | AK25: =Indexation!AK50 -> 1 | AL25: =Indexation!AL50 -> 1 | AM25: =Indexation!AM50 -> 1 | AN25: =Indexation!AN50 -> 0.7542778919 | AO25: =Indexation!AO50 -> 0 | AP25: =Indexation!AP50 -> 0 | AQ25: =Indexation!AQ50 -> 0 | AR25: =Indexation!AR50 -> 0 | AS25: =Indexation!AS50 -> 0 | AT25: =Indexation!AT50 -> 0 | AU25: =Indexation!AU50 -> 0 | AV25: =Indexation!AV50 -> 0 | AW25: =Indexation!AW50 -> 0 | AX25: =Indexation!AX50 -> 0 | AY25: =Indexation!AY50 -> 0 | AZ25: =Indexation!AZ50 -> 0 | BA25: =Indexation!BA50 -> 0 | BB25: =Indexation!BB50 -> 0
E26: Maximum possible availability | G26: MWh | H26: MPA | P26: =$I$19*$I$20*P25 -> 15288000 | Q26: =$I$19*$I$20*Q25 -> 12272400 | R26: 12272400 | S26: 12272400 | T26: 12272400 | U26: 12272400 | V26: 12272400 | W26: 12272400 | X26: 12272400 | Y26: 12272400 | Z26: 12272400 | AA26: =$I$19*$I$20*AA25 -> 12272400 | AB26: =$I$19*$I$20*AB25 -> 12272400 | AC26: 12272400 | AD26: 12272400 | AE26: 12272400 | AF26: 12272400 | AG26: 12272400 | AH26: 12272400 | AI26: 12272400 | AJ26: 12272400 | AK26: 12272400 | AL26: 12272400 | AM26: 12272400 | AN26: 9256800 | AO26: 0 | AP26: 0 | AQ26: 0 | AR26: 0 | AS26: 0 | AT26: 0 | AU26: 0 | AV26: 0 | AW26: 0 | AX26: 0 | AY26: 0 | AZ26: 0 | BA26: 0 | BB26: 0
E27: Total interconnector outages less allowed outages during active Cap period | G27: MWh | H27: IOt | P27: =INDEX(Inputs!$P$126:$BB$126,MATCH('Costs & Revenue'!P$5,Inputs!$P$5:$BB$5,0)) -> 0 | Q27: =INDEX(Inputs!$P$126:$BB$126,MATCH('Costs & Revenue'!Q$5,Inputs!$P$5:$BB$5,0)) -> 0 | R27: =INDEX(Inputs!$P$126:$BB$126,MATCH('Costs & Revenue'!R$5,Inputs!$P$5:$BB$5,0)) -> 0 | S27: =INDEX(Inputs!$P$126:$BB$126,MATCH('Costs & Revenue'!S$5,Inputs!$P$5:$BB$5,0)) -> 0 | T27: =INDEX(Inputs!$P$126:$BB$126,MATCH('Costs & Revenue'!T$5,Inputs!$P$5:$BB$5,0)) -> 0 | U27: =INDEX(Inputs!$P$126:$BB$126,MATCH('Costs & Revenue'!U$5,Inputs!$P$5:$BB$5,0)) -> 0 | V27: =INDEX(Inputs!$P$126:$BB$126,MATCH('Costs & Revenue'!V$5,Inputs!$P$5:$BB$5,0)) -> 0 | W27: =INDEX(Inputs!$P$126:$BB$126,MATCH('Costs & Revenue'!W$5,Inputs!$P$5:$BB$5,0)) -> 0 | X27: =INDEX(Inputs!$P$126:$BB$126,MATCH('Costs & Revenue'!X$5,Inputs!$P$5:$BB$5,0)) -> 0 | Y27: =INDEX(Inputs!$P$126:$BB$126,MATCH('Costs & Revenue'!Y$5,Inputs!$P$5:$BB$5,0)) -> 0 | Z27: =INDEX(Inputs!$P$126:$BB$126,MATCH('Costs & Revenue'!Z$5,Inputs!$P$5:$BB$5,0)) -> 0 | AA27: =INDEX(Inputs!$P$126:$BB$126,MATCH('Costs & Revenue'!AA$5,Inputs!$P$5:$BB$5,0)) -> 0 | AB27: =INDEX(Inputs!$P$126:$BB$126,MATCH('Costs & Revenue'!AB$5,Inputs!$P$5:$BB$5,0)) -> 0 | AC27: =INDEX(Inputs!$P$126:$BB$126,MATCH('Costs & Revenue'!AC$5,Inputs!$P$5:$BB$5,0)) -> 0 | AD27: =INDEX(Inputs!$P$126:$BB$126,MATCH('Costs & Revenue'!AD$5,Inputs!$P$5:$BB$5,0)) -> 0 | AE27: =INDEX(Inputs!$P$126:$BB$126,MATCH('Costs & Revenue'!AE$5,Inputs!$P$5:$BB$5,0)) -> 0 | AF27: =INDEX(Inputs!$P$126:$BB$126,MATCH('Costs & Revenue'!AF$5,Inputs!$P$5:$BB$5,0)) -> 0 | AG27: =INDEX(Inputs!$P$126:$BB$126,MATCH('Costs & Revenue'!AG$5,Inputs!$P$5:$BB$5,0)) -> 0 | AH27: =INDEX(Inputs!$P$126:$BB$126,MATCH('Costs & Revenue'!AH$5,Inputs!$P$5:$BB$5,0)) -> 0 | AI27: =INDEX(Inputs!$P$126:$BB$126,MATCH('Costs & Revenue'!AI$5,Inputs!$P$5:$BB$5,0)) -> 0 | AJ27: =INDEX(Inputs!$P$126:$BB$126,MATCH('Costs & Revenue'!AJ$5,Inputs!$P$5:$BB$5,0)) -> 0 | AK27: =INDEX(Inputs!$P$126:$BB$126,MATCH('Costs & Revenue'!AK$5,Inputs!$P$5:$BB$5,0)) -> 0 | AL27: =INDEX(Inputs!$P$126:$BB$126,MATCH('Costs & Revenue'!AL$5,Inputs!$P$5:$BB$5,0)) -> 0 | AM27: =INDEX(Inputs!$P$126:$BB$126,MATCH('Costs & Revenue'!AM$5,Inputs!$P$5:$BB$5,0)) -> 0 | AN27: =INDEX(Inputs!$P$126:$BB$126,MATCH('Costs & Revenue'!AN$5,Inputs!$P$5:$BB$5,0)) -> 0 | AO27: =INDEX(Inputs!$P$126:$BB$126,MATCH('Costs & Revenue'!AO$5,Inputs!$P$5:$BB$5,0)) -> 0 | AP27: =INDEX(Inputs!$P$126:$BB$126,MATCH('Costs & Revenue'!AP$5,Inputs!$P$5:$BB$5,0)) -> 0 | AQ27: =INDEX(Inputs!$P$126:$BB$126,MATCH('Costs & Revenue'!AQ$5,Inputs!$P$5:$BB$5,0)) -> 0 | AR27: =INDEX(Inputs!$P$126:$BB$126,MATCH('Costs & Revenue'!AR$5,Inputs!$P$5:$BB$5,0)) -> 0 | AS27: =INDEX(Inputs!$P$126:$BB$126,MATCH('Costs & Revenue'!AS$5,Inputs!$P$5:$BB$5,0)) -> 0 | AT27: =INDEX(Inputs!$P$126:$BB$126,MATCH('Costs & Revenue'!AT$5,Inputs!$P$5:$BB$5,0)) -> 0 | AU27: =INDEX(Inputs!$P$126:$BB$126,MATCH('Costs & Revenue'!AU$5,Inputs!$P$5:$BB$5,0)) -> 0 | AV27: =INDEX(Inputs!$P$126:$BB$126,MATCH('Costs & Revenue'!AV$5,Inputs!$P$5:$BB$5,0)) -> 0 | AW27: =INDEX(Inputs!$P$126:$BB$126,MATCH('Costs & Revenue'!AW$5,Inputs!$P$5:$BB$5,0)) -> 0 | AX27: =INDEX(Inputs!$P$126:$BB$126,MATCH('Costs & Revenue'!AX$5,Inputs!$P$5:$BB$5,0)) -> 0 | AY27: =INDEX(Inputs!$P$126:$BB$126,MATCH('Costs & Revenue'!AY$5,Inputs!$P$5:$BB$5,0)) -> 0 | AZ27: =INDEX(Inputs!$P$126:$BB$126,MATCH('Costs & Revenue'!AZ$5,Inputs!$P$5:$BB$5,0)) -> 0 | BA27: =INDEX(Inputs!$P$126:$BB$126,MATCH('Costs & Revenue'!BA$5,Inputs!$P$5:$BB$5,0)) -> 0 | BB27: =INDEX(Inputs!$P$126:$BB$126,MATCH('Costs & Revenue'!BB$5,Inputs!$P$5:$BB$5,0)) -> 0
E28: Actual availability for Cap | G28: MWh | H28: AACt (AAt) | P28: =P26-P27 -> 15288000 | Q28: 12272400 | R28: 12272400 | S28: 12272400 | T28: 12272400 | U28: 12272400 | V28: 12272400 | W28: 12272400 | X28: 12272400 | Y28: 12272400 | Z28: 12272400 | AA28: =AA26-AA27 -> 12272400 | AB28: =AB26-AB27 -> 12272400 | AC28: 12272400 | AD28: 12272400 | AE28: 12272400 | AF28: 12272400 | AG28: 12272400 | AH28: 12272400 | AI28: 12272400 | AJ28: 12272400 | AK28: 12272400 | AL28: 12272400 | AM28: 12272400 | AN28: 9256800 | AO28: 0 | AP28: 0 | AQ28: 0 | AR28: 0 | AS28: 0 | AT28: 0 | AU28: 0 | AV28: 0 | AW28: 0 | AX28: 0 | AY28: 0 | AZ28: 0 | BA28: 0 | BB28: 0
E29: Availability target | G29: MWh | H29: AT | P29: =P26*$I24 -> 14217840 | Q29: =Q26*$I24 -> 11413332 | R29: 11413332 | S29: 11413332 | T29: 11413332 | U29: 11413332 | V29: 11413332 | W29: 11413332 | X29: 11413332 | Y29: 11413332 | Z29: 11413332 | AA29: 11413332 | AB29: 11413332 | AC29: 11413332 | AD29: 11413332 | AE29: 11413332 | AF29: 11413332 | AG29: 11413332 | AH29: 11413332 | AI29: 11413332 | AJ29: 11413332 | AK29: 11413332 | AL29: 11413332 | AM29: 11413332 | AN29: 8608824 | AO29: 0 | AP29: 0 | AQ29: 0 | AR29: 0 | AS29: 0 | AT29: 0 | AU29: 0 | AV29: 0 | AW29: 0 | AX29: 0 | AY29: 0 | AZ29: 0 | BA29: 0 | BB29: 0
E30: Availability performance at Cap | G30: scalar | H30: APCt | P30: =IF(P29=0,0,P28/P29) -> 1.075268817 | Q30: =IF(Q29=0,0,Q28/Q29) -> 1.075268817 | R30: 1.075268817 | S30: 1.075268817 | T30: 1.075268817 | U30: 1.075268817 | V30: 1.075268817 | W30: 1.075268817 | X30: 1.075268817 | Y30: 1.075268817 | Z30: 1.075268817 | AA30: =IF(AA29=0,0,AA28/AA29) -> 1.075268817 | AB30: =IF(AB29=0,0,AB28/AB29) -> 1.075268817 | AC30: 1.075268817 | AD30: 1.075268817 | AE30: 1.075268817 | AF30: 1.075268817 | AG30: 1.075268817 | AH30: 1.075268817 | AI30: 1.075268817 | AJ30: 1.075268817 | AK30: 1.075268817 | AL30: 1.075268817 | AM30: 1.075268817 | AN30: 1.075268817 | AO30: 0 | AP30: 0 | AQ30: 0 | AR30: 0 | AS30: 0 | AT30: 0 | AU30: 0 | AV30: 0 | AW30: 0 | AX30: 0 | AY30: 0 | AZ30: 0 | BA30: 0 | BB30: 0
E32: =Inputs!E118 -> Cap availability incentive upper limit | G32: scalar | I32: =Inputs!I118 -> 1.02
E33: =Inputs!E119 -> Cap availability incentive lower limit | G33: scalar | I33: =Inputs!I119 -> 0.98
E35: Cap availability incentive rate | G35: scalar | H35: AICt | P35: =IF(P30>$I32,$I32,IF(P30<$I33,$I33,P30))*P17 -> 1.02 | Q35: =IF(Q30>$I32,$I32,IF(Q30<$I33,$I33,Q30))*Q17 -> 1.02 | R35: 1.02 | S35: 1.02 | T35: 1.02 | U35: 1.02 | V35: 1.02 | W35: 1.02 | X35: 1.02 | Y35: 1.02 | Z35: 1.02 | AA35: 1.02 | AB35: 1.02 | AC35: 1.02 | AD35: 1.02 | AE35: 1.02 | AF35: 1.02 | AG35: 1.02 | AH35: 1.02 | AI35: 1.02 | AJ35: 1.02 | AK35: 1.02 | AL35: 1.02 | AM35: 1.02 | AN35: 1.02 | AO35: 0 | AP35: 0 | AQ35: 0 | AR35: 0 | AS35: 0 | AT35: 0 | AU35: 0 | AV35: 0 | AW35: 0 | AX35: 0 | AY35: 0 | AZ35: 0 | BA35: 0 | BB35: 0
C37: Floor incentive rate
E39: Floor availability incentive target | G39: % | I39: =Inputs!I132 -> 0.8
E40: Partial year Floor adjustment factor | G40: scalar | H40: PYFt | P40: =Indexation!P51 -> 0 | Q40: =Indexation!Q51 -> 0.5995893224 | R40: =Indexation!R51 -> 1 | S40: =Indexation!S51 -> 1 | T40: =Indexation!T51 -> 1 | U40: =Indexation!U51 -> 1 | V40: =Indexation!V51 -> 1 | W40: =Indexation!W51 -> 1 | X40: =Indexation!X51 -> 1 | Y40: =Indexation!Y51 -> 1 | Z40: =Indexation!Z51 -> 1 | AA40: =Indexation!AA51 -> 1 | AB40: =Indexation!AB51 -> 1 | AC40: =Indexation!AC51 -> 1 | AD40: =Indexation!AD51 -> 1 | AE40: =Indexation!AE51 -> 1 | AF40: =Indexation!AF51 -> 1 | AG40: =Indexation!AG51 -> 1 | AH40: =Indexation!AH51 -> 1 | AI40: =Indexation!AI51 -> 1 | AJ40: =Indexation!AJ51 -> 1 | AK40: =Indexation!AK51 -> 1 | AL40: =Indexation!AL51 -> 1 | AM40: =Indexation!AM51 -> 1 | AN40: =Indexation!AN51 -> 0.7542778919 | AO40: =Indexation!AO51 -> 0 | AP40: =Indexation!AP51 -> 0 | AQ40: =Indexation!AQ51 -> 0 | AR40: =Indexation!AR51 -> 0 | AS40: =Indexation!AS51 -> 0 | AT40: =Indexation!AT51 -> 0 | AU40: =Indexation!AU51 -> 0 | AV40: =Indexation!AV51 -> 0 | AW40: =Indexation!AW51 -> 0 | AX40: =Indexation!AX51 -> 0 | AY40: =Indexation!AY51 -> 0 | AZ40: =Indexation!AZ51 -> 0 | BA40: =Indexation!BA51 -> 0 | BB40: =Indexation!BB51 -> 0
E41: Maximum possible availability | G41: MWh | H41: MPA | P41: =$I$19*$I$20*P40 -> 0 | Q41: 7358400 | R41: 12272400 | S41: 12272400 | T41: 12272400 | U41: 12272400 | V41: 12272400 | W41: 12272400 | X41: 12272400 | Y41: 12272400 | Z41: 12272400 | AA41: 12272400 | AB41: 12272400 | AC41: 12272400 | AD41: 12272400 | AE41: 12272400 | AF41: 12272400 | AG41: 12272400 | AH41: 12272400 | AI41: 12272400 | AJ41: 12272400 | AK41: 12272400 | AL41: 12272400 | AM41: 12272400 | AN41: 9256800 | AO41: 0 | AP41: 0 | AQ41: 0 | AR41: 0 | AS41: 0 | AT41: 0 | AU41: 0 | AV41: 0 | AW41: 0 | AX41: 0 | AY41: 0 | AZ41: 0 | BA41: 0 | BB41: 0
E42: Total interconnector outages less allowed outages during active Floor period | G42: MWh | H42: IOt | P42: =INDEX(Inputs!$P$129:$BB$129,MATCH('Costs & Revenue'!P$5,Inputs!$P$5:$BB$5,0)) -> 0 | Q42: =INDEX(Inputs!$P$129:$BB$129,MATCH('Costs & Revenue'!Q$5,Inputs!$P$5:$BB$5,0)) -> 0 | R42: =INDEX(Inputs!$P$129:$BB$129,MATCH('Costs & Revenue'!R$5,Inputs!$P$5:$BB$5,0)) -> 0 | S42: =INDEX(Inputs!$P$129:$BB$129,MATCH('Costs & Revenue'!S$5,Inputs!$P$5:$BB$5,0)) -> 0 | T42: =INDEX(Inputs!$P$129:$BB$129,MATCH('Costs & Revenue'!T$5,Inputs!$P$5:$BB$5,0)) -> 0 | U42: =INDEX(Inputs!$P$129:$BB$129,MATCH('Costs & Revenue'!U$5,Inputs!$P$5:$BB$5,0)) -> 0 | V42: =INDEX(Inputs!$P$129:$BB$129,MATCH('Costs & Revenue'!V$5,Inputs!$P$5:$BB$5,0)) -> 0 | W42: =INDEX(Inputs!$P$129:$BB$129,MATCH('Costs & Revenue'!W$5,Inputs!$P$5:$BB$5,0)) -> 0 | X42: =INDEX(Inputs!$P$129:$BB$129,MATCH('Costs & Revenue'!X$5,Inputs!$P$5:$BB$5,0)) -> 0 | Y42: =INDEX(Inputs!$P$129:$BB$129,MATCH('Costs & Revenue'!Y$5,Inputs!$P$5:$BB$5,0)) -> 0 | Z42: =INDEX(Inputs!$P$129:$BB$129,MATCH('Costs & Revenue'!Z$5,Inputs!$P$5:$BB$5,0)) -> 0 | AA42: =INDEX(Inputs!$P$129:$BB$129,MATCH('Costs & Revenue'!AA$5,Inputs!$P$5:$BB$5,0)) -> 0 | AB42: =INDEX(Inputs!$P$129:$BB$129,MATCH('Costs & Revenue'!AB$5,Inputs!$P$5:$BB$5,0)) -> 0 | AC42: =INDEX(Inputs!$P$129:$BB$129,MATCH('Costs & Revenue'!AC$5,Inputs!$P$5:$BB$5,0)) -> 0 | AD42: =INDEX(Inputs!$P$129:$BB$129,MATCH('Costs & Revenue'!AD$5,Inputs!$P$5:$BB$5,0)) -> 0 | AE42: =INDEX(Inputs!$P$129:$BB$129,MATCH('Costs & Revenue'!AE$5,Inputs!$P$5:$BB$5,0)) -> 0 | AF42: =INDEX(Inputs!$P$129:$BB$129,MATCH('Costs & Revenue'!AF$5,Inputs!$P$5:$BB$5,0)) -> 0 | AG42: =INDEX(Inputs!$P$129:$BB$129,MATCH('Costs & Revenue'!AG$5,Inputs!$P$5:$BB$5,0)) -> 0 | AH42: =INDEX(Inputs!$P$129:$BB$129,MATCH('Costs & Revenue'!AH$5,Inputs!$P$5:$BB$5,0)) -> 0 | AI42: =INDEX(Inputs!$P$129:$BB$129,MATCH('Costs & Revenue'!AI$5,Inputs!$P$5:$BB$5,0)) -> 0 | AJ42: =INDEX(Inputs!$P$129:$BB$129,MATCH('Costs & Revenue'!AJ$5,Inputs!$P$5:$BB$5,0)) -> 0 | AK42: =INDEX(Inputs!$P$129:$BB$129,MATCH('Costs & Revenue'!AK$5,Inputs!$P$5:$BB$5,0)) -> 0 | AL42: =INDEX(Inputs!$P$129:$BB$129,MATCH('Costs & Revenue'!AL$5,Inputs!$P$5:$BB$5,0)) -> 0 | AM42: =INDEX(Inputs!$P$129:$BB$129,MATCH('Costs & Revenue'!AM$5,Inputs!$P$5:$BB$5,0)) -> 0 | AN42: =INDEX(Inputs!$P$129:$BB$129,MATCH('Costs & Revenue'!AN$5,Inputs!$P$5:$BB$5,0)) -> 0 | AO42: =INDEX(Inputs!$P$129:$BB$129,MATCH('Costs & Revenue'!AO$5,Inputs!$P$5:$BB$5,0)) -> 0 | AP42: =INDEX(Inputs!$P$129:$BB$129,MATCH('Costs & Revenue'!AP$5,Inputs!$P$5:$BB$5,0)) -> 0 | AQ42: =INDEX(Inputs!$P$129:$BB$129,MATCH('Costs & Revenue'!AQ$5,Inputs!$P$5:$BB$5,0)) -> 0 | AR42: =INDEX(Inputs!$P$129:$BB$129,MATCH('Costs & Revenue'!AR$5,Inputs!$P$5:$BB$5,0)) -> 0 | AS42: =INDEX(Inputs!$P$129:$BB$129,MATCH('Costs & Revenue'!AS$5,Inputs!$P$5:$BB$5,0)) -> 0 | AT42: =INDEX(Inputs!$P$129:$BB$129,MATCH('Costs & Revenue'!AT$5,Inputs!$P$5:$BB$5,0)) -> 0 | AU42: =INDEX(Inputs!$P$129:$BB$129,MATCH('Costs & Revenue'!AU$5,Inputs!$P$5:$BB$5,0)) -> 0 | AV42: =INDEX(Inputs!$P$129:$BB$129,MATCH('Costs & Revenue'!AV$5,Inputs!$P$5:$BB$5,0)) -> 0 | AW42: =INDEX(Inputs!$P$129:$BB$129,MATCH('Costs & Revenue'!AW$5,Inputs!$P$5:$BB$5,0)) -> 0 | AX42: =INDEX(Inputs!$P$129:$BB$129,MATCH('Costs & Revenue'!AX$5,Inputs!$P$5:$BB$5,0)) -> 0 | AY42: =INDEX(Inputs!$P$129:$BB$129,MATCH('Costs & Revenue'!AY$5,Inputs!$P$5:$BB$5,0)) -> 0 | AZ42: =INDEX(Inputs!$P$129:$BB$129,MATCH('Costs & Revenue'!AZ$5,Inputs!$P$5:$BB$5,0)) -> 0 | BA42: =INDEX(Inputs!$P$129:$BB$129,MATCH('Costs & Revenue'!BA$5,Inputs!$P$5:$BB$5,0)) -> 0 | BB42: =INDEX(Inputs!$P$129:$BB$129,MATCH('Costs & Revenue'!BB$5,Inputs!$P$5:$BB$5,0)) -> 0
E43: Outages associated with exceptional events | G43: MWh | P43: =INDEX(Inputs!$P$130:$BB$130,MATCH('Costs & Revenue'!P$5,Inputs!$P$5:$BB$5,0)) -> 0 | Q43: =INDEX(Inputs!$P$130:$BB$130,MATCH('Costs & Revenue'!Q$5,Inputs!$P$5:$BB$5,0)) -> 0 | R43: =INDEX(Inputs!$P$130:$BB$130,MATCH('Costs & Revenue'!R$5,Inputs!$P$5:$BB$5,0)) -> 0 | S43: =INDEX(Inputs!$P$130:$BB$130,MATCH('Costs & Revenue'!S$5,Inputs!$P$5:$BB$5,0)) -> 0 | T43: =INDEX(Inputs!$P$130:$BB$130,MATCH('Costs & Revenue'!T$5,Inputs!$P$5:$BB$5,0)) -> 0 | U43: =INDEX(Inputs!$P$130:$BB$130,MATCH('Costs & Revenue'!U$5,Inputs!$P$5:$BB$5,0)) -> 0 | V43: =INDEX(Inputs!$P$130:$BB$130,MATCH('Costs & Revenue'!V$5,Inputs!$P$5:$BB$5,0)) -> 0 | W43: =INDEX(Inputs!$P$130:$BB$130,MATCH('Costs & Revenue'!W$5,Inputs!$P$5:$BB$5,0)) -> 0 | X43: =INDEX(Inputs!$P$130:$BB$130,MATCH('Costs & Revenue'!X$5,Inputs!$P$5:$BB$5,0)) -> 0 | Y43: =INDEX(Inputs!$P$130:$BB$130,MATCH('Costs & Revenue'!Y$5,Inputs!$P$5:$BB$5,0)) -> 0 | Z43: =INDEX(Inputs!$P$130:$BB$130,MATCH('Costs & Revenue'!Z$5,Inputs!$P$5:$BB$5,0)) -> 0 | AA43: =INDEX(Inputs!$P$130:$BB$130,MATCH('Costs & Revenue'!AA$5,Inputs!$P$5:$BB$5,0)) -> 0 | AB43: =INDEX(Inputs!$P$130:$BB$130,MATCH('Costs & Revenue'!AB$5,Inputs!$P$5:$BB$5,0)) -> 0 | AC43: =INDEX(Inputs!$P$130:$BB$130,MATCH('Costs & Revenue'!AC$5,Inputs!$P$5:$BB$5,0)) -> 0 | AD43: =INDEX(Inputs!$P$130:$BB$130,MATCH('Costs & Revenue'!AD$5,Inputs!$P$5:$BB$5,0)) -> 0 | AE43: =INDEX(Inputs!$P$130:$BB$130,MATCH('Costs & Revenue'!AE$5,Inputs!$P$5:$BB$5,0)) -> 0 | AF43: =INDEX(Inputs!$P$130:$BB$130,MATCH('Costs & Revenue'!AF$5,Inputs!$P$5:$BB$5,0)) -> 0 | AG43: =INDEX(Inputs!$P$130:$BB$130,MATCH('Costs & Revenue'!AG$5,Inputs!$P$5:$BB$5,0)) -> 0 | AH43: =INDEX(Inputs!$P$130:$BB$130,MATCH('Costs & Revenue'!AH$5,Inputs!$P$5:$BB$5,0)) -> 0 | AI43: =INDEX(Inputs!$P$130:$BB$130,MATCH('Costs & Revenue'!AI$5,Inputs!$P$5:$BB$5,0)) -> 0 | AJ43: =INDEX(Inputs!$P$130:$BB$130,MATCH('Costs & Revenue'!AJ$5,Inputs!$P$5:$BB$5,0)) -> 0 | AK43: =INDEX(Inputs!$P$130:$BB$130,MATCH('Costs & Revenue'!AK$5,Inputs!$P$5:$BB$5,0)) -> 0 | AL43: =INDEX(Inputs!$P$130:$BB$130,MATCH('Costs & Revenue'!AL$5,Inputs!$P$5:$BB$5,0)) -> 0 | AM43: =INDEX(Inputs!$P$130:$BB$130,MATCH('Costs & Revenue'!AM$5,Inputs!$P$5:$BB$5,0)) -> 0 | AN43: =INDEX(Inputs!$P$130:$BB$130,MATCH('Costs & Revenue'!AN$5,Inputs!$P$5:$BB$5,0)) -> 0 | AO43: =INDEX(Inputs!$P$130:$BB$130,MATCH('Costs & Revenue'!AO$5,Inputs!$P$5:$BB$5,0)) -> 0 | AP43: =INDEX(Inputs!$P$130:$BB$130,MATCH('Costs & Revenue'!AP$5,Inputs!$P$5:$BB$5,0)) -> 0 | AQ43: =INDEX(Inputs!$P$130:$BB$130,MATCH('Costs & Revenue'!AQ$5,Inputs!$P$5:$BB$5,0)) -> 0 | AR43: =INDEX(Inputs!$P$130:$BB$130,MATCH('Costs & Revenue'!AR$5,Inputs!$P$5:$BB$5,0)) -> 0 | AS43: =INDEX(Inputs!$P$130:$BB$130,MATCH('Costs & Revenue'!AS$5,Inputs!$P$5:$BB$5,0)) -> 0 | AT43: =INDEX(Inputs!$P$130:$BB$130,MATCH('Costs & Revenue'!AT$5,Inputs!$P$5:$BB$5,0)) -> 0 | AU43: =INDEX(Inputs!$P$130:$BB$130,MATCH('Costs & Revenue'!AU$5,Inputs!$P$5:$BB$5,0)) -> 0 | AV43: =INDEX(Inputs!$P$130:$BB$130,MATCH('Costs & Revenue'!AV$5,Inputs!$P$5:$BB$5,0)) -> 0 | AW43: =INDEX(Inputs!$P$130:$BB$130,MATCH('Costs & Revenue'!AW$5,Inputs!$P$5:$BB$5,0)) -> 0 | AX43: =INDEX(Inputs!$P$130:$BB$130,MATCH('Costs & Revenue'!AX$5,Inputs!$P$5:$BB$5,0)) -> 0 | AY43: =INDEX(Inputs!$P$130:$BB$130,MATCH('Costs & Revenue'!AY$5,Inputs!$P$5:$BB$5,0)) -> 0 | AZ43: =INDEX(Inputs!$P$130:$BB$130,MATCH('Costs & Revenue'!AZ$5,Inputs!$P$5:$BB$5,0)) -> 0 | BA43: =INDEX(Inputs!$P$130:$BB$130,MATCH('Costs & Revenue'!BA$5,Inputs!$P$5:$BB$5,0)) -> 0 | BB43: =INDEX(Inputs!$P$130:$BB$130,MATCH('Costs & Revenue'!BB$5,Inputs!$P$5:$BB$5,0)) -> 0
E44: Actual availability for Floor | G44: MWh | H44: AAFt (AAt) | P44: =P41-P42+P43 -> 0 | Q44: 7358400 | R44: 12272400 | S44: 12272400 | T44: 12272400 | U44: 12272400 | V44: 12272400 | W44: 12272400 | X44: 12272400 | Y44: 12272400 | Z44: =Z41-Z42+Z43 -> 12272400 | AA44: 12272400 | AB44: =AB41-AB42+AB43 -> 12272400 | AC44: 12272400 | AD44: 12272400 | AE44: 12272400 | AF44: 12272400 | AG44: 12272400 | AH44: 12272400 | AI44: 12272400 | AJ44: 12272400 | AK44: 12272400 | AL44: 12272400 | AM44: 12272400 | AN44: 9256800 | AO44: 0 | AP44: 0 | AQ44: 0 | AR44: 0 | AS44: 0 | AT44: 0 | AU44: 0 | AV44: 0 | AW44: 0 | AX44: 0 | AY44: 0 | AZ44: 0 | BA44: 0 | BB44: 0
E45: Minimum availability target | G45: MWh | H45: MAT | P45: =$I$39*P41 -> 0 | Q45: =$I$39*Q41 -> 5886720 | R45: 9817920 | S45: 9817920 | T45: 9817920 | U45: 9817920 | V45: 9817920 | W45: 9817920 | X45: 9817920 | Y45: 9817920 | Z45: 9817920 | AA45: 9817920 | AB45: 9817920 | AC45: 9817920 | AD45: 9817920 | AE45: 9817920 | AF45: 9817920 | AG45: 9817920 | AH45: 9817920 | AI45: 9817920 | AJ45: 9817920 | AK45: 9817920 | AL45: 9817920 | AM45: 9817920 | AN45: 7405440 | AO45: 0 | AP45: 0 | AQ45: 0 | AR45: 0 | AS45: 0 | AT45: 0 | AU45: 0 | AV45: 0 | AW45: 0 | AX45: 0 | AY45: 0 | AZ45: 0 | BA45: 0 | BB45: 0
E46: Availability performance at Floor | G46: scalar | H46: APFt | P46: =IF(P45=0,0,P44/P45) -> 0 | Q46: =IF(Q45=0,0,Q44/Q45) -> 1.25 | R46: 1.25 | S46: 1.25 | T46: 1.25 | U46: 1.25 | V46: 1.25 | W46: 1.25 | X46: 1.25 | Y46: 1.25 | Z46: =IF(Z45=0,0,Z44/Z45) -> 1.25 | AA46: 1.25 | AB46: 1.25 | AC46: =IF(AC45=0,0,AC44/AC45) -> 1.25 | AD46: =IF(AD45=0,0,AD44/AD45) -> 1.25 | AE46: =IF(AE45=0,0,AE44/AE45) -> 1.25 | AF46: =IF(AF45=0,0,AF44/AF45) -> 1.25 | AG46: =IF(AG45=0,0,AG44/AG45) -> 1.25 | AH46: =IF(AH45=0,0,AH44/AH45) -> 1.25 | AI46: =IF(AI45=0,0,AI44/AI45) -> 1.25 | AJ46: =IF(AJ45=0,0,AJ44/AJ45) -> 1.25 | AK46: =IF(AK45=0,0,AK44/AK45) -> 1.25 | AL46: =IF(AL45=0,0,AL44/AL45) -> 1.25 | AM46: =IF(AM45=0,0,AM44/AM45) -> 1.25 | AN46: =IF(AN45=0,0,AN44/AN45) -> 1.25 | AO46: =IF(AO45=0,0,AO44/AO45) -> 0 | AP46: =IF(AP45=0,0,AP44/AP45) -> 0 | AQ46: =IF(AQ45=0,0,AQ44/AQ45) -> 0 | AR46: =IF(AR45=0,0,AR44/AR45) -> 0 | AS46: =IF(AS45=0,0,AS44/AS45) -> 0 | AT46: =IF(AT45=0,0,AT44/AT45) -> 0 | AU46: =IF(AU45=0,0,AU44/AU45) -> 0 | AV46: =IF(AV45=0,0,AV44/AV45) -> 0 | AW46: =IF(AW45=0,0,AW44/AW45) -> 0 | AX46: =IF(AX45=0,0,AX44/AX45) -> 0 | AY46: =IF(AY45=0,0,AY44/AY45) -> 0 | AZ46: =IF(AZ45=0,0,AZ44/AZ45) -> 0 | BA46: =IF(BA45=0,0,BA44/BA45) -> 0 | BB46: =IF(BB45=0,0,BB44/BB45) -> 0
E48: Floor availability incentive rate | G48: =G46 -> scalar | H48: AIFt | P48: =IF(P46<1,0,1)*P17 -> 0 | Q48: =IF(Q46<1,0,1)*Q17 -> 1 | R48: 1 | S48: 1 | T48: 1 | U48: 1 | V48: 1 | W48: 1 | X48: 1 | Y48: 1 | Z48: 1 | AA48: 1 | AB48: 1 | AC48: 1 | AD48: 1 | AE48: 1 | AF48: 1 | AG48: 1 | AH48: 1 | AI48: 1 | AJ48: 1 | AK48: 1 | AL48: 1 | AM48: 1 | AN48: 1 | AO48: 0 | AP48: 0 | AQ48: 0 | AR48: 0 | AS48: 0 | AT48: 0 | AU48: 0 | AV48: 0 | AW48: 0 | AX48: 0 | AY48: 0 | AZ48: 0 | BA48: 0 | BB48: 0
C50: Cap and Floor (post-availability incentive)
E52: Cap (post-availability incentive) | G52: £m nominal prices | H52: CLt | P52: =P11 * P35 -> 142.2188688 | Q52: =Q11 * Q35 -> 117.2596995 | R52: 120.4374374 | S52: 123.7012919 | T52: 127.053597 | U52: 130.4967494 | V52: 134.0332113 | W52: 137.6655114 | X52: 141.3962467 | Y52: 145.228085 | Z52: 139.6817505 | AA52: 114.1164141 | AB52: 117.2089689 | AC52: 120.385332 | AD52: 123.6477745 | AE52: 126.9986292 | AF52: 130.440292 | AG52: 133.975224 | AH52: 137.6059525 | AI52: 141.3350738 | AJ52: 145.1652543 | AK52: 149.0992327 | AL52: 153.1398219 | AM52: 157.2899111 | AN52: 65.57592112 | AO52: 0 | AP52: 0 | AQ52: 0 | AR52: 0 | AS52: 0 | AT52: 0 | AU52: 0 | AV52: 0 | AW52: 0 | AX52: 0 | AY52: 0 | AZ52: 0 | BA52: 0 | BB52: 0
E53: Floor (post-availability incentive) | G53: £m nominal prices | H53: FLt | P53: =P12 * P48 -> 0 | Q53: =Q12 * Q48 -> 43.76854808 | R53: 74.97577768 | S53: 77.00762125 | T53: 79.09452779 | U53: 81.23798949 | V53: 83.43953901 | W53: 85.70075051 | X53: 88.02324085 | Y53: 90.40867068 | Z53: 83.51496762 | AA53: 56.85541315 | AB53: 58.39619484 | AC53: 59.97873172 | AD53: 61.60415535 | AE53: 63.27362796 | AF53: 64.98834328 | AG53: 66.74952738 | AH53: 68.55843957 | AI53: 70.41637329 | AJ53: 72.324657 | AK53: 74.28465521 | AL53: 76.29776936 | AM53: 78.36543891 | AN53: 5.535167205 | AO53: 0 | AP53: 0 | AQ53: 0 | AR53: 0 | AS53: 0 | AT53: 0 | AU53: 0 | AV53: 0 | AW53: 0 | AX53: 0 | AY53: 0 | AZ53: 0 | BA53: 0 | BB53: 0
B55: End of sheet
G117: scalar
G118: scalar

Sheet Assessment
A1: Assessment | H1: Licence
E2: Parameter | G2: Units | H2: Terminology | I2: Constant | O2: Annual values
E3: Year commencing | O3: =INDEX(Inputs!$O3:$BB3,MATCH('Costs & Revenue'!O$5,Inputs!$O$5:$BB$5,0)) -> 2020-04-01 | P3: =INDEX(Inputs!$O3:$BB3,MATCH('Costs & Revenue'!P$5,Inputs!$O$5:$BB$5,0)) -> 2021-04-01 | Q3: =INDEX(Inputs!$O3:$BB3,MATCH('Costs & Revenue'!Q$5,Inputs!$O$5:$BB$5,0)) -> 2022-04-01 | R3: =INDEX(Inputs!$O3:$BB3,MATCH('Costs & Revenue'!R$5,Inputs!$O$5:$BB$5,0)) -> 2023-04-01 | S3: =INDEX(Inputs!$O3:$BB3,MATCH('Costs & Revenue'!S$5,Inputs!$O$5:$BB$5,0)) -> 2024-04-01 | T3: =INDEX(Inputs!$O3:$BB3,MATCH('Costs & Revenue'!T$5,Inputs!$O$5:$BB$5,0)) -> 2025-04-01 | U3: =INDEX(Inputs!$O3:$BB3,MATCH('Costs & Revenue'!U$5,Inputs!$O$5:$BB$5,0)) -> 2026-04-01 | V3: =INDEX(Inputs!$O3:$BB3,MATCH('Costs & Revenue'!V$5,Inputs!$O$5:$BB$5,0)) -> 2027-04-01 | W3: =INDEX(Inputs!$O3:$BB3,MATCH('Costs & Revenue'!W$5,Inputs!$O$5:$BB$5,0)) -> 2028-04-01 | X3: =INDEX(Inputs!$O3:$BB3,MATCH('Costs & Revenue'!X$5,Inputs!$O$5:$BB$5,0)) -> 2029-04-01 | Y3: =INDEX(Inputs!$O3:$BB3,MATCH('Costs & Revenue'!Y$5,Inputs!$O$5:$BB$5,0)) -> 2030-04-01 | Z3: =INDEX(Inputs!$O3:$BB3,MATCH('Costs & Revenue'!Z$5,Inputs!$O$5:$BB$5,0)) -> 2031-04-01 | AA3: =INDEX(Inputs!$O3:$BB3,MATCH('Costs & Revenue'!AA$5,Inputs!$O$5:$BB$5,0)) -> 2032-04-01 | AB3: =INDEX(Inputs!$O3:$BB3,MATCH('Costs & Revenue'!AB$5,Inputs!$O$5:$BB$5,0)) -> 2033-04-01 | AC3: =INDEX(Inputs!$O3:$BB3,MATCH('Costs & Revenue'!AC$5,Inputs!$O$5:$BB$5,0)) -> 2034-04-01 | AD3: =INDEX(Inputs!$O3:$BB3,MATCH('Costs & Revenue'!AD$5,Inputs!$O$5:$BB$5,0)) -> 2035-04-01 | AE3: =INDEX(Inputs!$O3:$BB3,MATCH('Costs & Revenue'!AE$5,Inputs!$O$5:$BB$5,0)) -> 2036-04-01 | AF3: =INDEX(Inputs!$O3:$BB3,MATCH('Costs & Revenue'!AF$5,Inputs!$O$5:$BB$5,0)) -> 2037-04-01 | AG3: =INDEX(Inputs!$O3:$BB3,MATCH('Costs & Revenue'!AG$5,Inputs!$O$5:$BB$5,0)) -> 2038-04-01 | AH3: =INDEX(Inputs!$O3:$BB3,MATCH('Costs & Revenue'!AH$5,Inputs!$O$5:$BB$5,0)) -> 2039-04-01 | AI3: =INDEX(Inputs!$O3:$BB3,MATCH('Costs & Revenue'!AI$5,Inputs!$O$5:$BB$5,0)) -> 2040-04-01 | AJ3: =INDEX(Inputs!$O3:$BB3,MATCH('Costs & Revenue'!AJ$5,Inputs!$O$5:$BB$5,0)) -> 2041-04-01 | AK3: =INDEX(Inputs!$O3:$BB3,MATCH('Costs & Revenue'!AK$5,Inputs!$O$5:$BB$5,0)) -> 2042-04-01 | AL3: =INDEX(Inputs!$O3:$BB3,MATCH('Costs & Revenue'!AL$5,Inputs!$O$5:$BB$5,0)) -> 2043-04-01 | AM3: =INDEX(Inputs!$O3:$BB3,MATCH('Costs & Revenue'!AM$5,Inputs!$O$5:$BB$5,0)) -> 2044-04-01 | AN3: =INDEX(Inputs!$O3:$BB3,MATCH('Costs & Revenue'!AN$5,Inputs!$O$5:$BB$5,0)) -> 2045-04-01 | AO3: =INDEX(Inputs!$O3:$BB3,MATCH('Costs & Revenue'!AO$5,Inputs!$O$5:$BB$5,0)) -> 2046-04-01 | AP3: =INDEX(Inputs!$O3:$BB3,MATCH('Costs & Revenue'!AP$5,Inputs!$O$5:$BB$5,0)) -> 2047-04-01 | AQ3: =INDEX(Inputs!$O3:$BB3,MATCH('Costs & Revenue'!AQ$5,Inputs!$O$5:$BB$5,0)) -> 2048-04-01 | AR3: =INDEX(Inputs!$O3:$BB3,MATCH('Costs & Revenue'!AR$5,Inputs!$O$5:$BB$5,0)) -> 2049-04-01 | AS3: =INDEX(Inputs!$O3:$BB3,MATCH('Costs & Revenue'!AS$5,Inputs!$O$5:$BB$5,0)) -> 2050-04-01 | AT3: =INDEX(Inputs!$O3:$BB3,MATCH('Costs & Revenue'!AT$5,Inputs!$O$5:$BB$5,0)) -> 2051-04-01 | AU3: =INDEX(Inputs!$O3:$BB3,MATCH('Costs & Revenue'!AU$5,Inputs!$O$5:$BB$5,0)) -> 2052-04-01 | AV3: =INDEX(Inputs!$O3:$BB3,MATCH('Costs & Revenue'!AV$5,Inputs!$O$5:$BB$5,0)) -> 2053-04-01 | AW3: =INDEX(Inputs!$O3:$BB3,MATCH('Costs & Revenue'!AW$5,Inputs!$O$5:$BB$5,0)) -> 2054-04-01 | AX3: =INDEX(Inputs!$O3:$BB3,MATCH('Costs & Revenue'!AX$5,Inputs!$O$5:$BB$5,0)) -> 2055-04-01 | AY3: =INDEX(Inputs!$O3:$BB3,MATCH('Costs & Revenue'!AY$5,Inputs!$O$5:$BB$5,0)) -> 2056-04-01 | AZ3: =INDEX(Inputs!$O3:$BB3,MATCH('Costs & Revenue'!AZ$5,Inputs!$O$5:$BB$5,0)) -> 2057-04-01 | BA3: =INDEX(Inputs!$O3:$BB3,MATCH('Costs & Revenue'!BA$5,Inputs!$O$5:$BB$5,0)) -> 2058-04-01 | BB3: =INDEX(Inputs!$O3:$BB3,MATCH('Costs & Revenue'!BB$5,Inputs!$O$5:$BB$5,0)) -> 2059-04-01
E4: Year ending | O4: =INDEX(Inputs!$O4:$BB4,MATCH('Costs & Revenue'!O$5,Inputs!$O$5:$BB$5,0)) -> 2021-03-31 | P4: =INDEX(Inputs!$O4:$BB4,MATCH('Costs & Revenue'!P$5,Inputs!$O$5:$BB$5,0)) -> 2022-03-31 | Q4: =INDEX(Inputs!$O4:$BB4,MATCH('Costs & Revenue'!Q$5,Inputs!$O$5:$BB$5,0)) -> 2023-03-31 | R4: =INDEX(Inputs!$O4:$BB4,MATCH('Costs & Revenue'!R$5,Inputs!$O$5:$BB$5,0)) -> 2024-03-31 | S4: =INDEX(Inputs!$O4:$BB4,MATCH('Costs & Revenue'!S$5,Inputs!$O$5:$BB$5,0)) -> 2025-03-31 | T4: =INDEX(Inputs!$O4:$BB4,MATCH('Costs & Revenue'!T$5,Inputs!$O$5:$BB$5,0)) -> 2026-03-31 | U4: =INDEX(Inputs!$O4:$BB4,MATCH('Costs & Revenue'!U$5,Inputs!$O$5:$BB$5,0)) -> 2027-03-31 | V4: =INDEX(Inputs!$O4:$BB4,MATCH('Costs & Revenue'!V$5,Inputs!$O$5:$BB$5,0)) -> 2028-03-31 | W4: =INDEX(Inputs!$O4:$BB4,MATCH('Costs & Revenue'!W$5,Inputs!$O$5:$BB$5,0)) -> 2029-03-31 | X4: =INDEX(Inputs!$O4:$BB4,MATCH('Costs & Revenue'!X$5,Inputs!$O$5:$BB$5,0)) -> 2030-03-31 | Y4: =INDEX(Inputs!$O4:$BB4,MATCH('Costs & Revenue'!Y$5,Inputs!$O$5:$BB$5,0)) -> 2031-03-31 | Z4: =INDEX(Inputs!$O4:$BB4,MATCH('Costs & Revenue'!Z$5,Inputs!$O$5:$BB$5,0)) -> 2032-03-31 | AA4: =INDEX(Inputs!$O4:$BB4,MATCH('Costs & Revenue'!AA$5,Inputs!$O$5:$BB$5,0)) -> 2033-03-31 | AB4: =INDEX(Inputs!$O4:$BB4,MATCH('Costs & Revenue'!AB$5,Inputs!$O$5:$BB$5,0)) -> 2034-03-31 | AC4: =INDEX(Inputs!$O4:$BB4,MATCH('Costs & Revenue'!AC$5,Inputs!$O$5:$BB$5,0)) -> 2035-03-31 | AD4: =INDEX(Inputs!$O4:$BB4,MATCH('Costs & Revenue'!AD$5,Inputs!$O$5:$BB$5,0)) -> 2036-03-31 | AE4: =INDEX(Inputs!$O4:$BB4,MATCH('Costs & Revenue'!AE$5,Inputs!$O$5:$BB$5,0)) -> 2037-03-31 | AF4: =INDEX(Inputs!$O4:$BB4,MATCH('Costs & Revenue'!AF$5,Inputs!$O$5:$BB$5,0)) -> 2038-03-31 | AG4: =INDEX(Inputs!$O4:$BB4,MATCH('Costs & Revenue'!AG$5,Inputs!$O$5:$BB$5,0)) -> 2039-03-31 | AH4: =INDEX(Inputs!$O4:$BB4,MATCH('Costs & Revenue'!AH$5,Inputs!$O$5:$BB$5,0)) -> 2040-03-31 | AI4: =INDEX(Inputs!$O4:$BB4,MATCH('Costs & Revenue'!AI$5,Inputs!$O$5:$BB$5,0)) -> 2041-03-31 | AJ4: =INDEX(Inputs!$O4:$BB4,MATCH('Costs & Revenue'!AJ$5,Inputs!$O$5:$BB$5,0)) -> 2042-03-31 | AK4: =INDEX(Inputs!$O4:$BB4,MATCH('Costs & Revenue'!AK$5,Inputs!$O$5:$BB$5,0)) -> 2043-03-31 | AL4: =INDEX(Inputs!$O4:$BB4,MATCH('Costs & Revenue'!AL$5,Inputs!$O$5:$BB$5,0)) -> 2044-03-31 | AM4: =INDEX(Inputs!$O4:$BB4,MATCH('Costs & Revenue'!AM$5,Inputs!$O$5:$BB$5,0)) -> 2045-03-31 | AN4: =INDEX(Inputs!$O4:$BB4,MATCH('Costs & Revenue'!AN$5,Inputs!$O$5:$BB$5,0)) -> 2046-03-31 | AO4: =INDEX(Inputs!$O4:$BB4,MATCH('Costs & Revenue'!AO$5,Inputs!$O$5:$BB$5,0)) -> 2047-03-31 | AP4: =INDEX(Inputs!$O4:$BB4,MATCH('Costs & Revenue'!AP$5,Inputs!$O$5:$BB$5,0)) -> 2048-03-31 | AQ4: =INDEX(Inputs!$O4:$BB4,MATCH('Costs & Revenue'!AQ$5,Inputs!$O$5:$BB$5,0)) -> 2049-03-31 | AR4: =INDEX(Inputs!$O4:$BB4,MATCH('Costs & Revenue'!AR$5,Inputs!$O$5:$BB$5,0)) -> 2050-03-31 | AS4: =INDEX(Inputs!$O4:$BB4,MATCH('Costs & Revenue'!AS$5,Inputs!$O$5:$BB$5,0)) -> 2051-03-31 | AT4: =INDEX(Inputs!$O4:$BB4,MATCH('Costs & Revenue'!AT$5,Inputs!$O$5:$BB$5,0)) -> 2052-03-31 | AU4: =INDEX(Inputs!$O4:$BB4,MATCH('Costs & Revenue'!AU$5,Inputs!$O$5:$BB$5,0)) -> 2053-03-31 | AV4: =INDEX(Inputs!$O4:$BB4,MATCH('Costs & Revenue'!AV$5,Inputs!$O$5:$BB$5,0)) -> 2054-03-31 | AW4: =INDEX(Inputs!$O4:$BB4,MATCH('Costs & Revenue'!AW$5,Inputs!$O$5:$BB$5,0)) -> 2055-03-31 | AX4: =INDEX(Inputs!$O4:$BB4,MATCH('Costs & Revenue'!AX$5,Inputs!$O$5:$BB$5,0)) -> 2056-03-31 | AY4: =INDEX(Inputs!$O4:$BB4,MATCH('Costs & Revenue'!AY$5,Inputs!$O$5:$BB$5,0)) -> 2057-03-31 | AZ4: =INDEX(Inputs!$O4:$BB4,MATCH('Costs & Revenue'!AZ$5,Inputs!$O$5:$BB$5,0)) -> 2058-03-31 | BA4: =INDEX(Inputs!$O4:$BB4,MATCH('Costs & Revenue'!BA$5,Inputs!$O$5:$BB$5,0)) -> 2059-03-31 | BB4: =INDEX(Inputs!$O4:$BB4,MATCH('Costs & Revenue'!BB$5,Inputs!$O$5:$BB$5,0)) -> 2060-03-31
E5: Operational year | O5: =Inputs!O5 -> 0 | P5: =Inputs!P5 -> 1 | Q5: =Inputs!Q5 -> 2 | R5: =Inputs!R5 -> 3 | S5: =Inputs!S5 -> 4 | T5: =Inputs!T5 -> 5 | U5: =Inputs!U5 -> 6 | V5: =Inputs!V5 -> 7 | W5: =Inputs!W5 -> 8 | X5: =Inputs!X5 -> 9 | Y5: =Inputs!Y5 -> 10 | Z5: =Inputs!Z5 -> 11 | AA5: =Inputs!AA5 -> 12 | AB5: =Inputs!AB5 -> 13 | AC5: =Inputs!AC5 -> 14 | AD5: =Inputs!AD5 -> 15 | AE5: =Inputs!AE5 -> 16 | AF5: =Inputs!AF5 -> 17 | AG5: =Inputs!AG5 -> 18 | AH5: =Inputs!AH5 -> 19 | AI5: =Inputs!AI5 -> 20 | AJ5: =Inputs!AJ5 -> 21 | AK5: =Inputs!AK5 -> 22 | AL5: =Inputs!AL5 -> 23 | AM5: =Inputs!AM5 -> 24 | AN5: =Inputs!AN5 -> 25 | AO5: =Inputs!AO5 -> 26 | AP5: =Inputs!AP5 -> 27 | AQ5: =Inputs!AQ5 -> 28 | AR5: =Inputs!AR5 -> 29 | AS5: =Inputs!AS5 -> 30 | AT5: =Inputs!AT5 -> 31 | AU5: =Inputs!AU5 -> 32 | AV5: =Inputs!AV5 -> 33 | AW5: =Inputs!AW5 -> 34 | AX5: =Inputs!AX5 -> 35 | AY5: =Inputs!AY5 -> 36 | AZ5: =Inputs!AZ5 -> 37 | BA5: =Inputs!BA5 -> 38 | BB5: =Inputs!BB5 -> 39
B7: Revenue assessment
C9: NPV uplift factors
E11: RPI index | G11: scalar | H11: =Indexation!H11 -> RPIt | O11: =INDEX(Inputs!$O$145:$BB$145,MATCH(O5,Inputs!$O$5:$BB$5,0)) -> 1.133881682 | P11: =INDEX(Inputs!$O$145:$BB$145,MATCH(P5,Inputs!$O$5:$BB$5,0)) -> 1.199377001 | Q11: =INDEX(Inputs!$O$145:$BB$145,MATCH(Q5,Inputs!$O$5:$BB$5,0)) -> 1.231880118 | R11: =INDEX(Inputs!$O$145:$BB$145,MATCH(R5,Inputs!$O$5:$BB$5,0)) -> 1.265264069 | S11: =INDEX(Inputs!$O$145:$BB$145,MATCH(S5,Inputs!$O$5:$BB$5,0)) -> 1.299552725 | T11: =INDEX(Inputs!$O$145:$BB$145,MATCH(T5,Inputs!$O$5:$BB$5,0)) -> 1.334770604 | U11: =INDEX(Inputs!$O$145:$BB$145,MATCH(U5,Inputs!$O$5:$BB$5,0)) -> 1.370942887 | V11: =INDEX(Inputs!$O$145:$BB$145,MATCH(V5,Inputs!$O$5:$BB$5,0)) -> 1.40809544 | W11: =INDEX(Inputs!$O$145:$BB$145,MATCH(W5,Inputs!$O$5:$BB$5,0)) -> 1.446254826 | X11: =INDEX(Inputs!$O$145:$BB$145,MATCH(X5,Inputs!$O$5:$BB$5,0)) -> 1.485448332 | Y11: =INDEX(Inputs!$O$145:$BB$145,MATCH(Y5,Inputs!$O$5:$BB$5,0)) -> 1.525703982 | Z11: =INDEX(Inputs!$O$145:$BB$145,MATCH(Z5,Inputs!$O$5:$BB$5,0)) -> 1.56705056 | AA11: =INDEX(Inputs!$O$145:$BB$145,MATCH(AA5,Inputs!$O$5:$BB$5,0)) -> 1.60951763 | AB11: =INDEX(Inputs!$O$145:$BB$145,MATCH(AB5,Inputs!$O$5:$BB$5,0)) -> 1.653135558 | AC11: =INDEX(Inputs!$O$145:$BB$145,MATCH(AC5,Inputs!$O$5:$BB$5,0)) -> 1.697935531 | AD11: =INDEX(Inputs!$O$145:$BB$145,MATCH(AD5,Inputs!$O$5:$BB$5,0)) -> 1.743949584 | AE11: =INDEX(Inputs!$O$145:$BB$145,MATCH(AE5,Inputs!$O$5:$BB$5,0)) -> 1.791210618 | AF11: =INDEX(Inputs!$O$145:$BB$145,MATCH(AF5,Inputs!$O$5:$BB$5,0)) -> 1.839752426 | AG11: =INDEX(Inputs!$O$145:$BB$145,MATCH(AG5,Inputs!$O$5:$BB$5,0)) -> 1.889609716 | AH11: =INDEX(Inputs!$O$145:$BB$145,MATCH(AH5,Inputs!$O$5:$BB$5,0)) -> 1.94081814 | AI11: =INDEX(Inputs!$O$145:$BB$145,MATCH(AI5,Inputs!$O$5:$BB$5,0)) -> 1.993414311 | AJ11: =INDEX(Inputs!$O$145:$BB$145,MATCH(AJ5,Inputs!$O$5:$BB$5,0)) -> 2.047435839 | AK11: =INDEX(Inputs!$O$145:$BB$145,MATCH(AK5,Inputs!$O$5:$BB$5,0)) -> 2.10292135 | AL11: =INDEX(Inputs!$O$145:$BB$145,MATCH(AL5,Inputs!$O$5:$BB$5,0)) -> 2.159910519 | AM11: =INDEX(Inputs!$O$145:$BB$145,MATCH(AM5,Inputs!$O$5:$BB$5,0)) -> 2.218444094 | AN11: =INDEX(Inputs!$O$145:$BB$145,MATCH(AN5,Inputs!$O$5:$BB$5,0)) -> 2.278563929 | AO11: =INDEX(Inputs!$O$145:$BB$145,MATCH(AO5,Inputs!$O$5:$BB$5,0)) -> 2.340313011 | AP11: =INDEX(Inputs!$O$145:$BB$145,MATCH(AP5,Inputs!$O$5:$BB$5,0)) -> 2.403735494 | AQ11: =INDEX(Inputs!$O$145:$BB$145,MATCH(AQ5,Inputs!$O$5:$BB$5,0)) -> 2.468876726 | AR11: =INDEX(Inputs!$O$145:$BB$145,MATCH(AR5,Inputs!$O$5:$BB$5,0)) -> 2.913261562 | AS11: =INDEX(Inputs!$O$145:$BB$145,MATCH(AS5,Inputs!$O$5:$BB$5,0)) -> 3.007651237 | AT11: =INDEX(Inputs!$O$145:$BB$145,MATCH(AT5,Inputs!$O$5:$BB$5,0)) -> 3.105099137 | AU11: =INDEX(Inputs!$O$145:$BB$145,MATCH(AU5,Inputs!$O$5:$BB$5,0)) -> 3.205704349 | AV11: =INDEX(Inputs!$O$145:$BB$145,MATCH(AV5,Inputs!$O$5:$BB$5,0)) -> 3.30956917 | AW11: =INDEX(Inputs!$O$145:$BB$145,MATCH(AW5,Inputs!$O$5:$BB$5,0)) -> 3.416799211 | AX11: =INDEX(Inputs!$O$145:$BB$145,MATCH(AX5,Inputs!$O$5:$BB$5,0)) -> 3.527503505 | AY11: =INDEX(Inputs!$O$145:$BB$145,MATCH(AY5,Inputs!$O$5:$BB$5,0)) -> 3.641794619 | AZ11: =INDEX(Inputs!$O$145:$BB$145,MATCH(AZ5,Inputs!$O$5:$BB$5,0)) -> 3.759788764 | BA11: =INDEX(Inputs!$O$145:$BB$145,MATCH(BA5,Inputs!$O$5:$BB$5,0)) -> 3.88160592 | BB11: =INDEX(Inputs!$O$145:$BB$145,MATCH(BB5,Inputs!$O$5:$BB$5,0)) -> 4.007369952
E12: RPI index change | G12: annual % | H12: CRPIt | P12: =P11/O11-1 -> 0.05776203966 | Q12: =Q11/P11-1 -> 0.0271 | R12: =R11/Q11-1 -> 0.0271 | S12: 0.0271 | T12: 0.0271 | U12: 0.0271 | V12: 0.0271 | W12: 0.0271 | X12: 0.0271 | Y12: 0.0271 | Z12: =Z11/Y11-1 -> 0.0271 | AA12: =AA11/Z11-1 -> 0.0271 | AB12: 0.0271 | AC12: 0.0271 | AD12: 0.0271 | AE12: 0.0271 | AF12: 0.0271 | AG12: 0.0271 | AH12: 0.0271 | AI12: 0.0271 | AJ12: 0.0271 | AK12: 0.0271 | AL12: 0.0271 | AM12: 0.0271 | AN12: 0.0271 | AO12: 0.0271 | AP12: 0.0271 | AQ12: 0.0271 | AR12: 0.1799947448 | AS12: 0.0324 | AT12: 0.0324 | AU12: 0.0324 | AV12: 0.0324 | AW12: 0.0324 | AX12: 0.0324 | AY12: 0.0324 | AZ12: 0.0324 | BA12: 0.0324 | BB12: 0.0324
E13: =Inputs!E42 -> Operational discount rate | G13: =Inputs!G42 -> real annual % | H13: ODR | I13: =Inputs!I42 -> 0.0443
E14: Operational discount rate | G14: nominal % | H14: NODRt | L14: 0 | M14: 0 | N14: 0 | O14: 0 | P14: =(1+$I13)*(1+P12)-1 -> 0.104620898 | Q14: =(1+$I13)*(1+Q12)-1 -> 0.07260053 | R14: 0.07260053 | S14: 0.07260053 | T14: 0.07260053 | U14: 0.07260053 | V14: 0.07260053 | W14: 0.07260053 | X14: 0.07260053 | Y14: 0.07260053 | Z14: =(1+$I13)*(1+Z12)-1 -> 0.07260053 | AA14: =(1+$I13)*(1+AA12)-1 -> 0.07260053 | AB14: 0.07260053 | AC14: 0.07260053 | AD14: 0.07260053 | AE14: 0.07260053 | AF14: 0.07260053 | AG14: 0.07260053 | AH14: 0.07260053 | AI14: 0.07260053 | AJ14: 0.07260053 | AK14: 0.07260053 | AL14: 0.07260053 | AM14: 0.07260053 | AN14: 0.07260053 | AO14: 0.07260053 | AP14: 0.07260053 | AQ14: 0.07260053 | AR14: 0.232268512 | AS14: 0.07813532 | AT14: 0.07813532 | AU14: 0.07813532 | AV14: 0.07813532 | AW14: 0.07813532 | AX14: 0.07813532 | AY14: 0.07813532 | AZ14: 0.07813532 | BA14: 0.07813532 | BB14: 0.07813532
E16: Five-year uplift factor | G16: scalar | H16: UFt1 | P16: =IF($I$47<5,0,IF(OR(P$5<1,P$5>Inputs!$I$75),0,IF(OR(MOD(P$5,$I$47)=1,MOD(P$5,$I$47)=2,MOD(P$5,$I$47)=3,MOD(P$5,$I$47)=4),0,(1+P$14)*(1+O$14)*(1+N$14)*(1+M$14)))) -> 0 | Q16: =IF($I$47<5,0,IF(OR(Q$5<1,Q$5>Inputs!$I$75),0,IF(OR(MOD(Q$5,$I$47)=1,MOD(Q$5,$I$47)=2,MOD(Q$5,$I$47)=3,MOD(Q$5,$I$47)=4),0,(1+Q$14)*(1+P$14)*(1+O$14)*(1+N$14)))) -> 0 | R16: =IF($I$47<5,0,IF(OR(R$5<1,R$5>Inputs!$I$75),0,IF(OR(MOD(R$5,$I$47)=1,MOD(R$5,$I$47)=2,MOD(R$5,$I$47)=3,MOD(R$5,$I$47)=4),0,(1+R$14)*(1+Q$14)*(1+P$14)*(1+O$14)))) -> 0 | S16: =IF($I$47<5,0,IF(OR(S$5<1,S$5>Inputs!$I$75),0,IF(OR(MOD(S$5,$I$47)=1,MOD(S$5,$I$47)=2,MOD(S$5,$I$47)=3,MOD(S$5,$I$47)=4),0,(1+S$14)*(1+R$14)*(1+Q$14)*(1+P$14)))) -> 0 | T16: =IF($I$47<5,0,IF(OR(T$5<1,T$5>Inputs!$I$75),0,IF(OR(MOD(T$5,$I$47)=1,MOD(T$5,$I$47)=2,MOD(T$5,$I$47)=3,MOD(T$5,$I$47)=4),0,(1+T$14)*(1+S$14)*(1+R$14)*(1+Q$14)))) -> 1.323585586 | U16: =IF($I$47<5,0,IF(OR(U$5<1,U$5>Inputs!$I$75),0,IF(OR(MOD(U$5,$I$47)=1,MOD(U$5,$I$47)=2,MOD(U$5,$I$47)=3,MOD(U$5,$I$47)=4),0,(1+U$14)*(1+T$14)*(1+S$14)*(1+R$14)))) -> 0 | V16: =IF($I$47<5,0,IF(OR(V$5<1,V$5>Inputs!$I$75),0,IF(OR(MOD(V$5,$I$47)=1,MOD(V$5,$I$47)=2,MOD(V$5,$I$47)=3,MOD(V$5,$I$47)=4),0,(1+V$14)*(1+U$14)*(1+T$14)*(1+S$14)))) -> 0 | W16: =IF($I$47<5,0,IF(OR(W$5<1,W$5>Inputs!$I$75),0,IF(OR(MOD(W$5,$I$47)=1,MOD(W$5,$I$47)=2,MOD(W$5,$I$47)=3,MOD(W$5,$I$47)=4),0,(1+W$14)*(1+V$14)*(1+U$14)*(1+T$14)))) -> 0 | X16: =IF($I$47<5,0,IF(OR(X$5<1,X$5>Inputs!$I$75),0,IF(OR(MOD(X$5,$I$47)=1,MOD(X$5,$I$47)=2,MOD(X$5,$I$47)=3,MOD(X$5,$I$47)=4),0,(1+X$14)*(1+W$14)*(1+V$14)*(1+U$14)))) -> 0 | Y16: =IF($I$47<5,0,IF(OR(Y$5<1,Y$5>Inputs!$I$75),0,IF(OR(MOD(Y$5,$I$47)=1,MOD(Y$5,$I$47)=2,MOD(Y$5,$I$47)=3,MOD(Y$5,$I$47)=4),0,(1+Y$14)*(1+X$14)*(1+W$14)*(1+V$14)))) -> 1.323585586 | Z16: =IF($I$47<5,0,IF(OR(Z$5<1,Z$5>Inputs!$I$75),0,IF(OR(MOD(Z$5,$I$47)=1,MOD(Z$5,$I$47)=2,MOD(Z$5,$I$47)=3,MOD(Z$5,$I$47)=4),0,(1+Z$14)*(1+Y$14)*(1+X$14)*(1+W$14)))) -> 0 | AA16: =IF($I$47<5,0,IF(OR(AA$5<1,AA$5>Inputs!$I$75),0,IF(OR(MOD(AA$5,$I$47)=1,MOD(AA$5,$I$47)=2,MOD(AA$5,$I$47)=3,MOD(AA$5,$I$47)=4),0,(1+AA$14)*(1+Z$14)*(1+Y$14)*(1+X$14)))) -> 0 | AB16: =IF($I$47<5,0,IF(OR(AB$5<1,AB$5>Inputs!$I$75),0,IF(OR(MOD(AB$5,$I$47)=1,MOD(AB$5,$I$47)=2,MOD(AB$5,$I$47)=3,MOD(AB$5,$I$47)=4),0,(1+AB$14)*(1+AA$14)*(1+Z$14)*(1+Y$14)))) -> 0 | AC16: =IF($I$47<5,0,IF(OR(AC$5<1,AC$5>Inputs!$I$75),0,IF(OR(MOD(AC$5,$I$47)=1,MOD(AC$5,$I$47)=2,MOD(AC$5,$I$47)=3,MOD(AC$5,$I$47)=4),0,(1+AC$14)*(1+AB$14)*(1+AA$14)*(1+Z$14)))) -> 0 | AD16: =IF($I$47<5,0,IF(OR(AD$5<1,AD$5>Inputs!$I$75),0,IF(OR(MOD(AD$5,$I$47)=1,MOD(AD$5,$I$47)=2,MOD(AD$5,$I$47)=3,MOD(AD$5,$I$47)=4),0,(1+AD$14)*(1+AC$14)*(1+AB$14)*(1+AA$14)))) -> 1.323585586 | AE16: =IF($I$47<5,0,IF(OR(AE$5<1,AE$5>Inputs!$I$75),0,IF(OR(MOD(AE$5,$I$47)=1,MOD(AE$5,$I$47)=2,MOD(AE$5,$I$47)=3,MOD(AE$5,$I$47)=4),0,(1+AE$14)*(1+AD$14)*(1+AC$14)*(1+AB$14)))) -> 0 | AF16: =IF($I$47<5,0,IF(OR(AF$5<1,AF$5>Inputs!$I$75),0,IF(OR(MOD(AF$5,$I$47)=1,MOD(AF$5,$I$47)=2,MOD(AF$5,$I$47)=3,MOD(AF$5,$I$47)=4),0,(1+AF$14)*(1+AE$14)*(1+AD$14)*(1+AC$14)))) -> 0 | AG16: =IF($I$47<5,0,IF(OR(AG$5<1,AG$5>Inputs!$I$75),0,IF(OR(MOD(AG$5,$I$47)=1,MOD(AG$5,$I$47)=2,MOD(AG$5,$I$47)=3,MOD(AG$5,$I$47)=4),0,(1+AG$14)*(1+AF$14)*(1+AE$14)*(1+AD$14)))) -> 0 | AH16: =IF($I$47<5,0,IF(OR(AH$5<1,AH$5>Inputs!$I$75),0,IF(OR(MOD(AH$5,$I$47)=1,MOD(AH$5,$I$47)=2,MOD(AH$5,$I$47)=3,MOD(AH$5,$I$47)=4),0,(1+AH$14)*(1+AG$14)*(1+AF$14)*(1+AE$14)))) -> 0 | AI16: =IF($I$47<5,0,IF(OR(AI$5<1,AI$5>Inputs!$I$75),0,IF(OR(MOD(AI$5,$I$47)=1,MOD(AI$5,$I$47)=2,MOD(AI$5,$I$47)=3,MOD(AI$5,$I$47)=4),0,(1+AI$14)*(1+AH$14)*(1+AG$14)*(1+AF$14)))) -> 1.323585586 | AJ16: =IF($I$47<5,0,IF(OR(AJ$5<1,AJ$5>Inputs!$I$75),0,IF(OR(MOD(AJ$5,$I$47)=1,MOD(AJ$5,$I$47)=2,MOD(AJ$5,$I$47)=3,MOD(AJ$5,$I$47)=4),0,(1+AJ$14)*(1+AI$14)*(1+AH$14)*(1+AG$14)))) -> 0 | AK16: =IF($I$47<5,0,IF(OR(AK$5<1,AK$5>Inputs!$I$75),0,IF(OR(MOD(AK$5,$I$47)=1,MOD(AK$5,$I$47)=2,MOD(AK$5,$I$47)=3,MOD(AK$5,$I$47)=4),0,(1+AK$14)*(1+AJ$14)*(1+AI$14)*(1+AH$14)))) -> 0 | AL16: =IF($I$47<5,0,IF(OR(AL$5<1,AL$5>Inputs!$I$75),0,IF(OR(MOD(AL$5,$I$47)=1,MOD(AL$5,$I$47)=2,MOD(AL$5,$I$47)=3,MOD(AL$5,$I$47)=4),0,(1+AL$14)*(1+AK$14)*(1+AJ$14)*(1+AI$14)))) -> 0 | AM16: =IF($I$47<5,0,IF(OR(AM$5<1,AM$5>Inputs!$I$75),0,IF(OR(MOD(AM$5,$I$47)=1,MOD(AM$5,$I$47)=2,MOD(AM$5,$I$47)=3,MOD(AM$5,$I$47)=4),0,(1+AM$14)*(1+AL$14)*(1+AK$14)*(1+AJ$14)))) -> 0 | AN16: =IF($I$47<5,0,IF(OR(AN$5<1,AN$5>Inputs!$I$75),0,IF(OR(MOD(AN$5,$I$47)=1,MOD(AN$5,$I$47)=2,MOD(AN$5,$I$47)=3,MOD(AN$5,$I$47)=4),0,(1+AN$14)*(1+AM$14)*(1+AL$14)*(1+AK$14)))) -> 1.323585586 | AO16: =IF($I$47<5,0,IF(OR(AO$5<1,AO$5>Inputs!$I$75),0,IF(OR(MOD(AO$5,$I$47)=1,MOD(AO$5,$I$47)=2,MOD(AO$5,$I$47)=3,MOD(AO$5,$I$47)=4),0,(1+AO$14)*(1+AN$14)*(1+AM$14)*(1+AL$14)))) -> 0 | AP16: =IF($I$47<5,0,IF(OR(AP$5<1,AP$5>Inputs!$I$75),0,IF(OR(MOD(AP$5,$I$47)=1,MOD(AP$5,$I$47)=2,MOD(AP$5,$I$47)=3,MOD(AP$5,$I$47)=4),0,(1+AP$14)*(1+AO$14)*(1+AN$14)*(1+AM$14)))) -> 0 | AQ16: =IF($I$47<5,0,IF(OR(AQ$5<1,AQ$5>Inputs!$I$75),0,IF(OR(MOD(AQ$5,$I$47)=1,MOD(AQ$5,$I$47)=2,MOD(AQ$5,$I$47)=3,MOD(AQ$5,$I$47)=4),0,(1+AQ$14)*(1+AP$14)*(1+AO$14)*(1+AN$14)))) -> 0 | AR16: =IF($I$47<5,0,IF(OR(AR$5<1,AR$5>Inputs!$I$75),0,IF(OR(MOD(AR$5,$I$47)=1,MOD(AR$5,$I$47)=2,MOD(AR$5,$I$47)=3,MOD(AR$5,$I$47)=4),0,(1+AR$14)*(1+AQ$14)*(1+AP$14)*(1+AO$14)))) -> 0 | AS16: =IF($I$47<5,0,IF(OR(AS$5<1,AS$5>Inputs!$I$75),0,IF(OR(MOD(AS$5,$I$47)=1,MOD(AS$5,$I$47)=2,MOD(AS$5,$I$47)=3,MOD(AS$5,$I$47)=4),0,(1+AS$14)*(1+AR$14)*(1+AQ$14)*(1+AP$14)))) -> 0 | AT16: =IF($I$47<5,0,IF(OR(AT$5<1,AT$5>Inputs!$I$75),0,IF(OR(MOD(AT$5,$I$47)=1,MOD(AT$5,$I$47)=2,MOD(AT$5,$I$47)=3,MOD(AT$5,$I$47)=4),0,(1+AT$14)*(1+AS$14)*(1+AR$14)*(1+AQ$14)))) -> 0 | AU16: =IF($I$47<5,0,IF(OR(AU$5<1,AU$5>Inputs!$I$75),0,IF(OR(MOD(AU$5,$I$47)=1,MOD(AU$5,$I$47)=2,MOD(AU$5,$I$47)=3,MOD(AU$5,$I$47)=4),0,(1+AU$14)*(1+AT$14)*(1+AS$14)*(1+AR$14)))) -> 0 | AV16: =IF($I$47<5,0,IF(OR(AV$5<1,AV$5>Inputs!$I$75),0,IF(OR(MOD(AV$5,$I$47)=1,MOD(AV$5,$I$47)=2,MOD(AV$5,$I$47)=3,MOD(AV$5,$I$47)=4),0,(1+AV$14)*(1+AU$14)*(1+AT$14)*(1+AS$14)))) -> 0 | AW16: =IF($I$47<5,0,IF(OR(AW$5<1,AW$5>Inputs!$I$75),0,IF(OR(MOD(AW$5,$I$47)=1,MOD(AW$5,$I$47)=2,MOD(AW$5,$I$47)=3,MOD(AW$5,$I$47)=4),0,(1+AW$14)*(1+AV$14)*(1+AU$14)*(1+AT$14)))) -> 0 | AX16: =IF($I$47<5,0,IF(OR(AX$5<1,AX$5>Inputs!$I$75),0,IF(OR(MOD(AX$5,$I$47)=1,MOD(AX$5,$I$47)=2,MOD(AX$5,$I$47)=3,MOD(AX$5,$I$47)=4),0,(1+AX$14)*(1+AW$14)*(1+AV$14)*(1+AU$14)))) -> 0 | AY16: =IF($I$47<5,0,IF(OR(AY$5<1,AY$5>Inputs!$I$75),0,IF(OR(MOD(AY$5,$I$47)=1,MOD(AY$5,$I$47)=2,MOD(AY$5,$I$47)=3,MOD(AY$5,$I$47)=4),0,(1+AY$14)*(1+AX$14)*(1+AW$14)*(1+AV$14)))) -> 0 | AZ16: =IF($I$47<5,0,IF(OR(AZ$5<1,AZ$5>Inputs!$I$75),0,IF(OR(MOD(AZ$5,$I$47)=1,MOD(AZ$5,$I$47)=2,MOD(AZ$5,$I$47)=3,MOD(AZ$5,$I$47)=4),0,(1+AZ$14)*(1+AY$14)*(1+AX$14)*(1+AW$14)))) -> 0 | BA16: =IF($I$47<5,0,IF(OR(BA$5<1,BA$5>Inputs!$I$75),0,IF(OR(MOD(BA$5,$I$47)=1,MOD(BA$5,$I$47)=2,MOD(BA$5,$I$47)=3,MOD(BA$5,$I$47)=4),0,(1+BA$14)*(1+AZ$14)*(1+AY$14)*(1+AX$14)))) -> 0 | BB16: =IF($I$47<5,0,IF(OR(BB$5<1,BB$5>Inputs!$I$75),0,IF(OR(MOD(BB$5,$I$47)=1,MOD(BB$5,$I$47)=2,MOD(BB$5,$I$47)=3,MOD(BB$5,$I$47)=4),0,(1+BB$14)*(1+BA$14)*(1+AZ$14)*(1+AY$14)))) -> 0
E17: Four-year uplift factor | G17: scalar | H17: UFt2 | P17: =IF($I$47<4,0,IF(OR(P$5<1,P$5>Inputs!$I$75),0,IF(OR(MOD(P$5,$I$47)=1,MOD(P$5,$I$47)=2,MOD(P$5,$I$47)=3),0,(1+P$14)*(1+O$14)*(1+N$14)))) -> 0 | Q17: =IF($I$47<4,0,IF(OR(Q$5<1,Q$5>Inputs!$I$75),0,IF(OR(MOD(Q$5,$I$47)=1,MOD(Q$5,$I$47)=2,MOD(Q$5,$I$47)=3),0,(1+Q$14)*(1+P$14)*(1+O$14)))) -> 0 | R17: =IF($I$47<4,0,IF(OR(R$5<1,R$5>Inputs!$I$75),0,IF(OR(MOD(R$5,$I$47)=1,MOD(R$5,$I$47)=2,MOD(R$5,$I$47)=3),0,(1+R$14)*(1+Q$14)*(1+P$14)))) -> 0 | S17: =IF($I$47<4,0,IF(OR(S$5<1,S$5>Inputs!$I$75),0,IF(OR(MOD(S$5,$I$47)=1,MOD(S$5,$I$47)=2,MOD(S$5,$I$47)=3),0,(1+S$14)*(1+R$14)*(1+Q$14)))) -> 1.233996766 | T17: =IF($I$47<4,0,IF(OR(T$5<1,T$5>Inputs!$I$75),0,IF(OR(MOD(T$5,$I$47)=1,MOD(T$5,$I$47)=2,MOD(T$5,$I$47)=3),0,(1+T$14)*(1+S$14)*(1+R$14)))) -> 1.233996766 | U17: =IF($I$47<4,0,IF(OR(U$5<1,U$5>Inputs!$I$75),0,IF(OR(MOD(U$5,$I$47)=1,MOD(U$5,$I$47)=2,MOD(U$5,$I$47)=3),0,(1+U$14)*(1+T$14)*(1+S$14)))) -> 0 | V17: =IF($I$47<4,0,IF(OR(V$5<1,V$5>Inputs!$I$75),0,IF(OR(MOD(V$5,$I$47)=1,MOD(V$5,$I$47)=2,MOD(V$5,$I$47)=3),0,(1+V$14)*(1+U$14)*(1+T$14)))) -> 0 | W17: =IF($I$47<4,0,IF(OR(W$5<1,W$5>Inputs!$I$75),0,IF(OR(MOD(W$5,$I$47)=1,MOD(W$5,$I$47)=2,MOD(W$5,$I$47)=3),0,(1+W$14)*(1+V$14)*(1+U$14)))) -> 0 | X17: =IF($I$47<4,0,IF(OR(X$5<1,X$5>Inputs!$I$75),0,IF(OR(MOD(X$5,$I$47)=1,MOD(X$5,$I$47)=2,MOD(X$5,$I$47)=3),0,(1+X$14)*(1+W$14)*(1+V$14)))) -> 1.233996766 | Y17: =IF($I$47<4,0,IF(OR(Y$5<1,Y$5>Inputs!$I$75),0,IF(OR(MOD(Y$5,$I$47)=1,MOD(Y$5,$I$47)=2,MOD(Y$5,$I$47)=3),0,(1+Y$14)*(1+X$14)*(1+W$14)))) -> 1.233996766 | Z17: =IF($I$47<4,0,IF(OR(Z$5<1,Z$5>Inputs!$I$75),0,IF(OR(MOD(Z$5,$I$47)=1,MOD(Z$5,$I$47)=2,MOD(Z$5,$I$47)=3),0,(1+Z$14)*(1+Y$14)*(1+X$14)))) -> 0 | AA17: =IF($I$47<4,0,IF(OR(AA$5<1,AA$5>Inputs!$I$75),0,IF(OR(MOD(AA$5,$I$47)=1,MOD(AA$5,$I$47)=2,MOD(AA$5,$I$47)=3),0,(1+AA$14)*(1+Z$14)*(1+Y$14)))) -> 0 | AB17: =IF($I$47<4,0,IF(OR(AB$5<1,AB$5>Inputs!$I$75),0,IF(OR(MOD(AB$5,$I$47)=1,MOD(AB$5,$I$47)=2,MOD(AB$5,$I$47)=3),0,(1+AB$14)*(1+AA$14)*(1+Z$14)))) -> 0 | AC17: =IF($I$47<4,0,IF(OR(AC$5<1,AC$5>Inputs!$I$75),0,IF(OR(MOD(AC$5,$I$47)=1,MOD(AC$5,$I$47)=2,MOD(AC$5,$I$47)=3),0,(1+AC$14)*(1+AB$14)*(1+AA$14)))) -> 1.233996766 | AD17: =IF($I$47<4,0,IF(OR(AD$5<1,AD$5>Inputs!$I$75),0,IF(OR(MOD(AD$5,$I$47)=1,MOD(AD$5,$I$47)=2,MOD(AD$5,$I$47)=3),0,(1+AD$14)*(1+AC$14)*(1+AB$14)))) -> 1.233996766 | AE17: =IF($I$47<4,0,IF(OR(AE$5<1,AE$5>Inputs!$I$75),0,IF(OR(MOD(AE$5,$I$47)=1,MOD(AE$5,$I$47)=2,MOD(AE$5,$I$47)=3),0,(1+AE$14)*(1+AD$14)*(1+AC$14)))) -> 0 | AF17: =IF($I$47<4,0,IF(OR(AF$5<1,AF$5>Inputs!$I$75),0,IF(OR(MOD(AF$5,$I$47)=1,MOD(AF$5,$I$47)=2,MOD(AF$5,$I$47)=3),0,(1+AF$14)*(1+AE$14)*(1+AD$14)))) -> 0 | AG17: =IF($I$47<4,0,IF(OR(AG$5<1,AG$5>Inputs!$I$75),0,IF(OR(MOD(AG$5,$I$47)=1,MOD(AG$5,$I$47)=2,MOD(AG$5,$I$47)=3),0,(1+AG$14)*(1+AF$14)*(1+AE$14)))) -> 0 | AH17: =IF($I$47<4,0,IF(OR(AH$5<1,AH$5>Inputs!$I$75),0,IF(OR(MOD(AH$5,$I$47)=1,MOD(AH$5,$I$47)=2,MOD(AH$5,$I$47)=3),0,(1+AH$14)*(1+AG$14)*(1+AF$14)))) -> 1.233996766 | AI17: =IF($I$47<4,0,IF(OR(AI$5<1,AI$5>Inputs!$I$75),0,IF(OR(MOD(AI$5,$I$47)=1,MOD(AI$5,$I$47)=2,MOD(AI$5,$I$47)=3),0,(1+AI$14)*(1+AH$14)*(1+AG$14)))) -> 1.233996766 | AJ17: =IF($I$47<4,0,IF(OR(AJ$5<1,AJ$5>Inputs!$I$75),0,IF(OR(MOD(AJ$5,$I$47)=1,MOD(AJ$5,$I$47)=2,MOD(AJ$5,$I$47)=3),0,(1+AJ$14)*(1+AI$14)*(1+AH$14)))) -> 0 | AK17: =IF($I$47<4,0,IF(OR(AK$5<1,AK$5>Inputs!$I$75),0,IF(OR(MOD(AK$5,$I$47)=1,MOD(AK$5,$I$47)=2,MOD(AK$5,$I$47)=3),0,(1+AK$14)*(1+AJ$14)*(1+AI$14)))) -> 0 | AL17: =IF($I$47<4,0,IF(OR(AL$5<1,AL$5>Inputs!$I$75),0,IF(OR(MOD(AL$5,$I$47)=1,MOD(AL$5,$I$47)=2,MOD(AL$5,$I$47)=3),0,(1+AL$14)*(1+AK$14)*(1+AJ$14)))) -> 0 | AM17: =IF($I$47<4,0,IF(OR(AM$5<1,AM$5>Inputs!$I$75),0,IF(OR(MOD(AM$5,$I$47)=1,MOD(AM$5,$I$47)=2,MOD(AM$5,$I$47)=3),0,(1+AM$14)*(1+AL$14)*(1+AK$14)))) -> 1.233996766 | AN17: =IF($I$47<4,0,IF(OR(AN$5<1,AN$5>Inputs!$I$75),0,IF(OR(MOD(AN$5,$I$47)=1,MOD(AN$5,$I$47)=2,MOD(AN$5,$I$47)=3),0,(1+AN$14)*(1+AM$14)*(1+AL$14)))) -> 1.233996766 | AO17: =IF($I$47<4,0,IF(OR(AO$5<1,AO$5>Inputs!$I$75),0,IF(OR(MOD(AO$5,$I$47)=1,MOD(AO$5,$I$47)=2,MOD(AO$5,$I$47)=3),0,(1+AO$14)*(1+AN$14)*(1+AM$14)))) -> 0 | AP17: =IF($I$47<4,0,IF(OR(AP$5<1,AP$5>Inputs!$I$75),0,IF(OR(MOD(AP$5,$I$47)=1,MOD(AP$5,$I$47)=2,MOD(AP$5,$I$47)=3),0,(1+AP$14)*(1+AO$14)*(1+AN$14)))) -> 0 | AQ17: =IF($I$47<4,0,IF(OR(AQ$5<1,AQ$5>Inputs!$I$75),0,IF(OR(MOD(AQ$5,$I$47)=1,MOD(AQ$5,$I$47)=2,MOD(AQ$5,$I$47)=3),0,(1+AQ$14)*(1+AP$14)*(1+AO$14)))) -> 0 | AR17: =IF($I$47<4,0,IF(OR(AR$5<1,AR$5>Inputs!$I$75),0,IF(OR(MOD(AR$5,$I$47)=1,MOD(AR$5,$I$47)=2,MOD(AR$5,$I$47)=3),0,(1+AR$14)*(1+AQ$14)*(1+AP$14)))) -> 0 | AS17: =IF($I$47<4,0,IF(OR(AS$5<1,AS$5>Inputs!$I$75),0,IF(OR(MOD(AS$5,$I$47)=1,MOD(AS$5,$I$47)=2,MOD(AS$5,$I$47)=3),0,(1+AS$14)*(1+AR$14)*(1+AQ$14)))) -> 0 | AT17: =IF($I$47<4,0,IF(OR(AT$5<1,AT$5>Inputs!$I$75),0,IF(OR(MOD(AT$5,$I$47)=1,MOD(AT$5,$I$47)=2,MOD(AT$5,$I$47)=3),0,(1+AT$14)*(1+AS$14)*(1+AR$14)))) -> 0 | AU17: =IF($I$47<4,0,IF(OR(AU$5<1,AU$5>Inputs!$I$75),0,IF(OR(MOD(AU$5,$I$47)=1,MOD(AU$5,$I$47)=2,MOD(AU$5,$I$47)=3),0,(1+AU$14)*(1+AT$14)*(1+AS$14)))) -> 0 | AV17: =IF($I$47<4,0,IF(OR(AV$5<1,AV$5>Inputs!$I$75),0,IF(OR(MOD(AV$5,$I$47)=1,MOD(AV$5,$I$47)=2,MOD(AV$5,$I$47)=3),0,(1+AV$14)*(1+AU$14)*(1+AT$14)))) -> 0 | AW17: =IF($I$47<4,0,IF(OR(AW$5<1,AW$5>Inputs!$I$75),0,IF(OR(MOD(AW$5,$I$47)=1,MOD(AW$5,$I$47)=2,MOD(AW$5,$I$47)=3),0,(1+AW$14)*(1+AV$14)*(1+AU$14)))) -> 0 | AX17: =IF($I$47<4,0,IF(OR(AX$5<1,AX$5>Inputs!$I$75),0,IF(OR(MOD(AX$5,$I$47)=1,MOD(AX$5,$I$47)=2,MOD(AX$5,$I$47)=3),0,(1+AX$14)*(1+AW$14)*(1+AV$14)))) -> 0 | AY17: =IF($I$47<4,0,IF(OR(AY$5<1,AY$5>Inputs!$I$75),0,IF(OR(MOD(AY$5,$I$47)=1,MOD(AY$5,$I$47)=2,MOD(AY$5,$I$47)=3),0,(1+AY$14)*(1+AX$14)*(1+AW$14)))) -> 0 | AZ17: =IF($I$47<4,0,IF(OR(AZ$5<1,AZ$5>Inputs!$I$75),0,IF(OR(MOD(AZ$5,$I$47)=1,MOD(AZ$5,$I$47)=2,MOD(AZ$5,$I$47)=3),0,(1+AZ$14)*(1+AY$14)*(1+AX$14)))) -> 0 | BA17: =IF($I$47<4,0,IF(OR(BA$5<1,BA$5>Inputs!$I$75),0,IF(OR(MOD(BA$5,$I$47)=1,MOD(BA$5,$I$47)=2,MOD(BA$5,$I$47)=3),0,(1+BA$14)*(1+AZ$14)*(1+AY$14)))) -> 0 | BB17: =IF($I$47<4,0,IF(OR(BB$5<1,BB$5>Inputs!$I$75),0,IF(OR(MOD(BB$5,$I$47)=1,MOD(BB$5,$I$47)=2,MOD(BB$5,$I$47)=3),0,(1+BB$14)*(1+BA$14)*(1+AZ$14)))) -> 0
